Workbook

Sheet MENU
B2: AGENCIA DE REGULACIÓN Y CONTROL DE LAS TELECOMUNICACIONES - ARCOTEL
B5: FORMATOS TÉCNICOS OTH DE FRECUENCIAS DEL ESPECTRO RADIOELÉCTRICO
C6: PARA SISTEMA TRONCALIZADOS
B8: 1 | D8: SOLICITUD PARA LA OBTENCIÓN DEL TÍTULO HABILITANTE PARA FRECUENCIAS DEL ESPECTRO RADIOELÉCTRICO | F8: FO-RC-1A
B10: 1 | D10: INFORMACIÓN DE LA ESTRUCTURA DEL SISTEMA DE RADIOCOMUNICACIONES | F10: FO-DRE-01
B12: 2 | D12: INFORMACIÓN DE ANTENAS | F12: FO-DRE-02
B14: 3 | D14: PATRONES DE RADIACIÓN DE ANTENAS | F14: FO-DRE-03
B16: 4 | D16: INFORMACIÓN DE EQUIPAMIENTO | F16: FO-DRE-04
B18: 5 | D18: SISTEMAS TRONCALIZADOS | F18: FO-DRE-12
B20: 6 | D20: CALCULOS DE PROPAGACION | F20: FO-DRE-15
B22: 7 | D22: ESTUDIO TÉCNICO DE EMISIONES DE RNI | F22: FO-DRE-16

Sheet RC-1A (hidden)
B2: SOLICITUD PARA LA OBTENCIÓN DEL TÍTULO HABILITANTE PARA LA OPERACIÓN DE FRECUENCIAS DEL ESPECTRO RADIOELÉCTRICO
D8: Fecha:
B10: Señor(a) DIRECTOR(A) EJECUTIVO(A) ARCOTEL Presente.-
B12: De mi consideración: | D12: SI
D13: NO
B14: Por medio del presente, me permito solicitarle el otorgamiento del título habilitante para la operación de Frecuencias Del Espectro Radioeléctrico, en tal virtud, adjunto sírvase encontrar el Proyecto Técnico, Estudio de Sostenibilidad Económica y demás requisitos legales establecidos en el Reglamento para Otorgar Títulos Habilitantes para Servicios del Régimen General de Telecomunicaciones y Frecuencias del Espectro Radioeléctrico, Reglamento para la Prestación de Servicios de Telecomunicaciones y Servicios de Radiodifusión por Suscripción.
B16: SERVICIO DE RADIOCOMUNICACION: | C16: Sistemas de radios de dos vías HF, VHF y UHF
B18: Uso de frecuencias esenciales: | D18: Uso de frecuencias no esenciales:
B21: 1. DATOS GENERALES DEL PETICIONARIO(A) | D21: PERSONA NATURAL O JURÍDICA DE DERECHO PRIVADO
D22: EMPRESA PÚBLICA O INSTUCIÓN DEL SECTOR PÚBLICO
B23: TIPO DE SOLICITANTE:
B24: EMPRESA PÚBLICA O INSTUCIÓN DEL SECTOR PÚBLICO
B26: OBJETO DE LA SOLICITUD: | D26: ASOCIADA A: | F26: TIPO DE RED:
B29: 1.1. DATOS GENERALES PERSONA NATURAL O REPRESENTANTE LEGAL
B31: NOMBRES
B32: APELLIDOS
B33: CEDULA DE CIUDADANÍA /PASAPORTE
B34: R.U.C.
B35: Nro. CERTIFICADO DE VOTACIÓN
B36: CARGO
B38: 1.2. DATOS GENERALES PERSONA JURÍDICA
B40: RAZÓN SOCIAL O DENOMINACIÓN OBJETIVA
B41: ACTIVIDAD DE LA EMPRESA
B42: R.U.C.
B44: 2. DIRECCIÓN DE CORRESPONDENCIA DEL PETICIONARIO(A)
B46: PROVINCIA
B47: CANTÓN
B48: PARROQUIA
B49: DIRECCIÓN
B50: CÓDIGO POSTAL
B51: TELÉFONOS FIJO
B52: TELÉFONOS CELULAR
B53: CORREO ELECTRÓNICO
B56: ________________________________________________________ FIRMA DEL PETICIONARIO(A) O REPRESENTANTE LEGAL
D57: SI
D58: NO
B59: INFORMACIÓN DEL PROFESIONAL TÉCNICO RESPONSABLE DEL PROYECTO TÉCNICO
B60: NOMBRE DEL PROFESIONAL
B62: NÚMERO DE REGISTO EN LA SENESCYT
B63: Nota: El Proyecto Técnico deberá elaborar un ingeniero en Electrónica y/o Telecomunicaciones
B64: Codigo :FO-RC-1A
B65: Versión: 01

Sheet FO-DRE-01
A1: Código: FO-DRE-01 Versión: 01 | C1: FORMULARIO PARA INFORMACION DE LA INFRAESTRUCTURA DEL SISTEMA DE RADIOCOMUNICACIONES
A3: 1 | B3: 2 | C3: 3 | D3: 4 | E3: 5 | F3: 6 | G3: 7 | H3: 8 | P3: 9 | R3: 10 | S3: 11 | T3: 12 | U3: 13
A4: CODIGO ESTRUCTURA | B4: NOMBRE DEL SITIO | C4: PROVINCIA | D4: CANTÓN | E4: CIUDAD | F4: PARROQUIA (RURAL/CABECERA CANTONAL) | G4: DIRECCIÓN ( Calle y No.) / LOCALIDAD | H4: COORDENADAS WGS84 | P4: ALTURA DE LA ESTRUCTURA | R4: TIPO DE ESTRUCTURA DE SOPORTE | S4: FUENTE DE ENERGIA | T4: ESTRUCTURA NUEVA / EXISTENTE | U4: PROPIETARIO DE LA ESTRUCTURA
H5: LATITUD | L5: LONGITUD
H6: GRADOS | I6: MINUTOS | J6: SEGUNDOS | K6: N/S | L6: GRADOS | M6: MINUTOS | N6: SEGUNDOS | O6: W | P6: S.N.M. [m] | Q6: BASE-CIMA [m]
A7: S1 | B7: NUEVA ESPERANZA | C7: ORELLANA | D7: ORELLANA | E7: NUEVA ESPERANZA | F7: TARACOA (CAB EN NUEVA ESPERANZA:YUCA) | G7: NUEVA ESPERANZA | H7: 0 | I7: 29 | J7: 11.83 | K7: S | L7: 76 | M7: 46 | N7: 20.85 | O7: W | P7: 252 | Q7: 12 | R7: TORRE NO AUTOSOPORTADA | T7: NO | U7: USUARIO
A8: S2 | B8: NUEVA ESPERANZA | C8: ORELLANA | D8: ORELLANA | E8: NUEVA ESPERANZA | F8: TARACOA (CAB EN NUEVA ESPERANZA:YUCA) | G8: NUEVA ESPERANZA | H8: 0 | I8: 29 | J8: 11.83 | K8: S | L8: 76 | M8: 46 | N8: 20.85 | O8: W | P8: 252 | Q8: 20 | R8: TORRE NO AUTOSOPORTADA | T8: NO | U8: USUARIO
A9: S3 | B9: NUEVA ESPERANZA | C9: ORELLANA | D9: ORELLANA | E9: NUEVA ESPERANZA | F9: TARACOA (CAB EN NUEVA ESPERANZA:YUCA) | G9: NUEVA ESPERANZA | H9: 0 | I9: 29 | J9: 11.83 | K9: S | L9: 76 | M9: 46 | N9: 20.85 | O9: W | P9: 252 | Q9: 12 | R9: TORRE NO AUTOSOPORTADA | T9: NO | U9: USUARIO
O10: W
O11: W
O12: W
O13: W
O14: W
O15: W
O16: W
O17: W
O18: W
O19: W
O20: W
O21: W
O22: W
O23: W
O24: W
O25: W
O26: W
O27: W
O28: W
O29: W
O30: W
O31: W
O32: W
O33: W
O34: W
O35: W
O36: W
O37: W
O38: W
O39: W
O40: W
O41: W
O42: W
O43: W
O44: W
O45: W
O46: W
O47: W
O48: W
O49: W
O50: W
O51: W
O52: W
O53: W
O54: W
O55: W
O56: W
O57: W
O58: W
O59: W
O60: W
O61: W
O62: W
O63: W
O64: W
O65: W
O66: W
O67: W
O68: W
O69: W
O70: W
O71: W
O72: W
O73: W
O74: W
O75: W
O76: W
O77: W
O78: W
O79: W
O80: W
O81: W
O82: W
O83: W
O84: W
O85: W
O86: W
O87: W
O88: W
O89: W
O90: W
O91: W
O92: W
O93: W
O94: W
O95: W
O96: W
O97: W
O98: W
O99: W
O100: W
O101: W
O102: W
O103: W
O104: W
O105: W
O106: W
O107: W
O108: W
O109: W
O110: W
O111: W
O112: W
O113: W
O114: W
O115: W
O116: W

Sheet FO-DRE-02
A1: Código: FO-DRE-02 Versión: 01 | C1: FORMULARIO PARA INFORMACION DE ANTENAS
A3: 1 | B3: 2 | C3: 3 | D3: 4 | F3: 5 | G3: 6 | H3: 7 | I3: 8 | J3: 9 | K3: 10 | L3: 11 | M3: 12
A4: CODIGO DE ANTENA | B4: MARCA | C4: MODELO | D4: RANGO DE OPERACIÓN [MHz] | F4: TIPO | G4: POLARIZACION | H4: IMPEDANCIA [Ω] | I4: GANANCIA [dBd] | J4: DIAMETRO [m] | K4: AZIMUT DE RADIACION MAXIMA (°) | L4: ANGULO DE ELEVACION (°) | M4: ALTURA BASE-ANTENA (m)
D5: FREC. INICIAL | E5: FREC. FINAL
A6: A1 | B6: SINCLAIR | C6: SC-488 | D6: 806 | E6: 869 | F6: 4-DIPOLOS | G6: HORIZONTAL | H6: 50 | I6: 10 | K6: 12 | L6: 3 | M6: 5
A7: A2 | B7: SINCLAIR | C7: SC-488 | D7: 806 | E7: 869 | F7: 4-DIPOLOS | G7: HORIZONTAL | H7: 50 | I7: 6 | K7: 12 | L7: 3 | M7: 12
A8: A3 | B8: SINCLAIR | C8: SC-488 | D8: 806 | E8: 869 | F8: 4-DIPOLOS | G8: HORIZONTAL | H8: 50 | I8: 10 | K8: 12 | L8: 3 | M8: 5

Sheet FO-DRE-03
B2: Código: FO-DRE-03 Versión: 01 | G2: FORMULARIO PARA PATRONES DE RADIACION DE ANTENAS | AB2: Código: FO-DRE-03 Versión: 01 | AG2: FORMULARIO PARA PATRONES DE RADIACION DE ANTENAS
B6: 1 | AB6: 1
B7: PATRONES DE RADIACION DE ANTENA | AB7: PATRONES DE RADIACION DE ANTENA
B8: MARCA: | D8: ='FO-DRE-02'!B6 -> SINCLAIR | J8: MODELO: | L8: ='FO-DRE-02'!C6 -> SC-488 | S8: TIPO: | U8: ='FO-DRE-02'!F6 -> 4-DIPOLOS | AB8: MARCA: | AD8: ='FO-DRE-02'!B7 -> SINCLAIR | AJ8: MODELO: | AL8: ='FO-DRE-02'!C7 -> SC-488 | AS8: TIPO: | AU8: ='FO-DRE-02'!F6 -> 4-DIPOLOS
B9: Ingrese los valores de ganancia ( dBd ) para cada radial. | AB9: Ingrese los valores de ganancia ( dBd ) para cada radial.
B10: RADIAL PLANO | D10: 0° | E10: 15° | F10: 30° | G10: 45° | H10: 60° | I10: 75° | J10: 90° | K10: 105° | L10: 120° | M10: 135° | N10: 150° | O10: 165° | P10: 180° | Q10: 195° | R10: 210° | S10: 225° | T10: 240° | U10: 255° | V10: 270° | W10: 285° | X10: 300° | Y10: 315° | Z10: 330° | AA10: 345° | AB10: RADIAL PLANO | AD10: 0° | AE10: 15° | AF10: 30° | AG10: 45° | AH10: 60° | AI10: 75° | AJ10: 90° | AK10: 105° | AL10: 120° | AM10: 135° | AN10: 150° | AO10: 165° | AP10: 180° | AQ10: 195° | AR10: 210° | AS10: 225° | AT10: 240° | AU10: 255° | AV10: 270° | AW10: 285° | AX10: 300° | AY10: 315° | AZ10: 330° | BA10: 345°
B12: HORIZONTAL | D12: 12 | E12: 11 | F12: 10.5 | G12: 10.3 | H12: 10 | I12: 9 | J12: 8.5 | K12: 7 | L12: 6.5 | M12: 5.2 | N12: 5 | O12: 5 | P12: 5 | Q12: 5 | R12: 5 | S12: 5.2 | T12: 6.5 | U12: 7 | V12: 8.5 | W12: 9 | X12: 10 | Y12: 10.3 | Z12: 10.5 | AA12: 11 | AB12: HORIZONTAL
B13: VERTICAL | D13: 12 | E13: 0 | F13: -12 | G13: -24 | H13: -12 | I13: -18 | J13: -25 | K13: -18 | L13: -24 | M13: -12 | N13: -12 | O13: 0 | P13: 12 | Q13: 0 | R13: -12 | S13: -12 | T13: -24 | U13: -18 | V13: -25 | W13: -18 | X13: -12 | Y13: -24 | Z13: -12 | AA13: 0 | AB13: VERTICAL
B14: PATRON DE RADIACION HORIZONTAL | O14: PATRON DE RADIACION VERTICAL | AB14: PATRON DE RADIACION HORIZONTAL | AO14: PATRON DE RADIACION VERTICAL
B33: 1 | AB33: 1
B34: PATRONES DE RADIACION DE ANTENA | AB34: PATRONES DE RADIACION DE ANTENA
B35: MARCA: | J35: MODELO: | S35: TIPO: | AB35: MARCA: | AJ35: MODELO: | AS35: TIPO:
B36: Ingrese los valores de ganancia ( dBd ) para cada radial. | AB36: Ingrese los valores de ganancia ( dBd ) para cada radial.
B37: RADIAL PLANO | D37: 0° | E37: 15° | F37: 30° | G37: 45° | H37: 60° | I37: 75° | J37: 90° | K37: 105° | L37: 120° | M37: 135° | N37: 150° | O37: 165° | P37: 180° | Q37: 195° | R37: 210° | S37: 225° | T37: 240° | U37: 255° | V37: 270° | W37: 285° | X37: 300° | Y37: 315° | Z37: 330° | AA37: 345° | AB37: RADIAL PLANO | AD37: 0° | AE37: 15° | AF37: 30° | AG37: 45° | AH37: 60° | AI37: 75° | AJ37: 90° | AK37: 105° | AL37: 120° | AM37: 135° | AN37: 150° | AO37: 165° | AP37: 180° | AQ37: 195° | AR37: 210° | AS37: 225° | AT37: 240° | AU37: 255° | AV37: 270° | AW37: 285° | AX37: 300° | AY37: 315° | AZ37: 330° | BA37: 345°
B39: HORIZONTAL | AB39: HORIZONTAL
B40: VERTICAL | AB40: VERTICAL
B41: PATRON DE RADIACION HORIZONTAL | O41: PATRON DE RADIACION VERTICAL | AB41: PATRON DE RADIACION HORIZONTAL | AO41: PATRON DE RADIACION VERTICAL
B60: 1 | AB60: 1
B61: PATRONES DE RADIACION DE ANTENA | AB61: PATRONES DE RADIACION DE ANTENA
B62: MARCA: | J62: MODELO: | S62: TIPO: | AB62: MARCA: | AJ62: MODELO: | AS62: TIPO:
B63: Ingrese los valores de ganancia ( dBd ) para cada radial. | AB63: Ingrese los valores de ganancia ( dBd ) para cada radial.
B64: RADIAL PLANO | D64: 0° | E64: 15° | F64: 30° | G64: 45° | H64: 60° | I64: 75° | J64: 90° | K64: 105° | L64: 120° | M64: 135° | N64: 150° | O64: 165° | P64: 180° | Q64: 195° | R64: 210° | S64: 225° | T64: 240° | U64: 255° | V64: 270° | W64: 285° | X64: 300° | Y64: 315° | Z64: 330° | AA64: 345° | AB64: RADIAL PLANO | AD64: 0° | AE64: 15° | AF64: 30° | AG64: 45° | AH64: 60° | AI64: 75° | AJ64: 90° | AK64: 105° | AL64: 120° | AM64: 135° | AN64: 150° | AO64: 165° | AP64: 180° | AQ64: 195° | AR64: 210° | AS64: 225° | AT64: 240° | AU64: 255° | AV64: 270° | AW64: 285° | AX64: 300° | AY64: 315° | AZ64: 330° | BA64: 345°
B66: HORIZONTAL | AB66: HORIZONTAL
B67: VERTICAL | AB67: VERTICAL
B68: PATRON DE RADIACION HORIZONTAL | O68: PATRON DE RADIACION VERTICAL | AB68: PATRON DE RADIACION HORIZONTAL | AO68: PATRON DE RADIACION VERTICAL
B87: 1 | AB87: 1
B88: PATRONES DE RADIACION DE ANTENA | AB88: PATRONES DE RADIACION DE ANTENA
B89: MARCA: | J89: MODELO: | S89: TIPO: | AB89: MARCA: | AJ89: MODELO: | AS89: TIPO:
B90: Ingrese los valores de ganancia ( dBd ) para cada radial. | AB90: Ingrese los valores de ganancia ( dBd ) para cada radial.
B91: RADIAL PLANO | D91: 0° | E91: 15° | F91: 30° | G91: 45° | H91: 60° | I91: 75° | J91: 90° | K91: 105° | L91: 120° | M91: 135° | N91: 150° | O91: 165° | P91: 180° | Q91: 195° | R91: 210° | S91: 225° | T91: 240° | U91: 255° | V91: 270° | W91: 285° | X91: 300° | Y91: 315° | Z91: 330° | AA91: 345° | AB91: RADIAL PLANO | AD91: 0° | AE91: 15° | AF91: 30° | AG91: 45° | AH91: 60° | AI91: 75° | AJ91: 90° | AK91: 105° | AL91: 120° | AM91: 135° | AN91: 150° | AO91: 165° | AP91: 180° | AQ91: 195° | AR91: 210° | AS91: 225° | AT91: 240° | AU91: 255° | AV91: 270° | AW91: 285° | AX91: 300° | AY91: 315° | AZ91: 330° | BA91: 345°
B93: HORIZONTAL | AB93: HORIZONTAL
B94: VERTICAL | AB94: VERTICAL
B95: PATRON DE RADIACION HORIZONTAL | O95: PATRON DE RADIACION VERTICAL | AB95: PATRON DE RADIACION HORIZONTAL | AO95: PATRON DE RADIACION VERTICAL
B114: 1 | AB114: 1
B115: PATRONES DE RADIACION DE ANTENA | AB115: PATRONES DE RADIACION DE ANTENA
B116: MARCA: | J116: MODELO: | S116: TIPO: | AB116: MARCA: | AJ116: MODELO: | AS116: TIPO:
B117: Ingrese los valores de ganancia ( dBd ) para cada radial. | AB117: Ingrese los valores de ganancia ( dBd ) para cada radial.
B118: RADIAL PLANO | D118: 0° | E118: 15° | F118: 30° | G118: 45° | H118: 60° | I118: 75° | J118: 90° | K118: 105° | L118: 120° | M118: 135° | N118: 150° | O118: 165° | P118: 180° | Q118: 195° | R118: 210° | S118: 225° | T118: 240° | U118: 255° | V118: 270° | W118: 285° | X118: 300° | Y118: 315° | Z118: 330° | AA118: 345° | AB118: RADIAL PLANO | AD118: 0° | AE118: 15° | AF118: 30° | AG118: 45° | AH118: 60° | AI118: 75° | AJ118: 90° | AK118: 105° | AL118: 120° | AM118: 135° | AN118: 150° | AO118: 165° | AP118: 180° | AQ118: 195° | AR118: 210° | AS118: 225° | AT118: 240° | AU118: 255° | AV118: 270° | AW118: 285° | AX118: 300° | AY118: 315° | AZ118: 330° | BA118: 345°
B120: HORIZONTAL | AB120: HORIZONTAL
B121: VERTICAL | AB121: VERTICAL
B122: PATRON DE RADIACION HORIZONTAL | O122: PATRON DE RADIACION VERTICAL | AB122: PATRON DE RADIACION HORIZONTAL | AO122: PATRON DE RADIACION VERTICAL
B141: 1 | AB141: 1
B142: PATRONES DE RADIACION DE ANTENA | AB142: PATRONES DE RADIACION DE ANTENA
B143: MARCA: | J143: MODELO: | S143: TIPO: | AB143: MARCA: | AJ143: MODELO: | AS143: TIPO:
B144: Ingrese los valores de ganancia ( dBd ) para cada radial. | AB144: Ingrese los valores de ganancia ( dBd ) para cada radial.
B145: RADIAL PLANO | D145: 0° | E145: 15° | F145: 30° | G145: 45° | H145: 60° | I145: 75° | J145: 90° | K145: 105° | L145: 120° | M145: 135° | N145: 150° | O145: 165° | P145: 180° | Q145: 195° | R145: 210° | S145: 225° | T145: 240° | U145: 255° | V145: 270° | W145: 285° | X145: 300° | Y145: 315° | Z145: 330° | AA145: 345° | AB145: RADIAL PLANO | AD145: 0° | AE145: 15° | AF145: 30° | AG145: 45° | AH145: 60° | AI145: 75° | AJ145: 90° | AK145: 105° | AL145: 120° | AM145: 135° | AN145: 150° | AO145: 165° | AP145: 180° | AQ145: 195° | AR145: 210° | AS145: 225° | AT145: 240° | AU145: 255° | AV145: 270° | AW145: 285° | AX145: 300° | AY145: 315° | AZ145: 330° | BA145: 345°
B147: HORIZONTAL | AB147: HORIZONTAL
B148: VERTICAL | AB148: VERTICAL
B149: PATRON DE RADIACION HORIZONTAL | O149: PATRON DE RADIACION VERTICAL | AB149: PATRON DE RADIACION HORIZONTAL | AO149: PATRON DE RADIACION VERTICAL

Sheet FO-DRE-04
A1: Código: FO-DRE-04 Versión: 01 | C1: FORMULARIO PARA INFORMACION DE EQUIPOS
A3: 4 | B3: 2 | C3: 3 | D3: 4 | E3: 5 | F3: 6 | H3: 7 | J3: 8 | K3: 9 | L3: 10
A4: CODIGO DEL EQUIPO | B4: TIPO DE ESTACION | C4: MARCA | D4: MODELO | E4: SEPARACION ENTRE Tx Y Rx [MHz] | F4: POTENCIA MAXIMA DE SALIDA | H4: RANGO DE FRECUENCIAS [MHz] | J4: TIPO DE MODULACION | K4: SENSIBILIDAD [dBm] | L4: MAXIMA DESVIACION DE FRECUENCIA [kHz]
F5: [W] | G5: [dBm] | H5: FREC. INICIAL | I5: FREC. FINAL
A6: E1 | B6: REPETIDOR | C6: KENWOOD | D6: NXR-900 | E6: 45 | F6: 45 | G6: =IF(F6="","",10*LOG10(F6*1000)) -> 46.53212514 | H6: 806 | I6: 870 | J6: BPSK | K6: 0.33 | L6: 4.5
A7: E2 | B7: REPETIDOR | C7: MOTOROLA | D7: MTR-2000 | E7: 45 | F7: 40 | G7: =IF(F7="","",10*LOG10(F7*1000)) -> 46.02059991 | H7: 806 | I7: 870 | J7: PSK | K7: 0.25 | L7: 4.5
A8: E3 | B8: REPETIDOR | C8: UNIDEN | D8: MSR-804 | E8: 45 | F8: 75 | G8: 48.75061263 | H8: 806 | I8: 870 | J8: MSK | K8: 0.35 | L8: 4.5
G9: =IF(F9="","",10*LOG10(F9*1000)) -> 
G10: =IF(F10="","",10*LOG10(F10*1000)) -> 
G74: =IF(F74="","",10*LOG10(F74*1000)) -> 

Sheet FO-DRE-12
A1: Código: FO-DRE-12 Versión: 01 | C1: FORMULARIO PARA SISTEMA TRONCALIZADOS | V1: FORMULARIO PARA INFORMACION DE LA INFRAESTRUCTURA DEL SISTEMA DE RADIOCOMUNICACIONES | AK1: FORMULARIO PARA INFORMACION DE EQUIPOS | AP1: FORMULARIO PARA INFORMACION DE ANTENAS | BH1: FORMULARIO PARA ESTUDIO TECNICO DE EMISIONES DE RNI (CALCULO DE LA DISTANCIA DE SEGURIDAD) RESOLUCION 01-01-CONATEL-2005 | BT1: RC-15A Elab: DRE Versión: 02
BH4: NOMBRE DE LA EMPRESA: | BT4: 1) Cod. Cont:
A5: CARACTERISTICAS DE OPERACIÓN POR RADIOBASE | V5: CARACTERISTICAS DE LAS ESTRUCTURAS | AK5: CARACTERISTICAS DE LOS EQUIPOS | AP5: CARACTERISTICAS DE LAS ANTENAS | BD5: No | BE5: CODIGO DE ESTRUCTURA ASOCIADA | BF5: SOBREPASA LÍMITES POBLACIONAL | BG5: SOBREPASA LÍMITES OCUPACIONAL | BH5: ESTACION REPETIDORA / FIJA | BT5: 2016-05-11 | BX5: Las frecuencias bajo 10 MHz, no se puede determinar la distancia debido a que los valores de Slim no están determinados, por lo tanto, las zonas de exposición poblacional y ocupacional serán determinadas por la ARCOTEL durante el control. (Ver Anexo 3, Procedimiento de Mediciones). RESOLUCION 01-01-CONATEL-2005
A7: 1 | B7: 2 | C7: 3 | D7: 4 | E7: 5 | G7: 6 | H7: 7 | I7: 8 | J7: 8 | K7: 9 | L7: 9 | M7: 10 | N7: 11 | O7: 12 | P7: 12 | Q7: 13 | R7: 14 | S7: 15 | T7: 16 | U7: 17 | V7: 18 | W7: 19 | X7: 20 | Y7: 21 | Z7: 22 | AA7: 23 | AB7: 24 | AC7: 25 COORDENADAS WGS84 | AK7: 26 | AL7: 27 | AM7: 28 | AN7: 29 | AO7: 30 | AP7: 31 | AQ7: 32 | AR7: 33 | AS7: 34 | AU7: 35 | AV7: 36 | AW7: 37 | AX7: 38 | AY7: 39 | AZ7: 40 | BB7: 806-811 / 851-856 | BH7: Slím A CONSIDERAR | BJ7: CALCULO DE R2 | BO7: CÁLCULO DEL PIRE | BR7: Slím TEÓRICO (W/m2)
A8: NUMERO DE CONTRATO | B8: N° DE RADIOBASE | C8: RANGOS DE FRECUENCIAS (MHZ) | D8: MODO DE OPERACION: | E8: BLOQUE | F8: GRUPO | G8: N° DE CANALES POR RADIOBASE | H8: ZONA | I8: CIUDAD/PROVINCIAS DE LA ZONA | L8: NUMERO TOTAL DE ABONADOS DEL SISTEMA | M8: POTENCIA DE OPERACIÓN (Watts): | N8: ANCHURA DE BANDA (kHz): | O8: CLASE DE EMISIÓN: | P8: INDICATIVO | Q8: AC. (A,M,I,E) | R8: CODIGO DE ESTRUCTURA ASOCIADA | S8: CODIGO DE EQUIPO ASOCIADO | T8: CODIGO DE ANTENA ASOCIADA | U8: ALTURA EFECTIVA DE ANTENA (m) | V8: TIPO DE ESTRUCTURA DE SOPORTE | W8: ALTURA DE LA ESTRUCTURA s.n.m. (m): | X8: ALTURA DE LA ESTRUCTURA (BASE-CIMA) (m): | Y8: PROVINCIA | Z8: CANTÓN | AA8: CIUDAD | AB8: DIRECCIÓN (Localidad / Calle y No.) | AC8: LATITUD | AG8: LONGITUD | AK8: TIPO DE ESTACIÓN | AL8: MARCA | AM8: MODELO | AN8: POTENCIA MAXIMA DEL EQUIPO (Watts) | AO8: SENSIBILIDAD (mV) o (dBm) | AP8: MARCA | AQ8: MODELO | AR8: TIPO | AS8: RANGO DE OPERACIÓN [MHz] | AU8: IMPEDANCIA (ohmios) | AV8: POLARIZACION | AW8: GANANCIA (dBd) | AX8: AZIMUT DE RADIACION MAXIMA (°) | AY8: ANGULO DE ELEVACION (°) | AZ8: ALTURA BASE-ANTENA (m) | BB8: 811-824 / 856-869 | BR8: Distancia (m)
AC9: GRADOS | AD9: MINUTOS | AE9: SEGUNDOS | AF9: N/S | AG9: GRADOS | AH9: MINUTOS | AI9: SEGUNDOS | AJ9: W | AS9: FREC. INICIAL | AT9: FREC. FINAL | BF9: Estación de Rx | BG9: Estación de Rx | BH9: Slím OCUPACIONAL (W/m2) | BI9: Slím POBLACIONAL (W/m2) | BJ9: 2 | BK9: 5 | BL9: 10 | BM9: 20 | BN9: 50 | BO9: Pmax (W) | BP9: Gmax | BQ9: PIRE (W) | BR9: 2 | BS9: 5 | BT9: 10 | BU9: 20 | BV9: 50
B10: B1 | C10: 811-824 / 856-869 | D10: SEM | E10: 1 | F10: G3 | G10: 5 | H10: 1b | I10: =IF(H10="1a",Hoja1!$B$126,IF(H10="1b",Hoja1!$B$127,IF(H10="2a",Hoja1!$B$128,IF(H10="2b",Hoja1!$B$129,IF(H10="3 ",Hoja1!$B$130,IF(H10="4 ",Hoja1!$B$131,IF(H10="5 ",Hoja1!$B$132,IF(H10="6 ",Hoja1!$B$133,IF(H10="7 ",Hoja1!$B$134,IF(H10="8 ",Hoja1!$B$135," ")))))))))) -> RESTO DE PICHINCHA-SUCUMBIOS-NAPO-ORELLANA | J10: =CONCATENATE(#REF!,"-","TX") ->  | K10: =CONCATENATE(#REF!,"-","RX") ->  | M10: 40 | N10: 25 | O10: 16K0F3E | P10: =B10 -> B1 | Q10: A | R10: S1 | S10: E1 | T10: A1 | U10: 1050 | V10: =IF($R10="","",VLOOKUP($R10,'FO-DRE-01'!$A$7:$U$301,18,FALSE)) -> TORRE NO AUTOSOPORTADA | W10: =IF($R10="","",VLOOKUP($R10,'FO-DRE-01'!$A$7:$U$301,16,FALSE)) -> 252 | X10: =IF($R10="","",VLOOKUP($R10,'FO-DRE-01'!$A$7:$U$301,17,FALSE)) -> 12 | Y10: =IF($R10="","",VLOOKUP($R10,'FO-DRE-01'!$A$7:$U$301,3,FALSE)) -> ORELLANA | Z10: =IF($R10="","",VLOOKUP($R10,'FO-DRE-01'!$A$7:$U$301,4,FALSE)) -> ORELLANA | AA10: =IF($R10="","",VLOOKUP($R10,'FO-DRE-01'!$A$7:$U$301,5,FALSE)) -> NUEVA ESPERANZA | AB10: =IF($R10="","",VLOOKUP($R10,'FO-DRE-01'!$A$7:$U$301,7,FALSE)) -> NUEVA ESPERANZA | AC10: =IF($R10="","",VLOOKUP($R10,'FO-DRE-01'!$A$7:$U$301,8,FALSE)) -> 0 | AD10: =IF($R10="","",VLOOKUP($R10,'FO-DRE-01'!$A$7:$U$301,9,FALSE)) -> 29 | AE10: =IF($R10="","",VLOOKUP($R10,'FO-DRE-01'!$A$7:$U$301,10,FALSE)) -> 11.83 | AF10: =IF($R10="","",VLOOKUP($R10,'FO-DRE-01'!$A$7:$U$301,11,FALSE)) -> S | AG10: =IF($R10="","",VLOOKUP($R10,'FO-DRE-01'!$A$7:$U$301,12,FALSE)) -> 76 | AH10: =IF($R10="","",VLOOKUP($R10,'FO-DRE-01'!$A$7:$U$301,13,FALSE)) -> 46 | AI10: =IF($R10="","",VLOOKUP($R10,'FO-DRE-01'!$A$7:$U$301,14,FALSE)) -> 20.85 | AJ10: =IF($R10="","",VLOOKUP($R10,'FO-DRE-01'!$A$7:$U$301,15,FALSE)) -> W | AK10: =IF($S10="","",VLOOKUP($S10,'FO-DRE-04'!$A$6:$L$301,2,FALSE)) -> REPETIDOR | AL10: =IF($S10="","",VLOOKUP($S10,'FO-DRE-04'!$A$6:$L$301,3,FALSE)) -> KENWOOD | AM10: =IF($S10="","",VLOOKUP($S10,'FO-DRE-04'!$A$6:$L$301,4,FALSE)) -> NXR-900 | AN10: =IF($S10="","",VLOOKUP($S10,'FO-DRE-04'!$A$6:$L$301,6,FALSE)) -> 45 | AO10: =IF($S10="","",VLOOKUP($S10,'FO-DRE-04'!$A$6:$L$301,11,FALSE)) -> 0.33 | AP10: =IF($T10="","",VLOOKUP($T10,'FO-DRE-02'!$A$6:$M$101,2,FALSE)) -> SINCLAIR | AQ10: =IF($T10="","",VLOOKUP($T10,'FO-DRE-02'!$A$6:$M$101,3,FALSE)) -> SC-488 | AR10: =IF($T10="","",VLOOKUP($T10,'FO-DRE-02'!$A$6:$M$101,6,FALSE)) -> 4-DIPOLOS | AS10: =IF($T10="","",VLOOKUP($T10,'FO-DRE-02'!$A$6:$M$101,4,FALSE)) -> 806 | AT10: =IF($T10="","",VLOOKUP($T10,'FO-DRE-02'!$A$6:$M$101,5,FALSE)) -> 869 | AU10: =IF($T10="","",VLOOKUP($T10,'FO-DRE-02'!$A$6:$M$101,8,FALSE)) -> 50 | AV10: =IF($T10="","",VLOOKUP($T10,'FO-DRE-02'!$A$6:$M$101,7,FALSE)) -> HORIZONTAL | AW10: =IF($T10="","",VLOOKUP($T10,'FO-DRE-02'!$A$6:$M$101,9,FALSE)) -> 10 | AX10: =IF($T10="","",VLOOKUP($T10,'FO-DRE-02'!$A$6:$M$101,11,FALSE)) -> 12 | AY10: =IF($T10="","",VLOOKUP($T10,'FO-DRE-02'!$A$6:$M$101,12,FALSE)) -> 3 | AZ10: =IF($T10="","",VLOOKUP($T10,'FO-DRE-02'!$A$6:$M$101,13,FALSE)) -> 5 | BB10: =IF(C10="811-824 / 856-869",869,856) -> 869 | BD10: 1 | BE10: =IF($R10="","",$R10) -> S1 | BF10: =IF(OR($C10="",$AN10="",$AW10=""),"F/D",IF(BR10>BH10,"SI","")) ->  | BG10: =IF(OR($C10="",$AN10="",$AW10=""),"F/D",IF(BR10>BI10,"SI","")) -> SI | BH10: =IF(D10="","",IF(AND(10<BB10,BB10<=400),10,IF(AND(400<BB10,BB10<=2000),(BB10/40),IF(AND(2000<BB10,B10<=300000),50,0)))) -> 21.725 | BI10: =IF(D10="","",IF(AND(10<BB10,BB10<=400),2,IF(AND(400<BB10,BB10<=2000),(BB10/200),IF(AND(2000<BB10,BB10<=300000),10,0)))) -> 4.345 | BJ10: =IF(M10="","",SQRT(POWER($BJ$9,2)+POWER((AZ10-1.5),2))) -> 4.031128874 | BK10: =IF(M10="","",SQRT(POWER($BK$9,2)+POWER((AZ10-1.5),2))) -> 6.103277808 | BL10: =IF(M10="","",SQRT(POWER($BL$9,2)+POWER((AZ10-1.5),2))) -> 10.59481005 | BM10: =IF(M10="","",SQRT(POWER($BM$9,2)+POWER((AZ10-1.5),2))) -> 20.3039405 | BN10: =IF(M10="","",SQRT(POWER($BN$9,2)+POWER((AZ10-1.5),2))) -> 50.1223503 | BO10: =IF(OR(AK10="MOVIL",AK10="PORTATIL"),"",IF(AN10="","",AN10)) -> 45 | BP10: =IF(M10="","",POWER(10,(AW10+2.15)/10)) -> 16.40589773 | BQ10: =IF(OR(BO10="",BP10=""),"",BP10*BO10) -> 738.2653979 | BR10: =IF(M10="","",$BQ10/(PI()*BJ10^2)) -> 14.4613646 | BS10: =IF(M10="","",$BQ10/(PI()*BK10^2)) -> 6.308648988 | BT10: =IF(M10="","",$BQ10/(PI()*BL10^2)) -> 2.093516034 | BU10: =IF(M10="","",$BQ10/(PI()*BM10^2)) -> 0.5700355968 | BV10: =IF(M10="","",$BQ10/(PI()*BN10^2)) -> 0.09354052136
B11: B2 | C11: 806-811 / 851-856 | D11: SEM | E11: 2 | F11: G1 | G11: 5 | H11: 2a | I11: =IF(H11="1a",Hoja1!$B$126,IF(H11="1b",Hoja1!$B$127,IF(H11="2a",Hoja1!$B$128,IF(H11="2b",Hoja1!$B$129,IF(H11="3 ",Hoja1!$B$130,IF(H11="4 ",Hoja1!$B$131,IF(H11="5 ",Hoja1!$B$132,IF(H11="6 ",Hoja1!$B$133,IF(H11="7 ",Hoja1!$B$134,IF(H11="8 ",Hoja1!$B$135," ")))))))))) -> GUAYAQUIL Y ALREDEDORES | J11: =CONCATENATE(#REF!,"-","TX") ->  | K11: =CONCATENATE(#REF!,"-","RX") ->  | M11: 40 | N11: 25 | O11: 16K0F3E | P11: =B11 -> B2 | Q11: A | R11: S2 | S11: E2 | T11: A2 | U11: 200 | V11: =IF($R11="","",VLOOKUP($R11,'FO-DRE-01'!$A$7:$U$301,18,FALSE)) -> TORRE NO AUTOSOPORTADA | W11: =IF($R11="","",VLOOKUP($R11,'FO-DRE-01'!$A$7:$U$301,16,FALSE)) -> 252 | X11: =IF($R11="","",VLOOKUP($R11,'FO-DRE-01'!$A$7:$U$301,17,FALSE)) -> 20 | Y11: =IF($R11="","",VLOOKUP($R11,'FO-DRE-01'!$A$7:$U$301,3,FALSE)) -> ORELLANA | Z11: =IF($R11="","",VLOOKUP($R11,'FO-DRE-01'!$A$7:$U$301,4,FALSE)) -> ORELLANA | AA11: =IF($R11="","",VLOOKUP($R11,'FO-DRE-01'!$A$7:$U$301,5,FALSE)) -> NUEVA ESPERANZA | AB11: =IF($R11="","",VLOOKUP($R11,'FO-DRE-01'!$A$7:$U$301,7,FALSE)) -> NUEVA ESPERANZA | AC11: =IF($R11="","",VLOOKUP($R11,'FO-DRE-01'!$A$7:$U$301,8,FALSE)) -> 0 | AD11: =IF($R11="","",VLOOKUP($R11,'FO-DRE-01'!$A$7:$U$301,9,FALSE)) -> 29 | AE11: =IF($R11="","",VLOOKUP($R11,'FO-DRE-01'!$A$7:$U$301,10,FALSE)) -> 11.83 | AF11: =IF($R11="","",VLOOKUP($R11,'FO-DRE-01'!$A$7:$U$301,11,FALSE)) -> S | AG11: =IF($R11="","",VLOOKUP($R11,'FO-DRE-01'!$A$7:$U$301,12,FALSE)) -> 76 | AH11: =IF($R11="","",VLOOKUP($R11,'FO-DRE-01'!$A$7:$U$301,13,FALSE)) -> 46 | AI11: =IF($R11="","",VLOOKUP($R11,'FO-DRE-01'!$A$7:$U$301,14,FALSE)) -> 20.85 | AJ11: =IF($R11="","",VLOOKUP($R11,'FO-DRE-01'!$A$7:$U$301,15,FALSE)) -> W | AK11: =IF($S11="","",VLOOKUP($S11,'FO-DRE-04'!$A$6:$L$301,2,FALSE)) -> REPETIDOR | AL11: =IF($S11="","",VLOOKUP($S11,'FO-DRE-04'!$A$6:$L$301,3,FALSE)) -> MOTOROLA | AM11: =IF($S11="","",VLOOKUP($S11,'FO-DRE-04'!$A$6:$L$301,4,FALSE)) -> MTR-2000 | AN11: =IF($S11="","",VLOOKUP($S11,'FO-DRE-04'!$A$6:$L$301,6,FALSE)) -> 40 | AO11: =IF($S11="","",VLOOKUP($S11,'FO-DRE-04'!$A$6:$L$301,11,FALSE)) -> 0.25 | AP11: =IF($T11="","",VLOOKUP($T11,'FO-DRE-02'!$A$6:$M$101,2,FALSE)) -> SINCLAIR | AQ11: =IF($T11="","",VLOOKUP($T11,'FO-DRE-02'!$A$6:$M$101,3,FALSE)) -> SC-488 | AR11: =IF($T11="","",VLOOKUP($T11,'FO-DRE-02'!$A$6:$M$101,6,FALSE)) -> 4-DIPOLOS | AS11: =IF($T11="","",VLOOKUP($T11,'FO-DRE-02'!$A$6:$M$101,4,FALSE)) -> 806 | AT11: =IF($T11="","",VLOOKUP($T11,'FO-DRE-02'!$A$6:$M$101,5,FALSE)) -> 869 | AU11: =IF($T11="","",VLOOKUP($T11,'FO-DRE-02'!$A$6:$M$101,8,FALSE)) -> 50 | AV11: =IF($T11="","",VLOOKUP($T11,'FO-DRE-02'!$A$6:$M$101,7,FALSE)) -> HORIZONTAL | AW11: =IF($T11="","",VLOOKUP($T11,'FO-DRE-02'!$A$6:$M$101,9,FALSE)) -> 6 | AX11: =IF($T11="","",VLOOKUP($T11,'FO-DRE-02'!$A$6:$M$101,11,FALSE)) -> 12 | AY11: =IF($T11="","",VLOOKUP($T11,'FO-DRE-02'!$A$6:$M$101,12,FALSE)) -> 3 | AZ11: =IF($T11="","",VLOOKUP($T11,'FO-DRE-02'!$A$6:$M$101,13,FALSE)) -> 12 | BB11: 856 | BD11: 2 | BE11: =IF($R11="","",$R11) -> S2 | BH11: 21.4 | BI11: 4.28 | BJ11: 10.68877916 | BK11: 11.62970335 | BL11: 14.5 | BM11: 22.588714 | BN11: 51.09060579 | BO11: =IF(OR(AK11="MOVIL",AK11="PORTATIL"),"",IF(AN11="","",AN11)) -> 40 | BP11: 6.531305526 | BQ11: =IF(OR(BO11="",BP11=""),"",BP11*BO11) -> 261.2522211 | BR11: 0.727870151 | BS11: 0.6148551922 | BT11: 0.3955251593 | BU11: 0.162977295 | BV11: 0.03185869735
B12: B3 | C12: 811-824 / 856-869 | D12: SEM | E12: 16 | F12: G4 | G12: 5 | H12: 2a | I12: =IF(H12="1a",Hoja1!$B$126,IF(H12="1b",Hoja1!$B$127,IF(H12="2a",Hoja1!$B$128,IF(H12="2b",Hoja1!$B$129,IF(H12="3 ",Hoja1!$B$130,IF(H12="4 ",Hoja1!$B$131,IF(H12="5 ",Hoja1!$B$132,IF(H12="6 ",Hoja1!$B$133,IF(H12="7 ",Hoja1!$B$134,IF(H12="8 ",Hoja1!$B$135," ")))))))))) -> GUAYAQUIL Y ALREDEDORES | J12: =CONCATENATE(#REF!,"-","TX") ->  | K12: =CONCATENATE(#REF!,"-","RX") ->  | M12: 40 | P12: =B12 -> B3 | R12: S3 | S12: E3 | T12: A3 | U12: 1251 | V12: =IF($R12="","",VLOOKUP($R12,'FO-DRE-01'!$A$7:$U$301,18,FALSE)) -> TORRE NO AUTOSOPORTADA | W12: =IF($R12="","",VLOOKUP($R12,'FO-DRE-01'!$A$7:$U$301,16,FALSE)) -> 252 | X12: =IF($R12="","",VLOOKUP($R12,'FO-DRE-01'!$A$7:$U$301,17,FALSE)) -> 12 | Y12: =IF($R12="","",VLOOKUP($R12,'FO-DRE-01'!$A$7:$U$301,3,FALSE)) -> ORELLANA | Z12: =IF($R12="","",VLOOKUP($R12,'FO-DRE-01'!$A$7:$U$301,4,FALSE)) -> ORELLANA | AA12: =IF($R12="","",VLOOKUP($R12,'FO-DRE-01'!$A$7:$U$301,5,FALSE)) -> NUEVA ESPERANZA | AB12: =IF($R12="","",VLOOKUP($R12,'FO-DRE-01'!$A$7:$U$301,7,FALSE)) -> NUEVA ESPERANZA | AC12: =IF($R12="","",VLOOKUP($R12,'FO-DRE-01'!$A$7:$U$301,8,FALSE)) -> 0 | AD12: =IF($R12="","",VLOOKUP($R12,'FO-DRE-01'!$A$7:$U$301,9,FALSE)) -> 29 | AE12: =IF($R12="","",VLOOKUP($R12,'FO-DRE-01'!$A$7:$U$301,10,FALSE)) -> 11.83 | AF12: =IF($R12="","",VLOOKUP($R12,'FO-DRE-01'!$A$7:$U$301,11,FALSE)) -> S | AG12: =IF($R12="","",VLOOKUP($R12,'FO-DRE-01'!$A$7:$U$301,12,FALSE)) -> 76 | AH12: =IF($R12="","",VLOOKUP($R12,'FO-DRE-01'!$A$7:$U$301,13,FALSE)) -> 46 | AI12: =IF($R12="","",VLOOKUP($R12,'FO-DRE-01'!$A$7:$U$301,14,FALSE)) -> 20.85 | AJ12: =IF($R12="","",VLOOKUP($R12,'FO-DRE-01'!$A$7:$U$301,15,FALSE)) -> W | AK12: =IF($S12="","",VLOOKUP($S12,'FO-DRE-04'!$A$6:$L$301,2,FALSE)) -> REPETIDOR | AL12: =IF($S12="","",VLOOKUP($S12,'FO-DRE-04'!$A$6:$L$301,3,FALSE)) -> UNIDEN | AM12: =IF($S12="","",VLOOKUP($S12,'FO-DRE-04'!$A$6:$L$301,4,FALSE)) -> MSR-804 | AN12: =IF($S12="","",VLOOKUP($S12,'FO-DRE-04'!$A$6:$L$301,6,FALSE)) -> 75 | AO12: =IF($S12="","",VLOOKUP($S12,'FO-DRE-04'!$A$6:$L$301,11,FALSE)) -> 0.35 | AP12: =IF($T12="","",VLOOKUP($T12,'FO-DRE-02'!$A$6:$M$101,2,FALSE)) -> SINCLAIR | AQ12: =IF($T12="","",VLOOKUP($T12,'FO-DRE-02'!$A$6:$M$101,3,FALSE)) -> SC-488 | AR12: =IF($T12="","",VLOOKUP($T12,'FO-DRE-02'!$A$6:$M$101,6,FALSE)) -> 4-DIPOLOS | AS12: =IF($T12="","",VLOOKUP($T12,'FO-DRE-02'!$A$6:$M$101,4,FALSE)) -> 806 | AT12: =IF($T12="","",VLOOKUP($T12,'FO-DRE-02'!$A$6:$M$101,5,FALSE)) -> 869 | AU12: =IF($T12="","",VLOOKUP($T12,'FO-DRE-02'!$A$6:$M$101,8,FALSE)) -> 50 | AV12: =IF($T12="","",VLOOKUP($T12,'FO-DRE-02'!$A$6:$M$101,7,FALSE)) -> HORIZONTAL | AW12: =IF($T12="","",VLOOKUP($T12,'FO-DRE-02'!$A$6:$M$101,9,FALSE)) -> 10 | AX12: =IF($T12="","",VLOOKUP($T12,'FO-DRE-02'!$A$6:$M$101,11,FALSE)) -> 12 | AY12: =IF($T12="","",VLOOKUP($T12,'FO-DRE-02'!$A$6:$M$101,12,FALSE)) -> 3 | AZ12: =IF($T12="","",VLOOKUP($T12,'FO-DRE-02'!$A$6:$M$101,13,FALSE)) -> 5 | BB12: 869 | BD12: 3 | BE12: =IF($R12="","",$R12) -> S3 | BF12: SI | BG12: SI | BH12: 21.725 | BI12: 4.345 | BJ12: 4.031128874 | BK12: 6.103277808 | BL12: 10.59481005 | BM12: 20.3039405 | BN12: 50.1223503 | BO12: =IF(OR(AK12="MOVIL",AK12="PORTATIL"),"",IF(AN12="","",AN12)) -> 75 | BP12: 16.40589773 | BQ12: =IF(OR(BO12="",BP12=""),"",BP12*BO12) -> 1230.44233 | BR12: 24.10227434 | BS12: 10.51441498 | BT12: 3.48919339 | BU12: 0.950059328 | BV12: 0.1559008689
I13: =IF(H13="1a",Hoja1!$B$126,IF(H13="1b",Hoja1!$B$127,IF(H13="2a",Hoja1!$B$128,IF(H13="2b",Hoja1!$B$129,IF(H13="3 ",Hoja1!$B$130,IF(H13="4 ",Hoja1!$B$131,IF(H13="5 ",Hoja1!$B$132,IF(H13="6 ",Hoja1!$B$133,IF(H13="7 ",Hoja1!$B$134,IF(H13="8 ",Hoja1!$B$135," ")))))))))) ->  | J13: =CONCATENATE(#REF!,"-","TX") ->  | K13: =CONCATENATE(#REF!,"-","RX") ->  | P13: 0 | V13: =IF($R13="","",VLOOKUP($R13,'FO-DRE-01'!$A$7:$U$301,18,FALSE)) ->  | W13: =IF($R13="","",VLOOKUP($R13,'FO-DRE-01'!$A$7:$U$301,16,FALSE)) ->  | X13: =IF($R13="","",VLOOKUP($R13,'FO-DRE-01'!$A$7:$U$301,17,FALSE)) ->  | Y13: =IF($R13="","",VLOOKUP($R13,'FO-DRE-01'!$A$7:$U$301,3,FALSE)) ->  | Z13: =IF($R13="","",VLOOKUP($R13,'FO-DRE-01'!$A$7:$U$301,4,FALSE)) ->  | AA13: =IF($R13="","",VLOOKUP($R13,'FO-DRE-01'!$A$7:$U$301,5,FALSE)) ->  | AB13: =IF($R13="","",VLOOKUP($R13,'FO-DRE-01'!$A$7:$U$301,7,FALSE)) ->  | AC13: =IF($R13="","",VLOOKUP($R13,'FO-DRE-01'!$A$7:$U$301,8,FALSE)) ->  | AD13: =IF($R13="","",VLOOKUP($R13,'FO-DRE-01'!$A$7:$U$301,9,FALSE)) ->  | AE13: =IF($R13="","",VLOOKUP($R13,'FO-DRE-01'!$A$7:$U$301,10,FALSE)) ->  | AF13: =IF($R13="","",VLOOKUP($R13,'FO-DRE-01'!$A$7:$U$301,11,FALSE)) ->  | AG13: =IF($R13="","",VLOOKUP($R13,'FO-DRE-01'!$A$7:$U$301,12,FALSE)) ->  | AH13: =IF($R13="","",VLOOKUP($R13,'FO-DRE-01'!$A$7:$U$301,13,FALSE)) ->  | AI13: =IF($R13="","",VLOOKUP($R13,'FO-DRE-01'!$A$7:$U$301,14,FALSE)) ->  | AJ13: =IF($R13="","",VLOOKUP($R13,'FO-DRE-01'!$A$7:$U$301,15,FALSE)) ->  | AK13: =IF($S13="","",VLOOKUP($S13,'FO-DRE-04'!$A$6:$L$301,2,FALSE)) ->  | AL13: =IF($S13="","",VLOOKUP($S13,'FO-DRE-04'!$A$6:$L$301,3,FALSE)) ->  | AM13: =IF($S13="","",VLOOKUP($S13,'FO-DRE-04'!$A$6:$L$301,4,FALSE)) ->  | AN13: =IF($S13="","",VLOOKUP($S13,'FO-DRE-04'!$A$6:$L$301,6,FALSE)) ->  | AO13: =IF($S13="","",VLOOKUP($S13,'FO-DRE-04'!$A$6:$L$301,11,FALSE)) ->  | AP13: =IF($T13="","",VLOOKUP($T13,'FO-DRE-02'!$A$6:$M$101,2,FALSE)) ->  | AQ13: =IF($T13="","",VLOOKUP($T13,'FO-DRE-02'!$A$6:$M$101,3,FALSE)) ->  | AR13: =IF($T13="","",VLOOKUP($T13,'FO-DRE-02'!$A$6:$M$101,6,FALSE)) ->  | AS13: =IF($T13="","",VLOOKUP($T13,'FO-DRE-02'!$A$6:$M$101,4,FALSE)) ->  | AT13: =IF($T13="","",VLOOKUP($T13,'FO-DRE-02'!$A$6:$M$101,5,FALSE)) ->  | AU13: =IF($T13="","",VLOOKUP($T13,'FO-DRE-02'!$A$6:$M$101,8,FALSE)) ->  | AV13: =IF($T13="","",VLOOKUP($T13,'FO-DRE-02'!$A$6:$M$101,7,FALSE)) ->  | AW13: =IF($T13="","",VLOOKUP($T13,'FO-DRE-02'!$A$6:$M$101,9,FALSE)) ->  | AX13: =IF($T13="","",VLOOKUP($T13,'FO-DRE-02'!$A$6:$M$101,11,FALSE)) ->  | AY13: =IF($T13="","",VLOOKUP($T13,'FO-DRE-02'!$A$6:$M$101,12,FALSE)) ->  | AZ13: =IF($T13="","",VLOOKUP($T13,'FO-DRE-02'!$A$6:$M$101,13,FALSE)) ->  | BB13: 856 | BD13: 4 | BE13: =IF($R13="","",$R13) ->  | BF13: F/D | BG13: F/D | BO13: =IF(OR(AK13="MOVIL",AK13="PORTATIL"),"",IF(AN13="","",AN13)) ->  | BQ13: =IF(OR(BO13="",BP13=""),"",BP13*BO13) -> 
I14: =IF(H14="1a",Hoja1!$B$126,IF(H14="1b",Hoja1!$B$127,IF(H14="2a",Hoja1!$B$128,IF(H14="2b",Hoja1!$B$129,IF(H14="3 ",Hoja1!$B$130,IF(H14="4 ",Hoja1!$B$131,IF(H14="5 ",Hoja1!$B$132,IF(H14="6 ",Hoja1!$B$133,IF(H14="7 ",Hoja1!$B$134,IF(H14="8 ",Hoja1!$B$135," ")))))))))) ->  | J14: =CONCATENATE(#REF!,"-","TX") ->  | K14: =CONCATENATE(#REF!,"-","RX") ->  | P14: 0 | V14: =IF($R14="","",VLOOKUP($R14,'FO-DRE-01'!$A$7:$U$301,18,FALSE)) ->  | W14: =IF($R14="","",VLOOKUP($R14,'FO-DRE-01'!$A$7:$U$301,16,FALSE)) ->  | X14: =IF($R14="","",VLOOKUP($R14,'FO-DRE-01'!$A$7:$U$301,17,FALSE)) ->  | Y14: =IF($R14="","",VLOOKUP($R14,'FO-DRE-01'!$A$7:$U$301,3,FALSE)) ->  | Z14: =IF($R14="","",VLOOKUP($R14,'FO-DRE-01'!$A$7:$U$301,4,FALSE)) ->  | AA14: =IF($R14="","",VLOOKUP($R14,'FO-DRE-01'!$A$7:$U$301,5,FALSE)) ->  | AB14: =IF($R14="","",VLOOKUP($R14,'FO-DRE-01'!$A$7:$U$301,7,FALSE)) ->  | AC14: =IF($R14="","",VLOOKUP($R14,'FO-DRE-01'!$A$7:$U$301,8,FALSE)) ->  | AD14: =IF($R14="","",VLOOKUP($R14,'FO-DRE-01'!$A$7:$U$301,9,FALSE)) ->  | AE14: =IF($R14="","",VLOOKUP($R14,'FO-DRE-01'!$A$7:$U$301,10,FALSE)) ->  | AF14: =IF($R14="","",VLOOKUP($R14,'FO-DRE-01'!$A$7:$U$301,11,FALSE)) ->  | AG14: =IF($R14="","",VLOOKUP($R14,'FO-DRE-01'!$A$7:$U$301,12,FALSE)) ->  | AH14: =IF($R14="","",VLOOKUP($R14,'FO-DRE-01'!$A$7:$U$301,13,FALSE)) ->  | AI14: =IF($R14="","",VLOOKUP($R14,'FO-DRE-01'!$A$7:$U$301,14,FALSE)) ->  | AJ14: =IF($R14="","",VLOOKUP($R14,'FO-DRE-01'!$A$7:$U$301,15,FALSE)) ->  | AK14: =IF($S14="","",VLOOKUP($S14,'FO-DRE-04'!$A$6:$L$301,2,FALSE)) ->  | AL14: =IF($S14="","",VLOOKUP($S14,'FO-DRE-04'!$A$6:$L$301,3,FALSE)) ->  | AM14: =IF($S14="","",VLOOKUP($S14,'FO-DRE-04'!$A$6:$L$301,4,FALSE)) ->  | AN14: =IF($S14="","",VLOOKUP($S14,'FO-DRE-04'!$A$6:$L$301,6,FALSE)) ->  | AO14: =IF($S14="","",VLOOKUP($S14,'FO-DRE-04'!$A$6:$L$301,11,FALSE)) ->  | AP14: =IF($T14="","",VLOOKUP($T14,'FO-DRE-02'!$A$6:$M$101,2,FALSE)) ->  | AQ14: =IF($T14="","",VLOOKUP($T14,'FO-DRE-02'!$A$6:$M$101,3,FALSE)) ->  | AR14: =IF($T14="","",VLOOKUP($T14,'FO-DRE-02'!$A$6:$M$101,6,FALSE)) ->  | AS14: =IF($T14="","",VLOOKUP($T14,'FO-DRE-02'!$A$6:$M$101,4,FALSE)) ->  | AT14: =IF($T14="","",VLOOKUP($T14,'FO-DRE-02'!$A$6:$M$101,5,FALSE)) ->  | AU14: =IF($T14="","",VLOOKUP($T14,'FO-DRE-02'!$A$6:$M$101,8,FALSE)) ->  | AV14: =IF($T14="","",VLOOKUP($T14,'FO-DRE-02'!$A$6:$M$101,7,FALSE)) ->  | AW14: =IF($T14="","",VLOOKUP($T14,'FO-DRE-02'!$A$6:$M$101,9,FALSE)) ->  | AX14: =IF($T14="","",VLOOKUP($T14,'FO-DRE-02'!$A$6:$M$101,11,FALSE)) ->  | AY14: =IF($T14="","",VLOOKUP($T14,'FO-DRE-02'!$A$6:$M$101,12,FALSE)) ->  | AZ14: =IF($T14="","",VLOOKUP($T14,'FO-DRE-02'!$A$6:$M$101,13,FALSE)) ->  | BB14: 856 | BD14: 5 | BE14: =IF($R14="","",$R14) ->  | BF14: F/D | BG14: F/D | BO14: =IF(OR(AK14="MOVIL",AK14="PORTATIL"),"",IF(AN14="","",AN14)) ->  | BQ14: =IF(OR(BO14="",BP14=""),"",BP14*BO14) -> 
I15: =IF(H15="1a",Hoja1!$B$126,IF(H15="1b",Hoja1!$B$127,IF(H15="2a",Hoja1!$B$128,IF(H15="2b",Hoja1!$B$129,IF(H15="3 ",Hoja1!$B$130,IF(H15="4 ",Hoja1!$B$131,IF(H15="5 ",Hoja1!$B$132,IF(H15="6 ",Hoja1!$B$133,IF(H15="7 ",Hoja1!$B$134,IF(H15="8 ",Hoja1!$B$135," ")))))))))) ->  | J15: =CONCATENATE(#REF!,"-","TX") ->  | K15: =CONCATENATE(#REF!,"-","RX") ->  | P15: 0 | V15: =IF($R15="","",VLOOKUP($R15,'FO-DRE-01'!$A$7:$U$301,18,FALSE)) ->  | W15: =IF($R15="","",VLOOKUP($R15,'FO-DRE-01'!$A$7:$U$301,16,FALSE)) ->  | X15: =IF($R15="","",VLOOKUP($R15,'FO-DRE-01'!$A$7:$U$301,17,FALSE)) ->  | Y15: =IF($R15="","",VLOOKUP($R15,'FO-DRE-01'!$A$7:$U$301,3,FALSE)) ->  | Z15: =IF($R15="","",VLOOKUP($R15,'FO-DRE-01'!$A$7:$U$301,4,FALSE)) ->  | AA15: =IF($R15="","",VLOOKUP($R15,'FO-DRE-01'!$A$7:$U$301,5,FALSE)) ->  | AB15: =IF($R15="","",VLOOKUP($R15,'FO-DRE-01'!$A$7:$U$301,7,FALSE)) ->  | AC15: =IF($R15="","",VLOOKUP($R15,'FO-DRE-01'!$A$7:$U$301,8,FALSE)) ->  | AD15: =IF($R15="","",VLOOKUP($R15,'FO-DRE-01'!$A$7:$U$301,9,FALSE)) ->  | AE15: =IF($R15="","",VLOOKUP($R15,'FO-DRE-01'!$A$7:$U$301,10,FALSE)) ->  | AF15: =IF($R15="","",VLOOKUP($R15,'FO-DRE-01'!$A$7:$U$301,11,FALSE)) ->  | AG15: =IF($R15="","",VLOOKUP($R15,'FO-DRE-01'!$A$7:$U$301,12,FALSE)) ->  | AH15: =IF($R15="","",VLOOKUP($R15,'FO-DRE-01'!$A$7:$U$301,13,FALSE)) ->  | AI15: =IF($R15="","",VLOOKUP($R15,'FO-DRE-01'!$A$7:$U$301,14,FALSE)) ->  | AJ15: =IF($R15="","",VLOOKUP($R15,'FO-DRE-01'!$A$7:$U$301,15,FALSE)) ->  | AK15: =IF($S15="","",VLOOKUP($S15,'FO-DRE-04'!$A$6:$L$301,2,FALSE)) ->  | AL15: =IF($S15="","",VLOOKUP($S15,'FO-DRE-04'!$A$6:$L$301,3,FALSE)) ->  | AM15: =IF($S15="","",VLOOKUP($S15,'FO-DRE-04'!$A$6:$L$301,4,FALSE)) ->  | AN15: =IF($S15="","",VLOOKUP($S15,'FO-DRE-04'!$A$6:$L$301,6,FALSE)) ->  | AO15: =IF($S15="","",VLOOKUP($S15,'FO-DRE-04'!$A$6:$L$301,11,FALSE)) ->  | AP15: =IF($T15="","",VLOOKUP($T15,'FO-DRE-02'!$A$6:$M$101,2,FALSE)) ->  | AQ15: =IF($T15="","",VLOOKUP($T15,'FO-DRE-02'!$A$6:$M$101,3,FALSE)) ->  | AR15: =IF($T15="","",VLOOKUP($T15,'FO-DRE-02'!$A$6:$M$101,6,FALSE)) ->  | AS15: =IF($T15="","",VLOOKUP($T15,'FO-DRE-02'!$A$6:$M$101,4,FALSE)) ->  | AT15: =IF($T15="","",VLOOKUP($T15,'FO-DRE-02'!$A$6:$M$101,5,FALSE)) ->  | AU15: =IF($T15="","",VLOOKUP($T15,'FO-DRE-02'!$A$6:$M$101,8,FALSE)) ->  | AV15: =IF($T15="","",VLOOKUP($T15,'FO-DRE-02'!$A$6:$M$101,7,FALSE)) ->  | AW15: =IF($T15="","",VLOOKUP($T15,'FO-DRE-02'!$A$6:$M$101,9,FALSE)) ->  | AX15: =IF($T15="","",VLOOKUP($T15,'FO-DRE-02'!$A$6:$M$101,11,FALSE)) ->  | AY15: =IF($T15="","",VLOOKUP($T15,'FO-DRE-02'!$A$6:$M$101,12,FALSE)) ->  | AZ15: =IF($T15="","",VLOOKUP($T15,'FO-DRE-02'!$A$6:$M$101,13,FALSE)) ->  | BB15: 856 | BD15: 6 | BF15: F/D | BG15: F/D
I16: =IF(H16="1a",Hoja1!$B$126,IF(H16="1b",Hoja1!$B$127,IF(H16="2a",Hoja1!$B$128,IF(H16="2b",Hoja1!$B$129,IF(H16="3 ",Hoja1!$B$130,IF(H16="4 ",Hoja1!$B$131,IF(H16="5 ",Hoja1!$B$132,IF(H16="6 ",Hoja1!$B$133,IF(H16="7 ",Hoja1!$B$134,IF(H16="8 ",Hoja1!$B$135," ")))))))))) ->  | J16: =CONCATENATE(#REF!,"-","TX") ->  | K16: =CONCATENATE(#REF!,"-","RX") ->  | P16: 0 | V16: =IF($R16="","",VLOOKUP($R16,'FO-DRE-01'!$A$7:$U$301,18,FALSE)) ->  | W16: =IF($R16="","",VLOOKUP($R16,'FO-DRE-01'!$A$7:$U$301,16,FALSE)) ->  | X16: =IF($R16="","",VLOOKUP($R16,'FO-DRE-01'!$A$7:$U$301,17,FALSE)) ->  | Y16: =IF($R16="","",VLOOKUP($R16,'FO-DRE-01'!$A$7:$U$301,3,FALSE)) ->  | Z16: =IF($R16="","",VLOOKUP($R16,'FO-DRE-01'!$A$7:$U$301,4,FALSE)) ->  | AA16: =IF($R16="","",VLOOKUP($R16,'FO-DRE-01'!$A$7:$U$301,5,FALSE)) ->  | AB16: =IF($R16="","",VLOOKUP($R16,'FO-DRE-01'!$A$7:$U$301,7,FALSE)) ->  | AC16: =IF($R16="","",VLOOKUP($R16,'FO-DRE-01'!$A$7:$U$301,8,FALSE)) ->  | AD16: =IF($R16="","",VLOOKUP($R16,'FO-DRE-01'!$A$7:$U$301,9,FALSE)) ->  | AE16: =IF($R16="","",VLOOKUP($R16,'FO-DRE-01'!$A$7:$U$301,10,FALSE)) ->  | AF16: =IF($R16="","",VLOOKUP($R16,'FO-DRE-01'!$A$7:$U$301,11,FALSE)) ->  | AG16: =IF($R16="","",VLOOKUP($R16,'FO-DRE-01'!$A$7:$U$301,12,FALSE)) ->  | AH16: =IF($R16="","",VLOOKUP($R16,'FO-DRE-01'!$A$7:$U$301,13,FALSE)) ->  | AI16: =IF($R16="","",VLOOKUP($R16,'FO-DRE-01'!$A$7:$U$301,14,FALSE)) ->  | AJ16: =IF($R16="","",VLOOKUP($R16,'FO-DRE-01'!$A$7:$U$301,15,FALSE)) ->  | AK16: =IF($S16="","",VLOOKUP($S16,'FO-DRE-04'!$A$6:$L$301,2,FALSE)) ->  | AL16: =IF($S16="","",VLOOKUP($S16,'FO-DRE-04'!$A$6:$L$301,3,FALSE)) ->  | AM16: =IF($S16="","",VLOOKUP($S16,'FO-DRE-04'!$A$6:$L$301,4,FALSE)) ->  | AN16: =IF($S16="","",VLOOKUP($S16,'FO-DRE-04'!$A$6:$L$301,6,FALSE)) ->  | AO16: =IF($S16="","",VLOOKUP($S16,'FO-DRE-04'!$A$6:$L$301,11,FALSE)) ->  | AP16: =IF($T16="","",VLOOKUP($T16,'FO-DRE-02'!$A$6:$M$101,2,FALSE)) ->  | AQ16: =IF($T16="","",VLOOKUP($T16,'FO-DRE-02'!$A$6:$M$101,3,FALSE)) ->  | AR16: =IF($T16="","",VLOOKUP($T16,'FO-DRE-02'!$A$6:$M$101,6,FALSE)) ->  | AS16: =IF($T16="","",VLOOKUP($T16,'FO-DRE-02'!$A$6:$M$101,4,FALSE)) ->  | AT16: =IF($T16="","",VLOOKUP($T16,'FO-DRE-02'!$A$6:$M$101,5,FALSE)) ->  | AU16: =IF($T16="","",VLOOKUP($T16,'FO-DRE-02'!$A$6:$M$101,8,FALSE)) ->  | AV16: =IF($T16="","",VLOOKUP($T16,'FO-DRE-02'!$A$6:$M$101,7,FALSE)) ->  | AW16: =IF($T16="","",VLOOKUP($T16,'FO-DRE-02'!$A$6:$M$101,9,FALSE)) ->  | AX16: =IF($T16="","",VLOOKUP($T16,'FO-DRE-02'!$A$6:$M$101,11,FALSE)) ->  | AY16: =IF($T16="","",VLOOKUP($T16,'FO-DRE-02'!$A$6:$M$101,12,FALSE)) ->  | AZ16: =IF($T16="","",VLOOKUP($T16,'FO-DRE-02'!$A$6:$M$101,13,FALSE)) ->  | BB16: 856 | BD16: 7 | BF16: F/D | BG16: F/D
I17: =IF(H17="1a",Hoja1!$B$126,IF(H17="1b",Hoja1!$B$127,IF(H17="2a",Hoja1!$B$128,IF(H17="2b",Hoja1!$B$129,IF(H17="3 ",Hoja1!$B$130,IF(H17="4 ",Hoja1!$B$131,IF(H17="5 ",Hoja1!$B$132,IF(H17="6 ",Hoja1!$B$133,IF(H17="7 ",Hoja1!$B$134,IF(H17="8 ",Hoja1!$B$135," ")))))))))) ->  | J17: =CONCATENATE(#REF!,"-","TX") ->  | K17: =CONCATENATE(#REF!,"-","RX") ->  | P17: 0 | V17: =IF($R17="","",VLOOKUP($R17,'FO-DRE-01'!$A$7:$U$301,18,FALSE)) ->  | W17: =IF($R17="","",VLOOKUP($R17,'FO-DRE-01'!$A$7:$U$301,16,FALSE)) ->  | X17: =IF($R17="","",VLOOKUP($R17,'FO-DRE-01'!$A$7:$U$301,17,FALSE)) ->  | Y17: =IF($R17="","",VLOOKUP($R17,'FO-DRE-01'!$A$7:$U$301,3,FALSE)) ->  | Z17: =IF($R17="","",VLOOKUP($R17,'FO-DRE-01'!$A$7:$U$301,4,FALSE)) ->  | AA17: =IF($R17="","",VLOOKUP($R17,'FO-DRE-01'!$A$7:$U$301,5,FALSE)) ->  | AB17: =IF($R17="","",VLOOKUP($R17,'FO-DRE-01'!$A$7:$U$301,7,FALSE)) ->  | AC17: =IF($R17="","",VLOOKUP($R17,'FO-DRE-01'!$A$7:$U$301,8,FALSE)) ->  | AD17: =IF($R17="","",VLOOKUP($R17,'FO-DRE-01'!$A$7:$U$301,9,FALSE)) ->  | AE17: =IF($R17="","",VLOOKUP($R17,'FO-DRE-01'!$A$7:$U$301,10,FALSE)) ->  | AF17: =IF($R17="","",VLOOKUP($R17,'FO-DRE-01'!$A$7:$U$301,11,FALSE)) ->  | AG17: =IF($R17="","",VLOOKUP($R17,'FO-DRE-01'!$A$7:$U$301,12,FALSE)) ->  | AH17: =IF($R17="","",VLOOKUP($R17,'FO-DRE-01'!$A$7:$U$301,13,FALSE)) ->  | AI17: =IF($R17="","",VLOOKUP($R17,'FO-DRE-01'!$A$7:$U$301,14,FALSE)) ->  | AJ17: =IF($R17="","",VLOOKUP($R17,'FO-DRE-01'!$A$7:$U$301,15,FALSE)) ->  | AK17: =IF($S17="","",VLOOKUP($S17,'FO-DRE-04'!$A$6:$L$301,2,FALSE)) ->  | AL17: =IF($S17="","",VLOOKUP($S17,'FO-DRE-04'!$A$6:$L$301,3,FALSE)) ->  | AM17: =IF($S17="","",VLOOKUP($S17,'FO-DRE-04'!$A$6:$L$301,4,FALSE)) ->  | AN17: =IF($S17="","",VLOOKUP($S17,'FO-DRE-04'!$A$6:$L$301,6,FALSE)) ->  | AO17: =IF($S17="","",VLOOKUP($S17,'FO-DRE-04'!$A$6:$L$301,11,FALSE)) ->  | AP17: =IF($T17="","",VLOOKUP($T17,'FO-DRE-02'!$A$6:$M$101,2,FALSE)) ->  | AQ17: =IF($T17="","",VLOOKUP($T17,'FO-DRE-02'!$A$6:$M$101,3,FALSE)) ->  | AR17: =IF($T17="","",VLOOKUP($T17,'FO-DRE-02'!$A$6:$M$101,6,FALSE)) ->  | AS17: =IF($T17="","",VLOOKUP($T17,'FO-DRE-02'!$A$6:$M$101,4,FALSE)) ->  | AT17: =IF($T17="","",VLOOKUP($T17,'FO-DRE-02'!$A$6:$M$101,5,FALSE)) ->  | AU17: =IF($T17="","",VLOOKUP($T17,'FO-DRE-02'!$A$6:$M$101,8,FALSE)) ->  | AV17: =IF($T17="","",VLOOKUP($T17,'FO-DRE-02'!$A$6:$M$101,7,FALSE)) ->  | AW17: =IF($T17="","",VLOOKUP($T17,'FO-DRE-02'!$A$6:$M$101,9,FALSE)) ->  | AX17: =IF($T17="","",VLOOKUP($T17,'FO-DRE-02'!$A$6:$M$101,11,FALSE)) ->  | AY17: =IF($T17="","",VLOOKUP($T17,'FO-DRE-02'!$A$6:$M$101,12,FALSE)) ->  | AZ17: =IF($T17="","",VLOOKUP($T17,'FO-DRE-02'!$A$6:$M$101,13,FALSE)) ->  | BB17: 856 | BD17: 8 | BF17: F/D | BG17: F/D
I18: =IF(H18="1a",Hoja1!$B$126,IF(H18="1b",Hoja1!$B$127,IF(H18="2a",Hoja1!$B$128,IF(H18="2b",Hoja1!$B$129,IF(H18="3 ",Hoja1!$B$130,IF(H18="4 ",Hoja1!$B$131,IF(H18="5 ",Hoja1!$B$132,IF(H18="6 ",Hoja1!$B$133,IF(H18="7 ",Hoja1!$B$134,IF(H18="8 ",Hoja1!$B$135," ")))))))))) ->  | J18: =CONCATENATE(#REF!,"-","TX") ->  | K18: =CONCATENATE(#REF!,"-","RX") ->  | P18: 0 | V18: =IF($R18="","",VLOOKUP($R18,'FO-DRE-01'!$A$7:$U$301,18,FALSE)) ->  | W18: =IF($R18="","",VLOOKUP($R18,'FO-DRE-01'!$A$7:$U$301,16,FALSE)) ->  | X18: =IF($R18="","",VLOOKUP($R18,'FO-DRE-01'!$A$7:$U$301,17,FALSE)) ->  | Y18: =IF($R18="","",VLOOKUP($R18,'FO-DRE-01'!$A$7:$U$301,3,FALSE)) ->  | Z18: =IF($R18="","",VLOOKUP($R18,'FO-DRE-01'!$A$7:$U$301,4,FALSE)) ->  | AA18: =IF($R18="","",VLOOKUP($R18,'FO-DRE-01'!$A$7:$U$301,5,FALSE)) ->  | AB18: =IF($R18="","",VLOOKUP($R18,'FO-DRE-01'!$A$7:$U$301,7,FALSE)) ->  | AC18: =IF($R18="","",VLOOKUP($R18,'FO-DRE-01'!$A$7:$U$301,8,FALSE)) ->  | AD18: =IF($R18="","",VLOOKUP($R18,'FO-DRE-01'!$A$7:$U$301,9,FALSE)) ->  | AE18: =IF($R18="","",VLOOKUP($R18,'FO-DRE-01'!$A$7:$U$301,10,FALSE)) ->  | AF18: =IF($R18="","",VLOOKUP($R18,'FO-DRE-01'!$A$7:$U$301,11,FALSE)) ->  | AG18: =IF($R18="","",VLOOKUP($R18,'FO-DRE-01'!$A$7:$U$301,12,FALSE)) ->  | AH18: =IF($R18="","",VLOOKUP($R18,'FO-DRE-01'!$A$7:$U$301,13,FALSE)) ->  | AI18: =IF($R18="","",VLOOKUP($R18,'FO-DRE-01'!$A$7:$U$301,14,FALSE)) ->  | AJ18: =IF($R18="","",VLOOKUP($R18,'FO-DRE-01'!$A$7:$U$301,15,FALSE)) ->  | AK18: =IF($S18="","",VLOOKUP($S18,'FO-DRE-04'!$A$6:$L$301,2,FALSE)) ->  | AL18: =IF($S18="","",VLOOKUP($S18,'FO-DRE-04'!$A$6:$L$301,3,FALSE)) ->  | AM18: =IF($S18="","",VLOOKUP($S18,'FO-DRE-04'!$A$6:$L$301,4,FALSE)) ->  | AN18: =IF($S18="","",VLOOKUP($S18,'FO-DRE-04'!$A$6:$L$301,6,FALSE)) ->  | AO18: =IF($S18="","",VLOOKUP($S18,'FO-DRE-04'!$A$6:$L$301,11,FALSE)) ->  | AP18: =IF($T18="","",VLOOKUP($T18,'FO-DRE-02'!$A$6:$M$101,2,FALSE)) ->  | AQ18: =IF($T18="","",VLOOKUP($T18,'FO-DRE-02'!$A$6:$M$101,3,FALSE)) ->  | AR18: =IF($T18="","",VLOOKUP($T18,'FO-DRE-02'!$A$6:$M$101,6,FALSE)) ->  | AS18: =IF($T18="","",VLOOKUP($T18,'FO-DRE-02'!$A$6:$M$101,4,FALSE)) ->  | AT18: =IF($T18="","",VLOOKUP($T18,'FO-DRE-02'!$A$6:$M$101,5,FALSE)) ->  | AU18: =IF($T18="","",VLOOKUP($T18,'FO-DRE-02'!$A$6:$M$101,8,FALSE)) ->  | AV18: =IF($T18="","",VLOOKUP($T18,'FO-DRE-02'!$A$6:$M$101,7,FALSE)) ->  | AW18: =IF($T18="","",VLOOKUP($T18,'FO-DRE-02'!$A$6:$M$101,9,FALSE)) ->  | AX18: =IF($T18="","",VLOOKUP($T18,'FO-DRE-02'!$A$6:$M$101,11,FALSE)) ->  | AY18: =IF($T18="","",VLOOKUP($T18,'FO-DRE-02'!$A$6:$M$101,12,FALSE)) ->  | AZ18: =IF($T18="","",VLOOKUP($T18,'FO-DRE-02'!$A$6:$M$101,13,FALSE)) ->  | BB18: 856 | BD18: 9 | BF18: F/D | BG18: F/D
I19: =IF(H19="1a",Hoja1!$B$126,IF(H19="1b",Hoja1!$B$127,IF(H19="2a",Hoja1!$B$128,IF(H19="2b",Hoja1!$B$129,IF(H19="3 ",Hoja1!$B$130,IF(H19="4 ",Hoja1!$B$131,IF(H19="5 ",Hoja1!$B$132,IF(H19="6 ",Hoja1!$B$133,IF(H19="7 ",Hoja1!$B$134,IF(H19="8 ",Hoja1!$B$135," ")))))))))) ->  | J19: =CONCATENATE(#REF!,"-","TX") ->  | K19: =CONCATENATE(#REF!,"-","RX") ->  | P19: 0 | V19: =IF($R19="","",VLOOKUP($R19,'FO-DRE-01'!$A$7:$U$301,18,FALSE)) ->  | W19: =IF($R19="","",VLOOKUP($R19,'FO-DRE-01'!$A$7:$U$301,16,FALSE)) ->  | X19: =IF($R19="","",VLOOKUP($R19,'FO-DRE-01'!$A$7:$U$301,17,FALSE)) ->  | Y19: =IF($R19="","",VLOOKUP($R19,'FO-DRE-01'!$A$7:$U$301,3,FALSE)) ->  | Z19: =IF($R19="","",VLOOKUP($R19,'FO-DRE-01'!$A$7:$U$301,4,FALSE)) ->  | AA19: =IF($R19="","",VLOOKUP($R19,'FO-DRE-01'!$A$7:$U$301,5,FALSE)) ->  | AB19: =IF($R19="","",VLOOKUP($R19,'FO-DRE-01'!$A$7:$U$301,7,FALSE)) ->  | AC19: =IF($R19="","",VLOOKUP($R19,'FO-DRE-01'!$A$7:$U$301,8,FALSE)) ->  | AD19: =IF($R19="","",VLOOKUP($R19,'FO-DRE-01'!$A$7:$U$301,9,FALSE)) ->  | AE19: =IF($R19="","",VLOOKUP($R19,'FO-DRE-01'!$A$7:$U$301,10,FALSE)) ->  | AF19: =IF($R19="","",VLOOKUP($R19,'FO-DRE-01'!$A$7:$U$301,11,FALSE)) ->  | AG19: =IF($R19="","",VLOOKUP($R19,'FO-DRE-01'!$A$7:$U$301,12,FALSE)) ->  | AH19: =IF($R19="","",VLOOKUP($R19,'FO-DRE-01'!$A$7:$U$301,13,FALSE)) ->  | AI19: =IF($R19="","",VLOOKUP($R19,'FO-DRE-01'!$A$7:$U$301,14,FALSE)) ->  | AJ19: =IF($R19="","",VLOOKUP($R19,'FO-DRE-01'!$A$7:$U$301,15,FALSE)) ->  | AK19: =IF($S19="","",VLOOKUP($S19,'FO-DRE-04'!$A$6:$L$301,2,FALSE)) ->  | AL19: =IF($S19="","",VLOOKUP($S19,'FO-DRE-04'!$A$6:$L$301,3,FALSE)) ->  | AM19: =IF($S19="","",VLOOKUP($S19,'FO-DRE-04'!$A$6:$L$301,4,FALSE)) ->  | AN19: =IF($S19="","",VLOOKUP($S19,'FO-DRE-04'!$A$6:$L$301,6,FALSE)) ->  | AO19: =IF($S19="","",VLOOKUP($S19,'FO-DRE-04'!$A$6:$L$301,11,FALSE)) ->  | AP19: =IF($T19="","",VLOOKUP($T19,'FO-DRE-02'!$A$6:$M$101,2,FALSE)) ->  | AQ19: =IF($T19="","",VLOOKUP($T19,'FO-DRE-02'!$A$6:$M$101,3,FALSE)) ->  | AR19: =IF($T19="","",VLOOKUP($T19,'FO-DRE-02'!$A$6:$M$101,6,FALSE)) ->  | AS19: =IF($T19="","",VLOOKUP($T19,'FO-DRE-02'!$A$6:$M$101,4,FALSE)) ->  | AT19: =IF($T19="","",VLOOKUP($T19,'FO-DRE-02'!$A$6:$M$101,5,FALSE)) ->  | AU19: =IF($T19="","",VLOOKUP($T19,'FO-DRE-02'!$A$6:$M$101,8,FALSE)) ->  | AV19: =IF($T19="","",VLOOKUP($T19,'FO-DRE-02'!$A$6:$M$101,7,FALSE)) ->  | AW19: =IF($T19="","",VLOOKUP($T19,'FO-DRE-02'!$A$6:$M$101,9,FALSE)) ->  | AX19: =IF($T19="","",VLOOKUP($T19,'FO-DRE-02'!$A$6:$M$101,11,FALSE)) ->  | AY19: =IF($T19="","",VLOOKUP($T19,'FO-DRE-02'!$A$6:$M$101,12,FALSE)) ->  | AZ19: =IF($T19="","",VLOOKUP($T19,'FO-DRE-02'!$A$6:$M$101,13,FALSE)) ->  | BB19: 856 | BD19: 10 | BF19: F/D | BG19: F/D
I20: =IF(H20="1a",Hoja1!$B$126,IF(H20="1b",Hoja1!$B$127,IF(H20="2a",Hoja1!$B$128,IF(H20="2b",Hoja1!$B$129,IF(H20="3 ",Hoja1!$B$130,IF(H20="4 ",Hoja1!$B$131,IF(H20="5 ",Hoja1!$B$132,IF(H20="6 ",Hoja1!$B$133,IF(H20="7 ",Hoja1!$B$134,IF(H20="8 ",Hoja1!$B$135," ")))))))))) ->  | P20: 0 | V20: =IF($R20="","",VLOOKUP($R20,'FO-DRE-01'!$A$7:$U$301,18,FALSE)) ->  | W20: =IF($R20="","",VLOOKUP($R20,'FO-DRE-01'!$A$7:$U$301,16,FALSE)) ->  | X20: =IF($R20="","",VLOOKUP($R20,'FO-DRE-01'!$A$7:$U$301,17,FALSE)) ->  | Y20: =IF($R20="","",VLOOKUP($R20,'FO-DRE-01'!$A$7:$U$301,3,FALSE)) ->  | Z20: =IF($R20="","",VLOOKUP($R20,'FO-DRE-01'!$A$7:$U$301,4,FALSE)) ->  | AA20: =IF($R20="","",VLOOKUP($R20,'FO-DRE-01'!$A$7:$U$301,5,FALSE)) ->  | AB20: =IF($R20="","",VLOOKUP($R20,'FO-DRE-01'!$A$7:$U$301,7,FALSE)) ->  | AC20: =IF($R20="","",VLOOKUP($R20,'FO-DRE-01'!$A$7:$U$301,8,FALSE)) ->  | AD20: =IF($R20="","",VLOOKUP($R20,'FO-DRE-01'!$A$7:$U$301,9,FALSE)) ->  | AE20: =IF($R20="","",VLOOKUP($R20,'FO-DRE-01'!$A$7:$U$301,10,FALSE)) ->  | AF20: =IF($R20="","",VLOOKUP($R20,'FO-DRE-01'!$A$7:$U$301,11,FALSE)) ->  | AG20: =IF($R20="","",VLOOKUP($R20,'FO-DRE-01'!$A$7:$U$301,12,FALSE)) ->  | AH20: =IF($R20="","",VLOOKUP($R20,'FO-DRE-01'!$A$7:$U$301,13,FALSE)) ->  | AI20: =IF($R20="","",VLOOKUP($R20,'FO-DRE-01'!$A$7:$U$301,14,FALSE)) ->  | AJ20: =IF($R20="","",VLOOKUP($R20,'FO-DRE-01'!$A$7:$U$301,15,FALSE)) ->  | AK20: =IF($S20="","",VLOOKUP($S20,'FO-DRE-04'!$A$6:$L$301,2,FALSE)) ->  | AL20: =IF($S20="","",VLOOKUP($S20,'FO-DRE-04'!$A$6:$L$301,3,FALSE)) ->  | AM20: =IF($S20="","",VLOOKUP($S20,'FO-DRE-04'!$A$6:$L$301,4,FALSE)) ->  | AN20: =IF($S20="","",VLOOKUP($S20,'FO-DRE-04'!$A$6:$L$301,6,FALSE)) ->  | AO20: =IF($S20="","",VLOOKUP($S20,'FO-DRE-04'!$A$6:$L$301,11,FALSE)) ->  | AP20: =IF($T20="","",VLOOKUP($T20,'FO-DRE-02'!$A$6:$M$101,2,FALSE)) ->  | AQ20: =IF($T20="","",VLOOKUP($T20,'FO-DRE-02'!$A$6:$M$101,3,FALSE)) ->  | AR20: =IF($T20="","",VLOOKUP($T20,'FO-DRE-02'!$A$6:$M$101,6,FALSE)) ->  | AS20: =IF($T20="","",VLOOKUP($T20,'FO-DRE-02'!$A$6:$M$101,4,FALSE)) ->  | AT20: =IF($T20="","",VLOOKUP($T20,'FO-DRE-02'!$A$6:$M$101,5,FALSE)) ->  | AU20: =IF($T20="","",VLOOKUP($T20,'FO-DRE-02'!$A$6:$M$101,8,FALSE)) ->  | AV20: =IF($T20="","",VLOOKUP($T20,'FO-DRE-02'!$A$6:$M$101,7,FALSE)) ->  | AW20: =IF($T20="","",VLOOKUP($T20,'FO-DRE-02'!$A$6:$M$101,9,FALSE)) ->  | AX20: =IF($T20="","",VLOOKUP($T20,'FO-DRE-02'!$A$6:$M$101,11,FALSE)) ->  | AY20: =IF($T20="","",VLOOKUP($T20,'FO-DRE-02'!$A$6:$M$101,12,FALSE)) ->  | AZ20: =IF($T20="","",VLOOKUP($T20,'FO-DRE-02'!$A$6:$M$101,13,FALSE)) ->  | BB20: 856 | BD20: 11 | BF20: F/D | BG20: F/D
I21: =IF(H21="1a",Hoja1!$B$126,IF(H21="1b",Hoja1!$B$127,IF(H21="2a",Hoja1!$B$128,IF(H21="2b",Hoja1!$B$129,IF(H21="3 ",Hoja1!$B$130,IF(H21="4 ",Hoja1!$B$131,IF(H21="5 ",Hoja1!$B$132,IF(H21="6 ",Hoja1!$B$133,IF(H21="7 ",Hoja1!$B$134,IF(H21="8 ",Hoja1!$B$135," ")))))))))) ->  | J21: =CONCATENATE(#REF!,"-","TX") ->  | K21: =CONCATENATE(#REF!,"-","RX") ->  | P21: 0 | V21: =IF($R21="","",VLOOKUP($R21,'FO-DRE-01'!$A$7:$U$301,18,FALSE)) ->  | W21: =IF($R21="","",VLOOKUP($R21,'FO-DRE-01'!$A$7:$U$301,16,FALSE)) ->  | X21: =IF($R21="","",VLOOKUP($R21,'FO-DRE-01'!$A$7:$U$301,17,FALSE)) ->  | Y21: =IF($R21="","",VLOOKUP($R21,'FO-DRE-01'!$A$7:$U$301,3,FALSE)) ->  | Z21: =IF($R21="","",VLOOKUP($R21,'FO-DRE-01'!$A$7:$U$301,4,FALSE)) ->  | AA21: =IF($R21="","",VLOOKUP($R21,'FO-DRE-01'!$A$7:$U$301,5,FALSE)) ->  | AB21: =IF($R21="","",VLOOKUP($R21,'FO-DRE-01'!$A$7:$U$301,7,FALSE)) ->  | AC21: =IF($R21="","",VLOOKUP($R21,'FO-DRE-01'!$A$7:$U$301,8,FALSE)) ->  | AD21: =IF($R21="","",VLOOKUP($R21,'FO-DRE-01'!$A$7:$U$301,9,FALSE)) ->  | AE21: =IF($R21="","",VLOOKUP($R21,'FO-DRE-01'!$A$7:$U$301,10,FALSE)) ->  | AF21: =IF($R21="","",VLOOKUP($R21,'FO-DRE-01'!$A$7:$U$301,11,FALSE)) ->  | AG21: =IF($R21="","",VLOOKUP($R21,'FO-DRE-01'!$A$7:$U$301,12,FALSE)) ->  | AH21: =IF($R21="","",VLOOKUP($R21,'FO-DRE-01'!$A$7:$U$301,13,FALSE)) ->  | AI21: =IF($R21="","",VLOOKUP($R21,'FO-DRE-01'!$A$7:$U$301,14,FALSE)) ->  | AJ21: =IF($R21="","",VLOOKUP($R21,'FO-DRE-01'!$A$7:$U$301,15,FALSE)) ->  | AK21: =IF($S21="","",VLOOKUP($S21,'FO-DRE-04'!$A$6:$L$301,2,FALSE)) ->  | AL21: =IF($S21="","",VLOOKUP($S21,'FO-DRE-04'!$A$6:$L$301,3,FALSE)) ->  | AM21: =IF($S21="","",VLOOKUP($S21,'FO-DRE-04'!$A$6:$L$301,4,FALSE)) ->  | AN21: =IF($S21="","",VLOOKUP($S21,'FO-DRE-04'!$A$6:$L$301,6,FALSE)) ->  | AO21: =IF($S21="","",VLOOKUP($S21,'FO-DRE-04'!$A$6:$L$301,11,FALSE)) ->  | AP21: =IF($T21="","",VLOOKUP($T21,'FO-DRE-02'!$A$6:$M$101,2,FALSE)) ->  | AQ21: =IF($T21="","",VLOOKUP($T21,'FO-DRE-02'!$A$6:$M$101,3,FALSE)) ->  | AR21: =IF($T21="","",VLOOKUP($T21,'FO-DRE-02'!$A$6:$M$101,6,FALSE)) ->  | AS21: =IF($T21="","",VLOOKUP($T21,'FO-DRE-02'!$A$6:$M$101,4,FALSE)) ->  | AT21: =IF($T21="","",VLOOKUP($T21,'FO-DRE-02'!$A$6:$M$101,5,FALSE)) ->  | AU21: =IF($T21="","",VLOOKUP($T21,'FO-DRE-02'!$A$6:$M$101,8,FALSE)) ->  | AV21: =IF($T21="","",VLOOKUP($T21,'FO-DRE-02'!$A$6:$M$101,7,FALSE)) ->  | AW21: =IF($T21="","",VLOOKUP($T21,'FO-DRE-02'!$A$6:$M$101,9,FALSE)) ->  | AX21: =IF($T21="","",VLOOKUP($T21,'FO-DRE-02'!$A$6:$M$101,11,FALSE)) ->  | AY21: =IF($T21="","",VLOOKUP($T21,'FO-DRE-02'!$A$6:$M$101,12,FALSE)) ->  | AZ21: =IF($T21="","",VLOOKUP($T21,'FO-DRE-02'!$A$6:$M$101,13,FALSE)) ->  | BB21: 856 | BD21: 12 | BF21: F/D | BG21: F/D
I22: =IF(H22="1a",Hoja1!$B$126,IF(H22="1b",Hoja1!$B$127,IF(H22="2a",Hoja1!$B$128,IF(H22="2b",Hoja1!$B$129,IF(H22="3 ",Hoja1!$B$130,IF(H22="4 ",Hoja1!$B$131,IF(H22="5 ",Hoja1!$B$132,IF(H22="6 ",Hoja1!$B$133,IF(H22="7 ",Hoja1!$B$134,IF(H22="8 ",Hoja1!$B$135," ")))))))))) ->  | J22: =CONCATENATE(#REF!,"-","TX") ->  | K22: =CONCATENATE(#REF!,"-","RX") ->  | P22: 0 | V22: =IF($R22="","",VLOOKUP($R22,'FO-DRE-01'!$A$7:$U$301,18,FALSE)) ->  | W22: =IF($R22="","",VLOOKUP($R22,'FO-DRE-01'!$A$7:$U$301,16,FALSE)) ->  | X22: =IF($R22="","",VLOOKUP($R22,'FO-DRE-01'!$A$7:$U$301,17,FALSE)) ->  | Y22: =IF($R22="","",VLOOKUP($R22,'FO-DRE-01'!$A$7:$U$301,3,FALSE)) ->  | Z22: =IF($R22="","",VLOOKUP($R22,'FO-DRE-01'!$A$7:$U$301,4,FALSE)) ->  | AA22: =IF($R22="","",VLOOKUP($R22,'FO-DRE-01'!$A$7:$U$301,5,FALSE)) ->  | AB22: =IF($R22="","",VLOOKUP($R22,'FO-DRE-01'!$A$7:$U$301,7,FALSE)) ->  | AC22: =IF($R22="","",VLOOKUP($R22,'FO-DRE-01'!$A$7:$U$301,8,FALSE)) ->  | AD22: =IF($R22="","",VLOOKUP($R22,'FO-DRE-01'!$A$7:$U$301,9,FALSE)) ->  | AE22: =IF($R22="","",VLOOKUP($R22,'FO-DRE-01'!$A$7:$U$301,10,FALSE)) ->  | AF22: =IF($R22="","",VLOOKUP($R22,'FO-DRE-01'!$A$7:$U$301,11,FALSE)) ->  | AG22: =IF($R22="","",VLOOKUP($R22,'FO-DRE-01'!$A$7:$U$301,12,FALSE)) ->  | AH22: =IF($R22="","",VLOOKUP($R22,'FO-DRE-01'!$A$7:$U$301,13,FALSE)) ->  | AI22: =IF($R22="","",VLOOKUP($R22,'FO-DRE-01'!$A$7:$U$301,14,FALSE)) ->  | AJ22: =IF($R22="","",VLOOKUP($R22,'FO-DRE-01'!$A$7:$U$301,15,FALSE)) ->  | AK22: =IF($S22="","",VLOOKUP($S22,'FO-DRE-04'!$A$6:$L$301,2,FALSE)) ->  | AL22: =IF($S22="","",VLOOKUP($S22,'FO-DRE-04'!$A$6:$L$301,3,FALSE)) ->  | AM22: =IF($S22="","",VLOOKUP($S22,'FO-DRE-04'!$A$6:$L$301,4,FALSE)) ->  | AN22: =IF($S22="","",VLOOKUP($S22,'FO-DRE-04'!$A$6:$L$301,6,FALSE)) ->  | AO22: =IF($S22="","",VLOOKUP($S22,'FO-DRE-04'!$A$6:$L$301,11,FALSE)) ->  | AP22: =IF($T22="","",VLOOKUP($T22,'FO-DRE-02'!$A$6:$M$101,2,FALSE)) ->  | AQ22: =IF($T22="","",VLOOKUP($T22,'FO-DRE-02'!$A$6:$M$101,3,FALSE)) ->  | AR22: =IF($T22="","",VLOOKUP($T22,'FO-DRE-02'!$A$6:$M$101,6,FALSE)) ->  | AS22: =IF($T22="","",VLOOKUP($T22,'FO-DRE-02'!$A$6:$M$101,4,FALSE)) ->  | AT22: =IF($T22="","",VLOOKUP($T22,'FO-DRE-02'!$A$6:$M$101,5,FALSE)) ->  | AU22: =IF($T22="","",VLOOKUP($T22,'FO-DRE-02'!$A$6:$M$101,8,FALSE)) ->  | AV22: =IF($T22="","",VLOOKUP($T22,'FO-DRE-02'!$A$6:$M$101,7,FALSE)) ->  | AW22: =IF($T22="","",VLOOKUP($T22,'FO-DRE-02'!$A$6:$M$101,9,FALSE)) ->  | AX22: =IF($T22="","",VLOOKUP($T22,'FO-DRE-02'!$A$6:$M$101,11,FALSE)) ->  | AY22: =IF($T22="","",VLOOKUP($T22,'FO-DRE-02'!$A$6:$M$101,12,FALSE)) ->  | AZ22: =IF($T22="","",VLOOKUP($T22,'FO-DRE-02'!$A$6:$M$101,13,FALSE)) ->  | BB22: 856 | BD22: 13 | BF22: F/D | BG22: F/D
I23: =IF(H23="1a",Hoja1!$B$126,IF(H23="1b",Hoja1!$B$127,IF(H23="2a",Hoja1!$B$128,IF(H23="2b",Hoja1!$B$129,IF(H23="3 ",Hoja1!$B$130,IF(H23="4 ",Hoja1!$B$131,IF(H23="5 ",Hoja1!$B$132,IF(H23="6 ",Hoja1!$B$133,IF(H23="7 ",Hoja1!$B$134,IF(H23="8 ",Hoja1!$B$135," ")))))))))) ->  | J23: =CONCATENATE(#REF!,"-","TX") ->  | K23: =CONCATENATE(#REF!,"-","RX") ->  | P23: 0 | V23: =IF($R23="","",VLOOKUP($R23,'FO-DRE-01'!$A$7:$U$301,18,FALSE)) ->  | W23: =IF($R23="","",VLOOKUP($R23,'FO-DRE-01'!$A$7:$U$301,16,FALSE)) ->  | X23: =IF($R23="","",VLOOKUP($R23,'FO-DRE-01'!$A$7:$U$301,17,FALSE)) ->  | Y23: =IF($R23="","",VLOOKUP($R23,'FO-DRE-01'!$A$7:$U$301,3,FALSE)) ->  | Z23: =IF($R23="","",VLOOKUP($R23,'FO-DRE-01'!$A$7:$U$301,4,FALSE)) ->  | AA23: =IF($R23="","",VLOOKUP($R23,'FO-DRE-01'!$A$7:$U$301,5,FALSE)) ->  | AB23: =IF($R23="","",VLOOKUP($R23,'FO-DRE-01'!$A$7:$U$301,7,FALSE)) ->  | AC23: =IF($R23="","",VLOOKUP($R23,'FO-DRE-01'!$A$7:$U$301,8,FALSE)) ->  | AD23: =IF($R23="","",VLOOKUP($R23,'FO-DRE-01'!$A$7:$U$301,9,FALSE)) ->  | AE23: =IF($R23="","",VLOOKUP($R23,'FO-DRE-01'!$A$7:$U$301,10,FALSE)) ->  | AF23: =IF($R23="","",VLOOKUP($R23,'FO-DRE-01'!$A$7:$U$301,11,FALSE)) ->  | AG23: =IF($R23="","",VLOOKUP($R23,'FO-DRE-01'!$A$7:$U$301,12,FALSE)) ->  | AH23: =IF($R23="","",VLOOKUP($R23,'FO-DRE-01'!$A$7:$U$301,13,FALSE)) ->  | AI23: =IF($R23="","",VLOOKUP($R23,'FO-DRE-01'!$A$7:$U$301,14,FALSE)) ->  | AJ23: =IF($R23="","",VLOOKUP($R23,'FO-DRE-01'!$A$7:$U$301,15,FALSE)) ->  | AK23: =IF($S23="","",VLOOKUP($S23,'FO-DRE-04'!$A$6:$L$301,2,FALSE)) ->  | AL23: =IF($S23="","",VLOOKUP($S23,'FO-DRE-04'!$A$6:$L$301,3,FALSE)) ->  | AM23: =IF($S23="","",VLOOKUP($S23,'FO-DRE-04'!$A$6:$L$301,4,FALSE)) ->  | AN23: =IF($S23="","",VLOOKUP($S23,'FO-DRE-04'!$A$6:$L$301,6,FALSE)) ->  | AO23: =IF($S23="","",VLOOKUP($S23,'FO-DRE-04'!$A$6:$L$301,11,FALSE)) ->  | AP23: =IF($T23="","",VLOOKUP($T23,'FO-DRE-02'!$A$6:$M$101,2,FALSE)) ->  | AQ23: =IF($T23="","",VLOOKUP($T23,'FO-DRE-02'!$A$6:$M$101,3,FALSE)) ->  | AR23: =IF($T23="","",VLOOKUP($T23,'FO-DRE-02'!$A$6:$M$101,6,FALSE)) ->  | AS23: =IF($T23="","",VLOOKUP($T23,'FO-DRE-02'!$A$6:$M$101,4,FALSE)) ->  | AT23: =IF($T23="","",VLOOKUP($T23,'FO-DRE-02'!$A$6:$M$101,5,FALSE)) ->  | AU23: =IF($T23="","",VLOOKUP($T23,'FO-DRE-02'!$A$6:$M$101,8,FALSE)) ->  | AV23: =IF($T23="","",VLOOKUP($T23,'FO-DRE-02'!$A$6:$M$101,7,FALSE)) ->  | AW23: =IF($T23="","",VLOOKUP($T23,'FO-DRE-02'!$A$6:$M$101,9,FALSE)) ->  | AX23: =IF($T23="","",VLOOKUP($T23,'FO-DRE-02'!$A$6:$M$101,11,FALSE)) ->  | AY23: =IF($T23="","",VLOOKUP($T23,'FO-DRE-02'!$A$6:$M$101,12,FALSE)) ->  | AZ23: =IF($T23="","",VLOOKUP($T23,'FO-DRE-02'!$A$6:$M$101,13,FALSE)) ->  | BB23: 856 | BD23: 14 | BF23: F/D | BG23: F/D
I24: =IF(H24="1a",Hoja1!$B$126,IF(H24="1b",Hoja1!$B$127,IF(H24="2a",Hoja1!$B$128,IF(H24="2b",Hoja1!$B$129,IF(H24="3 ",Hoja1!$B$130,IF(H24="4 ",Hoja1!$B$131,IF(H24="5 ",Hoja1!$B$132,IF(H24="6 ",Hoja1!$B$133,IF(H24="7 ",Hoja1!$B$134,IF(H24="8 ",Hoja1!$B$135," ")))))))))) ->  | J24: =CONCATENATE(#REF!,"-","TX") ->  | K24: =CONCATENATE(#REF!,"-","RX") ->  | P24: 0 | V24: =IF($R24="","",VLOOKUP($R24,'FO-DRE-01'!$A$7:$U$301,18,FALSE)) ->  | W24: =IF($R24="","",VLOOKUP($R24,'FO-DRE-01'!$A$7:$U$301,16,FALSE)) ->  | X24: =IF($R24="","",VLOOKUP($R24,'FO-DRE-01'!$A$7:$U$301,17,FALSE)) ->  | Y24: =IF($R24="","",VLOOKUP($R24,'FO-DRE-01'!$A$7:$U$301,3,FALSE)) ->  | Z24: =IF($R24="","",VLOOKUP($R24,'FO-DRE-01'!$A$7:$U$301,4,FALSE)) ->  | AA24: =IF($R24="","",VLOOKUP($R24,'FO-DRE-01'!$A$7:$U$301,5,FALSE)) ->  | AB24: =IF($R24="","",VLOOKUP($R24,'FO-DRE-01'!$A$7:$U$301,7,FALSE)) ->  | AC24: =IF($R24="","",VLOOKUP($R24,'FO-DRE-01'!$A$7:$U$301,8,FALSE)) ->  | AD24: =IF($R24="","",VLOOKUP($R24,'FO-DRE-01'!$A$7:$U$301,9,FALSE)) ->  | AE24: =IF($R24="","",VLOOKUP($R24,'FO-DRE-01'!$A$7:$U$301,10,FALSE)) ->  | AF24: =IF($R24="","",VLOOKUP($R24,'FO-DRE-01'!$A$7:$U$301,11,FALSE)) ->  | AG24: =IF($R24="","",VLOOKUP($R24,'FO-DRE-01'!$A$7:$U$301,12,FALSE)) ->  | AH24: =IF($R24="","",VLOOKUP($R24,'FO-DRE-01'!$A$7:$U$301,13,FALSE)) ->  | AI24: =IF($R24="","",VLOOKUP($R24,'FO-DRE-01'!$A$7:$U$301,14,FALSE)) ->  | AJ24: =IF($R24="","",VLOOKUP($R24,'FO-DRE-01'!$A$7:$U$301,15,FALSE)) ->  | AK24: =IF($S24="","",VLOOKUP($S24,'FO-DRE-04'!$A$6:$L$301,2,FALSE)) ->  | AL24: =IF($S24="","",VLOOKUP($S24,'FO-DRE-04'!$A$6:$L$301,3,FALSE)) ->  | AM24: =IF($S24="","",VLOOKUP($S24,'FO-DRE-04'!$A$6:$L$301,4,FALSE)) ->  | AN24: =IF($S24="","",VLOOKUP($S24,'FO-DRE-04'!$A$6:$L$301,6,FALSE)) ->  | AO24: =IF($S24="","",VLOOKUP($S24,'FO-DRE-04'!$A$6:$L$301,11,FALSE)) ->  | AP24: =IF($T24="","",VLOOKUP($T24,'FO-DRE-02'!$A$6:$M$101,2,FALSE)) ->  | AQ24: =IF($T24="","",VLOOKUP($T24,'FO-DRE-02'!$A$6:$M$101,3,FALSE)) ->  | AR24: =IF($T24="","",VLOOKUP($T24,'FO-DRE-02'!$A$6:$M$101,6,FALSE)) ->  | AS24: =IF($T24="","",VLOOKUP($T24,'FO-DRE-02'!$A$6:$M$101,4,FALSE)) ->  | AT24: =IF($T24="","",VLOOKUP($T24,'FO-DRE-02'!$A$6:$M$101,5,FALSE)) ->  | AU24: =IF($T24="","",VLOOKUP($T24,'FO-DRE-02'!$A$6:$M$101,8,FALSE)) ->  | AV24: =IF($T24="","",VLOOKUP($T24,'FO-DRE-02'!$A$6:$M$101,7,FALSE)) ->  | AW24: =IF($T24="","",VLOOKUP($T24,'FO-DRE-02'!$A$6:$M$101,9,FALSE)) ->  | AX24: =IF($T24="","",VLOOKUP($T24,'FO-DRE-02'!$A$6:$M$101,11,FALSE)) ->  | AY24: =IF($T24="","",VLOOKUP($T24,'FO-DRE-02'!$A$6:$M$101,12,FALSE)) ->  | AZ24: =IF($T24="","",VLOOKUP($T24,'FO-DRE-02'!$A$6:$M$101,13,FALSE)) ->  | BB24: 856 | BD24: 15 | BF24: F/D | BG24: F/D
I25: =IF(H25="1a",Hoja1!$B$126,IF(H25="1b",Hoja1!$B$127,IF(H25="2a",Hoja1!$B$128,IF(H25="2b",Hoja1!$B$129,IF(H25="3 ",Hoja1!$B$130,IF(H25="4 ",Hoja1!$B$131,IF(H25="5 ",Hoja1!$B$132,IF(H25="6 ",Hoja1!$B$133,IF(H25="7 ",Hoja1!$B$134,IF(H25="8 ",Hoja1!$B$135," ")))))))))) ->  | J25: =CONCATENATE(#REF!,"-","TX") ->  | K25: =CONCATENATE(#REF!,"-","RX") ->  | P25: 0 | V25: =IF($R25="","",VLOOKUP($R25,'FO-DRE-01'!$A$7:$U$301,18,FALSE)) ->  | W25: =IF($R25="","",VLOOKUP($R25,'FO-DRE-01'!$A$7:$U$301,16,FALSE)) ->  | X25: =IF($R25="","",VLOOKUP($R25,'FO-DRE-01'!$A$7:$U$301,17,FALSE)) ->  | Y25: =IF($R25="","",VLOOKUP($R25,'FO-DRE-01'!$A$7:$U$301,3,FALSE)) ->  | Z25: =IF($R25="","",VLOOKUP($R25,'FO-DRE-01'!$A$7:$U$301,4,FALSE)) ->  | AA25: =IF($R25="","",VLOOKUP($R25,'FO-DRE-01'!$A$7:$U$301,5,FALSE)) ->  | AB25: =IF($R25="","",VLOOKUP($R25,'FO-DRE-01'!$A$7:$U$301,7,FALSE)) ->  | AC25: =IF($R25="","",VLOOKUP($R25,'FO-DRE-01'!$A$7:$U$301,8,FALSE)) ->  | AD25: =IF($R25="","",VLOOKUP($R25,'FO-DRE-01'!$A$7:$U$301,9,FALSE)) ->  | AE25: =IF($R25="","",VLOOKUP($R25,'FO-DRE-01'!$A$7:$U$301,10,FALSE)) ->  | AF25: =IF($R25="","",VLOOKUP($R25,'FO-DRE-01'!$A$7:$U$301,11,FALSE)) ->  | AG25: =IF($R25="","",VLOOKUP($R25,'FO-DRE-01'!$A$7:$U$301,12,FALSE)) ->  | AH25: =IF($R25="","",VLOOKUP($R25,'FO-DRE-01'!$A$7:$U$301,13,FALSE)) ->  | AI25: =IF($R25="","",VLOOKUP($R25,'FO-DRE-01'!$A$7:$U$301,14,FALSE)) ->  | AJ25: =IF($R25="","",VLOOKUP($R25,'FO-DRE-01'!$A$7:$U$301,15,FALSE)) ->  | AK25: =IF($S25="","",VLOOKUP($S25,'FO-DRE-04'!$A$6:$L$301,2,FALSE)) ->  | AL25: =IF($S25="","",VLOOKUP($S25,'FO-DRE-04'!$A$6:$L$301,3,FALSE)) ->  | AM25: =IF($S25="","",VLOOKUP($S25,'FO-DRE-04'!$A$6:$L$301,4,FALSE)) ->  | AN25: =IF($S25="","",VLOOKUP($S25,'FO-DRE-04'!$A$6:$L$301,6,FALSE)) ->  | AO25: =IF($S25="","",VLOOKUP($S25,'FO-DRE-04'!$A$6:$L$301,11,FALSE)) ->  | AP25: =IF($T25="","",VLOOKUP($T25,'FO-DRE-02'!$A$6:$M$101,2,FALSE)) ->  | AQ25: =IF($T25="","",VLOOKUP($T25,'FO-DRE-02'!$A$6:$M$101,3,FALSE)) ->  | AR25: =IF($T25="","",VLOOKUP($T25,'FO-DRE-02'!$A$6:$M$101,6,FALSE)) ->  | AS25: =IF($T25="","",VLOOKUP($T25,'FO-DRE-02'!$A$6:$M$101,4,FALSE)) ->  | AT25: =IF($T25="","",VLOOKUP($T25,'FO-DRE-02'!$A$6:$M$101,5,FALSE)) ->  | AU25: =IF($T25="","",VLOOKUP($T25,'FO-DRE-02'!$A$6:$M$101,8,FALSE)) ->  | AV25: =IF($T25="","",VLOOKUP($T25,'FO-DRE-02'!$A$6:$M$101,7,FALSE)) ->  | AW25: =IF($T25="","",VLOOKUP($T25,'FO-DRE-02'!$A$6:$M$101,9,FALSE)) ->  | AX25: =IF($T25="","",VLOOKUP($T25,'FO-DRE-02'!$A$6:$M$101,11,FALSE)) ->  | AY25: =IF($T25="","",VLOOKUP($T25,'FO-DRE-02'!$A$6:$M$101,12,FALSE)) ->  | AZ25: =IF($T25="","",VLOOKUP($T25,'FO-DRE-02'!$A$6:$M$101,13,FALSE)) ->  | BB25: 856 | BD25: 16 | BF25: F/D | BG25: F/D | BO25: =IF(OR(AK25="MOVIL",AK25="PORTATIL"),"",IF(AN25="","",AN25)) ->  | BQ25: =IF(OR(BO25="",BP25=""),"",BP25*BO25) -> 
I26: =IF(H26="1a",Hoja1!$B$126,IF(H26="1b",Hoja1!$B$127,IF(H26="2a",Hoja1!$B$128,IF(H26="2b",Hoja1!$B$129,IF(H26="3 ",Hoja1!$B$130,IF(H26="4 ",Hoja1!$B$131,IF(H26="5 ",Hoja1!$B$132,IF(H26="6 ",Hoja1!$B$133,IF(H26="7 ",Hoja1!$B$134,IF(H26="8 ",Hoja1!$B$135," ")))))))))) ->  | J26: =CONCATENATE(#REF!,"-","TX") ->  | K26: =CONCATENATE(#REF!,"-","RX") ->  | P26: 0 | V26: =IF($R26="","",VLOOKUP($R26,'FO-DRE-01'!$A$7:$U$301,18,FALSE)) ->  | W26: =IF($R26="","",VLOOKUP($R26,'FO-DRE-01'!$A$7:$U$301,16,FALSE)) ->  | X26: =IF($R26="","",VLOOKUP($R26,'FO-DRE-01'!$A$7:$U$301,17,FALSE)) ->  | Y26: =IF($R26="","",VLOOKUP($R26,'FO-DRE-01'!$A$7:$U$301,3,FALSE)) ->  | Z26: =IF($R26="","",VLOOKUP($R26,'FO-DRE-01'!$A$7:$U$301,4,FALSE)) ->  | AA26: =IF($R26="","",VLOOKUP($R26,'FO-DRE-01'!$A$7:$U$301,5,FALSE)) ->  | AB26: =IF($R26="","",VLOOKUP($R26,'FO-DRE-01'!$A$7:$U$301,7,FALSE)) ->  | AC26: =IF($R26="","",VLOOKUP($R26,'FO-DRE-01'!$A$7:$U$301,8,FALSE)) ->  | AD26: =IF($R26="","",VLOOKUP($R26,'FO-DRE-01'!$A$7:$U$301,9,FALSE)) ->  | AE26: =IF($R26="","",VLOOKUP($R26,'FO-DRE-01'!$A$7:$U$301,10,FALSE)) ->  | AF26: =IF($R26="","",VLOOKUP($R26,'FO-DRE-01'!$A$7:$U$301,11,FALSE)) ->  | AG26: =IF($R26="","",VLOOKUP($R26,'FO-DRE-01'!$A$7:$U$301,12,FALSE)) ->  | AH26: =IF($R26="","",VLOOKUP($R26,'FO-DRE-01'!$A$7:$U$301,13,FALSE)) ->  | AI26: =IF($R26="","",VLOOKUP($R26,'FO-DRE-01'!$A$7:$U$301,14,FALSE)) ->  | AJ26: =IF($R26="","",VLOOKUP($R26,'FO-DRE-01'!$A$7:$U$301,15,FALSE)) ->  | AK26: =IF($S26="","",VLOOKUP($S26,'FO-DRE-04'!$A$6:$L$301,2,FALSE)) ->  | AL26: =IF($S26="","",VLOOKUP($S26,'FO-DRE-04'!$A$6:$L$301,3,FALSE)) ->  | AM26: =IF($S26="","",VLOOKUP($S26,'FO-DRE-04'!$A$6:$L$301,4,FALSE)) ->  | AN26: =IF($S26="","",VLOOKUP($S26,'FO-DRE-04'!$A$6:$L$301,6,FALSE)) ->  | AO26: =IF($S26="","",VLOOKUP($S26,'FO-DRE-04'!$A$6:$L$301,11,FALSE)) ->  | AP26: =IF($T26="","",VLOOKUP($T26,'FO-DRE-02'!$A$6:$M$101,2,FALSE)) ->  | AQ26: =IF($T26="","",VLOOKUP($T26,'FO-DRE-02'!$A$6:$M$101,3,FALSE)) ->  | AR26: =IF($T26="","",VLOOKUP($T26,'FO-DRE-02'!$A$6:$M$101,6,FALSE)) ->  | AS26: =IF($T26="","",VLOOKUP($T26,'FO-DRE-02'!$A$6:$M$101,4,FALSE)) ->  | AT26: =IF($T26="","",VLOOKUP($T26,'FO-DRE-02'!$A$6:$M$101,5,FALSE)) ->  | AU26: =IF($T26="","",VLOOKUP($T26,'FO-DRE-02'!$A$6:$M$101,8,FALSE)) ->  | AV26: =IF($T26="","",VLOOKUP($T26,'FO-DRE-02'!$A$6:$M$101,7,FALSE)) ->  | AW26: =IF($T26="","",VLOOKUP($T26,'FO-DRE-02'!$A$6:$M$101,9,FALSE)) ->  | AX26: =IF($T26="","",VLOOKUP($T26,'FO-DRE-02'!$A$6:$M$101,11,FALSE)) ->  | AY26: =IF($T26="","",VLOOKUP($T26,'FO-DRE-02'!$A$6:$M$101,12,FALSE)) ->  | AZ26: =IF($T26="","",VLOOKUP($T26,'FO-DRE-02'!$A$6:$M$101,13,FALSE)) ->  | BB26: 856 | BD26: 17 | BF26: F/D | BG26: F/D
I27: =IF(H27="1a",Hoja1!$B$126,IF(H27="1b",Hoja1!$B$127,IF(H27="2a",Hoja1!$B$128,IF(H27="2b",Hoja1!$B$129,IF(H27="3 ",Hoja1!$B$130,IF(H27="4 ",Hoja1!$B$131,IF(H27="5 ",Hoja1!$B$132,IF(H27="6 ",Hoja1!$B$133,IF(H27="7 ",Hoja1!$B$134,IF(H27="8 ",Hoja1!$B$135," ")))))))))) ->  | J27: =CONCATENATE(#REF!,"-","TX") ->  | K27: =CONCATENATE(#REF!,"-","RX") ->  | P27: 0 | V27: =IF($R27="","",VLOOKUP($R27,'FO-DRE-01'!$A$7:$U$301,18,FALSE)) ->  | W27: =IF($R27="","",VLOOKUP($R27,'FO-DRE-01'!$A$7:$U$301,16,FALSE)) ->  | X27: =IF($R27="","",VLOOKUP($R27,'FO-DRE-01'!$A$7:$U$301,17,FALSE)) ->  | Y27: =IF($R27="","",VLOOKUP($R27,'FO-DRE-01'!$A$7:$U$301,3,FALSE)) ->  | Z27: =IF($R27="","",VLOOKUP($R27,'FO-DRE-01'!$A$7:$U$301,4,FALSE)) ->  | AA27: =IF($R27="","",VLOOKUP($R27,'FO-DRE-01'!$A$7:$U$301,5,FALSE)) ->  | AB27: =IF($R27="","",VLOOKUP($R27,'FO-DRE-01'!$A$7:$U$301,7,FALSE)) ->  | AC27: =IF($R27="","",VLOOKUP($R27,'FO-DRE-01'!$A$7:$U$301,8,FALSE)) ->  | AD27: =IF($R27="","",VLOOKUP($R27,'FO-DRE-01'!$A$7:$U$301,9,FALSE)) ->  | AE27: =IF($R27="","",VLOOKUP($R27,'FO-DRE-01'!$A$7:$U$301,10,FALSE)) ->  | AF27: =IF($R27="","",VLOOKUP($R27,'FO-DRE-01'!$A$7:$U$301,11,FALSE)) ->  | AG27: =IF($R27="","",VLOOKUP($R27,'FO-DRE-01'!$A$7:$U$301,12,FALSE)) ->  | AH27: =IF($R27="","",VLOOKUP($R27,'FO-DRE-01'!$A$7:$U$301,13,FALSE)) ->  | AI27: =IF($R27="","",VLOOKUP($R27,'FO-DRE-01'!$A$7:$U$301,14,FALSE)) ->  | AJ27: =IF($R27="","",VLOOKUP($R27,'FO-DRE-01'!$A$7:$U$301,15,FALSE)) ->  | AK27: =IF($S27="","",VLOOKUP($S27,'FO-DRE-04'!$A$6:$L$301,2,FALSE)) ->  | AL27: =IF($S27="","",VLOOKUP($S27,'FO-DRE-04'!$A$6:$L$301,3,FALSE)) ->  | AM27: =IF($S27="","",VLOOKUP($S27,'FO-DRE-04'!$A$6:$L$301,4,FALSE)) ->  | AN27: =IF($S27="","",VLOOKUP($S27,'FO-DRE-04'!$A$6:$L$301,6,FALSE)) ->  | AO27: =IF($S27="","",VLOOKUP($S27,'FO-DRE-04'!$A$6:$L$301,11,FALSE)) ->  | AP27: =IF($T27="","",VLOOKUP($T27,'FO-DRE-02'!$A$6:$M$101,2,FALSE)) ->  | AQ27: =IF($T27="","",VLOOKUP($T27,'FO-DRE-02'!$A$6:$M$101,3,FALSE)) ->  | AR27: =IF($T27="","",VLOOKUP($T27,'FO-DRE-02'!$A$6:$M$101,6,FALSE)) ->  | AS27: =IF($T27="","",VLOOKUP($T27,'FO-DRE-02'!$A$6:$M$101,4,FALSE)) ->  | AT27: =IF($T27="","",VLOOKUP($T27,'FO-DRE-02'!$A$6:$M$101,5,FALSE)) ->  | AU27: =IF($T27="","",VLOOKUP($T27,'FO-DRE-02'!$A$6:$M$101,8,FALSE)) ->  | AV27: =IF($T27="","",VLOOKUP($T27,'FO-DRE-02'!$A$6:$M$101,7,FALSE)) ->  | AW27: =IF($T27="","",VLOOKUP($T27,'FO-DRE-02'!$A$6:$M$101,9,FALSE)) ->  | AX27: =IF($T27="","",VLOOKUP($T27,'FO-DRE-02'!$A$6:$M$101,11,FALSE)) ->  | AY27: =IF($T27="","",VLOOKUP($T27,'FO-DRE-02'!$A$6:$M$101,12,FALSE)) ->  | AZ27: =IF($T27="","",VLOOKUP($T27,'FO-DRE-02'!$A$6:$M$101,13,FALSE)) ->  | BB27: 856 | BD27: 18 | BF27: F/D | BG27: F/D
I28: =IF(H28="1a",Hoja1!$B$126,IF(H28="1b",Hoja1!$B$127,IF(H28="2a",Hoja1!$B$128,IF(H28="2b",Hoja1!$B$129,IF(H28="3 ",Hoja1!$B$130,IF(H28="4 ",Hoja1!$B$131,IF(H28="5 ",Hoja1!$B$132,IF(H28="6 ",Hoja1!$B$133,IF(H28="7 ",Hoja1!$B$134,IF(H28="8 ",Hoja1!$B$135," ")))))))))) ->  | J28: =CONCATENATE(#REF!,"-","TX") ->  | K28: =CONCATENATE(#REF!,"-","RX") ->  | P28: 0 | V28: =IF($R28="","",VLOOKUP($R28,'FO-DRE-01'!$A$7:$U$301,18,FALSE)) ->  | W28: =IF($R28="","",VLOOKUP($R28,'FO-DRE-01'!$A$7:$U$301,16,FALSE)) ->  | X28: =IF($R28="","",VLOOKUP($R28,'FO-DRE-01'!$A$7:$U$301,17,FALSE)) ->  | Y28: =IF($R28="","",VLOOKUP($R28,'FO-DRE-01'!$A$7:$U$301,3,FALSE)) ->  | Z28: =IF($R28="","",VLOOKUP($R28,'FO-DRE-01'!$A$7:$U$301,4,FALSE)) ->  | AA28: =IF($R28="","",VLOOKUP($R28,'FO-DRE-01'!$A$7:$U$301,5,FALSE)) ->  | AB28: =IF($R28="","",VLOOKUP($R28,'FO-DRE-01'!$A$7:$U$301,7,FALSE)) ->  | AC28: =IF($R28="","",VLOOKUP($R28,'FO-DRE-01'!$A$7:$U$301,8,FALSE)) ->  | AD28: =IF($R28="","",VLOOKUP($R28,'FO-DRE-01'!$A$7:$U$301,9,FALSE)) ->  | AE28: =IF($R28="","",VLOOKUP($R28,'FO-DRE-01'!$A$7:$U$301,10,FALSE)) ->  | AF28: =IF($R28="","",VLOOKUP($R28,'FO-DRE-01'!$A$7:$U$301,11,FALSE)) ->  | AG28: =IF($R28="","",VLOOKUP($R28,'FO-DRE-01'!$A$7:$U$301,12,FALSE)) ->  | AH28: =IF($R28="","",VLOOKUP($R28,'FO-DRE-01'!$A$7:$U$301,13,FALSE)) ->  | AI28: =IF($R28="","",VLOOKUP($R28,'FO-DRE-01'!$A$7:$U$301,14,FALSE)) ->  | AJ28: =IF($R28="","",VLOOKUP($R28,'FO-DRE-01'!$A$7:$U$301,15,FALSE)) ->  | AK28: =IF($S28="","",VLOOKUP($S28,'FO-DRE-04'!$A$6:$L$301,2,FALSE)) ->  | AL28: =IF($S28="","",VLOOKUP($S28,'FO-DRE-04'!$A$6:$L$301,3,FALSE)) ->  | AM28: =IF($S28="","",VLOOKUP($S28,'FO-DRE-04'!$A$6:$L$301,4,FALSE)) ->  | AN28: =IF($S28="","",VLOOKUP($S28,'FO-DRE-04'!$A$6:$L$301,6,FALSE)) ->  | AO28: =IF($S28="","",VLOOKUP($S28,'FO-DRE-04'!$A$6:$L$301,11,FALSE)) ->  | AP28: =IF($T28="","",VLOOKUP($T28,'FO-DRE-02'!$A$6:$M$101,2,FALSE)) ->  | AQ28: =IF($T28="","",VLOOKUP($T28,'FO-DRE-02'!$A$6:$M$101,3,FALSE)) ->  | AR28: =IF($T28="","",VLOOKUP($T28,'FO-DRE-02'!$A$6:$M$101,6,FALSE)) ->  | AS28: =IF($T28="","",VLOOKUP($T28,'FO-DRE-02'!$A$6:$M$101,4,FALSE)) ->  | AT28: =IF($T28="","",VLOOKUP($T28,'FO-DRE-02'!$A$6:$M$101,5,FALSE)) ->  | AU28: =IF($T28="","",VLOOKUP($T28,'FO-DRE-02'!$A$6:$M$101,8,FALSE)) ->  | AV28: =IF($T28="","",VLOOKUP($T28,'FO-DRE-02'!$A$6:$M$101,7,FALSE)) ->  | AW28: =IF($T28="","",VLOOKUP($T28,'FO-DRE-02'!$A$6:$M$101,9,FALSE)) ->  | AX28: =IF($T28="","",VLOOKUP($T28,'FO-DRE-02'!$A$6:$M$101,11,FALSE)) ->  | AY28: =IF($T28="","",VLOOKUP($T28,'FO-DRE-02'!$A$6:$M$101,12,FALSE)) ->  | AZ28: =IF($T28="","",VLOOKUP($T28,'FO-DRE-02'!$A$6:$M$101,13,FALSE)) ->  | BB28: 856 | BD28: 19 | BF28: F/D | BG28: F/D
I29: =IF(H29="1a",Hoja1!$B$126,IF(H29="1b",Hoja1!$B$127,IF(H29="2a",Hoja1!$B$128,IF(H29="2b",Hoja1!$B$129,IF(H29="3 ",Hoja1!$B$130,IF(H29="4 ",Hoja1!$B$131,IF(H29="5 ",Hoja1!$B$132,IF(H29="6 ",Hoja1!$B$133,IF(H29="7 ",Hoja1!$B$134,IF(H29="8 ",Hoja1!$B$135," ")))))))))) ->  | J29: =CONCATENATE(#REF!,"-","TX") ->  | K29: =CONCATENATE(#REF!,"-","RX") ->  | P29: 0 | V29: =IF($R29="","",VLOOKUP($R29,'FO-DRE-01'!$A$7:$U$301,18,FALSE)) ->  | W29: =IF($R29="","",VLOOKUP($R29,'FO-DRE-01'!$A$7:$U$301,16,FALSE)) ->  | X29: =IF($R29="","",VLOOKUP($R29,'FO-DRE-01'!$A$7:$U$301,17,FALSE)) ->  | Y29: =IF($R29="","",VLOOKUP($R29,'FO-DRE-01'!$A$7:$U$301,3,FALSE)) ->  | Z29: =IF($R29="","",VLOOKUP($R29,'FO-DRE-01'!$A$7:$U$301,4,FALSE)) ->  | AA29: =IF($R29="","",VLOOKUP($R29,'FO-DRE-01'!$A$7:$U$301,5,FALSE)) ->  | AB29: =IF($R29="","",VLOOKUP($R29,'FO-DRE-01'!$A$7:$U$301,7,FALSE)) ->  | AC29: =IF($R29="","",VLOOKUP($R29,'FO-DRE-01'!$A$7:$U$301,8,FALSE)) ->  | AD29: =IF($R29="","",VLOOKUP($R29,'FO-DRE-01'!$A$7:$U$301,9,FALSE)) ->  | AE29: =IF($R29="","",VLOOKUP($R29,'FO-DRE-01'!$A$7:$U$301,10,FALSE)) ->  | AF29: =IF($R29="","",VLOOKUP($R29,'FO-DRE-01'!$A$7:$U$301,11,FALSE)) ->  | AG29: =IF($R29="","",VLOOKUP($R29,'FO-DRE-01'!$A$7:$U$301,12,FALSE)) ->  | AH29: =IF($R29="","",VLOOKUP($R29,'FO-DRE-01'!$A$7:$U$301,13,FALSE)) ->  | AI29: =IF($R29="","",VLOOKUP($R29,'FO-DRE-01'!$A$7:$U$301,14,FALSE)) ->  | AJ29: =IF($R29="","",VLOOKUP($R29,'FO-DRE-01'!$A$7:$U$301,15,FALSE)) ->  | AK29: =IF($S29="","",VLOOKUP($S29,'FO-DRE-04'!$A$6:$L$301,2,FALSE)) ->  | AL29: =IF($S29="","",VLOOKUP($S29,'FO-DRE-04'!$A$6:$L$301,3,FALSE)) ->  | AM29: =IF($S29="","",VLOOKUP($S29,'FO-DRE-04'!$A$6:$L$301,4,FALSE)) ->  | AN29: =IF($S29="","",VLOOKUP($S29,'FO-DRE-04'!$A$6:$L$301,6,FALSE)) ->  | AO29: =IF($S29="","",VLOOKUP($S29,'FO-DRE-04'!$A$6:$L$301,11,FALSE)) ->  | AP29: =IF($T29="","",VLOOKUP($T29,'FO-DRE-02'!$A$6:$M$101,2,FALSE)) ->  | AQ29: =IF($T29="","",VLOOKUP($T29,'FO-DRE-02'!$A$6:$M$101,3,FALSE)) ->  | AR29: =IF($T29="","",VLOOKUP($T29,'FO-DRE-02'!$A$6:$M$101,6,FALSE)) ->  | AS29: =IF($T29="","",VLOOKUP($T29,'FO-DRE-02'!$A$6:$M$101,4,FALSE)) ->  | AT29: =IF($T29="","",VLOOKUP($T29,'FO-DRE-02'!$A$6:$M$101,5,FALSE)) ->  | AU29: =IF($T29="","",VLOOKUP($T29,'FO-DRE-02'!$A$6:$M$101,8,FALSE)) ->  | AV29: =IF($T29="","",VLOOKUP($T29,'FO-DRE-02'!$A$6:$M$101,7,FALSE)) ->  | AW29: =IF($T29="","",VLOOKUP($T29,'FO-DRE-02'!$A$6:$M$101,9,FALSE)) ->  | AX29: =IF($T29="","",VLOOKUP($T29,'FO-DRE-02'!$A$6:$M$101,11,FALSE)) ->  | AY29: =IF($T29="","",VLOOKUP($T29,'FO-DRE-02'!$A$6:$M$101,12,FALSE)) ->  | AZ29: =IF($T29="","",VLOOKUP($T29,'FO-DRE-02'!$A$6:$M$101,13,FALSE)) ->  | BB29: 856 | BD29: 20 | BF29: F/D | BG29: F/D
I30: =IF(H30="1a",Hoja1!$B$126,IF(H30="1b",Hoja1!$B$127,IF(H30="2a",Hoja1!$B$128,IF(H30="2b",Hoja1!$B$129,IF(H30="3 ",Hoja1!$B$130,IF(H30="4 ",Hoja1!$B$131,IF(H30="5 ",Hoja1!$B$132,IF(H30="6 ",Hoja1!$B$133,IF(H30="7 ",Hoja1!$B$134,IF(H30="8 ",Hoja1!$B$135," ")))))))))) ->  | J30: =CONCATENATE(#REF!,"-","TX") ->  | K30: =CONCATENATE(#REF!,"-","RX") ->  | P30: 0 | V30: =IF($R30="","",VLOOKUP($R30,'FO-DRE-01'!$A$7:$U$301,18,FALSE)) ->  | W30: =IF($R30="","",VLOOKUP($R30,'FO-DRE-01'!$A$7:$U$301,16,FALSE)) ->  | X30: =IF($R30="","",VLOOKUP($R30,'FO-DRE-01'!$A$7:$U$301,17,FALSE)) ->  | Y30: =IF($R30="","",VLOOKUP($R30,'FO-DRE-01'!$A$7:$U$301,3,FALSE)) ->  | Z30: =IF($R30="","",VLOOKUP($R30,'FO-DRE-01'!$A$7:$U$301,4,FALSE)) ->  | AA30: =IF($R30="","",VLOOKUP($R30,'FO-DRE-01'!$A$7:$U$301,5,FALSE)) ->  | AB30: =IF($R30="","",VLOOKUP($R30,'FO-DRE-01'!$A$7:$U$301,7,FALSE)) ->  | AC30: =IF($R30="","",VLOOKUP($R30,'FO-DRE-01'!$A$7:$U$301,8,FALSE)) ->  | AD30: =IF($R30="","",VLOOKUP($R30,'FO-DRE-01'!$A$7:$U$301,9,FALSE)) ->  | AE30: =IF($R30="","",VLOOKUP($R30,'FO-DRE-01'!$A$7:$U$301,10,FALSE)) ->  | AF30: =IF($R30="","",VLOOKUP($R30,'FO-DRE-01'!$A$7:$U$301,11,FALSE)) ->  | AG30: =IF($R30="","",VLOOKUP($R30,'FO-DRE-01'!$A$7:$U$301,12,FALSE)) ->  | AH30: =IF($R30="","",VLOOKUP($R30,'FO-DRE-01'!$A$7:$U$301,13,FALSE)) ->  | AI30: =IF($R30="","",VLOOKUP($R30,'FO-DRE-01'!$A$7:$U$301,14,FALSE)) ->  | AJ30: =IF($R30="","",VLOOKUP($R30,'FO-DRE-01'!$A$7:$U$301,15,FALSE)) ->  | AK30: =IF($S30="","",VLOOKUP($S30,'FO-DRE-04'!$A$6:$L$301,2,FALSE)) ->  | AL30: =IF($S30="","",VLOOKUP($S30,'FO-DRE-04'!$A$6:$L$301,3,FALSE)) ->  | AM30: =IF($S30="","",VLOOKUP($S30,'FO-DRE-04'!$A$6:$L$301,4,FALSE)) ->  | AN30: =IF($S30="","",VLOOKUP($S30,'FO-DRE-04'!$A$6:$L$301,6,FALSE)) ->  | AO30: =IF($S30="","",VLOOKUP($S30,'FO-DRE-04'!$A$6:$L$301,11,FALSE)) ->  | AP30: =IF($T30="","",VLOOKUP($T30,'FO-DRE-02'!$A$6:$M$101,2,FALSE)) ->  | AQ30: =IF($T30="","",VLOOKUP($T30,'FO-DRE-02'!$A$6:$M$101,3,FALSE)) ->  | AR30: =IF($T30="","",VLOOKUP($T30,'FO-DRE-02'!$A$6:$M$101,6,FALSE)) ->  | AS30: =IF($T30="","",VLOOKUP($T30,'FO-DRE-02'!$A$6:$M$101,4,FALSE)) ->  | AT30: =IF($T30="","",VLOOKUP($T30,'FO-DRE-02'!$A$6:$M$101,5,FALSE)) ->  | AU30: =IF($T30="","",VLOOKUP($T30,'FO-DRE-02'!$A$6:$M$101,8,FALSE)) ->  | AV30: =IF($T30="","",VLOOKUP($T30,'FO-DRE-02'!$A$6:$M$101,7,FALSE)) ->  | AW30: =IF($T30="","",VLOOKUP($T30,'FO-DRE-02'!$A$6:$M$101,9,FALSE)) ->  | AX30: =IF($T30="","",VLOOKUP($T30,'FO-DRE-02'!$A$6:$M$101,11,FALSE)) ->  | AY30: =IF($T30="","",VLOOKUP($T30,'FO-DRE-02'!$A$6:$M$101,12,FALSE)) ->  | AZ30: =IF($T30="","",VLOOKUP($T30,'FO-DRE-02'!$A$6:$M$101,13,FALSE)) ->  | BB30: 856 | BD30: 21 | BF30: F/D | BG30: F/D
I31: =IF(H31="1a",Hoja1!$B$126,IF(H31="1b",Hoja1!$B$127,IF(H31="2a",Hoja1!$B$128,IF(H31="2b",Hoja1!$B$129,IF(H31="3 ",Hoja1!$B$130,IF(H31="4 ",Hoja1!$B$131,IF(H31="5 ",Hoja1!$B$132,IF(H31="6 ",Hoja1!$B$133,IF(H31="7 ",Hoja1!$B$134,IF(H31="8 ",Hoja1!$B$135," ")))))))))) ->  | J31: =CONCATENATE(#REF!,"-","TX") ->  | K31: =CONCATENATE(#REF!,"-","RX") ->  | P31: 0 | V31: =IF($R31="","",VLOOKUP($R31,'FO-DRE-01'!$A$7:$U$301,18,FALSE)) ->  | W31: =IF($R31="","",VLOOKUP($R31,'FO-DRE-01'!$A$7:$U$301,16,FALSE)) ->  | X31: =IF($R31="","",VLOOKUP($R31,'FO-DRE-01'!$A$7:$U$301,17,FALSE)) ->  | Y31: =IF($R31="","",VLOOKUP($R31,'FO-DRE-01'!$A$7:$U$301,3,FALSE)) ->  | Z31: =IF($R31="","",VLOOKUP($R31,'FO-DRE-01'!$A$7:$U$301,4,FALSE)) ->  | AA31: =IF($R31="","",VLOOKUP($R31,'FO-DRE-01'!$A$7:$U$301,5,FALSE)) ->  | AB31: =IF($R31="","",VLOOKUP($R31,'FO-DRE-01'!$A$7:$U$301,7,FALSE)) ->  | AC31: =IF($R31="","",VLOOKUP($R31,'FO-DRE-01'!$A$7:$U$301,8,FALSE)) ->  | AD31: =IF($R31="","",VLOOKUP($R31,'FO-DRE-01'!$A$7:$U$301,9,FALSE)) ->  | AE31: =IF($R31="","",VLOOKUP($R31,'FO-DRE-01'!$A$7:$U$301,10,FALSE)) ->  | AF31: =IF($R31="","",VLOOKUP($R31,'FO-DRE-01'!$A$7:$U$301,11,FALSE)) ->  | AG31: =IF($R31="","",VLOOKUP($R31,'FO-DRE-01'!$A$7:$U$301,12,FALSE)) ->  | AH31: =IF($R31="","",VLOOKUP($R31,'FO-DRE-01'!$A$7:$U$301,13,FALSE)) ->  | AI31: =IF($R31="","",VLOOKUP($R31,'FO-DRE-01'!$A$7:$U$301,14,FALSE)) ->  | AJ31: =IF($R31="","",VLOOKUP($R31,'FO-DRE-01'!$A$7:$U$301,15,FALSE)) ->  | AK31: =IF($S31="","",VLOOKUP($S31,'FO-DRE-04'!$A$6:$L$301,2,FALSE)) ->  | AL31: =IF($S31="","",VLOOKUP($S31,'FO-DRE-04'!$A$6:$L$301,3,FALSE)) ->  | AM31: =IF($S31="","",VLOOKUP($S31,'FO-DRE-04'!$A$6:$L$301,4,FALSE)) ->  | AN31: =IF($S31="","",VLOOKUP($S31,'FO-DRE-04'!$A$6:$L$301,6,FALSE)) ->  | AO31: =IF($S31="","",VLOOKUP($S31,'FO-DRE-04'!$A$6:$L$301,11,FALSE)) ->  | AP31: =IF($T31="","",VLOOKUP($T31,'FO-DRE-02'!$A$6:$M$101,2,FALSE)) ->  | AQ31: =IF($T31="","",VLOOKUP($T31,'FO-DRE-02'!$A$6:$M$101,3,FALSE)) ->  | AR31: =IF($T31="","",VLOOKUP($T31,'FO-DRE-02'!$A$6:$M$101,6,FALSE)) ->  | AS31: =IF($T31="","",VLOOKUP($T31,'FO-DRE-02'!$A$6:$M$101,4,FALSE)) ->  | AT31: =IF($T31="","",VLOOKUP($T31,'FO-DRE-02'!$A$6:$M$101,5,FALSE)) ->  | AU31: =IF($T31="","",VLOOKUP($T31,'FO-DRE-02'!$A$6:$M$101,8,FALSE)) ->  | AV31: =IF($T31="","",VLOOKUP($T31,'FO-DRE-02'!$A$6:$M$101,7,FALSE)) ->  | AW31: =IF($T31="","",VLOOKUP($T31,'FO-DRE-02'!$A$6:$M$101,9,FALSE)) ->  | AX31: =IF($T31="","",VLOOKUP($T31,'FO-DRE-02'!$A$6:$M$101,11,FALSE)) ->  | AY31: =IF($T31="","",VLOOKUP($T31,'FO-DRE-02'!$A$6:$M$101,12,FALSE)) ->  | AZ31: =IF($T31="","",VLOOKUP($T31,'FO-DRE-02'!$A$6:$M$101,13,FALSE)) ->  | BB31: 856 | BD31: 22 | BF31: F/D | BG31: F/D
I32: =IF(H32="1a",Hoja1!$B$126,IF(H32="1b",Hoja1!$B$127,IF(H32="2a",Hoja1!$B$128,IF(H32="2b",Hoja1!$B$129,IF(H32="3 ",Hoja1!$B$130,IF(H32="4 ",Hoja1!$B$131,IF(H32="5 ",Hoja1!$B$132,IF(H32="6 ",Hoja1!$B$133,IF(H32="7 ",Hoja1!$B$134,IF(H32="8 ",Hoja1!$B$135," ")))))))))) ->  | J32: =CONCATENATE(#REF!,"-","TX") ->  | K32: =CONCATENATE(#REF!,"-","RX") ->  | P32: 0 | V32: =IF($R32="","",VLOOKUP($R32,'FO-DRE-01'!$A$7:$U$301,18,FALSE)) ->  | W32: =IF($R32="","",VLOOKUP($R32,'FO-DRE-01'!$A$7:$U$301,16,FALSE)) ->  | X32: =IF($R32="","",VLOOKUP($R32,'FO-DRE-01'!$A$7:$U$301,17,FALSE)) ->  | Y32: =IF($R32="","",VLOOKUP($R32,'FO-DRE-01'!$A$7:$U$301,3,FALSE)) ->  | Z32: =IF($R32="","",VLOOKUP($R32,'FO-DRE-01'!$A$7:$U$301,4,FALSE)) ->  | AA32: =IF($R32="","",VLOOKUP($R32,'FO-DRE-01'!$A$7:$U$301,5,FALSE)) ->  | AB32: =IF($R32="","",VLOOKUP($R32,'FO-DRE-01'!$A$7:$U$301,7,FALSE)) ->  | AC32: =IF($R32="","",VLOOKUP($R32,'FO-DRE-01'!$A$7:$U$301,8,FALSE)) ->  | AD32: =IF($R32="","",VLOOKUP($R32,'FO-DRE-01'!$A$7:$U$301,9,FALSE)) ->  | AE32: =IF($R32="","",VLOOKUP($R32,'FO-DRE-01'!$A$7:$U$301,10,FALSE)) ->  | AF32: =IF($R32="","",VLOOKUP($R32,'FO-DRE-01'!$A$7:$U$301,11,FALSE)) ->  | AG32: =IF($R32="","",VLOOKUP($R32,'FO-DRE-01'!$A$7:$U$301,12,FALSE)) ->  | AH32: =IF($R32="","",VLOOKUP($R32,'FO-DRE-01'!$A$7:$U$301,13,FALSE)) ->  | AI32: =IF($R32="","",VLOOKUP($R32,'FO-DRE-01'!$A$7:$U$301,14,FALSE)) ->  | AJ32: =IF($R32="","",VLOOKUP($R32,'FO-DRE-01'!$A$7:$U$301,15,FALSE)) ->  | AK32: =IF($S32="","",VLOOKUP($S32,'FO-DRE-04'!$A$6:$L$301,2,FALSE)) ->  | AL32: =IF($S32="","",VLOOKUP($S32,'FO-DRE-04'!$A$6:$L$301,3,FALSE)) ->  | AM32: =IF($S32="","",VLOOKUP($S32,'FO-DRE-04'!$A$6:$L$301,4,FALSE)) ->  | AN32: =IF($S32="","",VLOOKUP($S32,'FO-DRE-04'!$A$6:$L$301,6,FALSE)) ->  | AO32: =IF($S32="","",VLOOKUP($S32,'FO-DRE-04'!$A$6:$L$301,11,FALSE)) ->  | AP32: =IF($T32="","",VLOOKUP($T32,'FO-DRE-02'!$A$6:$M$101,2,FALSE)) ->  | AQ32: =IF($T32="","",VLOOKUP($T32,'FO-DRE-02'!$A$6:$M$101,3,FALSE)) ->  | AR32: =IF($T32="","",VLOOKUP($T32,'FO-DRE-02'!$A$6:$M$101,6,FALSE)) ->  | AS32: =IF($T32="","",VLOOKUP($T32,'FO-DRE-02'!$A$6:$M$101,4,FALSE)) ->  | AT32: =IF($T32="","",VLOOKUP($T32,'FO-DRE-02'!$A$6:$M$101,5,FALSE)) ->  | AU32: =IF($T32="","",VLOOKUP($T32,'FO-DRE-02'!$A$6:$M$101,8,FALSE)) ->  | AV32: =IF($T32="","",VLOOKUP($T32,'FO-DRE-02'!$A$6:$M$101,7,FALSE)) ->  | AW32: =IF($T32="","",VLOOKUP($T32,'FO-DRE-02'!$A$6:$M$101,9,FALSE)) ->  | AX32: =IF($T32="","",VLOOKUP($T32,'FO-DRE-02'!$A$6:$M$101,11,FALSE)) ->  | AY32: =IF($T32="","",VLOOKUP($T32,'FO-DRE-02'!$A$6:$M$101,12,FALSE)) ->  | AZ32: =IF($T32="","",VLOOKUP($T32,'FO-DRE-02'!$A$6:$M$101,13,FALSE)) ->  | BB32: 856 | BD32: 23 | BF32: F/D | BG32: F/D
I33: =IF(H33="1a",Hoja1!$B$126,IF(H33="1b",Hoja1!$B$127,IF(H33="2a",Hoja1!$B$128,IF(H33="2b",Hoja1!$B$129,IF(H33="3 ",Hoja1!$B$130,IF(H33="4 ",Hoja1!$B$131,IF(H33="5 ",Hoja1!$B$132,IF(H33="6 ",Hoja1!$B$133,IF(H33="7 ",Hoja1!$B$134,IF(H33="8 ",Hoja1!$B$135," ")))))))))) ->  | J33: =CONCATENATE(#REF!,"-","TX") ->  | K33: =CONCATENATE(#REF!,"-","RX") ->  | P33: 0 | V33: =IF($R33="","",VLOOKUP($R33,'FO-DRE-01'!$A$7:$U$301,18,FALSE)) ->  | W33: =IF($R33="","",VLOOKUP($R33,'FO-DRE-01'!$A$7:$U$301,16,FALSE)) ->  | X33: =IF($R33="","",VLOOKUP($R33,'FO-DRE-01'!$A$7:$U$301,17,FALSE)) ->  | Y33: =IF($R33="","",VLOOKUP($R33,'FO-DRE-01'!$A$7:$U$301,3,FALSE)) ->  | Z33: =IF($R33="","",VLOOKUP($R33,'FO-DRE-01'!$A$7:$U$301,4,FALSE)) ->  | AA33: =IF($R33="","",VLOOKUP($R33,'FO-DRE-01'!$A$7:$U$301,5,FALSE)) ->  | AB33: =IF($R33="","",VLOOKUP($R33,'FO-DRE-01'!$A$7:$U$301,7,FALSE)) ->  | AC33: =IF($R33="","",VLOOKUP($R33,'FO-DRE-01'!$A$7:$U$301,8,FALSE)) ->  | AD33: =IF($R33="","",VLOOKUP($R33,'FO-DRE-01'!$A$7:$U$301,9,FALSE)) ->  | AE33: =IF($R33="","",VLOOKUP($R33,'FO-DRE-01'!$A$7:$U$301,10,FALSE)) ->  | AF33: =IF($R33="","",VLOOKUP($R33,'FO-DRE-01'!$A$7:$U$301,11,FALSE)) ->  | AG33: =IF($R33="","",VLOOKUP($R33,'FO-DRE-01'!$A$7:$U$301,12,FALSE)) ->  | AH33: =IF($R33="","",VLOOKUP($R33,'FO-DRE-01'!$A$7:$U$301,13,FALSE)) ->  | AI33: =IF($R33="","",VLOOKUP($R33,'FO-DRE-01'!$A$7:$U$301,14,FALSE)) ->  | AJ33: =IF($R33="","",VLOOKUP($R33,'FO-DRE-01'!$A$7:$U$301,15,FALSE)) ->  | AK33: =IF($S33="","",VLOOKUP($S33,'FO-DRE-04'!$A$6:$L$301,2,FALSE)) ->  | AL33: =IF($S33="","",VLOOKUP($S33,'FO-DRE-04'!$A$6:$L$301,3,FALSE)) ->  | AM33: =IF($S33="","",VLOOKUP($S33,'FO-DRE-04'!$A$6:$L$301,4,FALSE)) ->  | AN33: =IF($S33="","",VLOOKUP($S33,'FO-DRE-04'!$A$6:$L$301,6,FALSE)) ->  | AO33: =IF($S33="","",VLOOKUP($S33,'FO-DRE-04'!$A$6:$L$301,11,FALSE)) ->  | AP33: =IF($T33="","",VLOOKUP($T33,'FO-DRE-02'!$A$6:$M$101,2,FALSE)) ->  | AQ33: =IF($T33="","",VLOOKUP($T33,'FO-DRE-02'!$A$6:$M$101,3,FALSE)) ->  | AR33: =IF($T33="","",VLOOKUP($T33,'FO-DRE-02'!$A$6:$M$101,6,FALSE)) ->  | AS33: =IF($T33="","",VLOOKUP($T33,'FO-DRE-02'!$A$6:$M$101,4,FALSE)) ->  | AT33: =IF($T33="","",VLOOKUP($T33,'FO-DRE-02'!$A$6:$M$101,5,FALSE)) ->  | AU33: =IF($T33="","",VLOOKUP($T33,'FO-DRE-02'!$A$6:$M$101,8,FALSE)) ->  | AV33: =IF($T33="","",VLOOKUP($T33,'FO-DRE-02'!$A$6:$M$101,7,FALSE)) ->  | AW33: =IF($T33="","",VLOOKUP($T33,'FO-DRE-02'!$A$6:$M$101,9,FALSE)) ->  | AX33: =IF($T33="","",VLOOKUP($T33,'FO-DRE-02'!$A$6:$M$101,11,FALSE)) ->  | AY33: =IF($T33="","",VLOOKUP($T33,'FO-DRE-02'!$A$6:$M$101,12,FALSE)) ->  | AZ33: =IF($T33="","",VLOOKUP($T33,'FO-DRE-02'!$A$6:$M$101,13,FALSE)) ->  | BB33: 856 | BD33: 24 | BF33: F/D | BG33: F/D
I34: =IF(H34="1a",Hoja1!$B$126,IF(H34="1b",Hoja1!$B$127,IF(H34="2a",Hoja1!$B$128,IF(H34="2b",Hoja1!$B$129,IF(H34="3 ",Hoja1!$B$130,IF(H34="4 ",Hoja1!$B$131,IF(H34="5 ",Hoja1!$B$132,IF(H34="6 ",Hoja1!$B$133,IF(H34="7 ",Hoja1!$B$134,IF(H34="8 ",Hoja1!$B$135," ")))))))))) ->  | J34: =CONCATENATE(#REF!,"-","TX") ->  | K34: =CONCATENATE(#REF!,"-","RX") ->  | P34: 0 | V34: =IF($R34="","",VLOOKUP($R34,'FO-DRE-01'!$A$7:$U$301,18,FALSE)) ->  | W34: =IF($R34="","",VLOOKUP($R34,'FO-DRE-01'!$A$7:$U$301,16,FALSE)) ->  | X34: =IF($R34="","",VLOOKUP($R34,'FO-DRE-01'!$A$7:$U$301,17,FALSE)) ->  | Y34: =IF($R34="","",VLOOKUP($R34,'FO-DRE-01'!$A$7:$U$301,3,FALSE)) ->  | Z34: =IF($R34="","",VLOOKUP($R34,'FO-DRE-01'!$A$7:$U$301,4,FALSE)) ->  | AA34: =IF($R34="","",VLOOKUP($R34,'FO-DRE-01'!$A$7:$U$301,5,FALSE)) ->  | AB34: =IF($R34="","",VLOOKUP($R34,'FO-DRE-01'!$A$7:$U$301,7,FALSE)) ->  | AC34: =IF($R34="","",VLOOKUP($R34,'FO-DRE-01'!$A$7:$U$301,8,FALSE)) ->  | AD34: =IF($R34="","",VLOOKUP($R34,'FO-DRE-01'!$A$7:$U$301,9,FALSE)) ->  | AE34: =IF($R34="","",VLOOKUP($R34,'FO-DRE-01'!$A$7:$U$301,10,FALSE)) ->  | AF34: =IF($R34="","",VLOOKUP($R34,'FO-DRE-01'!$A$7:$U$301,11,FALSE)) ->  | AG34: =IF($R34="","",VLOOKUP($R34,'FO-DRE-01'!$A$7:$U$301,12,FALSE)) ->  | AH34: =IF($R34="","",VLOOKUP($R34,'FO-DRE-01'!$A$7:$U$301,13,FALSE)) ->  | AI34: =IF($R34="","",VLOOKUP($R34,'FO-DRE-01'!$A$7:$U$301,14,FALSE)) ->  | AJ34: =IF($R34="","",VLOOKUP($R34,'FO-DRE-01'!$A$7:$U$301,15,FALSE)) ->  | AK34: =IF($S34="","",VLOOKUP($S34,'FO-DRE-04'!$A$6:$L$301,2,FALSE)) ->  | AL34: =IF($S34="","",VLOOKUP($S34,'FO-DRE-04'!$A$6:$L$301,3,FALSE)) ->  | AM34: =IF($S34="","",VLOOKUP($S34,'FO-DRE-04'!$A$6:$L$301,4,FALSE)) ->  | AN34: =IF($S34="","",VLOOKUP($S34,'FO-DRE-04'!$A$6:$L$301,6,FALSE)) ->  | AO34: =IF($S34="","",VLOOKUP($S34,'FO-DRE-04'!$A$6:$L$301,11,FALSE)) ->  | AP34: =IF($T34="","",VLOOKUP($T34,'FO-DRE-02'!$A$6:$M$101,2,FALSE)) ->  | AQ34: =IF($T34="","",VLOOKUP($T34,'FO-DRE-02'!$A$6:$M$101,3,FALSE)) ->  | AR34: =IF($T34="","",VLOOKUP($T34,'FO-DRE-02'!$A$6:$M$101,6,FALSE)) ->  | AS34: =IF($T34="","",VLOOKUP($T34,'FO-DRE-02'!$A$6:$M$101,4,FALSE)) ->  | AT34: =IF($T34="","",VLOOKUP($T34,'FO-DRE-02'!$A$6:$M$101,5,FALSE)) ->  | AU34: =IF($T34="","",VLOOKUP($T34,'FO-DRE-02'!$A$6:$M$101,8,FALSE)) ->  | AV34: =IF($T34="","",VLOOKUP($T34,'FO-DRE-02'!$A$6:$M$101,7,FALSE)) ->  | AW34: =IF($T34="","",VLOOKUP($T34,'FO-DRE-02'!$A$6:$M$101,9,FALSE)) ->  | AX34: =IF($T34="","",VLOOKUP($T34,'FO-DRE-02'!$A$6:$M$101,11,FALSE)) ->  | AY34: =IF($T34="","",VLOOKUP($T34,'FO-DRE-02'!$A$6:$M$101,12,FALSE)) ->  | AZ34: =IF($T34="","",VLOOKUP($T34,'FO-DRE-02'!$A$6:$M$101,13,FALSE)) ->  | BB34: 856 | BD34: 25 | BF34: F/D | BG34: F/D
I35: =IF(H35="1a",Hoja1!$B$126,IF(H35="1b",Hoja1!$B$127,IF(H35="2a",Hoja1!$B$128,IF(H35="2b",Hoja1!$B$129,IF(H35="3 ",Hoja1!$B$130,IF(H35="4 ",Hoja1!$B$131,IF(H35="5 ",Hoja1!$B$132,IF(H35="6 ",Hoja1!$B$133,IF(H35="7 ",Hoja1!$B$134,IF(H35="8 ",Hoja1!$B$135," ")))))))))) ->  | J35: =CONCATENATE(#REF!,"-","TX") ->  | K35: =CONCATENATE(#REF!,"-","RX") ->  | P35: 0 | V35: =IF($R35="","",VLOOKUP($R35,'FO-DRE-01'!$A$7:$U$301,18,FALSE)) ->  | W35: =IF($R35="","",VLOOKUP($R35,'FO-DRE-01'!$A$7:$U$301,16,FALSE)) ->  | X35: =IF($R35="","",VLOOKUP($R35,'FO-DRE-01'!$A$7:$U$301,17,FALSE)) ->  | Y35: =IF($R35="","",VLOOKUP($R35,'FO-DRE-01'!$A$7:$U$301,3,FALSE)) ->  | Z35: =IF($R35="","",VLOOKUP($R35,'FO-DRE-01'!$A$7:$U$301,4,FALSE)) ->  | AA35: =IF($R35="","",VLOOKUP($R35,'FO-DRE-01'!$A$7:$U$301,5,FALSE)) ->  | AB35: =IF($R35="","",VLOOKUP($R35,'FO-DRE-01'!$A$7:$U$301,7,FALSE)) ->  | AC35: =IF($R35="","",VLOOKUP($R35,'FO-DRE-01'!$A$7:$U$301,8,FALSE)) ->  | AD35: =IF($R35="","",VLOOKUP($R35,'FO-DRE-01'!$A$7:$U$301,9,FALSE)) ->  | AE35: =IF($R35="","",VLOOKUP($R35,'FO-DRE-01'!$A$7:$U$301,10,FALSE)) ->  | AF35: =IF($R35="","",VLOOKUP($R35,'FO-DRE-01'!$A$7:$U$301,11,FALSE)) ->  | AG35: =IF($R35="","",VLOOKUP($R35,'FO-DRE-01'!$A$7:$U$301,12,FALSE)) ->  | AH35: =IF($R35="","",VLOOKUP($R35,'FO-DRE-01'!$A$7:$U$301,13,FALSE)) ->  | AI35: =IF($R35="","",VLOOKUP($R35,'FO-DRE-01'!$A$7:$U$301,14,FALSE)) ->  | AJ35: =IF($R35="","",VLOOKUP($R35,'FO-DRE-01'!$A$7:$U$301,15,FALSE)) ->  | AK35: =IF($S35="","",VLOOKUP($S35,'FO-DRE-04'!$A$6:$L$301,2,FALSE)) ->  | AL35: =IF($S35="","",VLOOKUP($S35,'FO-DRE-04'!$A$6:$L$301,3,FALSE)) ->  | AM35: =IF($S35="","",VLOOKUP($S35,'FO-DRE-04'!$A$6:$L$301,4,FALSE)) ->  | AN35: =IF($S35="","",VLOOKUP($S35,'FO-DRE-04'!$A$6:$L$301,6,FALSE)) ->  | AO35: =IF($S35="","",VLOOKUP($S35,'FO-DRE-04'!$A$6:$L$301,11,FALSE)) ->  | AP35: =IF($T35="","",VLOOKUP($T35,'FO-DRE-02'!$A$6:$M$101,2,FALSE)) ->  | AQ35: =IF($T35="","",VLOOKUP($T35,'FO-DRE-02'!$A$6:$M$101,3,FALSE)) ->  | AR35: =IF($T35="","",VLOOKUP($T35,'FO-DRE-02'!$A$6:$M$101,6,FALSE)) ->  | AS35: =IF($T35="","",VLOOKUP($T35,'FO-DRE-02'!$A$6:$M$101,4,FALSE)) ->  | AT35: =IF($T35="","",VLOOKUP($T35,'FO-DRE-02'!$A$6:$M$101,5,FALSE)) ->  | AU35: =IF($T35="","",VLOOKUP($T35,'FO-DRE-02'!$A$6:$M$101,8,FALSE)) ->  | AV35: =IF($T35="","",VLOOKUP($T35,'FO-DRE-02'!$A$6:$M$101,7,FALSE)) ->  | AW35: =IF($T35="","",VLOOKUP($T35,'FO-DRE-02'!$A$6:$M$101,9,FALSE)) ->  | AX35: =IF($T35="","",VLOOKUP($T35,'FO-DRE-02'!$A$6:$M$101,11,FALSE)) ->  | AY35: =IF($T35="","",VLOOKUP($T35,'FO-DRE-02'!$A$6:$M$101,12,FALSE)) ->  | AZ35: =IF($T35="","",VLOOKUP($T35,'FO-DRE-02'!$A$6:$M$101,13,FALSE)) ->  | BB35: 856 | BD35: 26 | BF35: F/D | BG35: F/D
I36: =IF(H36="1a",Hoja1!$B$126,IF(H36="1b",Hoja1!$B$127,IF(H36="2a",Hoja1!$B$128,IF(H36="2b",Hoja1!$B$129,IF(H36="3 ",Hoja1!$B$130,IF(H36="4 ",Hoja1!$B$131,IF(H36="5 ",Hoja1!$B$132,IF(H36="6 ",Hoja1!$B$133,IF(H36="7 ",Hoja1!$B$134,IF(H36="8 ",Hoja1!$B$135," ")))))))))) ->  | J36: =CONCATENATE(#REF!,"-","TX") ->  | K36: =CONCATENATE(#REF!,"-","RX") ->  | P36: 0 | V36: =IF($R36="","",VLOOKUP($R36,'FO-DRE-01'!$A$7:$U$301,18,FALSE)) ->  | W36: =IF($R36="","",VLOOKUP($R36,'FO-DRE-01'!$A$7:$U$301,16,FALSE)) ->  | X36: =IF($R36="","",VLOOKUP($R36,'FO-DRE-01'!$A$7:$U$301,17,FALSE)) ->  | Y36: =IF($R36="","",VLOOKUP($R36,'FO-DRE-01'!$A$7:$U$301,3,FALSE)) ->  | Z36: =IF($R36="","",VLOOKUP($R36,'FO-DRE-01'!$A$7:$U$301,4,FALSE)) ->  | AA36: =IF($R36="","",VLOOKUP($R36,'FO-DRE-01'!$A$7:$U$301,5,FALSE)) ->  | AB36: =IF($R36="","",VLOOKUP($R36,'FO-DRE-01'!$A$7:$U$301,7,FALSE)) ->  | AC36: =IF($R36="","",VLOOKUP($R36,'FO-DRE-01'!$A$7:$U$301,8,FALSE)) ->  | AD36: =IF($R36="","",VLOOKUP($R36,'FO-DRE-01'!$A$7:$U$301,9,FALSE)) ->  | AE36: =IF($R36="","",VLOOKUP($R36,'FO-DRE-01'!$A$7:$U$301,10,FALSE)) ->  | AF36: =IF($R36="","",VLOOKUP($R36,'FO-DRE-01'!$A$7:$U$301,11,FALSE)) ->  | AG36: =IF($R36="","",VLOOKUP($R36,'FO-DRE-01'!$A$7:$U$301,12,FALSE)) ->  | AH36: =IF($R36="","",VLOOKUP($R36,'FO-DRE-01'!$A$7:$U$301,13,FALSE)) ->  | AI36: =IF($R36="","",VLOOKUP($R36,'FO-DRE-01'!$A$7:$U$301,14,FALSE)) ->  | AJ36: =IF($R36="","",VLOOKUP($R36,'FO-DRE-01'!$A$7:$U$301,15,FALSE)) ->  | AK36: =IF($S36="","",VLOOKUP($S36,'FO-DRE-04'!$A$6:$L$301,2,FALSE)) ->  | AL36: =IF($S36="","",VLOOKUP($S36,'FO-DRE-04'!$A$6:$L$301,3,FALSE)) ->  | AM36: =IF($S36="","",VLOOKUP($S36,'FO-DRE-04'!$A$6:$L$301,4,FALSE)) ->  | AN36: =IF($S36="","",VLOOKUP($S36,'FO-DRE-04'!$A$6:$L$301,6,FALSE)) ->  | AO36: =IF($S36="","",VLOOKUP($S36,'FO-DRE-04'!$A$6:$L$301,11,FALSE)) ->  | AP36: =IF($T36="","",VLOOKUP($T36,'FO-DRE-02'!$A$6:$M$101,2,FALSE)) ->  | AQ36: =IF($T36="","",VLOOKUP($T36,'FO-DRE-02'!$A$6:$M$101,3,FALSE)) ->  | AR36: =IF($T36="","",VLOOKUP($T36,'FO-DRE-02'!$A$6:$M$101,6,FALSE)) ->  | AS36: =IF($T36="","",VLOOKUP($T36,'FO-DRE-02'!$A$6:$M$101,4,FALSE)) ->  | AT36: =IF($T36="","",VLOOKUP($T36,'FO-DRE-02'!$A$6:$M$101,5,FALSE)) ->  | AU36: =IF($T36="","",VLOOKUP($T36,'FO-DRE-02'!$A$6:$M$101,8,FALSE)) ->  | AV36: =IF($T36="","",VLOOKUP($T36,'FO-DRE-02'!$A$6:$M$101,7,FALSE)) ->  | AW36: =IF($T36="","",VLOOKUP($T36,'FO-DRE-02'!$A$6:$M$101,9,FALSE)) ->  | AX36: =IF($T36="","",VLOOKUP($T36,'FO-DRE-02'!$A$6:$M$101,11,FALSE)) ->  | AY36: =IF($T36="","",VLOOKUP($T36,'FO-DRE-02'!$A$6:$M$101,12,FALSE)) ->  | AZ36: =IF($T36="","",VLOOKUP($T36,'FO-DRE-02'!$A$6:$M$101,13,FALSE)) ->  | BB36: 856 | BD36: 27 | BF36: F/D | BG36: F/D
I37: =IF(H37="1a",Hoja1!$B$126,IF(H37="1b",Hoja1!$B$127,IF(H37="2a",Hoja1!$B$128,IF(H37="2b",Hoja1!$B$129,IF(H37="3 ",Hoja1!$B$130,IF(H37="4 ",Hoja1!$B$131,IF(H37="5 ",Hoja1!$B$132,IF(H37="6 ",Hoja1!$B$133,IF(H37="7 ",Hoja1!$B$134,IF(H37="8 ",Hoja1!$B$135," ")))))))))) ->  | J37: =CONCATENATE(#REF!,"-","TX") ->  | K37: =CONCATENATE(#REF!,"-","RX") ->  | P37: 0 | V37: =IF($R37="","",VLOOKUP($R37,'FO-DRE-01'!$A$7:$U$301,18,FALSE)) ->  | W37: =IF($R37="","",VLOOKUP($R37,'FO-DRE-01'!$A$7:$U$301,16,FALSE)) ->  | X37: =IF($R37="","",VLOOKUP($R37,'FO-DRE-01'!$A$7:$U$301,17,FALSE)) ->  | Y37: =IF($R37="","",VLOOKUP($R37,'FO-DRE-01'!$A$7:$U$301,3,FALSE)) ->  | Z37: =IF($R37="","",VLOOKUP($R37,'FO-DRE-01'!$A$7:$U$301,4,FALSE)) ->  | AA37: =IF($R37="","",VLOOKUP($R37,'FO-DRE-01'!$A$7:$U$301,5,FALSE)) ->  | AB37: =IF($R37="","",VLOOKUP($R37,'FO-DRE-01'!$A$7:$U$301,7,FALSE)) ->  | AC37: =IF($R37="","",VLOOKUP($R37,'FO-DRE-01'!$A$7:$U$301,8,FALSE)) ->  | AD37: =IF($R37="","",VLOOKUP($R37,'FO-DRE-01'!$A$7:$U$301,9,FALSE)) ->  | AE37: =IF($R37="","",VLOOKUP($R37,'FO-DRE-01'!$A$7:$U$301,10,FALSE)) ->  | AF37: =IF($R37="","",VLOOKUP($R37,'FO-DRE-01'!$A$7:$U$301,11,FALSE)) ->  | AG37: =IF($R37="","",VLOOKUP($R37,'FO-DRE-01'!$A$7:$U$301,12,FALSE)) ->  | AH37: =IF($R37="","",VLOOKUP($R37,'FO-DRE-01'!$A$7:$U$301,13,FALSE)) ->  | AI37: =IF($R37="","",VLOOKUP($R37,'FO-DRE-01'!$A$7:$U$301,14,FALSE)) ->  | AJ37: =IF($R37="","",VLOOKUP($R37,'FO-DRE-01'!$A$7:$U$301,15,FALSE)) ->  | AK37: =IF($S37="","",VLOOKUP($S37,'FO-DRE-04'!$A$6:$L$301,2,FALSE)) ->  | AL37: =IF($S37="","",VLOOKUP($S37,'FO-DRE-04'!$A$6:$L$301,3,FALSE)) ->  | AM37: =IF($S37="","",VLOOKUP($S37,'FO-DRE-04'!$A$6:$L$301,4,FALSE)) ->  | AN37: =IF($S37="","",VLOOKUP($S37,'FO-DRE-04'!$A$6:$L$301,6,FALSE)) ->  | AO37: =IF($S37="","",VLOOKUP($S37,'FO-DRE-04'!$A$6:$L$301,11,FALSE)) ->  | AP37: =IF($T37="","",VLOOKUP($T37,'FO-DRE-02'!$A$6:$M$101,2,FALSE)) ->  | AQ37: =IF($T37="","",VLOOKUP($T37,'FO-DRE-02'!$A$6:$M$101,3,FALSE)) ->  | AR37: =IF($T37="","",VLOOKUP($T37,'FO-DRE-02'!$A$6:$M$101,6,FALSE)) ->  | AS37: =IF($T37="","",VLOOKUP($T37,'FO-DRE-02'!$A$6:$M$101,4,FALSE)) ->  | AT37: =IF($T37="","",VLOOKUP($T37,'FO-DRE-02'!$A$6:$M$101,5,FALSE)) ->  | AU37: =IF($T37="","",VLOOKUP($T37,'FO-DRE-02'!$A$6:$M$101,8,FALSE)) ->  | AV37: =IF($T37="","",VLOOKUP($T37,'FO-DRE-02'!$A$6:$M$101,7,FALSE)) ->  | AW37: =IF($T37="","",VLOOKUP($T37,'FO-DRE-02'!$A$6:$M$101,9,FALSE)) ->  | AX37: =IF($T37="","",VLOOKUP($T37,'FO-DRE-02'!$A$6:$M$101,11,FALSE)) ->  | AY37: =IF($T37="","",VLOOKUP($T37,'FO-DRE-02'!$A$6:$M$101,12,FALSE)) ->  | AZ37: =IF($T37="","",VLOOKUP($T37,'FO-DRE-02'!$A$6:$M$101,13,FALSE)) ->  | BB37: 856 | BD37: 28 | BF37: F/D | BG37: F/D
I38: =IF(H38="1a",Hoja1!$B$126,IF(H38="1b",Hoja1!$B$127,IF(H38="2a",Hoja1!$B$128,IF(H38="2b",Hoja1!$B$129,IF(H38="3 ",Hoja1!$B$130,IF(H38="4 ",Hoja1!$B$131,IF(H38="5 ",Hoja1!$B$132,IF(H38="6 ",Hoja1!$B$133,IF(H38="7 ",Hoja1!$B$134,IF(H38="8 ",Hoja1!$B$135," ")))))))))) ->  | J38: =CONCATENATE(#REF!,"-","TX") ->  | K38: =CONCATENATE(#REF!,"-","RX") ->  | P38: 0 | V38: =IF($R38="","",VLOOKUP($R38,'FO-DRE-01'!$A$7:$U$301,18,FALSE)) ->  | W38: =IF($R38="","",VLOOKUP($R38,'FO-DRE-01'!$A$7:$U$301,16,FALSE)) ->  | X38: =IF($R38="","",VLOOKUP($R38,'FO-DRE-01'!$A$7:$U$301,17,FALSE)) ->  | Y38: =IF($R38="","",VLOOKUP($R38,'FO-DRE-01'!$A$7:$U$301,3,FALSE)) ->  | Z38: =IF($R38="","",VLOOKUP($R38,'FO-DRE-01'!$A$7:$U$301,4,FALSE)) ->  | AA38: =IF($R38="","",VLOOKUP($R38,'FO-DRE-01'!$A$7:$U$301,5,FALSE)) ->  | AB38: =IF($R38="","",VLOOKUP($R38,'FO-DRE-01'!$A$7:$U$301,7,FALSE)) ->  | AC38: =IF($R38="","",VLOOKUP($R38,'FO-DRE-01'!$A$7:$U$301,8,FALSE)) ->  | AD38: =IF($R38="","",VLOOKUP($R38,'FO-DRE-01'!$A$7:$U$301,9,FALSE)) ->  | AE38: =IF($R38="","",VLOOKUP($R38,'FO-DRE-01'!$A$7:$U$301,10,FALSE)) ->  | AF38: =IF($R38="","",VLOOKUP($R38,'FO-DRE-01'!$A$7:$U$301,11,FALSE)) ->  | AG38: =IF($R38="","",VLOOKUP($R38,'FO-DRE-01'!$A$7:$U$301,12,FALSE)) ->  | AH38: =IF($R38="","",VLOOKUP($R38,'FO-DRE-01'!$A$7:$U$301,13,FALSE)) ->  | AI38: =IF($R38="","",VLOOKUP($R38,'FO-DRE-01'!$A$7:$U$301,14,FALSE)) ->  | AJ38: =IF($R38="","",VLOOKUP($R38,'FO-DRE-01'!$A$7:$U$301,15,FALSE)) ->  | AK38: =IF($S38="","",VLOOKUP($S38,'FO-DRE-04'!$A$6:$L$301,2,FALSE)) ->  | AL38: =IF($S38="","",VLOOKUP($S38,'FO-DRE-04'!$A$6:$L$301,3,FALSE)) ->  | AM38: =IF($S38="","",VLOOKUP($S38,'FO-DRE-04'!$A$6:$L$301,4,FALSE)) ->  | AN38: =IF($S38="","",VLOOKUP($S38,'FO-DRE-04'!$A$6:$L$301,6,FALSE)) ->  | AO38: =IF($S38="","",VLOOKUP($S38,'FO-DRE-04'!$A$6:$L$301,11,FALSE)) ->  | AP38: =IF($T38="","",VLOOKUP($T38,'FO-DRE-02'!$A$6:$M$101,2,FALSE)) ->  | AQ38: =IF($T38="","",VLOOKUP($T38,'FO-DRE-02'!$A$6:$M$101,3,FALSE)) ->  | AR38: =IF($T38="","",VLOOKUP($T38,'FO-DRE-02'!$A$6:$M$101,6,FALSE)) ->  | AS38: =IF($T38="","",VLOOKUP($T38,'FO-DRE-02'!$A$6:$M$101,4,FALSE)) ->  | AT38: =IF($T38="","",VLOOKUP($T38,'FO-DRE-02'!$A$6:$M$101,5,FALSE)) ->  | AU38: =IF($T38="","",VLOOKUP($T38,'FO-DRE-02'!$A$6:$M$101,8,FALSE)) ->  | AV38: =IF($T38="","",VLOOKUP($T38,'FO-DRE-02'!$A$6:$M$101,7,FALSE)) ->  | AW38: =IF($T38="","",VLOOKUP($T38,'FO-DRE-02'!$A$6:$M$101,9,FALSE)) ->  | AX38: =IF($T38="","",VLOOKUP($T38,'FO-DRE-02'!$A$6:$M$101,11,FALSE)) ->  | AY38: =IF($T38="","",VLOOKUP($T38,'FO-DRE-02'!$A$6:$M$101,12,FALSE)) ->  | AZ38: =IF($T38="","",VLOOKUP($T38,'FO-DRE-02'!$A$6:$M$101,13,FALSE)) ->  | BB38: 856 | BD38: 29 | BF38: F/D | BG38: F/D
I39: =IF(H39="1a",Hoja1!$B$126,IF(H39="1b",Hoja1!$B$127,IF(H39="2a",Hoja1!$B$128,IF(H39="2b",Hoja1!$B$129,IF(H39="3 ",Hoja1!$B$130,IF(H39="4 ",Hoja1!$B$131,IF(H39="5 ",Hoja1!$B$132,IF(H39="6 ",Hoja1!$B$133,IF(H39="7 ",Hoja1!$B$134,IF(H39="8 ",Hoja1!$B$135," ")))))))))) ->  | P39: 0 | V39: =IF($R39="","",VLOOKUP($R39,'FO-DRE-01'!$A$7:$U$301,18,FALSE)) ->  | W39: =IF($R39="","",VLOOKUP($R39,'FO-DRE-01'!$A$7:$U$301,16,FALSE)) ->  | X39: =IF($R39="","",VLOOKUP($R39,'FO-DRE-01'!$A$7:$U$301,17,FALSE)) ->  | Y39: =IF($R39="","",VLOOKUP($R39,'FO-DRE-01'!$A$7:$U$301,3,FALSE)) ->  | Z39: =IF($R39="","",VLOOKUP($R39,'FO-DRE-01'!$A$7:$U$301,4,FALSE)) ->  | AA39: =IF($R39="","",VLOOKUP($R39,'FO-DRE-01'!$A$7:$U$301,5,FALSE)) ->  | AB39: =IF($R39="","",VLOOKUP($R39,'FO-DRE-01'!$A$7:$U$301,7,FALSE)) ->  | AC39: =IF($R39="","",VLOOKUP($R39,'FO-DRE-01'!$A$7:$U$301,8,FALSE)) ->  | AD39: =IF($R39="","",VLOOKUP($R39,'FO-DRE-01'!$A$7:$U$301,9,FALSE)) ->  | AE39: =IF($R39="","",VLOOKUP($R39,'FO-DRE-01'!$A$7:$U$301,10,FALSE)) ->  | AF39: =IF($R39="","",VLOOKUP($R39,'FO-DRE-01'!$A$7:$U$301,11,FALSE)) ->  | AG39: =IF($R39="","",VLOOKUP($R39,'FO-DRE-01'!$A$7:$U$301,12,FALSE)) ->  | AH39: =IF($R39="","",VLOOKUP($R39,'FO-DRE-01'!$A$7:$U$301,13,FALSE)) ->  | AI39: =IF($R39="","",VLOOKUP($R39,'FO-DRE-01'!$A$7:$U$301,14,FALSE)) ->  | AJ39: =IF($R39="","",VLOOKUP($R39,'FO-DRE-01'!$A$7:$U$301,15,FALSE)) ->  | AK39: =IF($S39="","",VLOOKUP($S39,'FO-DRE-04'!$A$6:$L$301,2,FALSE)) ->  | AL39: =IF($S39="","",VLOOKUP($S39,'FO-DRE-04'!$A$6:$L$301,3,FALSE)) ->  | AM39: =IF($S39="","",VLOOKUP($S39,'FO-DRE-04'!$A$6:$L$301,4,FALSE)) ->  | AN39: =IF($S39="","",VLOOKUP($S39,'FO-DRE-04'!$A$6:$L$301,6,FALSE)) ->  | AO39: =IF($S39="","",VLOOKUP($S39,'FO-DRE-04'!$A$6:$L$301,11,FALSE)) ->  | AP39: =IF($T39="","",VLOOKUP($T39,'FO-DRE-02'!$A$6:$M$101,2,FALSE)) ->  | AQ39: =IF($T39="","",VLOOKUP($T39,'FO-DRE-02'!$A$6:$M$101,3,FALSE)) ->  | AR39: =IF($T39="","",VLOOKUP($T39,'FO-DRE-02'!$A$6:$M$101,6,FALSE)) ->  | AS39: =IF($T39="","",VLOOKUP($T39,'FO-DRE-02'!$A$6:$M$101,4,FALSE)) ->  | AT39: =IF($T39="","",VLOOKUP($T39,'FO-DRE-02'!$A$6:$M$101,5,FALSE)) ->  | AU39: =IF($T39="","",VLOOKUP($T39,'FO-DRE-02'!$A$6:$M$101,8,FALSE)) ->  | AV39: =IF($T39="","",VLOOKUP($T39,'FO-DRE-02'!$A$6:$M$101,7,FALSE)) ->  | AW39: =IF($T39="","",VLOOKUP($T39,'FO-DRE-02'!$A$6:$M$101,9,FALSE)) ->  | AX39: =IF($T39="","",VLOOKUP($T39,'FO-DRE-02'!$A$6:$M$101,11,FALSE)) ->  | AY39: =IF($T39="","",VLOOKUP($T39,'FO-DRE-02'!$A$6:$M$101,12,FALSE)) ->  | AZ39: =IF($T39="","",VLOOKUP($T39,'FO-DRE-02'!$A$6:$M$101,13,FALSE)) ->  | BB39: 856 | BD39: 30 | BF39: F/D | BG39: F/D
I40: =IF(H40="1a",Hoja1!$B$126,IF(H40="1b",Hoja1!$B$127,IF(H40="2a",Hoja1!$B$128,IF(H40="2b",Hoja1!$B$129,IF(H40="3 ",Hoja1!$B$130,IF(H40="4 ",Hoja1!$B$131,IF(H40="5 ",Hoja1!$B$132,IF(H40="6 ",Hoja1!$B$133,IF(H40="7 ",Hoja1!$B$134,IF(H40="8 ",Hoja1!$B$135," ")))))))))) ->  | J40: =CONCATENATE(#REF!,"-","TX") ->  | K40: =CONCATENATE(#REF!,"-","RX") ->  | P40: 0 | V40: =IF($R40="","",VLOOKUP($R40,'FO-DRE-01'!$A$7:$U$301,18,FALSE)) ->  | W40: =IF($R40="","",VLOOKUP($R40,'FO-DRE-01'!$A$7:$U$301,16,FALSE)) ->  | X40: =IF($R40="","",VLOOKUP($R40,'FO-DRE-01'!$A$7:$U$301,17,FALSE)) ->  | Y40: =IF($R40="","",VLOOKUP($R40,'FO-DRE-01'!$A$7:$U$301,3,FALSE)) ->  | Z40: =IF($R40="","",VLOOKUP($R40,'FO-DRE-01'!$A$7:$U$301,4,FALSE)) ->  | AA40: =IF($R40="","",VLOOKUP($R40,'FO-DRE-01'!$A$7:$U$301,5,FALSE)) ->  | AB40: =IF($R40="","",VLOOKUP($R40,'FO-DRE-01'!$A$7:$U$301,7,FALSE)) ->  | AC40: =IF($R40="","",VLOOKUP($R40,'FO-DRE-01'!$A$7:$U$301,8,FALSE)) ->  | AD40: =IF($R40="","",VLOOKUP($R40,'FO-DRE-01'!$A$7:$U$301,9,FALSE)) ->  | AE40: =IF($R40="","",VLOOKUP($R40,'FO-DRE-01'!$A$7:$U$301,10,FALSE)) ->  | AF40: =IF($R40="","",VLOOKUP($R40,'FO-DRE-01'!$A$7:$U$301,11,FALSE)) ->  | AG40: =IF($R40="","",VLOOKUP($R40,'FO-DRE-01'!$A$7:$U$301,12,FALSE)) ->  | AH40: =IF($R40="","",VLOOKUP($R40,'FO-DRE-01'!$A$7:$U$301,13,FALSE)) ->  | AI40: =IF($R40="","",VLOOKUP($R40,'FO-DRE-01'!$A$7:$U$301,14,FALSE)) ->  | AJ40: =IF($R40="","",VLOOKUP($R40,'FO-DRE-01'!$A$7:$U$301,15,FALSE)) ->  | AK40: =IF($S40="","",VLOOKUP($S40,'FO-DRE-04'!$A$6:$L$301,2,FALSE)) ->  | AL40: =IF($S40="","",VLOOKUP($S40,'FO-DRE-04'!$A$6:$L$301,3,FALSE)) ->  | AM40: =IF($S40="","",VLOOKUP($S40,'FO-DRE-04'!$A$6:$L$301,4,FALSE)) ->  | AN40: =IF($S40="","",VLOOKUP($S40,'FO-DRE-04'!$A$6:$L$301,6,FALSE)) ->  | AO40: =IF($S40="","",VLOOKUP($S40,'FO-DRE-04'!$A$6:$L$301,11,FALSE)) ->  | AP40: =IF($T40="","",VLOOKUP($T40,'FO-DRE-02'!$A$6:$M$101,2,FALSE)) ->  | AQ40: =IF($T40="","",VLOOKUP($T40,'FO-DRE-02'!$A$6:$M$101,3,FALSE)) ->  | AR40: =IF($T40="","",VLOOKUP($T40,'FO-DRE-02'!$A$6:$M$101,6,FALSE)) ->  | AS40: =IF($T40="","",VLOOKUP($T40,'FO-DRE-02'!$A$6:$M$101,4,FALSE)) ->  | AT40: =IF($T40="","",VLOOKUP($T40,'FO-DRE-02'!$A$6:$M$101,5,FALSE)) ->  | AU40: =IF($T40="","",VLOOKUP($T40,'FO-DRE-02'!$A$6:$M$101,8,FALSE)) ->  | AV40: =IF($T40="","",VLOOKUP($T40,'FO-DRE-02'!$A$6:$M$101,7,FALSE)) ->  | AW40: =IF($T40="","",VLOOKUP($T40,'FO-DRE-02'!$A$6:$M$101,9,FALSE)) ->  | AX40: =IF($T40="","",VLOOKUP($T40,'FO-DRE-02'!$A$6:$M$101,11,FALSE)) ->  | AY40: =IF($T40="","",VLOOKUP($T40,'FO-DRE-02'!$A$6:$M$101,12,FALSE)) ->  | AZ40: =IF($T40="","",VLOOKUP($T40,'FO-DRE-02'!$A$6:$M$101,13,FALSE)) ->  | BB40: 856 | BD40: 31 | BF40: F/D | BG40: F/D
I41: =IF(H41="1a",Hoja1!$B$126,IF(H41="1b",Hoja1!$B$127,IF(H41="2a",Hoja1!$B$128,IF(H41="2b",Hoja1!$B$129,IF(H41="3 ",Hoja1!$B$130,IF(H41="4 ",Hoja1!$B$131,IF(H41="5 ",Hoja1!$B$132,IF(H41="6 ",Hoja1!$B$133,IF(H41="7 ",Hoja1!$B$134,IF(H41="8 ",Hoja1!$B$135," ")))))))))) ->  | J41: =CONCATENATE(#REF!,"-","TX") ->  | K41: =CONCATENATE(#REF!,"-","RX") ->  | P41: 0 | V41: =IF($R41="","",VLOOKUP($R41,'FO-DRE-01'!$A$7:$U$301,18,FALSE)) ->  | W41: =IF($R41="","",VLOOKUP($R41,'FO-DRE-01'!$A$7:$U$301,16,FALSE)) ->  | X41: =IF($R41="","",VLOOKUP($R41,'FO-DRE-01'!$A$7:$U$301,17,FALSE)) ->  | Y41: =IF($R41="","",VLOOKUP($R41,'FO-DRE-01'!$A$7:$U$301,3,FALSE)) ->  | Z41: =IF($R41="","",VLOOKUP($R41,'FO-DRE-01'!$A$7:$U$301,4,FALSE)) ->  | AA41: =IF($R41="","",VLOOKUP($R41,'FO-DRE-01'!$A$7:$U$301,5,FALSE)) ->  | AB41: =IF($R41="","",VLOOKUP($R41,'FO-DRE-01'!$A$7:$U$301,7,FALSE)) ->  | AC41: =IF($R41="","",VLOOKUP($R41,'FO-DRE-01'!$A$7:$U$301,8,FALSE)) ->  | AD41: =IF($R41="","",VLOOKUP($R41,'FO-DRE-01'!$A$7:$U$301,9,FALSE)) ->  | AE41: =IF($R41="","",VLOOKUP($R41,'FO-DRE-01'!$A$7:$U$301,10,FALSE)) ->  | AF41: =IF($R41="","",VLOOKUP($R41,'FO-DRE-01'!$A$7:$U$301,11,FALSE)) ->  | AG41: =IF($R41="","",VLOOKUP($R41,'FO-DRE-01'!$A$7:$U$301,12,FALSE)) ->  | AH41: =IF($R41="","",VLOOKUP($R41,'FO-DRE-01'!$A$7:$U$301,13,FALSE)) ->  | AI41: =IF($R41="","",VLOOKUP($R41,'FO-DRE-01'!$A$7:$U$301,14,FALSE)) ->  | AJ41: =IF($R41="","",VLOOKUP($R41,'FO-DRE-01'!$A$7:$U$301,15,FALSE)) ->  | AK41: =IF($S41="","",VLOOKUP($S41,'FO-DRE-04'!$A$6:$L$301,2,FALSE)) ->  | AL41: =IF($S41="","",VLOOKUP($S41,'FO-DRE-04'!$A$6:$L$301,3,FALSE)) ->  | AM41: =IF($S41="","",VLOOKUP($S41,'FO-DRE-04'!$A$6:$L$301,4,FALSE)) ->  | AN41: =IF($S41="","",VLOOKUP($S41,'FO-DRE-04'!$A$6:$L$301,6,FALSE)) ->  | AO41: =IF($S41="","",VLOOKUP($S41,'FO-DRE-04'!$A$6:$L$301,11,FALSE)) ->  | AP41: =IF($T41="","",VLOOKUP($T41,'FO-DRE-02'!$A$6:$M$101,2,FALSE)) ->  | AQ41: =IF($T41="","",VLOOKUP($T41,'FO-DRE-02'!$A$6:$M$101,3,FALSE)) ->  | AR41: =IF($T41="","",VLOOKUP($T41,'FO-DRE-02'!$A$6:$M$101,6,FALSE)) ->  | AS41: =IF($T41="","",VLOOKUP($T41,'FO-DRE-02'!$A$6:$M$101,4,FALSE)) ->  | AT41: =IF($T41="","",VLOOKUP($T41,'FO-DRE-02'!$A$6:$M$101,5,FALSE)) ->  | AU41: =IF($T41="","",VLOOKUP($T41,'FO-DRE-02'!$A$6:$M$101,8,FALSE)) ->  | AV41: =IF($T41="","",VLOOKUP($T41,'FO-DRE-02'!$A$6:$M$101,7,FALSE)) ->  | AW41: =IF($T41="","",VLOOKUP($T41,'FO-DRE-02'!$A$6:$M$101,9,FALSE)) ->  | AX41: =IF($T41="","",VLOOKUP($T41,'FO-DRE-02'!$A$6:$M$101,11,FALSE)) ->  | AY41: =IF($T41="","",VLOOKUP($T41,'FO-DRE-02'!$A$6:$M$101,12,FALSE)) ->  | AZ41: =IF($T41="","",VLOOKUP($T41,'FO-DRE-02'!$A$6:$M$101,13,FALSE)) ->  | BB41: 856 | BD41: 32 | BF41: F/D | BG41: F/D
I42: =IF(H42="1a",Hoja1!$B$126,IF(H42="1b",Hoja1!$B$127,IF(H42="2a",Hoja1!$B$128,IF(H42="2b",Hoja1!$B$129,IF(H42="3 ",Hoja1!$B$130,IF(H42="4 ",Hoja1!$B$131,IF(H42="5 ",Hoja1!$B$132,IF(H42="6 ",Hoja1!$B$133,IF(H42="7 ",Hoja1!$B$134,IF(H42="8 ",Hoja1!$B$135," ")))))))))) ->  | J42: =CONCATENATE(#REF!,"-","TX") ->  | K42: =CONCATENATE(#REF!,"-","RX") ->  | P42: 0 | V42: =IF($R42="","",VLOOKUP($R42,'FO-DRE-01'!$A$7:$U$301,18,FALSE)) ->  | W42: =IF($R42="","",VLOOKUP($R42,'FO-DRE-01'!$A$7:$U$301,16,FALSE)) ->  | X42: =IF($R42="","",VLOOKUP($R42,'FO-DRE-01'!$A$7:$U$301,17,FALSE)) ->  | Y42: =IF($R42="","",VLOOKUP($R42,'FO-DRE-01'!$A$7:$U$301,3,FALSE)) ->  | Z42: =IF($R42="","",VLOOKUP($R42,'FO-DRE-01'!$A$7:$U$301,4,FALSE)) ->  | AA42: =IF($R42="","",VLOOKUP($R42,'FO-DRE-01'!$A$7:$U$301,5,FALSE)) ->  | AB42: =IF($R42="","",VLOOKUP($R42,'FO-DRE-01'!$A$7:$U$301,7,FALSE)) ->  | AC42: =IF($R42="","",VLOOKUP($R42,'FO-DRE-01'!$A$7:$U$301,8,FALSE)) ->  | AD42: =IF($R42="","",VLOOKUP($R42,'FO-DRE-01'!$A$7:$U$301,9,FALSE)) ->  | AE42: =IF($R42="","",VLOOKUP($R42,'FO-DRE-01'!$A$7:$U$301,10,FALSE)) ->  | AF42: =IF($R42="","",VLOOKUP($R42,'FO-DRE-01'!$A$7:$U$301,11,FALSE)) ->  | AG42: =IF($R42="","",VLOOKUP($R42,'FO-DRE-01'!$A$7:$U$301,12,FALSE)) ->  | AH42: =IF($R42="","",VLOOKUP($R42,'FO-DRE-01'!$A$7:$U$301,13,FALSE)) ->  | AI42: =IF($R42="","",VLOOKUP($R42,'FO-DRE-01'!$A$7:$U$301,14,FALSE)) ->  | AJ42: =IF($R42="","",VLOOKUP($R42,'FO-DRE-01'!$A$7:$U$301,15,FALSE)) ->  | AK42: =IF($S42="","",VLOOKUP($S42,'FO-DRE-04'!$A$6:$L$301,2,FALSE)) ->  | AL42: =IF($S42="","",VLOOKUP($S42,'FO-DRE-04'!$A$6:$L$301,3,FALSE)) ->  | AM42: =IF($S42="","",VLOOKUP($S42,'FO-DRE-04'!$A$6:$L$301,4,FALSE)) ->  | AN42: =IF($S42="","",VLOOKUP($S42,'FO-DRE-04'!$A$6:$L$301,6,FALSE)) ->  | AO42: =IF($S42="","",VLOOKUP($S42,'FO-DRE-04'!$A$6:$L$301,11,FALSE)) ->  | AP42: =IF($T42="","",VLOOKUP($T42,'FO-DRE-02'!$A$6:$M$101,2,FALSE)) ->  | AQ42: =IF($T42="","",VLOOKUP($T42,'FO-DRE-02'!$A$6:$M$101,3,FALSE)) ->  | AR42: =IF($T42="","",VLOOKUP($T42,'FO-DRE-02'!$A$6:$M$101,6,FALSE)) ->  | AS42: =IF($T42="","",VLOOKUP($T42,'FO-DRE-02'!$A$6:$M$101,4,FALSE)) ->  | AT42: =IF($T42="","",VLOOKUP($T42,'FO-DRE-02'!$A$6:$M$101,5,FALSE)) ->  | AU42: =IF($T42="","",VLOOKUP($T42,'FO-DRE-02'!$A$6:$M$101,8,FALSE)) ->  | AV42: =IF($T42="","",VLOOKUP($T42,'FO-DRE-02'!$A$6:$M$101,7,FALSE)) ->  | AW42: =IF($T42="","",VLOOKUP($T42,'FO-DRE-02'!$A$6:$M$101,9,FALSE)) ->  | AX42: =IF($T42="","",VLOOKUP($T42,'FO-DRE-02'!$A$6:$M$101,11,FALSE)) ->  | AY42: =IF($T42="","",VLOOKUP($T42,'FO-DRE-02'!$A$6:$M$101,12,FALSE)) ->  | AZ42: =IF($T42="","",VLOOKUP($T42,'FO-DRE-02'!$A$6:$M$101,13,FALSE)) ->  | BB42: =IF(C42="811-824 / 856-869",869,856) -> 856 | BD42: 33 | BF42: F/D | BG42: F/D
I43: =IF(H43="1a",Hoja1!$B$126,IF(H43="1b",Hoja1!$B$127,IF(H43="2a",Hoja1!$B$128,IF(H43="2b",Hoja1!$B$129,IF(H43="3 ",Hoja1!$B$130,IF(H43="4 ",Hoja1!$B$131,IF(H43="5 ",Hoja1!$B$132,IF(H43="6 ",Hoja1!$B$133,IF(H43="7 ",Hoja1!$B$134,IF(H43="8 ",Hoja1!$B$135," ")))))))))) ->  | J43: =CONCATENATE(#REF!,"-","TX") ->  | K43: =CONCATENATE(#REF!,"-","RX") ->  | P43: 0 | V43: =IF($R43="","",VLOOKUP($R43,'FO-DRE-01'!$A$7:$U$301,18,FALSE)) ->  | W43: =IF($R43="","",VLOOKUP($R43,'FO-DRE-01'!$A$7:$U$301,16,FALSE)) ->  | X43: =IF($R43="","",VLOOKUP($R43,'FO-DRE-01'!$A$7:$U$301,17,FALSE)) ->  | Y43: =IF($R43="","",VLOOKUP($R43,'FO-DRE-01'!$A$7:$U$301,3,FALSE)) ->  | Z43: =IF($R43="","",VLOOKUP($R43,'FO-DRE-01'!$A$7:$U$301,4,FALSE)) ->  | AA43: =IF($R43="","",VLOOKUP($R43,'FO-DRE-01'!$A$7:$U$301,5,FALSE)) ->  | AB43: =IF($R43="","",VLOOKUP($R43,'FO-DRE-01'!$A$7:$U$301,7,FALSE)) ->  | AC43: =IF($R43="","",VLOOKUP($R43,'FO-DRE-01'!$A$7:$U$301,8,FALSE)) ->  | AD43: =IF($R43="","",VLOOKUP($R43,'FO-DRE-01'!$A$7:$U$301,9,FALSE)) ->  | AE43: =IF($R43="","",VLOOKUP($R43,'FO-DRE-01'!$A$7:$U$301,10,FALSE)) ->  | AF43: =IF($R43="","",VLOOKUP($R43,'FO-DRE-01'!$A$7:$U$301,11,FALSE)) ->  | AG43: =IF($R43="","",VLOOKUP($R43,'FO-DRE-01'!$A$7:$U$301,12,FALSE)) ->  | AH43: =IF($R43="","",VLOOKUP($R43,'FO-DRE-01'!$A$7:$U$301,13,FALSE)) ->  | AI43: =IF($R43="","",VLOOKUP($R43,'FO-DRE-01'!$A$7:$U$301,14,FALSE)) ->  | AJ43: =IF($R43="","",VLOOKUP($R43,'FO-DRE-01'!$A$7:$U$301,15,FALSE)) ->  | AK43: =IF($S43="","",VLOOKUP($S43,'FO-DRE-04'!$A$6:$L$301,2,FALSE)) ->  | AL43: =IF($S43="","",VLOOKUP($S43,'FO-DRE-04'!$A$6:$L$301,3,FALSE)) ->  | AM43: =IF($S43="","",VLOOKUP($S43,'FO-DRE-04'!$A$6:$L$301,4,FALSE)) ->  | AN43: =IF($S43="","",VLOOKUP($S43,'FO-DRE-04'!$A$6:$L$301,6,FALSE)) ->  | AO43: =IF($S43="","",VLOOKUP($S43,'FO-DRE-04'!$A$6:$L$301,11,FALSE)) ->  | AP43: =IF($T43="","",VLOOKUP($T43,'FO-DRE-02'!$A$6:$M$101,2,FALSE)) ->  | AQ43: =IF($T43="","",VLOOKUP($T43,'FO-DRE-02'!$A$6:$M$101,3,FALSE)) ->  | AR43: =IF($T43="","",VLOOKUP($T43,'FO-DRE-02'!$A$6:$M$101,6,FALSE)) ->  | AS43: =IF($T43="","",VLOOKUP($T43,'FO-DRE-02'!$A$6:$M$101,4,FALSE)) ->  | AT43: =IF($T43="","",VLOOKUP($T43,'FO-DRE-02'!$A$6:$M$101,5,FALSE)) ->  | AU43: =IF($T43="","",VLOOKUP($T43,'FO-DRE-02'!$A$6:$M$101,8,FALSE)) ->  | AV43: =IF($T43="","",VLOOKUP($T43,'FO-DRE-02'!$A$6:$M$101,7,FALSE)) ->  | AW43: =IF($T43="","",VLOOKUP($T43,'FO-DRE-02'!$A$6:$M$101,9,FALSE)) ->  | AX43: =IF($T43="","",VLOOKUP($T43,'FO-DRE-02'!$A$6:$M$101,11,FALSE)) ->  | AY43: =IF($T43="","",VLOOKUP($T43,'FO-DRE-02'!$A$6:$M$101,12,FALSE)) ->  | AZ43: =IF($T43="","",VLOOKUP($T43,'FO-DRE-02'!$A$6:$M$101,13,FALSE)) ->  | BB43: 856 | BD43: 34 | BF43: F/D | BG43: F/D
I44: =IF(H44="1a",Hoja1!$B$126,IF(H44="1b",Hoja1!$B$127,IF(H44="2a",Hoja1!$B$128,IF(H44="2b",Hoja1!$B$129,IF(H44="3 ",Hoja1!$B$130,IF(H44="4 ",Hoja1!$B$131,IF(H44="5 ",Hoja1!$B$132,IF(H44="6 ",Hoja1!$B$133,IF(H44="7 ",Hoja1!$B$134,IF(H44="8 ",Hoja1!$B$135," ")))))))))) ->  | J44: =CONCATENATE(#REF!,"-","TX") ->  | K44: =CONCATENATE(#REF!,"-","RX") ->  | P44: 0 | V44: =IF($R44="","",VLOOKUP($R44,'FO-DRE-01'!$A$7:$U$301,18,FALSE)) ->  | W44: =IF($R44="","",VLOOKUP($R44,'FO-DRE-01'!$A$7:$U$301,16,FALSE)) ->  | X44: =IF($R44="","",VLOOKUP($R44,'FO-DRE-01'!$A$7:$U$301,17,FALSE)) ->  | Y44: =IF($R44="","",VLOOKUP($R44,'FO-DRE-01'!$A$7:$U$301,3,FALSE)) ->  | Z44: =IF($R44="","",VLOOKUP($R44,'FO-DRE-01'!$A$7:$U$301,4,FALSE)) ->  | AA44: =IF($R44="","",VLOOKUP($R44,'FO-DRE-01'!$A$7:$U$301,5,FALSE)) ->  | AB44: =IF($R44="","",VLOOKUP($R44,'FO-DRE-01'!$A$7:$U$301,7,FALSE)) ->  | AC44: =IF($R44="","",VLOOKUP($R44,'FO-DRE-01'!$A$7:$U$301,8,FALSE)) ->  | AD44: =IF($R44="","",VLOOKUP($R44,'FO-DRE-01'!$A$7:$U$301,9,FALSE)) ->  | AE44: =IF($R44="","",VLOOKUP($R44,'FO-DRE-01'!$A$7:$U$301,10,FALSE)) ->  | AF44: =IF($R44="","",VLOOKUP($R44,'FO-DRE-01'!$A$7:$U$301,11,FALSE)) ->  | AG44: =IF($R44="","",VLOOKUP($R44,'FO-DRE-01'!$A$7:$U$301,12,FALSE)) ->  | AH44: =IF($R44="","",VLOOKUP($R44,'FO-DRE-01'!$A$7:$U$301,13,FALSE)) ->  | AI44: =IF($R44="","",VLOOKUP($R44,'FO-DRE-01'!$A$7:$U$301,14,FALSE)) ->  | AJ44: =IF($R44="","",VLOOKUP($R44,'FO-DRE-01'!$A$7:$U$301,15,FALSE)) ->  | AK44: =IF($S44="","",VLOOKUP($S44,'FO-DRE-04'!$A$6:$L$301,2,FALSE)) ->  | AL44: =IF($S44="","",VLOOKUP($S44,'FO-DRE-04'!$A$6:$L$301,3,FALSE)) ->  | AM44: =IF($S44="","",VLOOKUP($S44,'FO-DRE-04'!$A$6:$L$301,4,FALSE)) ->  | AN44: =IF($S44="","",VLOOKUP($S44,'FO-DRE-04'!$A$6:$L$301,6,FALSE)) ->  | AO44: =IF($S44="","",VLOOKUP($S44,'FO-DRE-04'!$A$6:$L$301,11,FALSE)) ->  | AP44: =IF($T44="","",VLOOKUP($T44,'FO-DRE-02'!$A$6:$M$101,2,FALSE)) ->  | AQ44: =IF($T44="","",VLOOKUP($T44,'FO-DRE-02'!$A$6:$M$101,3,FALSE)) ->  | AR44: =IF($T44="","",VLOOKUP($T44,'FO-DRE-02'!$A$6:$M$101,6,FALSE)) ->  | AS44: =IF($T44="","",VLOOKUP($T44,'FO-DRE-02'!$A$6:$M$101,4,FALSE)) ->  | AT44: =IF($T44="","",VLOOKUP($T44,'FO-DRE-02'!$A$6:$M$101,5,FALSE)) ->  | AU44: =IF($T44="","",VLOOKUP($T44,'FO-DRE-02'!$A$6:$M$101,8,FALSE)) ->  | AV44: =IF($T44="","",VLOOKUP($T44,'FO-DRE-02'!$A$6:$M$101,7,FALSE)) ->  | AW44: =IF($T44="","",VLOOKUP($T44,'FO-DRE-02'!$A$6:$M$101,9,FALSE)) ->  | AX44: =IF($T44="","",VLOOKUP($T44,'FO-DRE-02'!$A$6:$M$101,11,FALSE)) ->  | AY44: =IF($T44="","",VLOOKUP($T44,'FO-DRE-02'!$A$6:$M$101,12,FALSE)) ->  | AZ44: =IF($T44="","",VLOOKUP($T44,'FO-DRE-02'!$A$6:$M$101,13,FALSE)) ->  | BB44: 856 | BD44: 35 | BF44: F/D | BG44: F/D
I45: =IF(H45="1a",Hoja1!$B$126,IF(H45="1b",Hoja1!$B$127,IF(H45="2a",Hoja1!$B$128,IF(H45="2b",Hoja1!$B$129,IF(H45="3 ",Hoja1!$B$130,IF(H45="4 ",Hoja1!$B$131,IF(H45="5 ",Hoja1!$B$132,IF(H45="6 ",Hoja1!$B$133,IF(H45="7 ",Hoja1!$B$134,IF(H45="8 ",Hoja1!$B$135," ")))))))))) ->  | J45: =CONCATENATE(#REF!,"-","TX") ->  | K45: =CONCATENATE(#REF!,"-","RX") ->  | P45: 0 | V45: =IF($R45="","",VLOOKUP($R45,'FO-DRE-01'!$A$7:$U$301,18,FALSE)) ->  | W45: =IF($R45="","",VLOOKUP($R45,'FO-DRE-01'!$A$7:$U$301,16,FALSE)) ->  | X45: =IF($R45="","",VLOOKUP($R45,'FO-DRE-01'!$A$7:$U$301,17,FALSE)) ->  | Y45: =IF($R45="","",VLOOKUP($R45,'FO-DRE-01'!$A$7:$U$301,3,FALSE)) ->  | Z45: =IF($R45="","",VLOOKUP($R45,'FO-DRE-01'!$A$7:$U$301,4,FALSE)) ->  | AA45: =IF($R45="","",VLOOKUP($R45,'FO-DRE-01'!$A$7:$U$301,5,FALSE)) ->  | AB45: =IF($R45="","",VLOOKUP($R45,'FO-DRE-01'!$A$7:$U$301,7,FALSE)) ->  | AC45: =IF($R45="","",VLOOKUP($R45,'FO-DRE-01'!$A$7:$U$301,8,FALSE)) ->  | AD45: =IF($R45="","",VLOOKUP($R45,'FO-DRE-01'!$A$7:$U$301,9,FALSE)) ->  | AE45: =IF($R45="","",VLOOKUP($R45,'FO-DRE-01'!$A$7:$U$301,10,FALSE)) ->  | AF45: =IF($R45="","",VLOOKUP($R45,'FO-DRE-01'!$A$7:$U$301,11,FALSE)) ->  | AG45: =IF($R45="","",VLOOKUP($R45,'FO-DRE-01'!$A$7:$U$301,12,FALSE)) ->  | AH45: =IF($R45="","",VLOOKUP($R45,'FO-DRE-01'!$A$7:$U$301,13,FALSE)) ->  | AI45: =IF($R45="","",VLOOKUP($R45,'FO-DRE-01'!$A$7:$U$301,14,FALSE)) ->  | AJ45: =IF($R45="","",VLOOKUP($R45,'FO-DRE-01'!$A$7:$U$301,15,FALSE)) ->  | AK45: =IF($S45="","",VLOOKUP($S45,'FO-DRE-04'!$A$6:$L$301,2,FALSE)) ->  | AL45: =IF($S45="","",VLOOKUP($S45,'FO-DRE-04'!$A$6:$L$301,3,FALSE)) ->  | AM45: =IF($S45="","",VLOOKUP($S45,'FO-DRE-04'!$A$6:$L$301,4,FALSE)) ->  | AN45: =IF($S45="","",VLOOKUP($S45,'FO-DRE-04'!$A$6:$L$301,6,FALSE)) ->  | AO45: =IF($S45="","",VLOOKUP($S45,'FO-DRE-04'!$A$6:$L$301,11,FALSE)) ->  | AP45: =IF($T45="","",VLOOKUP($T45,'FO-DRE-02'!$A$6:$M$101,2,FALSE)) ->  | AQ45: =IF($T45="","",VLOOKUP($T45,'FO-DRE-02'!$A$6:$M$101,3,FALSE)) ->  | AR45: =IF($T45="","",VLOOKUP($T45,'FO-DRE-02'!$A$6:$M$101,6,FALSE)) ->  | AS45: =IF($T45="","",VLOOKUP($T45,'FO-DRE-02'!$A$6:$M$101,4,FALSE)) ->  | AT45: =IF($T45="","",VLOOKUP($T45,'FO-DRE-02'!$A$6:$M$101,5,FALSE)) ->  | AU45: =IF($T45="","",VLOOKUP($T45,'FO-DRE-02'!$A$6:$M$101,8,FALSE)) ->  | AV45: =IF($T45="","",VLOOKUP($T45,'FO-DRE-02'!$A$6:$M$101,7,FALSE)) ->  | AW45: =IF($T45="","",VLOOKUP($T45,'FO-DRE-02'!$A$6:$M$101,9,FALSE)) ->  | AX45: =IF($T45="","",VLOOKUP($T45,'FO-DRE-02'!$A$6:$M$101,11,FALSE)) ->  | AY45: =IF($T45="","",VLOOKUP($T45,'FO-DRE-02'!$A$6:$M$101,12,FALSE)) ->  | AZ45: =IF($T45="","",VLOOKUP($T45,'FO-DRE-02'!$A$6:$M$101,13,FALSE)) ->  | BB45: 856 | BD45: 36 | BF45: F/D | BG45: F/D
I46: =IF(H46="1a",Hoja1!$B$126,IF(H46="1b",Hoja1!$B$127,IF(H46="2a",Hoja1!$B$128,IF(H46="2b",Hoja1!$B$129,IF(H46="3 ",Hoja1!$B$130,IF(H46="4 ",Hoja1!$B$131,IF(H46="5 ",Hoja1!$B$132,IF(H46="6 ",Hoja1!$B$133,IF(H46="7 ",Hoja1!$B$134,IF(H46="8 ",Hoja1!$B$135," ")))))))))) ->  | J46: =CONCATENATE(#REF!,"-","TX") ->  | K46: =CONCATENATE(#REF!,"-","RX") ->  | P46: 0 | V46: =IF($R46="","",VLOOKUP($R46,'FO-DRE-01'!$A$7:$U$301,18,FALSE)) ->  | W46: =IF($R46="","",VLOOKUP($R46,'FO-DRE-01'!$A$7:$U$301,16,FALSE)) ->  | X46: =IF($R46="","",VLOOKUP($R46,'FO-DRE-01'!$A$7:$U$301,17,FALSE)) ->  | Y46: =IF($R46="","",VLOOKUP($R46,'FO-DRE-01'!$A$7:$U$301,3,FALSE)) ->  | Z46: =IF($R46="","",VLOOKUP($R46,'FO-DRE-01'!$A$7:$U$301,4,FALSE)) ->  | AA46: =IF($R46="","",VLOOKUP($R46,'FO-DRE-01'!$A$7:$U$301,5,FALSE)) ->  | AB46: =IF($R46="","",VLOOKUP($R46,'FO-DRE-01'!$A$7:$U$301,7,FALSE)) ->  | AC46: =IF($R46="","",VLOOKUP($R46,'FO-DRE-01'!$A$7:$U$301,8,FALSE)) ->  | AD46: =IF($R46="","",VLOOKUP($R46,'FO-DRE-01'!$A$7:$U$301,9,FALSE)) ->  | AE46: =IF($R46="","",VLOOKUP($R46,'FO-DRE-01'!$A$7:$U$301,10,FALSE)) ->  | AF46: =IF($R46="","",VLOOKUP($R46,'FO-DRE-01'!$A$7:$U$301,11,FALSE)) ->  | AG46: =IF($R46="","",VLOOKUP($R46,'FO-DRE-01'!$A$7:$U$301,12,FALSE)) ->  | AH46: =IF($R46="","",VLOOKUP($R46,'FO-DRE-01'!$A$7:$U$301,13,FALSE)) ->  | AI46: =IF($R46="","",VLOOKUP($R46,'FO-DRE-01'!$A$7:$U$301,14,FALSE)) ->  | AJ46: =IF($R46="","",VLOOKUP($R46,'FO-DRE-01'!$A$7:$U$301,15,FALSE)) ->  | AK46: =IF($S46="","",VLOOKUP($S46,'FO-DRE-04'!$A$6:$L$301,2,FALSE)) ->  | AL46: =IF($S46="","",VLOOKUP($S46,'FO-DRE-04'!$A$6:$L$301,3,FALSE)) ->  | AM46: =IF($S46="","",VLOOKUP($S46,'FO-DRE-04'!$A$6:$L$301,4,FALSE)) ->  | AN46: =IF($S46="","",VLOOKUP($S46,'FO-DRE-04'!$A$6:$L$301,6,FALSE)) ->  | AO46: =IF($S46="","",VLOOKUP($S46,'FO-DRE-04'!$A$6:$L$301,11,FALSE)) ->  | AP46: =IF($T46="","",VLOOKUP($T46,'FO-DRE-02'!$A$6:$M$101,2,FALSE)) ->  | AQ46: =IF($T46="","",VLOOKUP($T46,'FO-DRE-02'!$A$6:$M$101,3,FALSE)) ->  | AR46: =IF($T46="","",VLOOKUP($T46,'FO-DRE-02'!$A$6:$M$101,6,FALSE)) ->  | AS46: =IF($T46="","",VLOOKUP($T46,'FO-DRE-02'!$A$6:$M$101,4,FALSE)) ->  | AT46: =IF($T46="","",VLOOKUP($T46,'FO-DRE-02'!$A$6:$M$101,5,FALSE)) ->  | AU46: =IF($T46="","",VLOOKUP($T46,'FO-DRE-02'!$A$6:$M$101,8,FALSE)) ->  | AV46: =IF($T46="","",VLOOKUP($T46,'FO-DRE-02'!$A$6:$M$101,7,FALSE)) ->  | AW46: =IF($T46="","",VLOOKUP($T46,'FO-DRE-02'!$A$6:$M$101,9,FALSE)) ->  | AX46: =IF($T46="","",VLOOKUP($T46,'FO-DRE-02'!$A$6:$M$101,11,FALSE)) ->  | AY46: =IF($T46="","",VLOOKUP($T46,'FO-DRE-02'!$A$6:$M$101,12,FALSE)) ->  | AZ46: =IF($T46="","",VLOOKUP($T46,'FO-DRE-02'!$A$6:$M$101,13,FALSE)) ->  | BB46: 856 | BD46: 37 | BF46: F/D | BG46: F/D
I47: =IF(H47="1a",Hoja1!$B$126,IF(H47="1b",Hoja1!$B$127,IF(H47="2a",Hoja1!$B$128,IF(H47="2b",Hoja1!$B$129,IF(H47="3 ",Hoja1!$B$130,IF(H47="4 ",Hoja1!$B$131,IF(H47="5 ",Hoja1!$B$132,IF(H47="6 ",Hoja1!$B$133,IF(H47="7 ",Hoja1!$B$134,IF(H47="8 ",Hoja1!$B$135," ")))))))))) ->  | J47: =CONCATENATE(#REF!,"-","TX") ->  | K47: =CONCATENATE(#REF!,"-","RX") ->  | P47: 0 | V47: =IF($R47="","",VLOOKUP($R47,'FO-DRE-01'!$A$7:$U$301,18,FALSE)) ->  | W47: =IF($R47="","",VLOOKUP($R47,'FO-DRE-01'!$A$7:$U$301,16,FALSE)) ->  | X47: =IF($R47="","",VLOOKUP($R47,'FO-DRE-01'!$A$7:$U$301,17,FALSE)) ->  | Y47: =IF($R47="","",VLOOKUP($R47,'FO-DRE-01'!$A$7:$U$301,3,FALSE)) ->  | Z47: =IF($R47="","",VLOOKUP($R47,'FO-DRE-01'!$A$7:$U$301,4,FALSE)) ->  | AA47: =IF($R47="","",VLOOKUP($R47,'FO-DRE-01'!$A$7:$U$301,5,FALSE)) ->  | AB47: =IF($R47="","",VLOOKUP($R47,'FO-DRE-01'!$A$7:$U$301,7,FALSE)) ->  | AC47: =IF($R47="","",VLOOKUP($R47,'FO-DRE-01'!$A$7:$U$301,8,FALSE)) ->  | AD47: =IF($R47="","",VLOOKUP($R47,'FO-DRE-01'!$A$7:$U$301,9,FALSE)) ->  | AE47: =IF($R47="","",VLOOKUP($R47,'FO-DRE-01'!$A$7:$U$301,10,FALSE)) ->  | AF47: =IF($R47="","",VLOOKUP($R47,'FO-DRE-01'!$A$7:$U$301,11,FALSE)) ->  | AG47: =IF($R47="","",VLOOKUP($R47,'FO-DRE-01'!$A$7:$U$301,12,FALSE)) ->  | AH47: =IF($R47="","",VLOOKUP($R47,'FO-DRE-01'!$A$7:$U$301,13,FALSE)) ->  | AI47: =IF($R47="","",VLOOKUP($R47,'FO-DRE-01'!$A$7:$U$301,14,FALSE)) ->  | AJ47: =IF($R47="","",VLOOKUP($R47,'FO-DRE-01'!$A$7:$U$301,15,FALSE)) ->  | AK47: =IF($S47="","",VLOOKUP($S47,'FO-DRE-04'!$A$6:$L$301,2,FALSE)) ->  | AL47: =IF($S47="","",VLOOKUP($S47,'FO-DRE-04'!$A$6:$L$301,3,FALSE)) ->  | AM47: =IF($S47="","",VLOOKUP($S47,'FO-DRE-04'!$A$6:$L$301,4,FALSE)) ->  | AN47: =IF($S47="","",VLOOKUP($S47,'FO-DRE-04'!$A$6:$L$301,6,FALSE)) ->  | AO47: =IF($S47="","",VLOOKUP($S47,'FO-DRE-04'!$A$6:$L$301,11,FALSE)) ->  | AP47: =IF($T47="","",VLOOKUP($T47,'FO-DRE-02'!$A$6:$M$101,2,FALSE)) ->  | AQ47: =IF($T47="","",VLOOKUP($T47,'FO-DRE-02'!$A$6:$M$101,3,FALSE)) ->  | AR47: =IF($T47="","",VLOOKUP($T47,'FO-DRE-02'!$A$6:$M$101,6,FALSE)) ->  | AS47: =IF($T47="","",VLOOKUP($T47,'FO-DRE-02'!$A$6:$M$101,4,FALSE)) ->  | AT47: =IF($T47="","",VLOOKUP($T47,'FO-DRE-02'!$A$6:$M$101,5,FALSE)) ->  | AU47: =IF($T47="","",VLOOKUP($T47,'FO-DRE-02'!$A$6:$M$101,8,FALSE)) ->  | AV47: =IF($T47="","",VLOOKUP($T47,'FO-DRE-02'!$A$6:$M$101,7,FALSE)) ->  | AW47: =IF($T47="","",VLOOKUP($T47,'FO-DRE-02'!$A$6:$M$101,9,FALSE)) ->  | AX47: =IF($T47="","",VLOOKUP($T47,'FO-DRE-02'!$A$6:$M$101,11,FALSE)) ->  | AY47: =IF($T47="","",VLOOKUP($T47,'FO-DRE-02'!$A$6:$M$101,12,FALSE)) ->  | AZ47: =IF($T47="","",VLOOKUP($T47,'FO-DRE-02'!$A$6:$M$101,13,FALSE)) ->  | BB47: 856 | BD47: 38 | BF47: F/D | BG47: F/D
I48: =IF(H48="1a",Hoja1!$B$126,IF(H48="1b",Hoja1!$B$127,IF(H48="2a",Hoja1!$B$128,IF(H48="2b",Hoja1!$B$129,IF(H48="3 ",Hoja1!$B$130,IF(H48="4 ",Hoja1!$B$131,IF(H48="5 ",Hoja1!$B$132,IF(H48="6 ",Hoja1!$B$133,IF(H48="7 ",Hoja1!$B$134,IF(H48="8 ",Hoja1!$B$135," ")))))))))) ->  | J48: =CONCATENATE(#REF!,"-","TX") ->  | K48: =CONCATENATE(#REF!,"-","RX") ->  | P48: 0 | V48: =IF($R48="","",VLOOKUP($R48,'FO-DRE-01'!$A$7:$U$301,18,FALSE)) ->  | W48: =IF($R48="","",VLOOKUP($R48,'FO-DRE-01'!$A$7:$U$301,16,FALSE)) ->  | X48: =IF($R48="","",VLOOKUP($R48,'FO-DRE-01'!$A$7:$U$301,17,FALSE)) ->  | Y48: =IF($R48="","",VLOOKUP($R48,'FO-DRE-01'!$A$7:$U$301,3,FALSE)) ->  | Z48: =IF($R48="","",VLOOKUP($R48,'FO-DRE-01'!$A$7:$U$301,4,FALSE)) ->  | AA48: =IF($R48="","",VLOOKUP($R48,'FO-DRE-01'!$A$7:$U$301,5,FALSE)) ->  | AB48: =IF($R48="","",VLOOKUP($R48,'FO-DRE-01'!$A$7:$U$301,7,FALSE)) ->  | AC48: =IF($R48="","",VLOOKUP($R48,'FO-DRE-01'!$A$7:$U$301,8,FALSE)) ->  | AD48: =IF($R48="","",VLOOKUP($R48,'FO-DRE-01'!$A$7:$U$301,9,FALSE)) ->  | AE48: =IF($R48="","",VLOOKUP($R48,'FO-DRE-01'!$A$7:$U$301,10,FALSE)) ->  | AF48: =IF($R48="","",VLOOKUP($R48,'FO-DRE-01'!$A$7:$U$301,11,FALSE)) ->  | AG48: =IF($R48="","",VLOOKUP($R48,'FO-DRE-01'!$A$7:$U$301,12,FALSE)) ->  | AH48: =IF($R48="","",VLOOKUP($R48,'FO-DRE-01'!$A$7:$U$301,13,FALSE)) ->  | AI48: =IF($R48="","",VLOOKUP($R48,'FO-DRE-01'!$A$7:$U$301,14,FALSE)) ->  | AJ48: =IF($R48="","",VLOOKUP($R48,'FO-DRE-01'!$A$7:$U$301,15,FALSE)) ->  | AK48: =IF($S48="","",VLOOKUP($S48,'FO-DRE-04'!$A$6:$L$301,2,FALSE)) ->  | AL48: =IF($S48="","",VLOOKUP($S48,'FO-DRE-04'!$A$6:$L$301,3,FALSE)) ->  | AM48: =IF($S48="","",VLOOKUP($S48,'FO-DRE-04'!$A$6:$L$301,4,FALSE)) ->  | AN48: =IF($S48="","",VLOOKUP($S48,'FO-DRE-04'!$A$6:$L$301,6,FALSE)) ->  | AO48: =IF($S48="","",VLOOKUP($S48,'FO-DRE-04'!$A$6:$L$301,11,FALSE)) ->  | AP48: =IF($T48="","",VLOOKUP($T48,'FO-DRE-02'!$A$6:$M$101,2,FALSE)) ->  | AQ48: =IF($T48="","",VLOOKUP($T48,'FO-DRE-02'!$A$6:$M$101,3,FALSE)) ->  | AR48: =IF($T48="","",VLOOKUP($T48,'FO-DRE-02'!$A$6:$M$101,6,FALSE)) ->  | AS48: =IF($T48="","",VLOOKUP($T48,'FO-DRE-02'!$A$6:$M$101,4,FALSE)) ->  | AT48: =IF($T48="","",VLOOKUP($T48,'FO-DRE-02'!$A$6:$M$101,5,FALSE)) ->  | AU48: =IF($T48="","",VLOOKUP($T48,'FO-DRE-02'!$A$6:$M$101,8,FALSE)) ->  | AV48: =IF($T48="","",VLOOKUP($T48,'FO-DRE-02'!$A$6:$M$101,7,FALSE)) ->  | AW48: =IF($T48="","",VLOOKUP($T48,'FO-DRE-02'!$A$6:$M$101,9,FALSE)) ->  | AX48: =IF($T48="","",VLOOKUP($T48,'FO-DRE-02'!$A$6:$M$101,11,FALSE)) ->  | AY48: =IF($T48="","",VLOOKUP($T48,'FO-DRE-02'!$A$6:$M$101,12,FALSE)) ->  | AZ48: =IF($T48="","",VLOOKUP($T48,'FO-DRE-02'!$A$6:$M$101,13,FALSE)) ->  | BB48: 856 | BD48: 39 | BF48: F/D | BG48: F/D
I49: =IF(H49="1a",Hoja1!$B$126,IF(H49="1b",Hoja1!$B$127,IF(H49="2a",Hoja1!$B$128,IF(H49="2b",Hoja1!$B$129,IF(H49="3 ",Hoja1!$B$130,IF(H49="4 ",Hoja1!$B$131,IF(H49="5 ",Hoja1!$B$132,IF(H49="6 ",Hoja1!$B$133,IF(H49="7 ",Hoja1!$B$134,IF(H49="8 ",Hoja1!$B$135," ")))))))))) ->  | J49: =CONCATENATE(#REF!,"-","TX") ->  | K49: =CONCATENATE(#REF!,"-","RX") ->  | P49: 0 | V49: =IF($R49="","",VLOOKUP($R49,'FO-DRE-01'!$A$7:$U$301,18,FALSE)) ->  | W49: =IF($R49="","",VLOOKUP($R49,'FO-DRE-01'!$A$7:$U$301,16,FALSE)) ->  | X49: =IF($R49="","",VLOOKUP($R49,'FO-DRE-01'!$A$7:$U$301,17,FALSE)) ->  | Y49: =IF($R49="","",VLOOKUP($R49,'FO-DRE-01'!$A$7:$U$301,3,FALSE)) ->  | Z49: =IF($R49="","",VLOOKUP($R49,'FO-DRE-01'!$A$7:$U$301,4,FALSE)) ->  | AA49: =IF($R49="","",VLOOKUP($R49,'FO-DRE-01'!$A$7:$U$301,5,FALSE)) ->  | AB49: =IF($R49="","",VLOOKUP($R49,'FO-DRE-01'!$A$7:$U$301,7,FALSE)) ->  | AC49: =IF($R49="","",VLOOKUP($R49,'FO-DRE-01'!$A$7:$U$301,8,FALSE)) ->  | AD49: =IF($R49="","",VLOOKUP($R49,'FO-DRE-01'!$A$7:$U$301,9,FALSE)) ->  | AE49: =IF($R49="","",VLOOKUP($R49,'FO-DRE-01'!$A$7:$U$301,10,FALSE)) ->  | AF49: =IF($R49="","",VLOOKUP($R49,'FO-DRE-01'!$A$7:$U$301,11,FALSE)) ->  | AG49: =IF($R49="","",VLOOKUP($R49,'FO-DRE-01'!$A$7:$U$301,12,FALSE)) ->  | AH49: =IF($R49="","",VLOOKUP($R49,'FO-DRE-01'!$A$7:$U$301,13,FALSE)) ->  | AI49: =IF($R49="","",VLOOKUP($R49,'FO-DRE-01'!$A$7:$U$301,14,FALSE)) ->  | AJ49: =IF($R49="","",VLOOKUP($R49,'FO-DRE-01'!$A$7:$U$301,15,FALSE)) ->  | AK49: =IF($S49="","",VLOOKUP($S49,'FO-DRE-04'!$A$6:$L$301,2,FALSE)) ->  | AL49: =IF($S49="","",VLOOKUP($S49,'FO-DRE-04'!$A$6:$L$301,3,FALSE)) ->  | AM49: =IF($S49="","",VLOOKUP($S49,'FO-DRE-04'!$A$6:$L$301,4,FALSE)) ->  | AN49: =IF($S49="","",VLOOKUP($S49,'FO-DRE-04'!$A$6:$L$301,6,FALSE)) ->  | AO49: =IF($S49="","",VLOOKUP($S49,'FO-DRE-04'!$A$6:$L$301,11,FALSE)) ->  | AP49: =IF($T49="","",VLOOKUP($T49,'FO-DRE-02'!$A$6:$M$101,2,FALSE)) ->  | AQ49: =IF($T49="","",VLOOKUP($T49,'FO-DRE-02'!$A$6:$M$101,3,FALSE)) ->  | AR49: =IF($T49="","",VLOOKUP($T49,'FO-DRE-02'!$A$6:$M$101,6,FALSE)) ->  | AS49: =IF($T49="","",VLOOKUP($T49,'FO-DRE-02'!$A$6:$M$101,4,FALSE)) ->  | AT49: =IF($T49="","",VLOOKUP($T49,'FO-DRE-02'!$A$6:$M$101,5,FALSE)) ->  | AU49: =IF($T49="","",VLOOKUP($T49,'FO-DRE-02'!$A$6:$M$101,8,FALSE)) ->  | AV49: =IF($T49="","",VLOOKUP($T49,'FO-DRE-02'!$A$6:$M$101,7,FALSE)) ->  | AW49: =IF($T49="","",VLOOKUP($T49,'FO-DRE-02'!$A$6:$M$101,9,FALSE)) ->  | AX49: =IF($T49="","",VLOOKUP($T49,'FO-DRE-02'!$A$6:$M$101,11,FALSE)) ->  | AY49: =IF($T49="","",VLOOKUP($T49,'FO-DRE-02'!$A$6:$M$101,12,FALSE)) ->  | AZ49: =IF($T49="","",VLOOKUP($T49,'FO-DRE-02'!$A$6:$M$101,13,FALSE)) ->  | BB49: 856 | BD49: 40 | BF49: F/D | BG49: F/D
I50: =IF(H50="1a",Hoja1!$B$126,IF(H50="1b",Hoja1!$B$127,IF(H50="2a",Hoja1!$B$128,IF(H50="2b",Hoja1!$B$129,IF(H50="3 ",Hoja1!$B$130,IF(H50="4 ",Hoja1!$B$131,IF(H50="5 ",Hoja1!$B$132,IF(H50="6 ",Hoja1!$B$133,IF(H50="7 ",Hoja1!$B$134,IF(H50="8 ",Hoja1!$B$135," ")))))))))) ->  | J50: =CONCATENATE(#REF!,"-","TX") ->  | K50: =CONCATENATE(#REF!,"-","RX") ->  | P50: 0 | V50: =IF($R50="","",VLOOKUP($R50,'FO-DRE-01'!$A$7:$U$301,18,FALSE)) ->  | W50: =IF($R50="","",VLOOKUP($R50,'FO-DRE-01'!$A$7:$U$301,16,FALSE)) ->  | X50: =IF($R50="","",VLOOKUP($R50,'FO-DRE-01'!$A$7:$U$301,17,FALSE)) ->  | Y50: =IF($R50="","",VLOOKUP($R50,'FO-DRE-01'!$A$7:$U$301,3,FALSE)) ->  | Z50: =IF($R50="","",VLOOKUP($R50,'FO-DRE-01'!$A$7:$U$301,4,FALSE)) ->  | AA50: =IF($R50="","",VLOOKUP($R50,'FO-DRE-01'!$A$7:$U$301,5,FALSE)) ->  | AB50: =IF($R50="","",VLOOKUP($R50,'FO-DRE-01'!$A$7:$U$301,7,FALSE)) ->  | AC50: =IF($R50="","",VLOOKUP($R50,'FO-DRE-01'!$A$7:$U$301,8,FALSE)) ->  | AD50: =IF($R50="","",VLOOKUP($R50,'FO-DRE-01'!$A$7:$U$301,9,FALSE)) ->  | AE50: =IF($R50="","",VLOOKUP($R50,'FO-DRE-01'!$A$7:$U$301,10,FALSE)) ->  | AF50: =IF($R50="","",VLOOKUP($R50,'FO-DRE-01'!$A$7:$U$301,11,FALSE)) ->  | AG50: =IF($R50="","",VLOOKUP($R50,'FO-DRE-01'!$A$7:$U$301,12,FALSE)) ->  | AH50: =IF($R50="","",VLOOKUP($R50,'FO-DRE-01'!$A$7:$U$301,13,FALSE)) ->  | AI50: =IF($R50="","",VLOOKUP($R50,'FO-DRE-01'!$A$7:$U$301,14,FALSE)) ->  | AJ50: =IF($R50="","",VLOOKUP($R50,'FO-DRE-01'!$A$7:$U$301,15,FALSE)) ->  | AK50: =IF($S50="","",VLOOKUP($S50,'FO-DRE-04'!$A$6:$L$301,2,FALSE)) ->  | AL50: =IF($S50="","",VLOOKUP($S50,'FO-DRE-04'!$A$6:$L$301,3,FALSE)) ->  | AM50: =IF($S50="","",VLOOKUP($S50,'FO-DRE-04'!$A$6:$L$301,4,FALSE)) ->  | AN50: =IF($S50="","",VLOOKUP($S50,'FO-DRE-04'!$A$6:$L$301,6,FALSE)) ->  | AO50: =IF($S50="","",VLOOKUP($S50,'FO-DRE-04'!$A$6:$L$301,11,FALSE)) ->  | AP50: =IF($T50="","",VLOOKUP($T50,'FO-DRE-02'!$A$6:$M$101,2,FALSE)) ->  | AQ50: =IF($T50="","",VLOOKUP($T50,'FO-DRE-02'!$A$6:$M$101,3,FALSE)) ->  | AR50: =IF($T50="","",VLOOKUP($T50,'FO-DRE-02'!$A$6:$M$101,6,FALSE)) ->  | AS50: =IF($T50="","",VLOOKUP($T50,'FO-DRE-02'!$A$6:$M$101,4,FALSE)) ->  | AT50: =IF($T50="","",VLOOKUP($T50,'FO-DRE-02'!$A$6:$M$101,5,FALSE)) ->  | AU50: =IF($T50="","",VLOOKUP($T50,'FO-DRE-02'!$A$6:$M$101,8,FALSE)) ->  | AV50: =IF($T50="","",VLOOKUP($T50,'FO-DRE-02'!$A$6:$M$101,7,FALSE)) ->  | AW50: =IF($T50="","",VLOOKUP($T50,'FO-DRE-02'!$A$6:$M$101,9,FALSE)) ->  | AX50: =IF($T50="","",VLOOKUP($T50,'FO-DRE-02'!$A$6:$M$101,11,FALSE)) ->  | AY50: =IF($T50="","",VLOOKUP($T50,'FO-DRE-02'!$A$6:$M$101,12,FALSE)) ->  | AZ50: =IF($T50="","",VLOOKUP($T50,'FO-DRE-02'!$A$6:$M$101,13,FALSE)) ->  | BB50: 856 | BD50: 41 | BF50: F/D | BG50: F/D
I51: =IF(H51="1a",Hoja1!$B$126,IF(H51="1b",Hoja1!$B$127,IF(H51="2a",Hoja1!$B$128,IF(H51="2b",Hoja1!$B$129,IF(H51="3 ",Hoja1!$B$130,IF(H51="4 ",Hoja1!$B$131,IF(H51="5 ",Hoja1!$B$132,IF(H51="6 ",Hoja1!$B$133,IF(H51="7 ",Hoja1!$B$134,IF(H51="8 ",Hoja1!$B$135," ")))))))))) ->  | J51: =CONCATENATE(#REF!,"-","TX") ->  | K51: =CONCATENATE(#REF!,"-","RX") ->  | P51: 0 | V51: =IF($R51="","",VLOOKUP($R51,'FO-DRE-01'!$A$7:$U$301,18,FALSE)) ->  | W51: =IF($R51="","",VLOOKUP($R51,'FO-DRE-01'!$A$7:$U$301,16,FALSE)) ->  | X51: =IF($R51="","",VLOOKUP($R51,'FO-DRE-01'!$A$7:$U$301,17,FALSE)) ->  | Y51: =IF($R51="","",VLOOKUP($R51,'FO-DRE-01'!$A$7:$U$301,3,FALSE)) ->  | Z51: =IF($R51="","",VLOOKUP($R51,'FO-DRE-01'!$A$7:$U$301,4,FALSE)) ->  | AA51: =IF($R51="","",VLOOKUP($R51,'FO-DRE-01'!$A$7:$U$301,5,FALSE)) ->  | AB51: =IF($R51="","",VLOOKUP($R51,'FO-DRE-01'!$A$7:$U$301,7,FALSE)) ->  | AC51: =IF($R51="","",VLOOKUP($R51,'FO-DRE-01'!$A$7:$U$301,8,FALSE)) ->  | AD51: =IF($R51="","",VLOOKUP($R51,'FO-DRE-01'!$A$7:$U$301,9,FALSE)) ->  | AE51: =IF($R51="","",VLOOKUP($R51,'FO-DRE-01'!$A$7:$U$301,10,FALSE)) ->  | AF51: =IF($R51="","",VLOOKUP($R51,'FO-DRE-01'!$A$7:$U$301,11,FALSE)) ->  | AG51: =IF($R51="","",VLOOKUP($R51,'FO-DRE-01'!$A$7:$U$301,12,FALSE)) ->  | AH51: =IF($R51="","",VLOOKUP($R51,'FO-DRE-01'!$A$7:$U$301,13,FALSE)) ->  | AI51: =IF($R51="","",VLOOKUP($R51,'FO-DRE-01'!$A$7:$U$301,14,FALSE)) ->  | AJ51: =IF($R51="","",VLOOKUP($R51,'FO-DRE-01'!$A$7:$U$301,15,FALSE)) ->  | AK51: =IF($S51="","",VLOOKUP($S51,'FO-DRE-04'!$A$6:$L$301,2,FALSE)) ->  | AL51: =IF($S51="","",VLOOKUP($S51,'FO-DRE-04'!$A$6:$L$301,3,FALSE)) ->  | AM51: =IF($S51="","",VLOOKUP($S51,'FO-DRE-04'!$A$6:$L$301,4,FALSE)) ->  | AN51: =IF($S51="","",VLOOKUP($S51,'FO-DRE-04'!$A$6:$L$301,6,FALSE)) ->  | AO51: =IF($S51="","",VLOOKUP($S51,'FO-DRE-04'!$A$6:$L$301,11,FALSE)) ->  | AP51: =IF($T51="","",VLOOKUP($T51,'FO-DRE-02'!$A$6:$M$101,2,FALSE)) ->  | AQ51: =IF($T51="","",VLOOKUP($T51,'FO-DRE-02'!$A$6:$M$101,3,FALSE)) ->  | AR51: =IF($T51="","",VLOOKUP($T51,'FO-DRE-02'!$A$6:$M$101,6,FALSE)) ->  | AS51: =IF($T51="","",VLOOKUP($T51,'FO-DRE-02'!$A$6:$M$101,4,FALSE)) ->  | AT51: =IF($T51="","",VLOOKUP($T51,'FO-DRE-02'!$A$6:$M$101,5,FALSE)) ->  | AU51: =IF($T51="","",VLOOKUP($T51,'FO-DRE-02'!$A$6:$M$101,8,FALSE)) ->  | AV51: =IF($T51="","",VLOOKUP($T51,'FO-DRE-02'!$A$6:$M$101,7,FALSE)) ->  | AW51: =IF($T51="","",VLOOKUP($T51,'FO-DRE-02'!$A$6:$M$101,9,FALSE)) ->  | AX51: =IF($T51="","",VLOOKUP($T51,'FO-DRE-02'!$A$6:$M$101,11,FALSE)) ->  | AY51: =IF($T51="","",VLOOKUP($T51,'FO-DRE-02'!$A$6:$M$101,12,FALSE)) ->  | AZ51: =IF($T51="","",VLOOKUP($T51,'FO-DRE-02'!$A$6:$M$101,13,FALSE)) ->  | BB51: 856 | BD51: 42 | BF51: F/D | BG51: F/D
I52: =IF(H52="1a",Hoja1!$B$126,IF(H52="1b",Hoja1!$B$127,IF(H52="2a",Hoja1!$B$128,IF(H52="2b",Hoja1!$B$129,IF(H52="3 ",Hoja1!$B$130,IF(H52="4 ",Hoja1!$B$131,IF(H52="5 ",Hoja1!$B$132,IF(H52="6 ",Hoja1!$B$133,IF(H52="7 ",Hoja1!$B$134,IF(H52="8 ",Hoja1!$B$135," ")))))))))) ->  | J52: =CONCATENATE(#REF!,"-","TX") ->  | K52: =CONCATENATE(#REF!,"-","RX") ->  | P52: 0 | V52: =IF($R52="","",VLOOKUP($R52,'FO-DRE-01'!$A$7:$U$301,18,FALSE)) ->  | W52: =IF($R52="","",VLOOKUP($R52,'FO-DRE-01'!$A$7:$U$301,16,FALSE)) ->  | X52: =IF($R52="","",VLOOKUP($R52,'FO-DRE-01'!$A$7:$U$301,17,FALSE)) ->  | Y52: =IF($R52="","",VLOOKUP($R52,'FO-DRE-01'!$A$7:$U$301,3,FALSE)) ->  | Z52: =IF($R52="","",VLOOKUP($R52,'FO-DRE-01'!$A$7:$U$301,4,FALSE)) ->  | AA52: =IF($R52="","",VLOOKUP($R52,'FO-DRE-01'!$A$7:$U$301,5,FALSE)) ->  | AB52: =IF($R52="","",VLOOKUP($R52,'FO-DRE-01'!$A$7:$U$301,7,FALSE)) ->  | AC52: =IF($R52="","",VLOOKUP($R52,'FO-DRE-01'!$A$7:$U$301,8,FALSE)) ->  | AD52: =IF($R52="","",VLOOKUP($R52,'FO-DRE-01'!$A$7:$U$301,9,FALSE)) ->  | AE52: =IF($R52="","",VLOOKUP($R52,'FO-DRE-01'!$A$7:$U$301,10,FALSE)) ->  | AF52: =IF($R52="","",VLOOKUP($R52,'FO-DRE-01'!$A$7:$U$301,11,FALSE)) ->  | AG52: =IF($R52="","",VLOOKUP($R52,'FO-DRE-01'!$A$7:$U$301,12,FALSE)) ->  | AH52: =IF($R52="","",VLOOKUP($R52,'FO-DRE-01'!$A$7:$U$301,13,FALSE)) ->  | AI52: =IF($R52="","",VLOOKUP($R52,'FO-DRE-01'!$A$7:$U$301,14,FALSE)) ->  | AJ52: =IF($R52="","",VLOOKUP($R52,'FO-DRE-01'!$A$7:$U$301,15,FALSE)) ->  | AK52: =IF($S52="","",VLOOKUP($S52,'FO-DRE-04'!$A$6:$L$301,2,FALSE)) ->  | AL52: =IF($S52="","",VLOOKUP($S52,'FO-DRE-04'!$A$6:$L$301,3,FALSE)) ->  | AM52: =IF($S52="","",VLOOKUP($S52,'FO-DRE-04'!$A$6:$L$301,4,FALSE)) ->  | AN52: =IF($S52="","",VLOOKUP($S52,'FO-DRE-04'!$A$6:$L$301,6,FALSE)) ->  | AO52: =IF($S52="","",VLOOKUP($S52,'FO-DRE-04'!$A$6:$L$301,11,FALSE)) ->  | AP52: =IF($T52="","",VLOOKUP($T52,'FO-DRE-02'!$A$6:$M$101,2,FALSE)) ->  | AQ52: =IF($T52="","",VLOOKUP($T52,'FO-DRE-02'!$A$6:$M$101,3,FALSE)) ->  | AR52: =IF($T52="","",VLOOKUP($T52,'FO-DRE-02'!$A$6:$M$101,6,FALSE)) ->  | AS52: =IF($T52="","",VLOOKUP($T52,'FO-DRE-02'!$A$6:$M$101,4,FALSE)) ->  | AT52: =IF($T52="","",VLOOKUP($T52,'FO-DRE-02'!$A$6:$M$101,5,FALSE)) ->  | AU52: =IF($T52="","",VLOOKUP($T52,'FO-DRE-02'!$A$6:$M$101,8,FALSE)) ->  | AV52: =IF($T52="","",VLOOKUP($T52,'FO-DRE-02'!$A$6:$M$101,7,FALSE)) ->  | AW52: =IF($T52="","",VLOOKUP($T52,'FO-DRE-02'!$A$6:$M$101,9,FALSE)) ->  | AX52: =IF($T52="","",VLOOKUP($T52,'FO-DRE-02'!$A$6:$M$101,11,FALSE)) ->  | AY52: =IF($T52="","",VLOOKUP($T52,'FO-DRE-02'!$A$6:$M$101,12,FALSE)) ->  | AZ52: =IF($T52="","",VLOOKUP($T52,'FO-DRE-02'!$A$6:$M$101,13,FALSE)) ->  | BB52: 856 | BD52: 43 | BF52: F/D | BG52: F/D
I53: =IF(H53="1a",Hoja1!$B$126,IF(H53="1b",Hoja1!$B$127,IF(H53="2a",Hoja1!$B$128,IF(H53="2b",Hoja1!$B$129,IF(H53="3 ",Hoja1!$B$130,IF(H53="4 ",Hoja1!$B$131,IF(H53="5 ",Hoja1!$B$132,IF(H53="6 ",Hoja1!$B$133,IF(H53="7 ",Hoja1!$B$134,IF(H53="8 ",Hoja1!$B$135," ")))))))))) ->  | J53: =CONCATENATE(#REF!,"-","TX") ->  | K53: =CONCATENATE(#REF!,"-","RX") ->  | P53: 0 | V53: =IF($R53="","",VLOOKUP($R53,'FO-DRE-01'!$A$7:$U$301,18,FALSE)) ->  | W53: =IF($R53="","",VLOOKUP($R53,'FO-DRE-01'!$A$7:$U$301,16,FALSE)) ->  | X53: =IF($R53="","",VLOOKUP($R53,'FO-DRE-01'!$A$7:$U$301,17,FALSE)) ->  | Y53: =IF($R53="","",VLOOKUP($R53,'FO-DRE-01'!$A$7:$U$301,3,FALSE)) ->  | Z53: =IF($R53="","",VLOOKUP($R53,'FO-DRE-01'!$A$7:$U$301,4,FALSE)) ->  | AA53: =IF($R53="","",VLOOKUP($R53,'FO-DRE-01'!$A$7:$U$301,5,FALSE)) ->  | AB53: =IF($R53="","",VLOOKUP($R53,'FO-DRE-01'!$A$7:$U$301,7,FALSE)) ->  | AC53: =IF($R53="","",VLOOKUP($R53,'FO-DRE-01'!$A$7:$U$301,8,FALSE)) ->  | AD53: =IF($R53="","",VLOOKUP($R53,'FO-DRE-01'!$A$7:$U$301,9,FALSE)) ->  | AE53: =IF($R53="","",VLOOKUP($R53,'FO-DRE-01'!$A$7:$U$301,10,FALSE)) ->  | AF53: =IF($R53="","",VLOOKUP($R53,'FO-DRE-01'!$A$7:$U$301,11,FALSE)) ->  | AG53: =IF($R53="","",VLOOKUP($R53,'FO-DRE-01'!$A$7:$U$301,12,FALSE)) ->  | AH53: =IF($R53="","",VLOOKUP($R53,'FO-DRE-01'!$A$7:$U$301,13,FALSE)) ->  | AI53: =IF($R53="","",VLOOKUP($R53,'FO-DRE-01'!$A$7:$U$301,14,FALSE)) ->  | AJ53: =IF($R53="","",VLOOKUP($R53,'FO-DRE-01'!$A$7:$U$301,15,FALSE)) ->  | AK53: =IF($S53="","",VLOOKUP($S53,'FO-DRE-04'!$A$6:$L$301,2,FALSE)) ->  | AL53: =IF($S53="","",VLOOKUP($S53,'FO-DRE-04'!$A$6:$L$301,3,FALSE)) ->  | AM53: =IF($S53="","",VLOOKUP($S53,'FO-DRE-04'!$A$6:$L$301,4,FALSE)) ->  | AN53: =IF($S53="","",VLOOKUP($S53,'FO-DRE-04'!$A$6:$L$301,6,FALSE)) ->  | AO53: =IF($S53="","",VLOOKUP($S53,'FO-DRE-04'!$A$6:$L$301,11,FALSE)) ->  | AP53: =IF($T53="","",VLOOKUP($T53,'FO-DRE-02'!$A$6:$M$101,2,FALSE)) ->  | AQ53: =IF($T53="","",VLOOKUP($T53,'FO-DRE-02'!$A$6:$M$101,3,FALSE)) ->  | AR53: =IF($T53="","",VLOOKUP($T53,'FO-DRE-02'!$A$6:$M$101,6,FALSE)) ->  | AS53: =IF($T53="","",VLOOKUP($T53,'FO-DRE-02'!$A$6:$M$101,4,FALSE)) ->  | AT53: =IF($T53="","",VLOOKUP($T53,'FO-DRE-02'!$A$6:$M$101,5,FALSE)) ->  | AU53: =IF($T53="","",VLOOKUP($T53,'FO-DRE-02'!$A$6:$M$101,8,FALSE)) ->  | AV53: =IF($T53="","",VLOOKUP($T53,'FO-DRE-02'!$A$6:$M$101,7,FALSE)) ->  | AW53: =IF($T53="","",VLOOKUP($T53,'FO-DRE-02'!$A$6:$M$101,9,FALSE)) ->  | AX53: =IF($T53="","",VLOOKUP($T53,'FO-DRE-02'!$A$6:$M$101,11,FALSE)) ->  | AY53: =IF($T53="","",VLOOKUP($T53,'FO-DRE-02'!$A$6:$M$101,12,FALSE)) ->  | AZ53: =IF($T53="","",VLOOKUP($T53,'FO-DRE-02'!$A$6:$M$101,13,FALSE)) ->  | BB53: 856 | BD53: 44 | BF53: F/D | BG53: F/D
I54: =IF(H54="1a",Hoja1!$B$126,IF(H54="1b",Hoja1!$B$127,IF(H54="2a",Hoja1!$B$128,IF(H54="2b",Hoja1!$B$129,IF(H54="3 ",Hoja1!$B$130,IF(H54="4 ",Hoja1!$B$131,IF(H54="5 ",Hoja1!$B$132,IF(H54="6 ",Hoja1!$B$133,IF(H54="7 ",Hoja1!$B$134,IF(H54="8 ",Hoja1!$B$135," ")))))))))) ->  | J54: =CONCATENATE(#REF!,"-","TX") ->  | K54: =CONCATENATE(#REF!,"-","RX") ->  | P54: 0 | V54: =IF($R54="","",VLOOKUP($R54,'FO-DRE-01'!$A$7:$U$301,18,FALSE)) ->  | W54: =IF($R54="","",VLOOKUP($R54,'FO-DRE-01'!$A$7:$U$301,16,FALSE)) ->  | X54: =IF($R54="","",VLOOKUP($R54,'FO-DRE-01'!$A$7:$U$301,17,FALSE)) ->  | Y54: =IF($R54="","",VLOOKUP($R54,'FO-DRE-01'!$A$7:$U$301,3,FALSE)) ->  | Z54: =IF($R54="","",VLOOKUP($R54,'FO-DRE-01'!$A$7:$U$301,4,FALSE)) ->  | AA54: =IF($R54="","",VLOOKUP($R54,'FO-DRE-01'!$A$7:$U$301,5,FALSE)) ->  | AB54: =IF($R54="","",VLOOKUP($R54,'FO-DRE-01'!$A$7:$U$301,7,FALSE)) ->  | AC54: =IF($R54="","",VLOOKUP($R54,'FO-DRE-01'!$A$7:$U$301,8,FALSE)) ->  | AD54: =IF($R54="","",VLOOKUP($R54,'FO-DRE-01'!$A$7:$U$301,9,FALSE)) ->  | AE54: =IF($R54="","",VLOOKUP($R54,'FO-DRE-01'!$A$7:$U$301,10,FALSE)) ->  | AF54: =IF($R54="","",VLOOKUP($R54,'FO-DRE-01'!$A$7:$U$301,11,FALSE)) ->  | AG54: =IF($R54="","",VLOOKUP($R54,'FO-DRE-01'!$A$7:$U$301,12,FALSE)) ->  | AH54: =IF($R54="","",VLOOKUP($R54,'FO-DRE-01'!$A$7:$U$301,13,FALSE)) ->  | AI54: =IF($R54="","",VLOOKUP($R54,'FO-DRE-01'!$A$7:$U$301,14,FALSE)) ->  | AJ54: =IF($R54="","",VLOOKUP($R54,'FO-DRE-01'!$A$7:$U$301,15,FALSE)) ->  | AK54: =IF($S54="","",VLOOKUP($S54,'FO-DRE-04'!$A$6:$L$301,2,FALSE)) ->  | AL54: =IF($S54="","",VLOOKUP($S54,'FO-DRE-04'!$A$6:$L$301,3,FALSE)) ->  | AM54: =IF($S54="","",VLOOKUP($S54,'FO-DRE-04'!$A$6:$L$301,4,FALSE)) ->  | AN54: =IF($S54="","",VLOOKUP($S54,'FO-DRE-04'!$A$6:$L$301,6,FALSE)) ->  | AO54: =IF($S54="","",VLOOKUP($S54,'FO-DRE-04'!$A$6:$L$301,11,FALSE)) ->  | AP54: =IF($T54="","",VLOOKUP($T54,'FO-DRE-02'!$A$6:$M$101,2,FALSE)) ->  | AQ54: =IF($T54="","",VLOOKUP($T54,'FO-DRE-02'!$A$6:$M$101,3,FALSE)) ->  | AR54: =IF($T54="","",VLOOKUP($T54,'FO-DRE-02'!$A$6:$M$101,6,FALSE)) ->  | AS54: =IF($T54="","",VLOOKUP($T54,'FO-DRE-02'!$A$6:$M$101,4,FALSE)) ->  | AT54: =IF($T54="","",VLOOKUP($T54,'FO-DRE-02'!$A$6:$M$101,5,FALSE)) ->  | AU54: =IF($T54="","",VLOOKUP($T54,'FO-DRE-02'!$A$6:$M$101,8,FALSE)) ->  | AV54: =IF($T54="","",VLOOKUP($T54,'FO-DRE-02'!$A$6:$M$101,7,FALSE)) ->  | AW54: =IF($T54="","",VLOOKUP($T54,'FO-DRE-02'!$A$6:$M$101,9,FALSE)) ->  | AX54: =IF($T54="","",VLOOKUP($T54,'FO-DRE-02'!$A$6:$M$101,11,FALSE)) ->  | AY54: =IF($T54="","",VLOOKUP($T54,'FO-DRE-02'!$A$6:$M$101,12,FALSE)) ->  | AZ54: =IF($T54="","",VLOOKUP($T54,'FO-DRE-02'!$A$6:$M$101,13,FALSE)) ->  | BB54: 856 | BD54: 45 | BF54: F/D | BG54: F/D
I55: =IF(H55="1a",Hoja1!$B$126,IF(H55="1b",Hoja1!$B$127,IF(H55="2a",Hoja1!$B$128,IF(H55="2b",Hoja1!$B$129,IF(H55="3 ",Hoja1!$B$130,IF(H55="4 ",Hoja1!$B$131,IF(H55="5 ",Hoja1!$B$132,IF(H55="6 ",Hoja1!$B$133,IF(H55="7 ",Hoja1!$B$134,IF(H55="8 ",Hoja1!$B$135," ")))))))))) ->  | J55: =CONCATENATE(#REF!,"-","TX") ->  | K55: =CONCATENATE(#REF!,"-","RX") ->  | P55: 0 | V55: =IF($R55="","",VLOOKUP($R55,'FO-DRE-01'!$A$7:$U$301,18,FALSE)) ->  | W55: =IF($R55="","",VLOOKUP($R55,'FO-DRE-01'!$A$7:$U$301,16,FALSE)) ->  | X55: =IF($R55="","",VLOOKUP($R55,'FO-DRE-01'!$A$7:$U$301,17,FALSE)) ->  | Y55: =IF($R55="","",VLOOKUP($R55,'FO-DRE-01'!$A$7:$U$301,3,FALSE)) ->  | Z55: =IF($R55="","",VLOOKUP($R55,'FO-DRE-01'!$A$7:$U$301,4,FALSE)) ->  | AA55: =IF($R55="","",VLOOKUP($R55,'FO-DRE-01'!$A$7:$U$301,5,FALSE)) ->  | AB55: =IF($R55="","",VLOOKUP($R55,'FO-DRE-01'!$A$7:$U$301,7,FALSE)) ->  | AC55: =IF($R55="","",VLOOKUP($R55,'FO-DRE-01'!$A$7:$U$301,8,FALSE)) ->  | AD55: =IF($R55="","",VLOOKUP($R55,'FO-DRE-01'!$A$7:$U$301,9,FALSE)) ->  | AE55: =IF($R55="","",VLOOKUP($R55,'FO-DRE-01'!$A$7:$U$301,10,FALSE)) ->  | AF55: =IF($R55="","",VLOOKUP($R55,'FO-DRE-01'!$A$7:$U$301,11,FALSE)) ->  | AG55: =IF($R55="","",VLOOKUP($R55,'FO-DRE-01'!$A$7:$U$301,12,FALSE)) ->  | AH55: =IF($R55="","",VLOOKUP($R55,'FO-DRE-01'!$A$7:$U$301,13,FALSE)) ->  | AI55: =IF($R55="","",VLOOKUP($R55,'FO-DRE-01'!$A$7:$U$301,14,FALSE)) ->  | AJ55: =IF($R55="","",VLOOKUP($R55,'FO-DRE-01'!$A$7:$U$301,15,FALSE)) ->  | AK55: =IF($S55="","",VLOOKUP($S55,'FO-DRE-04'!$A$6:$L$301,2,FALSE)) ->  | AL55: =IF($S55="","",VLOOKUP($S55,'FO-DRE-04'!$A$6:$L$301,3,FALSE)) ->  | AM55: =IF($S55="","",VLOOKUP($S55,'FO-DRE-04'!$A$6:$L$301,4,FALSE)) ->  | AN55: =IF($S55="","",VLOOKUP($S55,'FO-DRE-04'!$A$6:$L$301,6,FALSE)) ->  | AO55: =IF($S55="","",VLOOKUP($S55,'FO-DRE-04'!$A$6:$L$301,11,FALSE)) ->  | AP55: =IF($T55="","",VLOOKUP($T55,'FO-DRE-02'!$A$6:$M$101,2,FALSE)) ->  | AQ55: =IF($T55="","",VLOOKUP($T55,'FO-DRE-02'!$A$6:$M$101,3,FALSE)) ->  | AR55: =IF($T55="","",VLOOKUP($T55,'FO-DRE-02'!$A$6:$M$101,6,FALSE)) ->  | AS55: =IF($T55="","",VLOOKUP($T55,'FO-DRE-02'!$A$6:$M$101,4,FALSE)) ->  | AT55: =IF($T55="","",VLOOKUP($T55,'FO-DRE-02'!$A$6:$M$101,5,FALSE)) ->  | AU55: =IF($T55="","",VLOOKUP($T55,'FO-DRE-02'!$A$6:$M$101,8,FALSE)) ->  | AV55: =IF($T55="","",VLOOKUP($T55,'FO-DRE-02'!$A$6:$M$101,7,FALSE)) ->  | AW55: =IF($T55="","",VLOOKUP($T55,'FO-DRE-02'!$A$6:$M$101,9,FALSE)) ->  | AX55: =IF($T55="","",VLOOKUP($T55,'FO-DRE-02'!$A$6:$M$101,11,FALSE)) ->  | AY55: =IF($T55="","",VLOOKUP($T55,'FO-DRE-02'!$A$6:$M$101,12,FALSE)) ->  | AZ55: =IF($T55="","",VLOOKUP($T55,'FO-DRE-02'!$A$6:$M$101,13,FALSE)) ->  | BB55: 856 | BD55: 46 | BF55: F/D | BG55: F/D
I56: =IF(H56="1a",Hoja1!$B$126,IF(H56="1b",Hoja1!$B$127,IF(H56="2a",Hoja1!$B$128,IF(H56="2b",Hoja1!$B$129,IF(H56="3 ",Hoja1!$B$130,IF(H56="4 ",Hoja1!$B$131,IF(H56="5 ",Hoja1!$B$132,IF(H56="6 ",Hoja1!$B$133,IF(H56="7 ",Hoja1!$B$134,IF(H56="8 ",Hoja1!$B$135," ")))))))))) ->  | J56: =CONCATENATE(#REF!,"-","TX") ->  | K56: =CONCATENATE(#REF!,"-","RX") ->  | P56: 0 | V56: =IF($R56="","",VLOOKUP($R56,'FO-DRE-01'!$A$7:$U$301,18,FALSE)) ->  | W56: =IF($R56="","",VLOOKUP($R56,'FO-DRE-01'!$A$7:$U$301,16,FALSE)) ->  | X56: =IF($R56="","",VLOOKUP($R56,'FO-DRE-01'!$A$7:$U$301,17,FALSE)) ->  | Y56: =IF($R56="","",VLOOKUP($R56,'FO-DRE-01'!$A$7:$U$301,3,FALSE)) ->  | Z56: =IF($R56="","",VLOOKUP($R56,'FO-DRE-01'!$A$7:$U$301,4,FALSE)) ->  | AA56: =IF($R56="","",VLOOKUP($R56,'FO-DRE-01'!$A$7:$U$301,5,FALSE)) ->  | AB56: =IF($R56="","",VLOOKUP($R56,'FO-DRE-01'!$A$7:$U$301,7,FALSE)) ->  | AC56: =IF($R56="","",VLOOKUP($R56,'FO-DRE-01'!$A$7:$U$301,8,FALSE)) ->  | AD56: =IF($R56="","",VLOOKUP($R56,'FO-DRE-01'!$A$7:$U$301,9,FALSE)) ->  | AE56: =IF($R56="","",VLOOKUP($R56,'FO-DRE-01'!$A$7:$U$301,10,FALSE)) ->  | AF56: =IF($R56="","",VLOOKUP($R56,'FO-DRE-01'!$A$7:$U$301,11,FALSE)) ->  | AG56: =IF($R56="","",VLOOKUP($R56,'FO-DRE-01'!$A$7:$U$301,12,FALSE)) ->  | AH56: =IF($R56="","",VLOOKUP($R56,'FO-DRE-01'!$A$7:$U$301,13,FALSE)) ->  | AI56: =IF($R56="","",VLOOKUP($R56,'FO-DRE-01'!$A$7:$U$301,14,FALSE)) ->  | AJ56: =IF($R56="","",VLOOKUP($R56,'FO-DRE-01'!$A$7:$U$301,15,FALSE)) ->  | AK56: =IF($S56="","",VLOOKUP($S56,'FO-DRE-04'!$A$6:$L$301,2,FALSE)) ->  | AL56: =IF($S56="","",VLOOKUP($S56,'FO-DRE-04'!$A$6:$L$301,3,FALSE)) ->  | AM56: =IF($S56="","",VLOOKUP($S56,'FO-DRE-04'!$A$6:$L$301,4,FALSE)) ->  | AN56: =IF($S56="","",VLOOKUP($S56,'FO-DRE-04'!$A$6:$L$301,6,FALSE)) ->  | AO56: =IF($S56="","",VLOOKUP($S56,'FO-DRE-04'!$A$6:$L$301,11,FALSE)) ->  | AP56: =IF($T56="","",VLOOKUP($T56,'FO-DRE-02'!$A$6:$M$101,2,FALSE)) ->  | AQ56: =IF($T56="","",VLOOKUP($T56,'FO-DRE-02'!$A$6:$M$101,3,FALSE)) ->  | AR56: =IF($T56="","",VLOOKUP($T56,'FO-DRE-02'!$A$6:$M$101,6,FALSE)) ->  | AS56: =IF($T56="","",VLOOKUP($T56,'FO-DRE-02'!$A$6:$M$101,4,FALSE)) ->  | AT56: =IF($T56="","",VLOOKUP($T56,'FO-DRE-02'!$A$6:$M$101,5,FALSE)) ->  | AU56: =IF($T56="","",VLOOKUP($T56,'FO-DRE-02'!$A$6:$M$101,8,FALSE)) ->  | AV56: =IF($T56="","",VLOOKUP($T56,'FO-DRE-02'!$A$6:$M$101,7,FALSE)) ->  | AW56: =IF($T56="","",VLOOKUP($T56,'FO-DRE-02'!$A$6:$M$101,9,FALSE)) ->  | AX56: =IF($T56="","",VLOOKUP($T56,'FO-DRE-02'!$A$6:$M$101,11,FALSE)) ->  | AY56: =IF($T56="","",VLOOKUP($T56,'FO-DRE-02'!$A$6:$M$101,12,FALSE)) ->  | AZ56: =IF($T56="","",VLOOKUP($T56,'FO-DRE-02'!$A$6:$M$101,13,FALSE)) ->  | BB56: 856 | BD56: 47 | BF56: F/D | BG56: F/D
I57: =IF(H57="1a",Hoja1!$B$126,IF(H57="1b",Hoja1!$B$127,IF(H57="2a",Hoja1!$B$128,IF(H57="2b",Hoja1!$B$129,IF(H57="3 ",Hoja1!$B$130,IF(H57="4 ",Hoja1!$B$131,IF(H57="5 ",Hoja1!$B$132,IF(H57="6 ",Hoja1!$B$133,IF(H57="7 ",Hoja1!$B$134,IF(H57="8 ",Hoja1!$B$135," ")))))))))) ->  | J57: =CONCATENATE(#REF!,"-","TX") ->  | K57: =CONCATENATE(#REF!,"-","RX") ->  | P57: 0 | V57: =IF($R57="","",VLOOKUP($R57,'FO-DRE-01'!$A$7:$U$301,18,FALSE)) ->  | W57: =IF($R57="","",VLOOKUP($R57,'FO-DRE-01'!$A$7:$U$301,16,FALSE)) ->  | X57: =IF($R57="","",VLOOKUP($R57,'FO-DRE-01'!$A$7:$U$301,17,FALSE)) ->  | Y57: =IF($R57="","",VLOOKUP($R57,'FO-DRE-01'!$A$7:$U$301,3,FALSE)) ->  | Z57: =IF($R57="","",VLOOKUP($R57,'FO-DRE-01'!$A$7:$U$301,4,FALSE)) ->  | AA57: =IF($R57="","",VLOOKUP($R57,'FO-DRE-01'!$A$7:$U$301,5,FALSE)) ->  | AB57: =IF($R57="","",VLOOKUP($R57,'FO-DRE-01'!$A$7:$U$301,7,FALSE)) ->  | AC57: =IF($R57="","",VLOOKUP($R57,'FO-DRE-01'!$A$7:$U$301,8,FALSE)) ->  | AD57: =IF($R57="","",VLOOKUP($R57,'FO-DRE-01'!$A$7:$U$301,9,FALSE)) ->  | AE57: =IF($R57="","",VLOOKUP($R57,'FO-DRE-01'!$A$7:$U$301,10,FALSE)) ->  | AF57: =IF($R57="","",VLOOKUP($R57,'FO-DRE-01'!$A$7:$U$301,11,FALSE)) ->  | AG57: =IF($R57="","",VLOOKUP($R57,'FO-DRE-01'!$A$7:$U$301,12,FALSE)) ->  | AH57: =IF($R57="","",VLOOKUP($R57,'FO-DRE-01'!$A$7:$U$301,13,FALSE)) ->  | AI57: =IF($R57="","",VLOOKUP($R57,'FO-DRE-01'!$A$7:$U$301,14,FALSE)) ->  | AJ57: =IF($R57="","",VLOOKUP($R57,'FO-DRE-01'!$A$7:$U$301,15,FALSE)) ->  | AK57: =IF($S57="","",VLOOKUP($S57,'FO-DRE-04'!$A$6:$L$301,2,FALSE)) ->  | AL57: =IF($S57="","",VLOOKUP($S57,'FO-DRE-04'!$A$6:$L$301,3,FALSE)) ->  | AM57: =IF($S57="","",VLOOKUP($S57,'FO-DRE-04'!$A$6:$L$301,4,FALSE)) ->  | AN57: =IF($S57="","",VLOOKUP($S57,'FO-DRE-04'!$A$6:$L$301,6,FALSE)) ->  | AO57: =IF($S57="","",VLOOKUP($S57,'FO-DRE-04'!$A$6:$L$301,11,FALSE)) ->  | AP57: =IF($T57="","",VLOOKUP($T57,'FO-DRE-02'!$A$6:$M$101,2,FALSE)) ->  | AQ57: =IF($T57="","",VLOOKUP($T57,'FO-DRE-02'!$A$6:$M$101,3,FALSE)) ->  | AR57: =IF($T57="","",VLOOKUP($T57,'FO-DRE-02'!$A$6:$M$101,6,FALSE)) ->  | AS57: =IF($T57="","",VLOOKUP($T57,'FO-DRE-02'!$A$6:$M$101,4,FALSE)) ->  | AT57: =IF($T57="","",VLOOKUP($T57,'FO-DRE-02'!$A$6:$M$101,5,FALSE)) ->  | AU57: =IF($T57="","",VLOOKUP($T57,'FO-DRE-02'!$A$6:$M$101,8,FALSE)) ->  | AV57: =IF($T57="","",VLOOKUP($T57,'FO-DRE-02'!$A$6:$M$101,7,FALSE)) ->  | AW57: =IF($T57="","",VLOOKUP($T57,'FO-DRE-02'!$A$6:$M$101,9,FALSE)) ->  | AX57: =IF($T57="","",VLOOKUP($T57,'FO-DRE-02'!$A$6:$M$101,11,FALSE)) ->  | AY57: =IF($T57="","",VLOOKUP($T57,'FO-DRE-02'!$A$6:$M$101,12,FALSE)) ->  | AZ57: =IF($T57="","",VLOOKUP($T57,'FO-DRE-02'!$A$6:$M$101,13,FALSE)) ->  | BB57: 856 | BD57: 48 | BF57: F/D | BG57: F/D
I58: =IF(H58="1a",Hoja1!$B$126,IF(H58="1b",Hoja1!$B$127,IF(H58="2a",Hoja1!$B$128,IF(H58="2b",Hoja1!$B$129,IF(H58="3 ",Hoja1!$B$130,IF(H58="4 ",Hoja1!$B$131,IF(H58="5 ",Hoja1!$B$132,IF(H58="6 ",Hoja1!$B$133,IF(H58="7 ",Hoja1!$B$134,IF(H58="8 ",Hoja1!$B$135," ")))))))))) ->  | J58: =CONCATENATE(#REF!,"-","TX") ->  | K58: =CONCATENATE(#REF!,"-","RX") ->  | P58: 0 | V58: =IF($R58="","",VLOOKUP($R58,'FO-DRE-01'!$A$7:$U$301,18,FALSE)) ->  | W58: =IF($R58="","",VLOOKUP($R58,'FO-DRE-01'!$A$7:$U$301,16,FALSE)) ->  | X58: =IF($R58="","",VLOOKUP($R58,'FO-DRE-01'!$A$7:$U$301,17,FALSE)) ->  | Y58: =IF($R58="","",VLOOKUP($R58,'FO-DRE-01'!$A$7:$U$301,3,FALSE)) ->  | Z58: =IF($R58="","",VLOOKUP($R58,'FO-DRE-01'!$A$7:$U$301,4,FALSE)) ->  | AA58: =IF($R58="","",VLOOKUP($R58,'FO-DRE-01'!$A$7:$U$301,5,FALSE)) ->  | AB58: =IF($R58="","",VLOOKUP($R58,'FO-DRE-01'!$A$7:$U$301,7,FALSE)) ->  | AC58: =IF($R58="","",VLOOKUP($R58,'FO-DRE-01'!$A$7:$U$301,8,FALSE)) ->  | AD58: =IF($R58="","",VLOOKUP($R58,'FO-DRE-01'!$A$7:$U$301,9,FALSE)) ->  | AE58: =IF($R58="","",VLOOKUP($R58,'FO-DRE-01'!$A$7:$U$301,10,FALSE)) ->  | AF58: =IF($R58="","",VLOOKUP($R58,'FO-DRE-01'!$A$7:$U$301,11,FALSE)) ->  | AG58: =IF($R58="","",VLOOKUP($R58,'FO-DRE-01'!$A$7:$U$301,12,FALSE)) ->  | AH58: =IF($R58="","",VLOOKUP($R58,'FO-DRE-01'!$A$7:$U$301,13,FALSE)) ->  | AI58: =IF($R58="","",VLOOKUP($R58,'FO-DRE-01'!$A$7:$U$301,14,FALSE)) ->  | AJ58: =IF($R58="","",VLOOKUP($R58,'FO-DRE-01'!$A$7:$U$301,15,FALSE)) ->  | AK58: =IF($S58="","",VLOOKUP($S58,'FO-DRE-04'!$A$6:$L$301,2,FALSE)) ->  | AL58: =IF($S58="","",VLOOKUP($S58,'FO-DRE-04'!$A$6:$L$301,3,FALSE)) ->  | AM58: =IF($S58="","",VLOOKUP($S58,'FO-DRE-04'!$A$6:$L$301,4,FALSE)) ->  | AN58: =IF($S58="","",VLOOKUP($S58,'FO-DRE-04'!$A$6:$L$301,6,FALSE)) ->  | AO58: =IF($S58="","",VLOOKUP($S58,'FO-DRE-04'!$A$6:$L$301,11,FALSE)) ->  | AP58: =IF($T58="","",VLOOKUP($T58,'FO-DRE-02'!$A$6:$M$101,2,FALSE)) ->  | AQ58: =IF($T58="","",VLOOKUP($T58,'FO-DRE-02'!$A$6:$M$101,3,FALSE)) ->  | AR58: =IF($T58="","",VLOOKUP($T58,'FO-DRE-02'!$A$6:$M$101,6,FALSE)) ->  | AS58: =IF($T58="","",VLOOKUP($T58,'FO-DRE-02'!$A$6:$M$101,4,FALSE)) ->  | AT58: =IF($T58="","",VLOOKUP($T58,'FO-DRE-02'!$A$6:$M$101,5,FALSE)) ->  | AU58: =IF($T58="","",VLOOKUP($T58,'FO-DRE-02'!$A$6:$M$101,8,FALSE)) ->  | AV58: =IF($T58="","",VLOOKUP($T58,'FO-DRE-02'!$A$6:$M$101,7,FALSE)) ->  | AW58: =IF($T58="","",VLOOKUP($T58,'FO-DRE-02'!$A$6:$M$101,9,FALSE)) ->  | AX58: =IF($T58="","",VLOOKUP($T58,'FO-DRE-02'!$A$6:$M$101,11,FALSE)) ->  | AY58: =IF($T58="","",VLOOKUP($T58,'FO-DRE-02'!$A$6:$M$101,12,FALSE)) ->  | AZ58: =IF($T58="","",VLOOKUP($T58,'FO-DRE-02'!$A$6:$M$101,13,FALSE)) ->  | BB58: 856 | BD58: 49 | BF58: F/D | BG58: F/D
I59: =IF(H59="1a",Hoja1!$B$126,IF(H59="1b",Hoja1!$B$127,IF(H59="2a",Hoja1!$B$128,IF(H59="2b",Hoja1!$B$129,IF(H59="3 ",Hoja1!$B$130,IF(H59="4 ",Hoja1!$B$131,IF(H59="5 ",Hoja1!$B$132,IF(H59="6 ",Hoja1!$B$133,IF(H59="7 ",Hoja1!$B$134,IF(H59="8 ",Hoja1!$B$135," ")))))))))) ->  | J59: =CONCATENATE(#REF!,"-","TX") ->  | K59: =CONCATENATE(#REF!,"-","RX") ->  | P59: 0 | V59: =IF($R59="","",VLOOKUP($R59,'FO-DRE-01'!$A$7:$U$301,18,FALSE)) ->  | W59: =IF($R59="","",VLOOKUP($R59,'FO-DRE-01'!$A$7:$U$301,16,FALSE)) ->  | X59: =IF($R59="","",VLOOKUP($R59,'FO-DRE-01'!$A$7:$U$301,17,FALSE)) ->  | Y59: =IF($R59="","",VLOOKUP($R59,'FO-DRE-01'!$A$7:$U$301,3,FALSE)) ->  | Z59: =IF($R59="","",VLOOKUP($R59,'FO-DRE-01'!$A$7:$U$301,4,FALSE)) ->  | AA59: =IF($R59="","",VLOOKUP($R59,'FO-DRE-01'!$A$7:$U$301,5,FALSE)) ->  | AB59: =IF($R59="","",VLOOKUP($R59,'FO-DRE-01'!$A$7:$U$301,7,FALSE)) ->  | AC59: =IF($R59="","",VLOOKUP($R59,'FO-DRE-01'!$A$7:$U$301,8,FALSE)) ->  | AD59: =IF($R59="","",VLOOKUP($R59,'FO-DRE-01'!$A$7:$U$301,9,FALSE)) ->  | AE59: =IF($R59="","",VLOOKUP($R59,'FO-DRE-01'!$A$7:$U$301,10,FALSE)) ->  | AF59: =IF($R59="","",VLOOKUP($R59,'FO-DRE-01'!$A$7:$U$301,11,FALSE)) ->  | AG59: =IF($R59="","",VLOOKUP($R59,'FO-DRE-01'!$A$7:$U$301,12,FALSE)) ->  | AH59: =IF($R59="","",VLOOKUP($R59,'FO-DRE-01'!$A$7:$U$301,13,FALSE)) ->  | AI59: =IF($R59="","",VLOOKUP($R59,'FO-DRE-01'!$A$7:$U$301,14,FALSE)) ->  | AJ59: =IF($R59="","",VLOOKUP($R59,'FO-DRE-01'!$A$7:$U$301,15,FALSE)) ->  | AK59: =IF($S59="","",VLOOKUP($S59,'FO-DRE-04'!$A$6:$L$301,2,FALSE)) ->  | AL59: =IF($S59="","",VLOOKUP($S59,'FO-DRE-04'!$A$6:$L$301,3,FALSE)) ->  | AM59: =IF($S59="","",VLOOKUP($S59,'FO-DRE-04'!$A$6:$L$301,4,FALSE)) ->  | AN59: =IF($S59="","",VLOOKUP($S59,'FO-DRE-04'!$A$6:$L$301,6,FALSE)) ->  | AO59: =IF($S59="","",VLOOKUP($S59,'FO-DRE-04'!$A$6:$L$301,11,FALSE)) ->  | AP59: =IF($T59="","",VLOOKUP($T59,'FO-DRE-02'!$A$6:$M$101,2,FALSE)) ->  | AQ59: =IF($T59="","",VLOOKUP($T59,'FO-DRE-02'!$A$6:$M$101,3,FALSE)) ->  | AR59: =IF($T59="","",VLOOKUP($T59,'FO-DRE-02'!$A$6:$M$101,6,FALSE)) ->  | AS59: =IF($T59="","",VLOOKUP($T59,'FO-DRE-02'!$A$6:$M$101,4,FALSE)) ->  | AT59: =IF($T59="","",VLOOKUP($T59,'FO-DRE-02'!$A$6:$M$101,5,FALSE)) ->  | AU59: =IF($T59="","",VLOOKUP($T59,'FO-DRE-02'!$A$6:$M$101,8,FALSE)) ->  | AV59: =IF($T59="","",VLOOKUP($T59,'FO-DRE-02'!$A$6:$M$101,7,FALSE)) ->  | AW59: =IF($T59="","",VLOOKUP($T59,'FO-DRE-02'!$A$6:$M$101,9,FALSE)) ->  | AX59: =IF($T59="","",VLOOKUP($T59,'FO-DRE-02'!$A$6:$M$101,11,FALSE)) ->  | AY59: =IF($T59="","",VLOOKUP($T59,'FO-DRE-02'!$A$6:$M$101,12,FALSE)) ->  | AZ59: =IF($T59="","",VLOOKUP($T59,'FO-DRE-02'!$A$6:$M$101,13,FALSE)) ->  | BB59: 856 | BD59: 50 | BF59: F/D | BG59: F/D
I60: =IF(H60="1a",Hoja1!$B$126,IF(H60="1b",Hoja1!$B$127,IF(H60="2a",Hoja1!$B$128,IF(H60="2b",Hoja1!$B$129,IF(H60="3 ",Hoja1!$B$130,IF(H60="4 ",Hoja1!$B$131,IF(H60="5 ",Hoja1!$B$132,IF(H60="6 ",Hoja1!$B$133,IF(H60="7 ",Hoja1!$B$134,IF(H60="8 ",Hoja1!$B$135," ")))))))))) ->  | J60: =CONCATENATE(#REF!,"-","TX") ->  | K60: =CONCATENATE(#REF!,"-","RX") ->  | P60: 0 | V60: =IF($R60="","",VLOOKUP($R60,'FO-DRE-01'!$A$7:$U$301,18,FALSE)) ->  | W60: =IF($R60="","",VLOOKUP($R60,'FO-DRE-01'!$A$7:$U$301,16,FALSE)) ->  | X60: =IF($R60="","",VLOOKUP($R60,'FO-DRE-01'!$A$7:$U$301,17,FALSE)) ->  | Y60: =IF($R60="","",VLOOKUP($R60,'FO-DRE-01'!$A$7:$U$301,3,FALSE)) ->  | Z60: =IF($R60="","",VLOOKUP($R60,'FO-DRE-01'!$A$7:$U$301,4,FALSE)) ->  | AA60: =IF($R60="","",VLOOKUP($R60,'FO-DRE-01'!$A$7:$U$301,5,FALSE)) ->  | AB60: =IF($R60="","",VLOOKUP($R60,'FO-DRE-01'!$A$7:$U$301,7,FALSE)) ->  | AC60: =IF($R60="","",VLOOKUP($R60,'FO-DRE-01'!$A$7:$U$301,8,FALSE)) ->  | AD60: =IF($R60="","",VLOOKUP($R60,'FO-DRE-01'!$A$7:$U$301,9,FALSE)) ->  | AE60: =IF($R60="","",VLOOKUP($R60,'FO-DRE-01'!$A$7:$U$301,10,FALSE)) ->  | AF60: =IF($R60="","",VLOOKUP($R60,'FO-DRE-01'!$A$7:$U$301,11,FALSE)) ->  | AG60: =IF($R60="","",VLOOKUP($R60,'FO-DRE-01'!$A$7:$U$301,12,FALSE)) ->  | AH60: =IF($R60="","",VLOOKUP($R60,'FO-DRE-01'!$A$7:$U$301,13,FALSE)) ->  | AI60: =IF($R60="","",VLOOKUP($R60,'FO-DRE-01'!$A$7:$U$301,14,FALSE)) ->  | AJ60: =IF($R60="","",VLOOKUP($R60,'FO-DRE-01'!$A$7:$U$301,15,FALSE)) ->  | AK60: =IF($S60="","",VLOOKUP($S60,'FO-DRE-04'!$A$6:$L$301,2,FALSE)) ->  | AL60: =IF($S60="","",VLOOKUP($S60,'FO-DRE-04'!$A$6:$L$301,3,FALSE)) ->  | AM60: =IF($S60="","",VLOOKUP($S60,'FO-DRE-04'!$A$6:$L$301,4,FALSE)) ->  | AN60: =IF($S60="","",VLOOKUP($S60,'FO-DRE-04'!$A$6:$L$301,6,FALSE)) ->  | AO60: =IF($S60="","",VLOOKUP($S60,'FO-DRE-04'!$A$6:$L$301,11,FALSE)) ->  | AP60: =IF($T60="","",VLOOKUP($T60,'FO-DRE-02'!$A$6:$M$101,2,FALSE)) ->  | AQ60: =IF($T60="","",VLOOKUP($T60,'FO-DRE-02'!$A$6:$M$101,3,FALSE)) ->  | AR60: =IF($T60="","",VLOOKUP($T60,'FO-DRE-02'!$A$6:$M$101,6,FALSE)) ->  | AS60: =IF($T60="","",VLOOKUP($T60,'FO-DRE-02'!$A$6:$M$101,4,FALSE)) ->  | AT60: =IF($T60="","",VLOOKUP($T60,'FO-DRE-02'!$A$6:$M$101,5,FALSE)) ->  | AU60: =IF($T60="","",VLOOKUP($T60,'FO-DRE-02'!$A$6:$M$101,8,FALSE)) ->  | AV60: =IF($T60="","",VLOOKUP($T60,'FO-DRE-02'!$A$6:$M$101,7,FALSE)) ->  | AW60: =IF($T60="","",VLOOKUP($T60,'FO-DRE-02'!$A$6:$M$101,9,FALSE)) ->  | AX60: =IF($T60="","",VLOOKUP($T60,'FO-DRE-02'!$A$6:$M$101,11,FALSE)) ->  | AY60: =IF($T60="","",VLOOKUP($T60,'FO-DRE-02'!$A$6:$M$101,12,FALSE)) ->  | AZ60: =IF($T60="","",VLOOKUP($T60,'FO-DRE-02'!$A$6:$M$101,13,FALSE)) ->  | BB60: 856 | BD60: 51 | BF60: F/D | BG60: F/D
I61: =IF(H61="1a",Hoja1!$B$126,IF(H61="1b",Hoja1!$B$127,IF(H61="2a",Hoja1!$B$128,IF(H61="2b",Hoja1!$B$129,IF(H61="3 ",Hoja1!$B$130,IF(H61="4 ",Hoja1!$B$131,IF(H61="5 ",Hoja1!$B$132,IF(H61="6 ",Hoja1!$B$133,IF(H61="7 ",Hoja1!$B$134,IF(H61="8 ",Hoja1!$B$135," ")))))))))) ->  | J61: =CONCATENATE(#REF!,"-","TX") ->  | K61: =CONCATENATE(#REF!,"-","RX") ->  | P61: 0 | V61: =IF($R61="","",VLOOKUP($R61,'FO-DRE-01'!$A$7:$U$301,18,FALSE)) ->  | W61: =IF($R61="","",VLOOKUP($R61,'FO-DRE-01'!$A$7:$U$301,16,FALSE)) ->  | X61: =IF($R61="","",VLOOKUP($R61,'FO-DRE-01'!$A$7:$U$301,17,FALSE)) ->  | Y61: =IF($R61="","",VLOOKUP($R61,'FO-DRE-01'!$A$7:$U$301,3,FALSE)) ->  | Z61: =IF($R61="","",VLOOKUP($R61,'FO-DRE-01'!$A$7:$U$301,4,FALSE)) ->  | AA61: =IF($R61="","",VLOOKUP($R61,'FO-DRE-01'!$A$7:$U$301,5,FALSE)) ->  | AB61: =IF($R61="","",VLOOKUP($R61,'FO-DRE-01'!$A$7:$U$301,7,FALSE)) ->  | AC61: =IF($R61="","",VLOOKUP($R61,'FO-DRE-01'!$A$7:$U$301,8,FALSE)) ->  | AD61: =IF($R61="","",VLOOKUP($R61,'FO-DRE-01'!$A$7:$U$301,9,FALSE)) ->  | AE61: =IF($R61="","",VLOOKUP($R61,'FO-DRE-01'!$A$7:$U$301,10,FALSE)) ->  | AF61: =IF($R61="","",VLOOKUP($R61,'FO-DRE-01'!$A$7:$U$301,11,FALSE)) ->  | AG61: =IF($R61="","",VLOOKUP($R61,'FO-DRE-01'!$A$7:$U$301,12,FALSE)) ->  | AH61: =IF($R61="","",VLOOKUP($R61,'FO-DRE-01'!$A$7:$U$301,13,FALSE)) ->  | AI61: =IF($R61="","",VLOOKUP($R61,'FO-DRE-01'!$A$7:$U$301,14,FALSE)) ->  | AJ61: =IF($R61="","",VLOOKUP($R61,'FO-DRE-01'!$A$7:$U$301,15,FALSE)) ->  | AK61: =IF($S61="","",VLOOKUP($S61,'FO-DRE-04'!$A$6:$L$301,2,FALSE)) ->  | AL61: =IF($S61="","",VLOOKUP($S61,'FO-DRE-04'!$A$6:$L$301,3,FALSE)) ->  | AM61: =IF($S61="","",VLOOKUP($S61,'FO-DRE-04'!$A$6:$L$301,4,FALSE)) ->  | AN61: =IF($S61="","",VLOOKUP($S61,'FO-DRE-04'!$A$6:$L$301,6,FALSE)) ->  | AO61: =IF($S61="","",VLOOKUP($S61,'FO-DRE-04'!$A$6:$L$301,11,FALSE)) ->  | AP61: =IF($T61="","",VLOOKUP($T61,'FO-DRE-02'!$A$6:$M$101,2,FALSE)) ->  | AQ61: =IF($T61="","",VLOOKUP($T61,'FO-DRE-02'!$A$6:$M$101,3,FALSE)) ->  | AR61: =IF($T61="","",VLOOKUP($T61,'FO-DRE-02'!$A$6:$M$101,6,FALSE)) ->  | AS61: =IF($T61="","",VLOOKUP($T61,'FO-DRE-02'!$A$6:$M$101,4,FALSE)) ->  | AT61: =IF($T61="","",VLOOKUP($T61,'FO-DRE-02'!$A$6:$M$101,5,FALSE)) ->  | AU61: =IF($T61="","",VLOOKUP($T61,'FO-DRE-02'!$A$6:$M$101,8,FALSE)) ->  | AV61: =IF($T61="","",VLOOKUP($T61,'FO-DRE-02'!$A$6:$M$101,7,FALSE)) ->  | AW61: =IF($T61="","",VLOOKUP($T61,'FO-DRE-02'!$A$6:$M$101,9,FALSE)) ->  | AX61: =IF($T61="","",VLOOKUP($T61,'FO-DRE-02'!$A$6:$M$101,11,FALSE)) ->  | AY61: =IF($T61="","",VLOOKUP($T61,'FO-DRE-02'!$A$6:$M$101,12,FALSE)) ->  | AZ61: =IF($T61="","",VLOOKUP($T61,'FO-DRE-02'!$A$6:$M$101,13,FALSE)) ->  | BB61: 856 | BD61: 52 | BF61: F/D | BG61: F/D
I62: =IF(H62="1a",Hoja1!$B$126,IF(H62="1b",Hoja1!$B$127,IF(H62="2a",Hoja1!$B$128,IF(H62="2b",Hoja1!$B$129,IF(H62="3 ",Hoja1!$B$130,IF(H62="4 ",Hoja1!$B$131,IF(H62="5 ",Hoja1!$B$132,IF(H62="6 ",Hoja1!$B$133,IF(H62="7 ",Hoja1!$B$134,IF(H62="8 ",Hoja1!$B$135," ")))))))))) ->  | J62: =CONCATENATE(#REF!,"-","TX") ->  | K62: =CONCATENATE(#REF!,"-","RX") ->  | P62: 0 | V62: =IF($R62="","",VLOOKUP($R62,'FO-DRE-01'!$A$7:$U$301,18,FALSE)) ->  | W62: =IF($R62="","",VLOOKUP($R62,'FO-DRE-01'!$A$7:$U$301,16,FALSE)) ->  | X62: =IF($R62="","",VLOOKUP($R62,'FO-DRE-01'!$A$7:$U$301,17,FALSE)) ->  | Y62: =IF($R62="","",VLOOKUP($R62,'FO-DRE-01'!$A$7:$U$301,3,FALSE)) ->  | Z62: =IF($R62="","",VLOOKUP($R62,'FO-DRE-01'!$A$7:$U$301,4,FALSE)) ->  | AA62: =IF($R62="","",VLOOKUP($R62,'FO-DRE-01'!$A$7:$U$301,5,FALSE)) ->  | AB62: =IF($R62="","",VLOOKUP($R62,'FO-DRE-01'!$A$7:$U$301,7,FALSE)) ->  | AC62: =IF($R62="","",VLOOKUP($R62,'FO-DRE-01'!$A$7:$U$301,8,FALSE)) ->  | AD62: =IF($R62="","",VLOOKUP($R62,'FO-DRE-01'!$A$7:$U$301,9,FALSE)) ->  | AE62: =IF($R62="","",VLOOKUP($R62,'FO-DRE-01'!$A$7:$U$301,10,FALSE)) ->  | AF62: =IF($R62="","",VLOOKUP($R62,'FO-DRE-01'!$A$7:$U$301,11,FALSE)) ->  | AG62: =IF($R62="","",VLOOKUP($R62,'FO-DRE-01'!$A$7:$U$301,12,FALSE)) ->  | AH62: =IF($R62="","",VLOOKUP($R62,'FO-DRE-01'!$A$7:$U$301,13,FALSE)) ->  | AI62: =IF($R62="","",VLOOKUP($R62,'FO-DRE-01'!$A$7:$U$301,14,FALSE)) ->  | AJ62: =IF($R62="","",VLOOKUP($R62,'FO-DRE-01'!$A$7:$U$301,15,FALSE)) ->  | AK62: =IF($S62="","",VLOOKUP($S62,'FO-DRE-04'!$A$6:$L$301,2,FALSE)) ->  | AL62: =IF($S62="","",VLOOKUP($S62,'FO-DRE-04'!$A$6:$L$301,3,FALSE)) ->  | AM62: =IF($S62="","",VLOOKUP($S62,'FO-DRE-04'!$A$6:$L$301,4,FALSE)) ->  | AN62: =IF($S62="","",VLOOKUP($S62,'FO-DRE-04'!$A$6:$L$301,6,FALSE)) ->  | AO62: =IF($S62="","",VLOOKUP($S62,'FO-DRE-04'!$A$6:$L$301,11,FALSE)) ->  | AP62: =IF($T62="","",VLOOKUP($T62,'FO-DRE-02'!$A$6:$M$101,2,FALSE)) ->  | AQ62: =IF($T62="","",VLOOKUP($T62,'FO-DRE-02'!$A$6:$M$101,3,FALSE)) ->  | AR62: =IF($T62="","",VLOOKUP($T62,'FO-DRE-02'!$A$6:$M$101,6,FALSE)) ->  | AS62: =IF($T62="","",VLOOKUP($T62,'FO-DRE-02'!$A$6:$M$101,4,FALSE)) ->  | AT62: =IF($T62="","",VLOOKUP($T62,'FO-DRE-02'!$A$6:$M$101,5,FALSE)) ->  | AU62: =IF($T62="","",VLOOKUP($T62,'FO-DRE-02'!$A$6:$M$101,8,FALSE)) ->  | AV62: =IF($T62="","",VLOOKUP($T62,'FO-DRE-02'!$A$6:$M$101,7,FALSE)) ->  | AW62: =IF($T62="","",VLOOKUP($T62,'FO-DRE-02'!$A$6:$M$101,9,FALSE)) ->  | AX62: =IF($T62="","",VLOOKUP($T62,'FO-DRE-02'!$A$6:$M$101,11,FALSE)) ->  | AY62: =IF($T62="","",VLOOKUP($T62,'FO-DRE-02'!$A$6:$M$101,12,FALSE)) ->  | AZ62: =IF($T62="","",VLOOKUP($T62,'FO-DRE-02'!$A$6:$M$101,13,FALSE)) ->  | BB62: 856 | BD62: 53 | BF62: F/D | BG62: F/D
I63: =IF(H63="1a",Hoja1!$B$126,IF(H63="1b",Hoja1!$B$127,IF(H63="2a",Hoja1!$B$128,IF(H63="2b",Hoja1!$B$129,IF(H63="3 ",Hoja1!$B$130,IF(H63="4 ",Hoja1!$B$131,IF(H63="5 ",Hoja1!$B$132,IF(H63="6 ",Hoja1!$B$133,IF(H63="7 ",Hoja1!$B$134,IF(H63="8 ",Hoja1!$B$135," ")))))))))) ->  | J63: =CONCATENATE(#REF!,"-","TX") ->  | K63: =CONCATENATE(#REF!,"-","RX") ->  | P63: 0 | V63: =IF($R63="","",VLOOKUP($R63,'FO-DRE-01'!$A$7:$U$301,18,FALSE)) ->  | W63: =IF($R63="","",VLOOKUP($R63,'FO-DRE-01'!$A$7:$U$301,16,FALSE)) ->  | X63: =IF($R63="","",VLOOKUP($R63,'FO-DRE-01'!$A$7:$U$301,17,FALSE)) ->  | Y63: =IF($R63="","",VLOOKUP($R63,'FO-DRE-01'!$A$7:$U$301,3,FALSE)) ->  | Z63: =IF($R63="","",VLOOKUP($R63,'FO-DRE-01'!$A$7:$U$301,4,FALSE)) ->  | AA63: =IF($R63="","",VLOOKUP($R63,'FO-DRE-01'!$A$7:$U$301,5,FALSE)) ->  | AB63: =IF($R63="","",VLOOKUP($R63,'FO-DRE-01'!$A$7:$U$301,7,FALSE)) ->  | AC63: =IF($R63="","",VLOOKUP($R63,'FO-DRE-01'!$A$7:$U$301,8,FALSE)) ->  | AD63: =IF($R63="","",VLOOKUP($R63,'FO-DRE-01'!$A$7:$U$301,9,FALSE)) ->  | AE63: =IF($R63="","",VLOOKUP($R63,'FO-DRE-01'!$A$7:$U$301,10,FALSE)) ->  | AF63: =IF($R63="","",VLOOKUP($R63,'FO-DRE-01'!$A$7:$U$301,11,FALSE)) ->  | AG63: =IF($R63="","",VLOOKUP($R63,'FO-DRE-01'!$A$7:$U$301,12,FALSE)) ->  | AH63: =IF($R63="","",VLOOKUP($R63,'FO-DRE-01'!$A$7:$U$301,13,FALSE)) ->  | AI63: =IF($R63="","",VLOOKUP($R63,'FO-DRE-01'!$A$7:$U$301,14,FALSE)) ->  | AJ63: =IF($R63="","",VLOOKUP($R63,'FO-DRE-01'!$A$7:$U$301,15,FALSE)) ->  | AK63: =IF($S63="","",VLOOKUP($S63,'FO-DRE-04'!$A$6:$L$301,2,FALSE)) ->  | AL63: =IF($S63="","",VLOOKUP($S63,'FO-DRE-04'!$A$6:$L$301,3,FALSE)) ->  | AM63: =IF($S63="","",VLOOKUP($S63,'FO-DRE-04'!$A$6:$L$301,4,FALSE)) ->  | AN63: =IF($S63="","",VLOOKUP($S63,'FO-DRE-04'!$A$6:$L$301,6,FALSE)) ->  | AO63: =IF($S63="","",VLOOKUP($S63,'FO-DRE-04'!$A$6:$L$301,11,FALSE)) ->  | AP63: =IF($T63="","",VLOOKUP($T63,'FO-DRE-02'!$A$6:$M$101,2,FALSE)) ->  | AQ63: =IF($T63="","",VLOOKUP($T63,'FO-DRE-02'!$A$6:$M$101,3,FALSE)) ->  | AR63: =IF($T63="","",VLOOKUP($T63,'FO-DRE-02'!$A$6:$M$101,6,FALSE)) ->  | AS63: =IF($T63="","",VLOOKUP($T63,'FO-DRE-02'!$A$6:$M$101,4,FALSE)) ->  | AT63: =IF($T63="","",VLOOKUP($T63,'FO-DRE-02'!$A$6:$M$101,5,FALSE)) ->  | AU63: =IF($T63="","",VLOOKUP($T63,'FO-DRE-02'!$A$6:$M$101,8,FALSE)) ->  | AV63: =IF($T63="","",VLOOKUP($T63,'FO-DRE-02'!$A$6:$M$101,7,FALSE)) ->  | AW63: =IF($T63="","",VLOOKUP($T63,'FO-DRE-02'!$A$6:$M$101,9,FALSE)) ->  | AX63: =IF($T63="","",VLOOKUP($T63,'FO-DRE-02'!$A$6:$M$101,11,FALSE)) ->  | AY63: =IF($T63="","",VLOOKUP($T63,'FO-DRE-02'!$A$6:$M$101,12,FALSE)) ->  | AZ63: =IF($T63="","",VLOOKUP($T63,'FO-DRE-02'!$A$6:$M$101,13,FALSE)) ->  | BB63: 856 | BD63: 54 | BF63: F/D | BG63: F/D
I64: =IF(H64="1a",Hoja1!$B$126,IF(H64="1b",Hoja1!$B$127,IF(H64="2a",Hoja1!$B$128,IF(H64="2b",Hoja1!$B$129,IF(H64="3 ",Hoja1!$B$130,IF(H64="4 ",Hoja1!$B$131,IF(H64="5 ",Hoja1!$B$132,IF(H64="6 ",Hoja1!$B$133,IF(H64="7 ",Hoja1!$B$134,IF(H64="8 ",Hoja1!$B$135," ")))))))))) ->  | J64: =CONCATENATE(#REF!,"-","TX") ->  | K64: =CONCATENATE(#REF!,"-","RX") ->  | P64: 0 | V64: =IF($R64="","",VLOOKUP($R64,'FO-DRE-01'!$A$7:$U$301,18,FALSE)) ->  | W64: =IF($R64="","",VLOOKUP($R64,'FO-DRE-01'!$A$7:$U$301,16,FALSE)) ->  | X64: =IF($R64="","",VLOOKUP($R64,'FO-DRE-01'!$A$7:$U$301,17,FALSE)) ->  | Y64: =IF($R64="","",VLOOKUP($R64,'FO-DRE-01'!$A$7:$U$301,3,FALSE)) ->  | Z64: =IF($R64="","",VLOOKUP($R64,'FO-DRE-01'!$A$7:$U$301,4,FALSE)) ->  | AA64: =IF($R64="","",VLOOKUP($R64,'FO-DRE-01'!$A$7:$U$301,5,FALSE)) ->  | AB64: =IF($R64="","",VLOOKUP($R64,'FO-DRE-01'!$A$7:$U$301,7,FALSE)) ->  | AC64: =IF($R64="","",VLOOKUP($R64,'FO-DRE-01'!$A$7:$U$301,8,FALSE)) ->  | AD64: =IF($R64="","",VLOOKUP($R64,'FO-DRE-01'!$A$7:$U$301,9,FALSE)) ->  | AE64: =IF($R64="","",VLOOKUP($R64,'FO-DRE-01'!$A$7:$U$301,10,FALSE)) ->  | AF64: =IF($R64="","",VLOOKUP($R64,'FO-DRE-01'!$A$7:$U$301,11,FALSE)) ->  | AG64: =IF($R64="","",VLOOKUP($R64,'FO-DRE-01'!$A$7:$U$301,12,FALSE)) ->  | AH64: =IF($R64="","",VLOOKUP($R64,'FO-DRE-01'!$A$7:$U$301,13,FALSE)) ->  | AI64: =IF($R64="","",VLOOKUP($R64,'FO-DRE-01'!$A$7:$U$301,14,FALSE)) ->  | AJ64: =IF($R64="","",VLOOKUP($R64,'FO-DRE-01'!$A$7:$U$301,15,FALSE)) ->  | AK64: =IF($S64="","",VLOOKUP($S64,'FO-DRE-04'!$A$6:$L$301,2,FALSE)) ->  | AL64: =IF($S64="","",VLOOKUP($S64,'FO-DRE-04'!$A$6:$L$301,3,FALSE)) ->  | AM64: =IF($S64="","",VLOOKUP($S64,'FO-DRE-04'!$A$6:$L$301,4,FALSE)) ->  | AN64: =IF($S64="","",VLOOKUP($S64,'FO-DRE-04'!$A$6:$L$301,6,FALSE)) ->  | AO64: =IF($S64="","",VLOOKUP($S64,'FO-DRE-04'!$A$6:$L$301,11,FALSE)) ->  | AP64: =IF($T64="","",VLOOKUP($T64,'FO-DRE-02'!$A$6:$M$101,2,FALSE)) ->  | AQ64: =IF($T64="","",VLOOKUP($T64,'FO-DRE-02'!$A$6:$M$101,3,FALSE)) ->  | AR64: =IF($T64="","",VLOOKUP($T64,'FO-DRE-02'!$A$6:$M$101,6,FALSE)) ->  | AS64: =IF($T64="","",VLOOKUP($T64,'FO-DRE-02'!$A$6:$M$101,4,FALSE)) ->  | AT64: =IF($T64="","",VLOOKUP($T64,'FO-DRE-02'!$A$6:$M$101,5,FALSE)) ->  | AU64: =IF($T64="","",VLOOKUP($T64,'FO-DRE-02'!$A$6:$M$101,8,FALSE)) ->  | AV64: =IF($T64="","",VLOOKUP($T64,'FO-DRE-02'!$A$6:$M$101,7,FALSE)) ->  | AW64: =IF($T64="","",VLOOKUP($T64,'FO-DRE-02'!$A$6:$M$101,9,FALSE)) ->  | AX64: =IF($T64="","",VLOOKUP($T64,'FO-DRE-02'!$A$6:$M$101,11,FALSE)) ->  | AY64: =IF($T64="","",VLOOKUP($T64,'FO-DRE-02'!$A$6:$M$101,12,FALSE)) ->  | AZ64: =IF($T64="","",VLOOKUP($T64,'FO-DRE-02'!$A$6:$M$101,13,FALSE)) ->  | BB64: 856 | BD64: 55 | BF64: F/D | BG64: F/D
I65: =IF(H65="1a",Hoja1!$B$126,IF(H65="1b",Hoja1!$B$127,IF(H65="2a",Hoja1!$B$128,IF(H65="2b",Hoja1!$B$129,IF(H65="3 ",Hoja1!$B$130,IF(H65="4 ",Hoja1!$B$131,IF(H65="5 ",Hoja1!$B$132,IF(H65="6 ",Hoja1!$B$133,IF(H65="7 ",Hoja1!$B$134,IF(H65="8 ",Hoja1!$B$135," ")))))))))) ->  | J65: =CONCATENATE(#REF!,"-","TX") ->  | K65: =CONCATENATE(#REF!,"-","RX") ->  | P65: 0 | V65: =IF($R65="","",VLOOKUP($R65,'FO-DRE-01'!$A$7:$U$301,18,FALSE)) ->  | W65: =IF($R65="","",VLOOKUP($R65,'FO-DRE-01'!$A$7:$U$301,16,FALSE)) ->  | X65: =IF($R65="","",VLOOKUP($R65,'FO-DRE-01'!$A$7:$U$301,17,FALSE)) ->  | Y65: =IF($R65="","",VLOOKUP($R65,'FO-DRE-01'!$A$7:$U$301,3,FALSE)) ->  | Z65: =IF($R65="","",VLOOKUP($R65,'FO-DRE-01'!$A$7:$U$301,4,FALSE)) ->  | AA65: =IF($R65="","",VLOOKUP($R65,'FO-DRE-01'!$A$7:$U$301,5,FALSE)) ->  | AB65: =IF($R65="","",VLOOKUP($R65,'FO-DRE-01'!$A$7:$U$301,7,FALSE)) ->  | AC65: =IF($R65="","",VLOOKUP($R65,'FO-DRE-01'!$A$7:$U$301,8,FALSE)) ->  | AD65: =IF($R65="","",VLOOKUP($R65,'FO-DRE-01'!$A$7:$U$301,9,FALSE)) ->  | AE65: =IF($R65="","",VLOOKUP($R65,'FO-DRE-01'!$A$7:$U$301,10,FALSE)) ->  | AF65: =IF($R65="","",VLOOKUP($R65,'FO-DRE-01'!$A$7:$U$301,11,FALSE)) ->  | AG65: =IF($R65="","",VLOOKUP($R65,'FO-DRE-01'!$A$7:$U$301,12,FALSE)) ->  | AH65: =IF($R65="","",VLOOKUP($R65,'FO-DRE-01'!$A$7:$U$301,13,FALSE)) ->  | AI65: =IF($R65="","",VLOOKUP($R65,'FO-DRE-01'!$A$7:$U$301,14,FALSE)) ->  | AJ65: =IF($R65="","",VLOOKUP($R65,'FO-DRE-01'!$A$7:$U$301,15,FALSE)) ->  | AK65: =IF($S65="","",VLOOKUP($S65,'FO-DRE-04'!$A$6:$L$301,2,FALSE)) ->  | AL65: =IF($S65="","",VLOOKUP($S65,'FO-DRE-04'!$A$6:$L$301,3,FALSE)) ->  | AM65: =IF($S65="","",VLOOKUP($S65,'FO-DRE-04'!$A$6:$L$301,4,FALSE)) ->  | AN65: =IF($S65="","",VLOOKUP($S65,'FO-DRE-04'!$A$6:$L$301,6,FALSE)) ->  | AO65: =IF($S65="","",VLOOKUP($S65,'FO-DRE-04'!$A$6:$L$301,11,FALSE)) ->  | AP65: =IF($T65="","",VLOOKUP($T65,'FO-DRE-02'!$A$6:$M$101,2,FALSE)) ->  | AQ65: =IF($T65="","",VLOOKUP($T65,'FO-DRE-02'!$A$6:$M$101,3,FALSE)) ->  | AR65: =IF($T65="","",VLOOKUP($T65,'FO-DRE-02'!$A$6:$M$101,6,FALSE)) ->  | AS65: =IF($T65="","",VLOOKUP($T65,'FO-DRE-02'!$A$6:$M$101,4,FALSE)) ->  | AT65: =IF($T65="","",VLOOKUP($T65,'FO-DRE-02'!$A$6:$M$101,5,FALSE)) ->  | AU65: =IF($T65="","",VLOOKUP($T65,'FO-DRE-02'!$A$6:$M$101,8,FALSE)) ->  | AV65: =IF($T65="","",VLOOKUP($T65,'FO-DRE-02'!$A$6:$M$101,7,FALSE)) ->  | AW65: =IF($T65="","",VLOOKUP($T65,'FO-DRE-02'!$A$6:$M$101,9,FALSE)) ->  | AX65: =IF($T65="","",VLOOKUP($T65,'FO-DRE-02'!$A$6:$M$101,11,FALSE)) ->  | AY65: =IF($T65="","",VLOOKUP($T65,'FO-DRE-02'!$A$6:$M$101,12,FALSE)) ->  | AZ65: =IF($T65="","",VLOOKUP($T65,'FO-DRE-02'!$A$6:$M$101,13,FALSE)) ->  | BB65: 856 | BD65: 56 | BF65: F/D | BG65: F/D
I66: =IF(H66="1a",Hoja1!$B$126,IF(H66="1b",Hoja1!$B$127,IF(H66="2a",Hoja1!$B$128,IF(H66="2b",Hoja1!$B$129,IF(H66="3 ",Hoja1!$B$130,IF(H66="4 ",Hoja1!$B$131,IF(H66="5 ",Hoja1!$B$132,IF(H66="6 ",Hoja1!$B$133,IF(H66="7 ",Hoja1!$B$134,IF(H66="8 ",Hoja1!$B$135," ")))))))))) ->  | J66: =CONCATENATE(#REF!,"-","TX") ->  | K66: =CONCATENATE(#REF!,"-","RX") ->  | P66: 0 | V66: =IF($R66="","",VLOOKUP($R66,'FO-DRE-01'!$A$7:$U$301,18,FALSE)) ->  | W66: =IF($R66="","",VLOOKUP($R66,'FO-DRE-01'!$A$7:$U$301,16,FALSE)) ->  | X66: =IF($R66="","",VLOOKUP($R66,'FO-DRE-01'!$A$7:$U$301,17,FALSE)) ->  | Y66: =IF($R66="","",VLOOKUP($R66,'FO-DRE-01'!$A$7:$U$301,3,FALSE)) ->  | Z66: =IF($R66="","",VLOOKUP($R66,'FO-DRE-01'!$A$7:$U$301,4,FALSE)) ->  | AA66: =IF($R66="","",VLOOKUP($R66,'FO-DRE-01'!$A$7:$U$301,5,FALSE)) ->  | AB66: =IF($R66="","",VLOOKUP($R66,'FO-DRE-01'!$A$7:$U$301,7,FALSE)) ->  | AC66: =IF($R66="","",VLOOKUP($R66,'FO-DRE-01'!$A$7:$U$301,8,FALSE)) ->  | AD66: =IF($R66="","",VLOOKUP($R66,'FO-DRE-01'!$A$7:$U$301,9,FALSE)) ->  | AE66: =IF($R66="","",VLOOKUP($R66,'FO-DRE-01'!$A$7:$U$301,10,FALSE)) ->  | AF66: =IF($R66="","",VLOOKUP($R66,'FO-DRE-01'!$A$7:$U$301,11,FALSE)) ->  | AG66: =IF($R66="","",VLOOKUP($R66,'FO-DRE-01'!$A$7:$U$301,12,FALSE)) ->  | AH66: =IF($R66="","",VLOOKUP($R66,'FO-DRE-01'!$A$7:$U$301,13,FALSE)) ->  | AI66: =IF($R66="","",VLOOKUP($R66,'FO-DRE-01'!$A$7:$U$301,14,FALSE)) ->  | AJ66: =IF($R66="","",VLOOKUP($R66,'FO-DRE-01'!$A$7:$U$301,15,FALSE)) ->  | AK66: =IF($S66="","",VLOOKUP($S66,'FO-DRE-04'!$A$6:$L$301,2,FALSE)) ->  | AL66: =IF($S66="","",VLOOKUP($S66,'FO-DRE-04'!$A$6:$L$301,3,FALSE)) ->  | AM66: =IF($S66="","",VLOOKUP($S66,'FO-DRE-04'!$A$6:$L$301,4,FALSE)) ->  | AN66: =IF($S66="","",VLOOKUP($S66,'FO-DRE-04'!$A$6:$L$301,6,FALSE)) ->  | AO66: =IF($S66="","",VLOOKUP($S66,'FO-DRE-04'!$A$6:$L$301,11,FALSE)) ->  | AP66: =IF($T66="","",VLOOKUP($T66,'FO-DRE-02'!$A$6:$M$101,2,FALSE)) ->  | AQ66: =IF($T66="","",VLOOKUP($T66,'FO-DRE-02'!$A$6:$M$101,3,FALSE)) ->  | AR66: =IF($T66="","",VLOOKUP($T66,'FO-DRE-02'!$A$6:$M$101,6,FALSE)) ->  | AS66: =IF($T66="","",VLOOKUP($T66,'FO-DRE-02'!$A$6:$M$101,4,FALSE)) ->  | AT66: =IF($T66="","",VLOOKUP($T66,'FO-DRE-02'!$A$6:$M$101,5,FALSE)) ->  | AU66: =IF($T66="","",VLOOKUP($T66,'FO-DRE-02'!$A$6:$M$101,8,FALSE)) ->  | AV66: =IF($T66="","",VLOOKUP($T66,'FO-DRE-02'!$A$6:$M$101,7,FALSE)) ->  | AW66: =IF($T66="","",VLOOKUP($T66,'FO-DRE-02'!$A$6:$M$101,9,FALSE)) ->  | AX66: =IF($T66="","",VLOOKUP($T66,'FO-DRE-02'!$A$6:$M$101,11,FALSE)) ->  | AY66: =IF($T66="","",VLOOKUP($T66,'FO-DRE-02'!$A$6:$M$101,12,FALSE)) ->  | AZ66: =IF($T66="","",VLOOKUP($T66,'FO-DRE-02'!$A$6:$M$101,13,FALSE)) ->  | BB66: 856 | BD66: 57 | BF66: F/D | BG66: F/D
I67: =IF(H67="1a",Hoja1!$B$126,IF(H67="1b",Hoja1!$B$127,IF(H67="2a",Hoja1!$B$128,IF(H67="2b",Hoja1!$B$129,IF(H67="3 ",Hoja1!$B$130,IF(H67="4 ",Hoja1!$B$131,IF(H67="5 ",Hoja1!$B$132,IF(H67="6 ",Hoja1!$B$133,IF(H67="7 ",Hoja1!$B$134,IF(H67="8 ",Hoja1!$B$135," ")))))))))) ->  | J67: =CONCATENATE(#REF!,"-","TX") ->  | K67: =CONCATENATE(#REF!,"-","RX") ->  | P67: 0 | V67: =IF($R67="","",VLOOKUP($R67,'FO-DRE-01'!$A$7:$U$301,18,FALSE)) ->  | W67: =IF($R67="","",VLOOKUP($R67,'FO-DRE-01'!$A$7:$U$301,16,FALSE)) ->  | X67: =IF($R67="","",VLOOKUP($R67,'FO-DRE-01'!$A$7:$U$301,17,FALSE)) ->  | Y67: =IF($R67="","",VLOOKUP($R67,'FO-DRE-01'!$A$7:$U$301,3,FALSE)) ->  | Z67: =IF($R67="","",VLOOKUP($R67,'FO-DRE-01'!$A$7:$U$301,4,FALSE)) ->  | AA67: =IF($R67="","",VLOOKUP($R67,'FO-DRE-01'!$A$7:$U$301,5,FALSE)) ->  | AB67: =IF($R67="","",VLOOKUP($R67,'FO-DRE-01'!$A$7:$U$301,7,FALSE)) ->  | AC67: =IF($R67="","",VLOOKUP($R67,'FO-DRE-01'!$A$7:$U$301,8,FALSE)) ->  | AD67: =IF($R67="","",VLOOKUP($R67,'FO-DRE-01'!$A$7:$U$301,9,FALSE)) ->  | AE67: =IF($R67="","",VLOOKUP($R67,'FO-DRE-01'!$A$7:$U$301,10,FALSE)) ->  | AF67: =IF($R67="","",VLOOKUP($R67,'FO-DRE-01'!$A$7:$U$301,11,FALSE)) ->  | AG67: =IF($R67="","",VLOOKUP($R67,'FO-DRE-01'!$A$7:$U$301,12,FALSE)) ->  | AH67: =IF($R67="","",VLOOKUP($R67,'FO-DRE-01'!$A$7:$U$301,13,FALSE)) ->  | AI67: =IF($R67="","",VLOOKUP($R67,'FO-DRE-01'!$A$7:$U$301,14,FALSE)) ->  | AJ67: =IF($R67="","",VLOOKUP($R67,'FO-DRE-01'!$A$7:$U$301,15,FALSE)) ->  | AK67: =IF($S67="","",VLOOKUP($S67,'FO-DRE-04'!$A$6:$L$301,2,FALSE)) ->  | AL67: =IF($S67="","",VLOOKUP($S67,'FO-DRE-04'!$A$6:$L$301,3,FALSE)) ->  | AM67: =IF($S67="","",VLOOKUP($S67,'FO-DRE-04'!$A$6:$L$301,4,FALSE)) ->  | AN67: =IF($S67="","",VLOOKUP($S67,'FO-DRE-04'!$A$6:$L$301,6,FALSE)) ->  | AO67: =IF($S67="","",VLOOKUP($S67,'FO-DRE-04'!$A$6:$L$301,11,FALSE)) ->  | AP67: =IF($T67="","",VLOOKUP($T67,'FO-DRE-02'!$A$6:$M$101,2,FALSE)) ->  | AQ67: =IF($T67="","",VLOOKUP($T67,'FO-DRE-02'!$A$6:$M$101,3,FALSE)) ->  | AR67: =IF($T67="","",VLOOKUP($T67,'FO-DRE-02'!$A$6:$M$101,6,FALSE)) ->  | AS67: =IF($T67="","",VLOOKUP($T67,'FO-DRE-02'!$A$6:$M$101,4,FALSE)) ->  | AT67: =IF($T67="","",VLOOKUP($T67,'FO-DRE-02'!$A$6:$M$101,5,FALSE)) ->  | AU67: =IF($T67="","",VLOOKUP($T67,'FO-DRE-02'!$A$6:$M$101,8,FALSE)) ->  | AV67: =IF($T67="","",VLOOKUP($T67,'FO-DRE-02'!$A$6:$M$101,7,FALSE)) ->  | AW67: =IF($T67="","",VLOOKUP($T67,'FO-DRE-02'!$A$6:$M$101,9,FALSE)) ->  | AX67: =IF($T67="","",VLOOKUP($T67,'FO-DRE-02'!$A$6:$M$101,11,FALSE)) ->  | AY67: =IF($T67="","",VLOOKUP($T67,'FO-DRE-02'!$A$6:$M$101,12,FALSE)) ->  | AZ67: =IF($T67="","",VLOOKUP($T67,'FO-DRE-02'!$A$6:$M$101,13,FALSE)) ->  | BB67: 856 | BD67: 58 | BF67: F/D | BG67: F/D
I68: =IF(H68="1a",Hoja1!$B$126,IF(H68="1b",Hoja1!$B$127,IF(H68="2a",Hoja1!$B$128,IF(H68="2b",Hoja1!$B$129,IF(H68="3 ",Hoja1!$B$130,IF(H68="4 ",Hoja1!$B$131,IF(H68="5 ",Hoja1!$B$132,IF(H68="6 ",Hoja1!$B$133,IF(H68="7 ",Hoja1!$B$134,IF(H68="8 ",Hoja1!$B$135," ")))))))))) ->  | J68: =CONCATENATE(#REF!,"-","TX") ->  | K68: =CONCATENATE(#REF!,"-","RX") ->  | P68: 0 | V68: =IF($R68="","",VLOOKUP($R68,'FO-DRE-01'!$A$7:$U$301,18,FALSE)) ->  | W68: =IF($R68="","",VLOOKUP($R68,'FO-DRE-01'!$A$7:$U$301,16,FALSE)) ->  | X68: =IF($R68="","",VLOOKUP($R68,'FO-DRE-01'!$A$7:$U$301,17,FALSE)) ->  | Y68: =IF($R68="","",VLOOKUP($R68,'FO-DRE-01'!$A$7:$U$301,3,FALSE)) ->  | Z68: =IF($R68="","",VLOOKUP($R68,'FO-DRE-01'!$A$7:$U$301,4,FALSE)) ->  | AA68: =IF($R68="","",VLOOKUP($R68,'FO-DRE-01'!$A$7:$U$301,5,FALSE)) ->  | AB68: =IF($R68="","",VLOOKUP($R68,'FO-DRE-01'!$A$7:$U$301,7,FALSE)) ->  | AC68: =IF($R68="","",VLOOKUP($R68,'FO-DRE-01'!$A$7:$U$301,8,FALSE)) ->  | AD68: =IF($R68="","",VLOOKUP($R68,'FO-DRE-01'!$A$7:$U$301,9,FALSE)) ->  | AE68: =IF($R68="","",VLOOKUP($R68,'FO-DRE-01'!$A$7:$U$301,10,FALSE)) ->  | AF68: =IF($R68="","",VLOOKUP($R68,'FO-DRE-01'!$A$7:$U$301,11,FALSE)) ->  | AG68: =IF($R68="","",VLOOKUP($R68,'FO-DRE-01'!$A$7:$U$301,12,FALSE)) ->  | AH68: =IF($R68="","",VLOOKUP($R68,'FO-DRE-01'!$A$7:$U$301,13,FALSE)) ->  | AI68: =IF($R68="","",VLOOKUP($R68,'FO-DRE-01'!$A$7:$U$301,14,FALSE)) ->  | AJ68: =IF($R68="","",VLOOKUP($R68,'FO-DRE-01'!$A$7:$U$301,15,FALSE)) ->  | AK68: =IF($S68="","",VLOOKUP($S68,'FO-DRE-04'!$A$6:$L$301,2,FALSE)) ->  | AL68: =IF($S68="","",VLOOKUP($S68,'FO-DRE-04'!$A$6:$L$301,3,FALSE)) ->  | AM68: =IF($S68="","",VLOOKUP($S68,'FO-DRE-04'!$A$6:$L$301,4,FALSE)) ->  | AN68: =IF($S68="","",VLOOKUP($S68,'FO-DRE-04'!$A$6:$L$301,6,FALSE)) ->  | AO68: =IF($S68="","",VLOOKUP($S68,'FO-DRE-04'!$A$6:$L$301,11,FALSE)) ->  | AP68: =IF($T68="","",VLOOKUP($T68,'FO-DRE-02'!$A$6:$M$101,2,FALSE)) ->  | AQ68: =IF($T68="","",VLOOKUP($T68,'FO-DRE-02'!$A$6:$M$101,3,FALSE)) ->  | AR68: =IF($T68="","",VLOOKUP($T68,'FO-DRE-02'!$A$6:$M$101,6,FALSE)) ->  | AS68: =IF($T68="","",VLOOKUP($T68,'FO-DRE-02'!$A$6:$M$101,4,FALSE)) ->  | AT68: =IF($T68="","",VLOOKUP($T68,'FO-DRE-02'!$A$6:$M$101,5,FALSE)) ->  | AU68: =IF($T68="","",VLOOKUP($T68,'FO-DRE-02'!$A$6:$M$101,8,FALSE)) ->  | AV68: =IF($T68="","",VLOOKUP($T68,'FO-DRE-02'!$A$6:$M$101,7,FALSE)) ->  | AW68: =IF($T68="","",VLOOKUP($T68,'FO-DRE-02'!$A$6:$M$101,9,FALSE)) ->  | AX68: =IF($T68="","",VLOOKUP($T68,'FO-DRE-02'!$A$6:$M$101,11,FALSE)) ->  | AY68: =IF($T68="","",VLOOKUP($T68,'FO-DRE-02'!$A$6:$M$101,12,FALSE)) ->  | AZ68: =IF($T68="","",VLOOKUP($T68,'FO-DRE-02'!$A$6:$M$101,13,FALSE)) ->  | BB68: 856 | BD68: 59 | BF68: F/D | BG68: F/D
I69: =IF(H69="1a",Hoja1!$B$126,IF(H69="1b",Hoja1!$B$127,IF(H69="2a",Hoja1!$B$128,IF(H69="2b",Hoja1!$B$129,IF(H69="3 ",Hoja1!$B$130,IF(H69="4 ",Hoja1!$B$131,IF(H69="5 ",Hoja1!$B$132,IF(H69="6 ",Hoja1!$B$133,IF(H69="7 ",Hoja1!$B$134,IF(H69="8 ",Hoja1!$B$135," ")))))))))) ->  | J69: =CONCATENATE(#REF!,"-","TX") ->  | K69: =CONCATENATE(#REF!,"-","RX") ->  | P69: 0 | V69: =IF($R69="","",VLOOKUP($R69,'FO-DRE-01'!$A$7:$U$301,18,FALSE)) ->  | W69: =IF($R69="","",VLOOKUP($R69,'FO-DRE-01'!$A$7:$U$301,16,FALSE)) ->  | X69: =IF($R69="","",VLOOKUP($R69,'FO-DRE-01'!$A$7:$U$301,17,FALSE)) ->  | Y69: =IF($R69="","",VLOOKUP($R69,'FO-DRE-01'!$A$7:$U$301,3,FALSE)) ->  | Z69: =IF($R69="","",VLOOKUP($R69,'FO-DRE-01'!$A$7:$U$301,4,FALSE)) ->  | AA69: =IF($R69="","",VLOOKUP($R69,'FO-DRE-01'!$A$7:$U$301,5,FALSE)) ->  | AB69: =IF($R69="","",VLOOKUP($R69,'FO-DRE-01'!$A$7:$U$301,7,FALSE)) ->  | AC69: =IF($R69="","",VLOOKUP($R69,'FO-DRE-01'!$A$7:$U$301,8,FALSE)) ->  | AD69: =IF($R69="","",VLOOKUP($R69,'FO-DRE-01'!$A$7:$U$301,9,FALSE)) ->  | AE69: =IF($R69="","",VLOOKUP($R69,'FO-DRE-01'!$A$7:$U$301,10,FALSE)) ->  | AF69: =IF($R69="","",VLOOKUP($R69,'FO-DRE-01'!$A$7:$U$301,11,FALSE)) ->  | AG69: =IF($R69="","",VLOOKUP($R69,'FO-DRE-01'!$A$7:$U$301,12,FALSE)) ->  | AH69: =IF($R69="","",VLOOKUP($R69,'FO-DRE-01'!$A$7:$U$301,13,FALSE)) ->  | AI69: =IF($R69="","",VLOOKUP($R69,'FO-DRE-01'!$A$7:$U$301,14,FALSE)) ->  | AJ69: =IF($R69="","",VLOOKUP($R69,'FO-DRE-01'!$A$7:$U$301,15,FALSE)) ->  | AK69: =IF($S69="","",VLOOKUP($S69,'FO-DRE-04'!$A$6:$L$301,2,FALSE)) ->  | AL69: =IF($S69="","",VLOOKUP($S69,'FO-DRE-04'!$A$6:$L$301,3,FALSE)) ->  | AM69: =IF($S69="","",VLOOKUP($S69,'FO-DRE-04'!$A$6:$L$301,4,FALSE)) ->  | AN69: =IF($S69="","",VLOOKUP($S69,'FO-DRE-04'!$A$6:$L$301,6,FALSE)) ->  | AO69: =IF($S69="","",VLOOKUP($S69,'FO-DRE-04'!$A$6:$L$301,11,FALSE)) ->  | AP69: =IF($T69="","",VLOOKUP($T69,'FO-DRE-02'!$A$6:$M$101,2,FALSE)) ->  | AQ69: =IF($T69="","",VLOOKUP($T69,'FO-DRE-02'!$A$6:$M$101,3,FALSE)) ->  | AR69: =IF($T69="","",VLOOKUP($T69,'FO-DRE-02'!$A$6:$M$101,6,FALSE)) ->  | AS69: =IF($T69="","",VLOOKUP($T69,'FO-DRE-02'!$A$6:$M$101,4,FALSE)) ->  | AT69: =IF($T69="","",VLOOKUP($T69,'FO-DRE-02'!$A$6:$M$101,5,FALSE)) ->  | AU69: =IF($T69="","",VLOOKUP($T69,'FO-DRE-02'!$A$6:$M$101,8,FALSE)) ->  | AV69: =IF($T69="","",VLOOKUP($T69,'FO-DRE-02'!$A$6:$M$101,7,FALSE)) ->  | AW69: =IF($T69="","",VLOOKUP($T69,'FO-DRE-02'!$A$6:$M$101,9,FALSE)) ->  | AX69: =IF($T69="","",VLOOKUP($T69,'FO-DRE-02'!$A$6:$M$101,11,FALSE)) ->  | AY69: =IF($T69="","",VLOOKUP($T69,'FO-DRE-02'!$A$6:$M$101,12,FALSE)) ->  | AZ69: =IF($T69="","",VLOOKUP($T69,'FO-DRE-02'!$A$6:$M$101,13,FALSE)) ->  | BB69: 856 | BD69: 60 | BF69: F/D | BG69: F/D
I70: =IF(H70="1a",Hoja1!$B$126,IF(H70="1b",Hoja1!$B$127,IF(H70="2a",Hoja1!$B$128,IF(H70="2b",Hoja1!$B$129,IF(H70="3 ",Hoja1!$B$130,IF(H70="4 ",Hoja1!$B$131,IF(H70="5 ",Hoja1!$B$132,IF(H70="6 ",Hoja1!$B$133,IF(H70="7 ",Hoja1!$B$134,IF(H70="8 ",Hoja1!$B$135," ")))))))))) ->  | J70: =CONCATENATE(#REF!,"-","TX") ->  | K70: =CONCATENATE(#REF!,"-","RX") ->  | P70: 0 | V70: =IF($R70="","",VLOOKUP($R70,'FO-DRE-01'!$A$7:$U$301,18,FALSE)) ->  | W70: =IF($R70="","",VLOOKUP($R70,'FO-DRE-01'!$A$7:$U$301,16,FALSE)) ->  | X70: =IF($R70="","",VLOOKUP($R70,'FO-DRE-01'!$A$7:$U$301,17,FALSE)) ->  | Y70: =IF($R70="","",VLOOKUP($R70,'FO-DRE-01'!$A$7:$U$301,3,FALSE)) ->  | Z70: =IF($R70="","",VLOOKUP($R70,'FO-DRE-01'!$A$7:$U$301,4,FALSE)) ->  | AA70: =IF($R70="","",VLOOKUP($R70,'FO-DRE-01'!$A$7:$U$301,5,FALSE)) ->  | AB70: =IF($R70="","",VLOOKUP($R70,'FO-DRE-01'!$A$7:$U$301,7,FALSE)) ->  | AC70: =IF($R70="","",VLOOKUP($R70,'FO-DRE-01'!$A$7:$U$301,8,FALSE)) ->  | AD70: =IF($R70="","",VLOOKUP($R70,'FO-DRE-01'!$A$7:$U$301,9,FALSE)) ->  | AE70: =IF($R70="","",VLOOKUP($R70,'FO-DRE-01'!$A$7:$U$301,10,FALSE)) ->  | AF70: =IF($R70="","",VLOOKUP($R70,'FO-DRE-01'!$A$7:$U$301,11,FALSE)) ->  | AG70: =IF($R70="","",VLOOKUP($R70,'FO-DRE-01'!$A$7:$U$301,12,FALSE)) ->  | AH70: =IF($R70="","",VLOOKUP($R70,'FO-DRE-01'!$A$7:$U$301,13,FALSE)) ->  | AI70: =IF($R70="","",VLOOKUP($R70,'FO-DRE-01'!$A$7:$U$301,14,FALSE)) ->  | AJ70: =IF($R70="","",VLOOKUP($R70,'FO-DRE-01'!$A$7:$U$301,15,FALSE)) ->  | AK70: =IF($S70="","",VLOOKUP($S70,'FO-DRE-04'!$A$6:$L$301,2,FALSE)) ->  | AL70: =IF($S70="","",VLOOKUP($S70,'FO-DRE-04'!$A$6:$L$301,3,FALSE)) ->  | AM70: =IF($S70="","",VLOOKUP($S70,'FO-DRE-04'!$A$6:$L$301,4,FALSE)) ->  | AN70: =IF($S70="","",VLOOKUP($S70,'FO-DRE-04'!$A$6:$L$301,6,FALSE)) ->  | AO70: =IF($S70="","",VLOOKUP($S70,'FO-DRE-04'!$A$6:$L$301,11,FALSE)) ->  | AP70: =IF($T70="","",VLOOKUP($T70,'FO-DRE-02'!$A$6:$M$101,2,FALSE)) ->  | AQ70: =IF($T70="","",VLOOKUP($T70,'FO-DRE-02'!$A$6:$M$101,3,FALSE)) ->  | AR70: =IF($T70="","",VLOOKUP($T70,'FO-DRE-02'!$A$6:$M$101,6,FALSE)) ->  | AS70: =IF($T70="","",VLOOKUP($T70,'FO-DRE-02'!$A$6:$M$101,4,FALSE)) ->  | AT70: =IF($T70="","",VLOOKUP($T70,'FO-DRE-02'!$A$6:$M$101,5,FALSE)) ->  | AU70: =IF($T70="","",VLOOKUP($T70,'FO-DRE-02'!$A$6:$M$101,8,FALSE)) ->  | AV70: =IF($T70="","",VLOOKUP($T70,'FO-DRE-02'!$A$6:$M$101,7,FALSE)) ->  | AW70: =IF($T70="","",VLOOKUP($T70,'FO-DRE-02'!$A$6:$M$101,9,FALSE)) ->  | AX70: =IF($T70="","",VLOOKUP($T70,'FO-DRE-02'!$A$6:$M$101,11,FALSE)) ->  | AY70: =IF($T70="","",VLOOKUP($T70,'FO-DRE-02'!$A$6:$M$101,12,FALSE)) ->  | AZ70: =IF($T70="","",VLOOKUP($T70,'FO-DRE-02'!$A$6:$M$101,13,FALSE)) ->  | BB70: 856 | BD70: 61 | BF70: F/D | BG70: F/D
I71: =IF(H71="1a",Hoja1!$B$126,IF(H71="1b",Hoja1!$B$127,IF(H71="2a",Hoja1!$B$128,IF(H71="2b",Hoja1!$B$129,IF(H71="3 ",Hoja1!$B$130,IF(H71="4 ",Hoja1!$B$131,IF(H71="5 ",Hoja1!$B$132,IF(H71="6 ",Hoja1!$B$133,IF(H71="7 ",Hoja1!$B$134,IF(H71="8 ",Hoja1!$B$135," ")))))))))) ->  | J71: =CONCATENATE(#REF!,"-","TX") ->  | K71: =CONCATENATE(#REF!,"-","RX") ->  | P71: 0 | V71: =IF($R71="","",VLOOKUP($R71,'FO-DRE-01'!$A$7:$U$301,18,FALSE)) ->  | W71: =IF($R71="","",VLOOKUP($R71,'FO-DRE-01'!$A$7:$U$301,16,FALSE)) ->  | X71: =IF($R71="","",VLOOKUP($R71,'FO-DRE-01'!$A$7:$U$301,17,FALSE)) ->  | Y71: =IF($R71="","",VLOOKUP($R71,'FO-DRE-01'!$A$7:$U$301,3,FALSE)) ->  | Z71: =IF($R71="","",VLOOKUP($R71,'FO-DRE-01'!$A$7:$U$301,4,FALSE)) ->  | AA71: =IF($R71="","",VLOOKUP($R71,'FO-DRE-01'!$A$7:$U$301,5,FALSE)) ->  | AB71: =IF($R71="","",VLOOKUP($R71,'FO-DRE-01'!$A$7:$U$301,7,FALSE)) ->  | AC71: =IF($R71="","",VLOOKUP($R71,'FO-DRE-01'!$A$7:$U$301,8,FALSE)) ->  | AD71: =IF($R71="","",VLOOKUP($R71,'FO-DRE-01'!$A$7:$U$301,9,FALSE)) ->  | AE71: =IF($R71="","",VLOOKUP($R71,'FO-DRE-01'!$A$7:$U$301,10,FALSE)) ->  | AF71: =IF($R71="","",VLOOKUP($R71,'FO-DRE-01'!$A$7:$U$301,11,FALSE)) ->  | AG71: =IF($R71="","",VLOOKUP($R71,'FO-DRE-01'!$A$7:$U$301,12,FALSE)) ->  | AH71: =IF($R71="","",VLOOKUP($R71,'FO-DRE-01'!$A$7:$U$301,13,FALSE)) ->  | AI71: =IF($R71="","",VLOOKUP($R71,'FO-DRE-01'!$A$7:$U$301,14,FALSE)) ->  | AJ71: =IF($R71="","",VLOOKUP($R71,'FO-DRE-01'!$A$7:$U$301,15,FALSE)) ->  | AK71: =IF($S71="","",VLOOKUP($S71,'FO-DRE-04'!$A$6:$L$301,2,FALSE)) ->  | AL71: =IF($S71="","",VLOOKUP($S71,'FO-DRE-04'!$A$6:$L$301,3,FALSE)) ->  | AM71: =IF($S71="","",VLOOKUP($S71,'FO-DRE-04'!$A$6:$L$301,4,FALSE)) ->  | AN71: =IF($S71="","",VLOOKUP($S71,'FO-DRE-04'!$A$6:$L$301,6,FALSE)) ->  | AO71: =IF($S71="","",VLOOKUP($S71,'FO-DRE-04'!$A$6:$L$301,11,FALSE)) ->  | AP71: =IF($T71="","",VLOOKUP($T71,'FO-DRE-02'!$A$6:$M$101,2,FALSE)) ->  | AQ71: =IF($T71="","",VLOOKUP($T71,'FO-DRE-02'!$A$6:$M$101,3,FALSE)) ->  | AR71: =IF($T71="","",VLOOKUP($T71,'FO-DRE-02'!$A$6:$M$101,6,FALSE)) ->  | AS71: =IF($T71="","",VLOOKUP($T71,'FO-DRE-02'!$A$6:$M$101,4,FALSE)) ->  | AT71: =IF($T71="","",VLOOKUP($T71,'FO-DRE-02'!$A$6:$M$101,5,FALSE)) ->  | AU71: =IF($T71="","",VLOOKUP($T71,'FO-DRE-02'!$A$6:$M$101,8,FALSE)) ->  | AV71: =IF($T71="","",VLOOKUP($T71,'FO-DRE-02'!$A$6:$M$101,7,FALSE)) ->  | AW71: =IF($T71="","",VLOOKUP($T71,'FO-DRE-02'!$A$6:$M$101,9,FALSE)) ->  | AX71: =IF($T71="","",VLOOKUP($T71,'FO-DRE-02'!$A$6:$M$101,11,FALSE)) ->  | AY71: =IF($T71="","",VLOOKUP($T71,'FO-DRE-02'!$A$6:$M$101,12,FALSE)) ->  | AZ71: =IF($T71="","",VLOOKUP($T71,'FO-DRE-02'!$A$6:$M$101,13,FALSE)) ->  | BB71: 856 | BD71: 62 | BF71: F/D | BG71: F/D
I72: =IF(H72="1a",Hoja1!$B$126,IF(H72="1b",Hoja1!$B$127,IF(H72="2a",Hoja1!$B$128,IF(H72="2b",Hoja1!$B$129,IF(H72="3 ",Hoja1!$B$130,IF(H72="4 ",Hoja1!$B$131,IF(H72="5 ",Hoja1!$B$132,IF(H72="6 ",Hoja1!$B$133,IF(H72="7 ",Hoja1!$B$134,IF(H72="8 ",Hoja1!$B$135," ")))))))))) ->  | J72: =CONCATENATE(#REF!,"-","TX") ->  | K72: =CONCATENATE(#REF!,"-","RX") ->  | P72: 0 | V72: =IF($R72="","",VLOOKUP($R72,'FO-DRE-01'!$A$7:$U$301,18,FALSE)) ->  | W72: =IF($R72="","",VLOOKUP($R72,'FO-DRE-01'!$A$7:$U$301,16,FALSE)) ->  | X72: =IF($R72="","",VLOOKUP($R72,'FO-DRE-01'!$A$7:$U$301,17,FALSE)) ->  | Y72: =IF($R72="","",VLOOKUP($R72,'FO-DRE-01'!$A$7:$U$301,3,FALSE)) ->  | Z72: =IF($R72="","",VLOOKUP($R72,'FO-DRE-01'!$A$7:$U$301,4,FALSE)) ->  | AA72: =IF($R72="","",VLOOKUP($R72,'FO-DRE-01'!$A$7:$U$301,5,FALSE)) ->  | AB72: =IF($R72="","",VLOOKUP($R72,'FO-DRE-01'!$A$7:$U$301,7,FALSE)) ->  | AC72: =IF($R72="","",VLOOKUP($R72,'FO-DRE-01'!$A$7:$U$301,8,FALSE)) ->  | AD72: =IF($R72="","",VLOOKUP($R72,'FO-DRE-01'!$A$7:$U$301,9,FALSE)) ->  | AE72: =IF($R72="","",VLOOKUP($R72,'FO-DRE-01'!$A$7:$U$301,10,FALSE)) ->  | AF72: =IF($R72="","",VLOOKUP($R72,'FO-DRE-01'!$A$7:$U$301,11,FALSE)) ->  | AG72: =IF($R72="","",VLOOKUP($R72,'FO-DRE-01'!$A$7:$U$301,12,FALSE)) ->  | AH72: =IF($R72="","",VLOOKUP($R72,'FO-DRE-01'!$A$7:$U$301,13,FALSE)) ->  | AI72: =IF($R72="","",VLOOKUP($R72,'FO-DRE-01'!$A$7:$U$301,14,FALSE)) ->  | AJ72: =IF($R72="","",VLOOKUP($R72,'FO-DRE-01'!$A$7:$U$301,15,FALSE)) ->  | AK72: =IF($S72="","",VLOOKUP($S72,'FO-DRE-04'!$A$6:$L$301,2,FALSE)) ->  | AL72: =IF($S72="","",VLOOKUP($S72,'FO-DRE-04'!$A$6:$L$301,3,FALSE)) ->  | AM72: =IF($S72="","",VLOOKUP($S72,'FO-DRE-04'!$A$6:$L$301,4,FALSE)) ->  | AN72: =IF($S72="","",VLOOKUP($S72,'FO-DRE-04'!$A$6:$L$301,6,FALSE)) ->  | AO72: =IF($S72="","",VLOOKUP($S72,'FO-DRE-04'!$A$6:$L$301,11,FALSE)) ->  | AP72: =IF($T72="","",VLOOKUP($T72,'FO-DRE-02'!$A$6:$M$101,2,FALSE)) ->  | AQ72: =IF($T72="","",VLOOKUP($T72,'FO-DRE-02'!$A$6:$M$101,3,FALSE)) ->  | AR72: =IF($T72="","",VLOOKUP($T72,'FO-DRE-02'!$A$6:$M$101,6,FALSE)) ->  | AS72: =IF($T72="","",VLOOKUP($T72,'FO-DRE-02'!$A$6:$M$101,4,FALSE)) ->  | AT72: =IF($T72="","",VLOOKUP($T72,'FO-DRE-02'!$A$6:$M$101,5,FALSE)) ->  | AU72: =IF($T72="","",VLOOKUP($T72,'FO-DRE-02'!$A$6:$M$101,8,FALSE)) ->  | AV72: =IF($T72="","",VLOOKUP($T72,'FO-DRE-02'!$A$6:$M$101,7,FALSE)) ->  | AW72: =IF($T72="","",VLOOKUP($T72,'FO-DRE-02'!$A$6:$M$101,9,FALSE)) ->  | AX72: =IF($T72="","",VLOOKUP($T72,'FO-DRE-02'!$A$6:$M$101,11,FALSE)) ->  | AY72: =IF($T72="","",VLOOKUP($T72,'FO-DRE-02'!$A$6:$M$101,12,FALSE)) ->  | AZ72: =IF($T72="","",VLOOKUP($T72,'FO-DRE-02'!$A$6:$M$101,13,FALSE)) ->  | BB72: 856 | BD72: 63 | BF72: F/D | BG72: F/D
I73: =IF(H73="1a",Hoja1!$B$126,IF(H73="1b",Hoja1!$B$127,IF(H73="2a",Hoja1!$B$128,IF(H73="2b",Hoja1!$B$129,IF(H73="3 ",Hoja1!$B$130,IF(H73="4 ",Hoja1!$B$131,IF(H73="5 ",Hoja1!$B$132,IF(H73="6 ",Hoja1!$B$133,IF(H73="7 ",Hoja1!$B$134,IF(H73="8 ",Hoja1!$B$135," ")))))))))) ->  | J73: =CONCATENATE(#REF!,"-","TX") ->  | K73: =CONCATENATE(#REF!,"-","RX") ->  | P73: 0 | V73: =IF($R73="","",VLOOKUP($R73,'FO-DRE-01'!$A$7:$U$301,18,FALSE)) ->  | W73: =IF($R73="","",VLOOKUP($R73,'FO-DRE-01'!$A$7:$U$301,16,FALSE)) ->  | X73: =IF($R73="","",VLOOKUP($R73,'FO-DRE-01'!$A$7:$U$301,17,FALSE)) ->  | Y73: =IF($R73="","",VLOOKUP($R73,'FO-DRE-01'!$A$7:$U$301,3,FALSE)) ->  | Z73: =IF($R73="","",VLOOKUP($R73,'FO-DRE-01'!$A$7:$U$301,4,FALSE)) ->  | AA73: =IF($R73="","",VLOOKUP($R73,'FO-DRE-01'!$A$7:$U$301,5,FALSE)) ->  | AB73: =IF($R73="","",VLOOKUP($R73,'FO-DRE-01'!$A$7:$U$301,7,FALSE)) ->  | AC73: =IF($R73="","",VLOOKUP($R73,'FO-DRE-01'!$A$7:$U$301,8,FALSE)) ->  | AD73: =IF($R73="","",VLOOKUP($R73,'FO-DRE-01'!$A$7:$U$301,9,FALSE)) ->  | AE73: =IF($R73="","",VLOOKUP($R73,'FO-DRE-01'!$A$7:$U$301,10,FALSE)) ->  | AF73: =IF($R73="","",VLOOKUP($R73,'FO-DRE-01'!$A$7:$U$301,11,FALSE)) ->  | AG73: =IF($R73="","",VLOOKUP($R73,'FO-DRE-01'!$A$7:$U$301,12,FALSE)) ->  | AH73: =IF($R73="","",VLOOKUP($R73,'FO-DRE-01'!$A$7:$U$301,13,FALSE)) ->  | AI73: =IF($R73="","",VLOOKUP($R73,'FO-DRE-01'!$A$7:$U$301,14,FALSE)) ->  | AJ73: =IF($R73="","",VLOOKUP($R73,'FO-DRE-01'!$A$7:$U$301,15,FALSE)) ->  | AK73: =IF($S73="","",VLOOKUP($S73,'FO-DRE-04'!$A$6:$L$301,2,FALSE)) ->  | AL73: =IF($S73="","",VLOOKUP($S73,'FO-DRE-04'!$A$6:$L$301,3,FALSE)) ->  | AM73: =IF($S73="","",VLOOKUP($S73,'FO-DRE-04'!$A$6:$L$301,4,FALSE)) ->  | AN73: =IF($S73="","",VLOOKUP($S73,'FO-DRE-04'!$A$6:$L$301,6,FALSE)) ->  | AO73: =IF($S73="","",VLOOKUP($S73,'FO-DRE-04'!$A$6:$L$301,11,FALSE)) ->  | AP73: =IF($T73="","",VLOOKUP($T73,'FO-DRE-02'!$A$6:$M$101,2,FALSE)) ->  | AQ73: =IF($T73="","",VLOOKUP($T73,'FO-DRE-02'!$A$6:$M$101,3,FALSE)) ->  | AR73: =IF($T73="","",VLOOKUP($T73,'FO-DRE-02'!$A$6:$M$101,6,FALSE)) ->  | AS73: =IF($T73="","",VLOOKUP($T73,'FO-DRE-02'!$A$6:$M$101,4,FALSE)) ->  | AT73: =IF($T73="","",VLOOKUP($T73,'FO-DRE-02'!$A$6:$M$101,5,FALSE)) ->  | AU73: =IF($T73="","",VLOOKUP($T73,'FO-DRE-02'!$A$6:$M$101,8,FALSE)) ->  | AV73: =IF($T73="","",VLOOKUP($T73,'FO-DRE-02'!$A$6:$M$101,7,FALSE)) ->  | AW73: =IF($T73="","",VLOOKUP($T73,'FO-DRE-02'!$A$6:$M$101,9,FALSE)) ->  | AX73: =IF($T73="","",VLOOKUP($T73,'FO-DRE-02'!$A$6:$M$101,11,FALSE)) ->  | AY73: =IF($T73="","",VLOOKUP($T73,'FO-DRE-02'!$A$6:$M$101,12,FALSE)) ->  | AZ73: =IF($T73="","",VLOOKUP($T73,'FO-DRE-02'!$A$6:$M$101,13,FALSE)) ->  | BB73: 856 | BD73: 64 | BF73: F/D | BG73: F/D
I74: =IF(H74="1a",Hoja1!$B$126,IF(H74="1b",Hoja1!$B$127,IF(H74="2a",Hoja1!$B$128,IF(H74="2b",Hoja1!$B$129,IF(H74="3 ",Hoja1!$B$130,IF(H74="4 ",Hoja1!$B$131,IF(H74="5 ",Hoja1!$B$132,IF(H74="6 ",Hoja1!$B$133,IF(H74="7 ",Hoja1!$B$134,IF(H74="8 ",Hoja1!$B$135," ")))))))))) ->  | J74: =CONCATENATE(#REF!,"-","TX") ->  | K74: =CONCATENATE(#REF!,"-","RX") ->  | P74: 0 | V74: =IF($R74="","",VLOOKUP($R74,'FO-DRE-01'!$A$7:$U$301,18,FALSE)) ->  | W74: =IF($R74="","",VLOOKUP($R74,'FO-DRE-01'!$A$7:$U$301,16,FALSE)) ->  | X74: =IF($R74="","",VLOOKUP($R74,'FO-DRE-01'!$A$7:$U$301,17,FALSE)) ->  | Y74: =IF($R74="","",VLOOKUP($R74,'FO-DRE-01'!$A$7:$U$301,3,FALSE)) ->  | Z74: =IF($R74="","",VLOOKUP($R74,'FO-DRE-01'!$A$7:$U$301,4,FALSE)) ->  | AA74: =IF($R74="","",VLOOKUP($R74,'FO-DRE-01'!$A$7:$U$301,5,FALSE)) ->  | AB74: =IF($R74="","",VLOOKUP($R74,'FO-DRE-01'!$A$7:$U$301,7,FALSE)) ->  | AC74: =IF($R74="","",VLOOKUP($R74,'FO-DRE-01'!$A$7:$U$301,8,FALSE)) ->  | AD74: =IF($R74="","",VLOOKUP($R74,'FO-DRE-01'!$A$7:$U$301,9,FALSE)) ->  | AE74: =IF($R74="","",VLOOKUP($R74,'FO-DRE-01'!$A$7:$U$301,10,FALSE)) ->  | AF74: =IF($R74="","",VLOOKUP($R74,'FO-DRE-01'!$A$7:$U$301,11,FALSE)) ->  | AG74: =IF($R74="","",VLOOKUP($R74,'FO-DRE-01'!$A$7:$U$301,12,FALSE)) ->  | AH74: =IF($R74="","",VLOOKUP($R74,'FO-DRE-01'!$A$7:$U$301,13,FALSE)) ->  | AI74: =IF($R74="","",VLOOKUP($R74,'FO-DRE-01'!$A$7:$U$301,14,FALSE)) ->  | AJ74: =IF($R74="","",VLOOKUP($R74,'FO-DRE-01'!$A$7:$U$301,15,FALSE)) ->  | AK74: =IF($S74="","",VLOOKUP($S74,'FO-DRE-04'!$A$6:$L$301,2,FALSE)) ->  | AL74: =IF($S74="","",VLOOKUP($S74,'FO-DRE-04'!$A$6:$L$301,3,FALSE)) ->  | AM74: =IF($S74="","",VLOOKUP($S74,'FO-DRE-04'!$A$6:$L$301,4,FALSE)) ->  | AN74: =IF($S74="","",VLOOKUP($S74,'FO-DRE-04'!$A$6:$L$301,6,FALSE)) ->  | AO74: =IF($S74="","",VLOOKUP($S74,'FO-DRE-04'!$A$6:$L$301,11,FALSE)) ->  | AP74: =IF($T74="","",VLOOKUP($T74,'FO-DRE-02'!$A$6:$M$101,2,FALSE)) ->  | AQ74: =IF($T74="","",VLOOKUP($T74,'FO-DRE-02'!$A$6:$M$101,3,FALSE)) ->  | AR74: =IF($T74="","",VLOOKUP($T74,'FO-DRE-02'!$A$6:$M$101,6,FALSE)) ->  | AS74: =IF($T74="","",VLOOKUP($T74,'FO-DRE-02'!$A$6:$M$101,4,FALSE)) ->  | AT74: =IF($T74="","",VLOOKUP($T74,'FO-DRE-02'!$A$6:$M$101,5,FALSE)) ->  | AU74: =IF($T74="","",VLOOKUP($T74,'FO-DRE-02'!$A$6:$M$101,8,FALSE)) ->  | AV74: =IF($T74="","",VLOOKUP($T74,'FO-DRE-02'!$A$6:$M$101,7,FALSE)) ->  | AW74: =IF($T74="","",VLOOKUP($T74,'FO-DRE-02'!$A$6:$M$101,9,FALSE)) ->  | AX74: =IF($T74="","",VLOOKUP($T74,'FO-DRE-02'!$A$6:$M$101,11,FALSE)) ->  | AY74: =IF($T74="","",VLOOKUP($T74,'FO-DRE-02'!$A$6:$M$101,12,FALSE)) ->  | AZ74: =IF($T74="","",VLOOKUP($T74,'FO-DRE-02'!$A$6:$M$101,13,FALSE)) ->  | BB74: =IF(C74="811-824 / 856-869",869,856) -> 856 | BD74: 65 | BF74: =IF(OR($C74="",$AN74="",$AW74=""),"F/D",IF(BR74>BH74,"SI","")) -> F/D | BG74: =IF(OR($C74="",$AN74="",$AW74=""),"F/D",IF(BR74>BI74,"SI","")) -> F/D | BH74: =IF(D74="","",IF(AND(10<BB74,BB74<=400),10,IF(AND(400<BB74,BB74<=2000),(BB74/40),IF(AND(2000<BB74,B74<=300000),50,0)))) ->  | BI74: =IF(D74="","",IF(AND(10<BB74,BB74<=400),2,IF(AND(400<BB74,BB74<=2000),(BB74/200),IF(AND(2000<BB74,BB74<=300000),10,0)))) ->  | BJ74: =IF(M74="","",SQRT(POWER($BJ$9,2)+POWER((AZ74-1.5),2))) ->  | BK74: =IF(M74="","",SQRT(POWER($BK$9,2)+POWER((AZ74-1.5),2))) ->  | BL74: =IF(M74="","",SQRT(POWER($BL$9,2)+POWER((AZ74-1.5),2))) ->  | BM74: =IF(M74="","",SQRT(POWER($BM$9,2)+POWER((AZ74-1.5),2))) ->  | BN74: =IF(M74="","",SQRT(POWER($BN$9,2)+POWER((AZ74-1.5),2))) ->  | BP74: =IF(M74="","",POWER(10,(AW74+2.15)/10)) ->  | BR74: =IF(M74="","",$BQ74/(PI()*BJ74^2)) ->  | BS74: =IF(M74="","",$BQ74/(PI()*BK74^2)) ->  | BT74: =IF(M74="","",$BQ74/(PI()*BL74^2)) ->  | BU74: =IF(M74="","",$BQ74/(PI()*BM74^2)) ->  | BV74: =IF(M74="","",$BQ74/(PI()*BN74^2)) -> 
I75: =IF(H75="1a",Hoja1!$B$126,IF(H75="1b",Hoja1!$B$127,IF(H75="2a",Hoja1!$B$128,IF(H75="2b",Hoja1!$B$129,IF(H75="3 ",Hoja1!$B$130,IF(H75="4 ",Hoja1!$B$131,IF(H75="5 ",Hoja1!$B$132,IF(H75="6 ",Hoja1!$B$133,IF(H75="7 ",Hoja1!$B$134,IF(H75="8 ",Hoja1!$B$135," ")))))))))) ->  | J75: =CONCATENATE(#REF!,"-","TX") ->  | K75: =CONCATENATE(#REF!,"-","RX") ->  | P75: 0 | V75: =IF($R75="","",VLOOKUP($R75,'FO-DRE-01'!$A$7:$U$301,18,FALSE)) ->  | W75: =IF($R75="","",VLOOKUP($R75,'FO-DRE-01'!$A$7:$U$301,16,FALSE)) ->  | X75: =IF($R75="","",VLOOKUP($R75,'FO-DRE-01'!$A$7:$U$301,17,FALSE)) ->  | Y75: =IF($R75="","",VLOOKUP($R75,'FO-DRE-01'!$A$7:$U$301,3,FALSE)) ->  | Z75: =IF($R75="","",VLOOKUP($R75,'FO-DRE-01'!$A$7:$U$301,4,FALSE)) ->  | AA75: =IF($R75="","",VLOOKUP($R75,'FO-DRE-01'!$A$7:$U$301,5,FALSE)) ->  | AB75: =IF($R75="","",VLOOKUP($R75,'FO-DRE-01'!$A$7:$U$301,7,FALSE)) ->  | AC75: =IF($R75="","",VLOOKUP($R75,'FO-DRE-01'!$A$7:$U$301,8,FALSE)) ->  | AD75: =IF($R75="","",VLOOKUP($R75,'FO-DRE-01'!$A$7:$U$301,9,FALSE)) ->  | AE75: =IF($R75="","",VLOOKUP($R75,'FO-DRE-01'!$A$7:$U$301,10,FALSE)) ->  | AF75: =IF($R75="","",VLOOKUP($R75,'FO-DRE-01'!$A$7:$U$301,11,FALSE)) ->  | AG75: =IF($R75="","",VLOOKUP($R75,'FO-DRE-01'!$A$7:$U$301,12,FALSE)) ->  | AH75: =IF($R75="","",VLOOKUP($R75,'FO-DRE-01'!$A$7:$U$301,13,FALSE)) ->  | AI75: =IF($R75="","",VLOOKUP($R75,'FO-DRE-01'!$A$7:$U$301,14,FALSE)) ->  | AJ75: =IF($R75="","",VLOOKUP($R75,'FO-DRE-01'!$A$7:$U$301,15,FALSE)) ->  | AK75: =IF($S75="","",VLOOKUP($S75,'FO-DRE-04'!$A$6:$L$301,2,FALSE)) ->  | AL75: =IF($S75="","",VLOOKUP($S75,'FO-DRE-04'!$A$6:$L$301,3,FALSE)) ->  | AM75: =IF($S75="","",VLOOKUP($S75,'FO-DRE-04'!$A$6:$L$301,4,FALSE)) ->  | AN75: =IF($S75="","",VLOOKUP($S75,'FO-DRE-04'!$A$6:$L$301,6,FALSE)) ->  | AO75: =IF($S75="","",VLOOKUP($S75,'FO-DRE-04'!$A$6:$L$301,11,FALSE)) ->  | AP75: =IF($T75="","",VLOOKUP($T75,'FO-DRE-02'!$A$6:$M$101,2,FALSE)) ->  | AQ75: =IF($T75="","",VLOOKUP($T75,'FO-DRE-02'!$A$6:$M$101,3,FALSE)) ->  | AR75: =IF($T75="","",VLOOKUP($T75,'FO-DRE-02'!$A$6:$M$101,6,FALSE)) ->  | AS75: =IF($T75="","",VLOOKUP($T75,'FO-DRE-02'!$A$6:$M$101,4,FALSE)) ->  | AT75: =IF($T75="","",VLOOKUP($T75,'FO-DRE-02'!$A$6:$M$101,5,FALSE)) ->  | AU75: =IF($T75="","",VLOOKUP($T75,'FO-DRE-02'!$A$6:$M$101,8,FALSE)) ->  | AV75: =IF($T75="","",VLOOKUP($T75,'FO-DRE-02'!$A$6:$M$101,7,FALSE)) ->  | AW75: =IF($T75="","",VLOOKUP($T75,'FO-DRE-02'!$A$6:$M$101,9,FALSE)) ->  | AX75: =IF($T75="","",VLOOKUP($T75,'FO-DRE-02'!$A$6:$M$101,11,FALSE)) ->  | AY75: =IF($T75="","",VLOOKUP($T75,'FO-DRE-02'!$A$6:$M$101,12,FALSE)) ->  | AZ75: =IF($T75="","",VLOOKUP($T75,'FO-DRE-02'!$A$6:$M$101,13,FALSE)) ->  | BB75: 856 | BD75: 66 | BF75: F/D | BG75: F/D
I76: =IF(H76="1a",Hoja1!$B$126,IF(H76="1b",Hoja1!$B$127,IF(H76="2a",Hoja1!$B$128,IF(H76="2b",Hoja1!$B$129,IF(H76="3 ",Hoja1!$B$130,IF(H76="4 ",Hoja1!$B$131,IF(H76="5 ",Hoja1!$B$132,IF(H76="6 ",Hoja1!$B$133,IF(H76="7 ",Hoja1!$B$134,IF(H76="8 ",Hoja1!$B$135," ")))))))))) ->  | J76: =CONCATENATE(#REF!,"-","TX") ->  | K76: =CONCATENATE(#REF!,"-","RX") ->  | P76: =B76 -> 0 | V76: =IF($R76="","",VLOOKUP($R76,'FO-DRE-01'!$A$7:$U$301,18,FALSE)) ->  | W76: =IF($R76="","",VLOOKUP($R76,'FO-DRE-01'!$A$7:$U$301,16,FALSE)) ->  | X76: =IF($R76="","",VLOOKUP($R76,'FO-DRE-01'!$A$7:$U$301,17,FALSE)) ->  | Y76: =IF($R76="","",VLOOKUP($R76,'FO-DRE-01'!$A$7:$U$301,3,FALSE)) ->  | Z76: =IF($R76="","",VLOOKUP($R76,'FO-DRE-01'!$A$7:$U$301,4,FALSE)) ->  | AA76: =IF($R76="","",VLOOKUP($R76,'FO-DRE-01'!$A$7:$U$301,5,FALSE)) ->  | AB76: =IF($R76="","",VLOOKUP($R76,'FO-DRE-01'!$A$7:$U$301,7,FALSE)) ->  | AC76: =IF($R76="","",VLOOKUP($R76,'FO-DRE-01'!$A$7:$U$301,8,FALSE)) ->  | AD76: =IF($R76="","",VLOOKUP($R76,'FO-DRE-01'!$A$7:$U$301,9,FALSE)) ->  | AE76: =IF($R76="","",VLOOKUP($R76,'FO-DRE-01'!$A$7:$U$301,10,FALSE)) ->  | AF76: =IF($R76="","",VLOOKUP($R76,'FO-DRE-01'!$A$7:$U$301,11,FALSE)) ->  | AG76: =IF($R76="","",VLOOKUP($R76,'FO-DRE-01'!$A$7:$U$301,12,FALSE)) ->  | AH76: =IF($R76="","",VLOOKUP($R76,'FO-DRE-01'!$A$7:$U$301,13,FALSE)) ->  | AI76: =IF($R76="","",VLOOKUP($R76,'FO-DRE-01'!$A$7:$U$301,14,FALSE)) ->  | AJ76: =IF($R76="","",VLOOKUP($R76,'FO-DRE-01'!$A$7:$U$301,15,FALSE)) ->  | AK76: =IF($S76="","",VLOOKUP($S76,'FO-DRE-04'!$A$6:$L$301,2,FALSE)) ->  | AL76: =IF($S76="","",VLOOKUP($S76,'FO-DRE-04'!$A$6:$L$301,3,FALSE)) ->  | AM76: =IF($S76="","",VLOOKUP($S76,'FO-DRE-04'!$A$6:$L$301,4,FALSE)) ->  | AN76: =IF($S76="","",VLOOKUP($S76,'FO-DRE-04'!$A$6:$L$301,6,FALSE)) ->  | AO76: =IF($S76="","",VLOOKUP($S76,'FO-DRE-04'!$A$6:$L$301,11,FALSE)) ->  | AP76: =IF($T76="","",VLOOKUP($T76,'FO-DRE-02'!$A$6:$M$101,2,FALSE)) ->  | AQ76: =IF($T76="","",VLOOKUP($T76,'FO-DRE-02'!$A$6:$M$101,3,FALSE)) ->  | AR76: =IF($T76="","",VLOOKUP($T76,'FO-DRE-02'!$A$6:$M$101,6,FALSE)) ->  | AS76: =IF($T76="","",VLOOKUP($T76,'FO-DRE-02'!$A$6:$M$101,4,FALSE)) ->  | AT76: =IF($T76="","",VLOOKUP($T76,'FO-DRE-02'!$A$6:$M$101,5,FALSE)) ->  | AU76: =IF($T76="","",VLOOKUP($T76,'FO-DRE-02'!$A$6:$M$101,8,FALSE)) ->  | AV76: =IF($T76="","",VLOOKUP($T76,'FO-DRE-02'!$A$6:$M$101,7,FALSE)) ->  | AW76: =IF($T76="","",VLOOKUP($T76,'FO-DRE-02'!$A$6:$M$101,9,FALSE)) ->  | AX76: =IF($T76="","",VLOOKUP($T76,'FO-DRE-02'!$A$6:$M$101,11,FALSE)) ->  | AY76: =IF($T76="","",VLOOKUP($T76,'FO-DRE-02'!$A$6:$M$101,12,FALSE)) ->  | AZ76: =IF($T76="","",VLOOKUP($T76,'FO-DRE-02'!$A$6:$M$101,13,FALSE)) ->  | BB76: 856 | BD76: 67 | BF76: F/D | BG76: F/D
I77: =IF(H77="1a",Hoja1!$B$126,IF(H77="1b",Hoja1!$B$127,IF(H77="2a",Hoja1!$B$128,IF(H77="2b",Hoja1!$B$129,IF(H77="3 ",Hoja1!$B$130,IF(H77="4 ",Hoja1!$B$131,IF(H77="5 ",Hoja1!$B$132,IF(H77="6 ",Hoja1!$B$133,IF(H77="7 ",Hoja1!$B$134,IF(H77="8 ",Hoja1!$B$135," ")))))))))) ->  | J77: =CONCATENATE(#REF!,"-","TX") ->  | K77: =CONCATENATE(#REF!,"-","RX") ->  | P77: 0 | V77: =IF($R77="","",VLOOKUP($R77,'FO-DRE-01'!$A$7:$U$301,18,FALSE)) ->  | W77: =IF($R77="","",VLOOKUP($R77,'FO-DRE-01'!$A$7:$U$301,16,FALSE)) ->  | X77: =IF($R77="","",VLOOKUP($R77,'FO-DRE-01'!$A$7:$U$301,17,FALSE)) ->  | Y77: =IF($R77="","",VLOOKUP($R77,'FO-DRE-01'!$A$7:$U$301,3,FALSE)) ->  | Z77: =IF($R77="","",VLOOKUP($R77,'FO-DRE-01'!$A$7:$U$301,4,FALSE)) ->  | AA77: =IF($R77="","",VLOOKUP($R77,'FO-DRE-01'!$A$7:$U$301,5,FALSE)) ->  | AB77: =IF($R77="","",VLOOKUP($R77,'FO-DRE-01'!$A$7:$U$301,7,FALSE)) ->  | AC77: =IF($R77="","",VLOOKUP($R77,'FO-DRE-01'!$A$7:$U$301,8,FALSE)) ->  | AD77: =IF($R77="","",VLOOKUP($R77,'FO-DRE-01'!$A$7:$U$301,9,FALSE)) ->  | AE77: =IF($R77="","",VLOOKUP($R77,'FO-DRE-01'!$A$7:$U$301,10,FALSE)) ->  | AF77: =IF($R77="","",VLOOKUP($R77,'FO-DRE-01'!$A$7:$U$301,11,FALSE)) ->  | AG77: =IF($R77="","",VLOOKUP($R77,'FO-DRE-01'!$A$7:$U$301,12,FALSE)) ->  | AH77: =IF($R77="","",VLOOKUP($R77,'FO-DRE-01'!$A$7:$U$301,13,FALSE)) ->  | AI77: =IF($R77="","",VLOOKUP($R77,'FO-DRE-01'!$A$7:$U$301,14,FALSE)) ->  | AJ77: =IF($R77="","",VLOOKUP($R77,'FO-DRE-01'!$A$7:$U$301,15,FALSE)) ->  | AK77: =IF($S77="","",VLOOKUP($S77,'FO-DRE-04'!$A$6:$L$301,2,FALSE)) ->  | AL77: =IF($S77="","",VLOOKUP($S77,'FO-DRE-04'!$A$6:$L$301,3,FALSE)) ->  | AM77: =IF($S77="","",VLOOKUP($S77,'FO-DRE-04'!$A$6:$L$301,4,FALSE)) ->  | AN77: =IF($S77="","",VLOOKUP($S77,'FO-DRE-04'!$A$6:$L$301,6,FALSE)) ->  | AO77: =IF($S77="","",VLOOKUP($S77,'FO-DRE-04'!$A$6:$L$301,11,FALSE)) ->  | AP77: =IF($T77="","",VLOOKUP($T77,'FO-DRE-02'!$A$6:$M$101,2,FALSE)) ->  | AQ77: =IF($T77="","",VLOOKUP($T77,'FO-DRE-02'!$A$6:$M$101,3,FALSE)) ->  | AR77: =IF($T77="","",VLOOKUP($T77,'FO-DRE-02'!$A$6:$M$101,6,FALSE)) ->  | AS77: =IF($T77="","",VLOOKUP($T77,'FO-DRE-02'!$A$6:$M$101,4,FALSE)) ->  | AT77: =IF($T77="","",VLOOKUP($T77,'FO-DRE-02'!$A$6:$M$101,5,FALSE)) ->  | AU77: =IF($T77="","",VLOOKUP($T77,'FO-DRE-02'!$A$6:$M$101,8,FALSE)) ->  | AV77: =IF($T77="","",VLOOKUP($T77,'FO-DRE-02'!$A$6:$M$101,7,FALSE)) ->  | AW77: =IF($T77="","",VLOOKUP($T77,'FO-DRE-02'!$A$6:$M$101,9,FALSE)) ->  | AX77: =IF($T77="","",VLOOKUP($T77,'FO-DRE-02'!$A$6:$M$101,11,FALSE)) ->  | AY77: =IF($T77="","",VLOOKUP($T77,'FO-DRE-02'!$A$6:$M$101,12,FALSE)) ->  | AZ77: =IF($T77="","",VLOOKUP($T77,'FO-DRE-02'!$A$6:$M$101,13,FALSE)) ->  | BB77: 856 | BD77: 68 | BF77: F/D | BG77: F/D
I78: =IF(H78="1a",Hoja1!$B$126,IF(H78="1b",Hoja1!$B$127,IF(H78="2a",Hoja1!$B$128,IF(H78="2b",Hoja1!$B$129,IF(H78="3 ",Hoja1!$B$130,IF(H78="4 ",Hoja1!$B$131,IF(H78="5 ",Hoja1!$B$132,IF(H78="6 ",Hoja1!$B$133,IF(H78="7 ",Hoja1!$B$134,IF(H78="8 ",Hoja1!$B$135," ")))))))))) ->  | J78: =CONCATENATE(#REF!,"-","TX") ->  | K78: =CONCATENATE(#REF!,"-","RX") ->  | P78: 0 | V78: =IF($R78="","",VLOOKUP($R78,'FO-DRE-01'!$A$7:$U$301,18,FALSE)) ->  | W78: =IF($R78="","",VLOOKUP($R78,'FO-DRE-01'!$A$7:$U$301,16,FALSE)) ->  | X78: =IF($R78="","",VLOOKUP($R78,'FO-DRE-01'!$A$7:$U$301,17,FALSE)) ->  | Y78: =IF($R78="","",VLOOKUP($R78,'FO-DRE-01'!$A$7:$U$301,3,FALSE)) ->  | Z78: =IF($R78="","",VLOOKUP($R78,'FO-DRE-01'!$A$7:$U$301,4,FALSE)) ->  | AA78: =IF($R78="","",VLOOKUP($R78,'FO-DRE-01'!$A$7:$U$301,5,FALSE)) ->  | AB78: =IF($R78="","",VLOOKUP($R78,'FO-DRE-01'!$A$7:$U$301,7,FALSE)) ->  | AC78: =IF($R78="","",VLOOKUP($R78,'FO-DRE-01'!$A$7:$U$301,8,FALSE)) ->  | AD78: =IF($R78="","",VLOOKUP($R78,'FO-DRE-01'!$A$7:$U$301,9,FALSE)) ->  | AE78: =IF($R78="","",VLOOKUP($R78,'FO-DRE-01'!$A$7:$U$301,10,FALSE)) ->  | AF78: =IF($R78="","",VLOOKUP($R78,'FO-DRE-01'!$A$7:$U$301,11,FALSE)) ->  | AG78: =IF($R78="","",VLOOKUP($R78,'FO-DRE-01'!$A$7:$U$301,12,FALSE)) ->  | AH78: =IF($R78="","",VLOOKUP($R78,'FO-DRE-01'!$A$7:$U$301,13,FALSE)) ->  | AI78: =IF($R78="","",VLOOKUP($R78,'FO-DRE-01'!$A$7:$U$301,14,FALSE)) ->  | AJ78: =IF($R78="","",VLOOKUP($R78,'FO-DRE-01'!$A$7:$U$301,15,FALSE)) ->  | AK78: =IF($S78="","",VLOOKUP($S78,'FO-DRE-04'!$A$6:$L$301,2,FALSE)) ->  | AL78: =IF($S78="","",VLOOKUP($S78,'FO-DRE-04'!$A$6:$L$301,3,FALSE)) ->  | AM78: =IF($S78="","",VLOOKUP($S78,'FO-DRE-04'!$A$6:$L$301,4,FALSE)) ->  | AN78: =IF($S78="","",VLOOKUP($S78,'FO-DRE-04'!$A$6:$L$301,6,FALSE)) ->  | AO78: =IF($S78="","",VLOOKUP($S78,'FO-DRE-04'!$A$6:$L$301,11,FALSE)) ->  | AP78: =IF($T78="","",VLOOKUP($T78,'FO-DRE-02'!$A$6:$M$101,2,FALSE)) ->  | AQ78: =IF($T78="","",VLOOKUP($T78,'FO-DRE-02'!$A$6:$M$101,3,FALSE)) ->  | AR78: =IF($T78="","",VLOOKUP($T78,'FO-DRE-02'!$A$6:$M$101,6,FALSE)) ->  | AS78: =IF($T78="","",VLOOKUP($T78,'FO-DRE-02'!$A$6:$M$101,4,FALSE)) ->  | AT78: =IF($T78="","",VLOOKUP($T78,'FO-DRE-02'!$A$6:$M$101,5,FALSE)) ->  | AU78: =IF($T78="","",VLOOKUP($T78,'FO-DRE-02'!$A$6:$M$101,8,FALSE)) ->  | AV78: =IF($T78="","",VLOOKUP($T78,'FO-DRE-02'!$A$6:$M$101,7,FALSE)) ->  | AW78: =IF($T78="","",VLOOKUP($T78,'FO-DRE-02'!$A$6:$M$101,9,FALSE)) ->  | AX78: =IF($T78="","",VLOOKUP($T78,'FO-DRE-02'!$A$6:$M$101,11,FALSE)) ->  | AY78: =IF($T78="","",VLOOKUP($T78,'FO-DRE-02'!$A$6:$M$101,12,FALSE)) ->  | AZ78: =IF($T78="","",VLOOKUP($T78,'FO-DRE-02'!$A$6:$M$101,13,FALSE)) ->  | BB78: 856 | BD78: 69 | BE78: =IF($R78="","",$R78) ->  | BF78: F/D | BG78: F/D
I79: =IF(H79="1a",Hoja1!$B$126,IF(H79="1b",Hoja1!$B$127,IF(H79="2a",Hoja1!$B$128,IF(H79="2b",Hoja1!$B$129,IF(H79="3 ",Hoja1!$B$130,IF(H79="4 ",Hoja1!$B$131,IF(H79="5 ",Hoja1!$B$132,IF(H79="6 ",Hoja1!$B$133,IF(H79="7 ",Hoja1!$B$134,IF(H79="8 ",Hoja1!$B$135," ")))))))))) ->  | J79: =CONCATENATE(#REF!,"-","TX") ->  | K79: =CONCATENATE(#REF!,"-","RX") ->  | P79: 0 | V79: =IF($R79="","",VLOOKUP($R79,'FO-DRE-01'!$A$7:$U$301,18,FALSE)) ->  | W79: =IF($R79="","",VLOOKUP($R79,'FO-DRE-01'!$A$7:$U$301,16,FALSE)) ->  | X79: =IF($R79="","",VLOOKUP($R79,'FO-DRE-01'!$A$7:$U$301,17,FALSE)) ->  | Y79: =IF($R79="","",VLOOKUP($R79,'FO-DRE-01'!$A$7:$U$301,3,FALSE)) ->  | Z79: =IF($R79="","",VLOOKUP($R79,'FO-DRE-01'!$A$7:$U$301,4,FALSE)) ->  | AA79: =IF($R79="","",VLOOKUP($R79,'FO-DRE-01'!$A$7:$U$301,5,FALSE)) ->  | AB79: =IF($R79="","",VLOOKUP($R79,'FO-DRE-01'!$A$7:$U$301,7,FALSE)) ->  | AC79: =IF($R79="","",VLOOKUP($R79,'FO-DRE-01'!$A$7:$U$301,8,FALSE)) ->  | AD79: =IF($R79="","",VLOOKUP($R79,'FO-DRE-01'!$A$7:$U$301,9,FALSE)) ->  | AE79: =IF($R79="","",VLOOKUP($R79,'FO-DRE-01'!$A$7:$U$301,10,FALSE)) ->  | AF79: =IF($R79="","",VLOOKUP($R79,'FO-DRE-01'!$A$7:$U$301,11,FALSE)) ->  | AG79: =IF($R79="","",VLOOKUP($R79,'FO-DRE-01'!$A$7:$U$301,12,FALSE)) ->  | AH79: =IF($R79="","",VLOOKUP($R79,'FO-DRE-01'!$A$7:$U$301,13,FALSE)) ->  | AI79: =IF($R79="","",VLOOKUP($R79,'FO-DRE-01'!$A$7:$U$301,14,FALSE)) ->  | AJ79: =IF($R79="","",VLOOKUP($R79,'FO-DRE-01'!$A$7:$U$301,15,FALSE)) ->  | AK79: =IF($S79="","",VLOOKUP($S79,'FO-DRE-04'!$A$6:$L$301,2,FALSE)) ->  | AL79: =IF($S79="","",VLOOKUP($S79,'FO-DRE-04'!$A$6:$L$301,3,FALSE)) ->  | AM79: =IF($S79="","",VLOOKUP($S79,'FO-DRE-04'!$A$6:$L$301,4,FALSE)) ->  | AN79: =IF($S79="","",VLOOKUP($S79,'FO-DRE-04'!$A$6:$L$301,6,FALSE)) ->  | AO79: =IF($S79="","",VLOOKUP($S79,'FO-DRE-04'!$A$6:$L$301,11,FALSE)) ->  | AP79: =IF($T79="","",VLOOKUP($T79,'FO-DRE-02'!$A$6:$M$101,2,FALSE)) ->  | AQ79: =IF($T79="","",VLOOKUP($T79,'FO-DRE-02'!$A$6:$M$101,3,FALSE)) ->  | AR79: =IF($T79="","",VLOOKUP($T79,'FO-DRE-02'!$A$6:$M$101,6,FALSE)) ->  | AS79: =IF($T79="","",VLOOKUP($T79,'FO-DRE-02'!$A$6:$M$101,4,FALSE)) ->  | AT79: =IF($T79="","",VLOOKUP($T79,'FO-DRE-02'!$A$6:$M$101,5,FALSE)) ->  | AU79: =IF($T79="","",VLOOKUP($T79,'FO-DRE-02'!$A$6:$M$101,8,FALSE)) ->  | AV79: =IF($T79="","",VLOOKUP($T79,'FO-DRE-02'!$A$6:$M$101,7,FALSE)) ->  | AW79: =IF($T79="","",VLOOKUP($T79,'FO-DRE-02'!$A$6:$M$101,9,FALSE)) ->  | AX79: =IF($T79="","",VLOOKUP($T79,'FO-DRE-02'!$A$6:$M$101,11,FALSE)) ->  | AY79: =IF($T79="","",VLOOKUP($T79,'FO-DRE-02'!$A$6:$M$101,12,FALSE)) ->  | AZ79: =IF($T79="","",VLOOKUP($T79,'FO-DRE-02'!$A$6:$M$101,13,FALSE)) ->  | BB79: 856 | BD79: 70 | BF79: F/D | BG79: F/D
I80: =IF(H80="1a",Hoja1!$B$126,IF(H80="1b",Hoja1!$B$127,IF(H80="2a",Hoja1!$B$128,IF(H80="2b",Hoja1!$B$129,IF(H80="3 ",Hoja1!$B$130,IF(H80="4 ",Hoja1!$B$131,IF(H80="5 ",Hoja1!$B$132,IF(H80="6 ",Hoja1!$B$133,IF(H80="7 ",Hoja1!$B$134,IF(H80="8 ",Hoja1!$B$135," ")))))))))) ->  | J80: =CONCATENATE(#REF!,"-","TX") ->  | K80: =CONCATENATE(#REF!,"-","RX") ->  | P80: 0 | V80: =IF($R80="","",VLOOKUP($R80,'FO-DRE-01'!$A$7:$U$301,18,FALSE)) ->  | W80: =IF($R80="","",VLOOKUP($R80,'FO-DRE-01'!$A$7:$U$301,16,FALSE)) ->  | X80: =IF($R80="","",VLOOKUP($R80,'FO-DRE-01'!$A$7:$U$301,17,FALSE)) ->  | Y80: =IF($R80="","",VLOOKUP($R80,'FO-DRE-01'!$A$7:$U$301,3,FALSE)) ->  | Z80: =IF($R80="","",VLOOKUP($R80,'FO-DRE-01'!$A$7:$U$301,4,FALSE)) ->  | AA80: =IF($R80="","",VLOOKUP($R80,'FO-DRE-01'!$A$7:$U$301,5,FALSE)) ->  | AB80: =IF($R80="","",VLOOKUP($R80,'FO-DRE-01'!$A$7:$U$301,7,FALSE)) ->  | AC80: =IF($R80="","",VLOOKUP($R80,'FO-DRE-01'!$A$7:$U$301,8,FALSE)) ->  | AD80: =IF($R80="","",VLOOKUP($R80,'FO-DRE-01'!$A$7:$U$301,9,FALSE)) ->  | AE80: =IF($R80="","",VLOOKUP($R80,'FO-DRE-01'!$A$7:$U$301,10,FALSE)) ->  | AF80: =IF($R80="","",VLOOKUP($R80,'FO-DRE-01'!$A$7:$U$301,11,FALSE)) ->  | AG80: =IF($R80="","",VLOOKUP($R80,'FO-DRE-01'!$A$7:$U$301,12,FALSE)) ->  | AH80: =IF($R80="","",VLOOKUP($R80,'FO-DRE-01'!$A$7:$U$301,13,FALSE)) ->  | AI80: =IF($R80="","",VLOOKUP($R80,'FO-DRE-01'!$A$7:$U$301,14,FALSE)) ->  | AJ80: =IF($R80="","",VLOOKUP($R80,'FO-DRE-01'!$A$7:$U$301,15,FALSE)) ->  | AK80: =IF($S80="","",VLOOKUP($S80,'FO-DRE-04'!$A$6:$L$301,2,FALSE)) ->  | AL80: =IF($S80="","",VLOOKUP($S80,'FO-DRE-04'!$A$6:$L$301,3,FALSE)) ->  | AM80: =IF($S80="","",VLOOKUP($S80,'FO-DRE-04'!$A$6:$L$301,4,FALSE)) ->  | AN80: =IF($S80="","",VLOOKUP($S80,'FO-DRE-04'!$A$6:$L$301,6,FALSE)) ->  | AO80: =IF($S80="","",VLOOKUP($S80,'FO-DRE-04'!$A$6:$L$301,11,FALSE)) ->  | AP80: =IF($T80="","",VLOOKUP($T80,'FO-DRE-02'!$A$6:$M$101,2,FALSE)) ->  | AQ80: =IF($T80="","",VLOOKUP($T80,'FO-DRE-02'!$A$6:$M$101,3,FALSE)) ->  | AR80: =IF($T80="","",VLOOKUP($T80,'FO-DRE-02'!$A$6:$M$101,6,FALSE)) ->  | AS80: =IF($T80="","",VLOOKUP($T80,'FO-DRE-02'!$A$6:$M$101,4,FALSE)) ->  | AT80: =IF($T80="","",VLOOKUP($T80,'FO-DRE-02'!$A$6:$M$101,5,FALSE)) ->  | AU80: =IF($T80="","",VLOOKUP($T80,'FO-DRE-02'!$A$6:$M$101,8,FALSE)) ->  | AV80: =IF($T80="","",VLOOKUP($T80,'FO-DRE-02'!$A$6:$M$101,7,FALSE)) ->  | AW80: =IF($T80="","",VLOOKUP($T80,'FO-DRE-02'!$A$6:$M$101,9,FALSE)) ->  | AX80: =IF($T80="","",VLOOKUP($T80,'FO-DRE-02'!$A$6:$M$101,11,FALSE)) ->  | AY80: =IF($T80="","",VLOOKUP($T80,'FO-DRE-02'!$A$6:$M$101,12,FALSE)) ->  | AZ80: =IF($T80="","",VLOOKUP($T80,'FO-DRE-02'!$A$6:$M$101,13,FALSE)) ->  | BB80: 856 | BD80: 71 | BF80: F/D | BG80: F/D
I81: =IF(H81="1a",Hoja1!$B$126,IF(H81="1b",Hoja1!$B$127,IF(H81="2a",Hoja1!$B$128,IF(H81="2b",Hoja1!$B$129,IF(H81="3 ",Hoja1!$B$130,IF(H81="4 ",Hoja1!$B$131,IF(H81="5 ",Hoja1!$B$132,IF(H81="6 ",Hoja1!$B$133,IF(H81="7 ",Hoja1!$B$134,IF(H81="8 ",Hoja1!$B$135," ")))))))))) ->  | J81: =CONCATENATE(#REF!,"-","TX") ->  | K81: =CONCATENATE(#REF!,"-","RX") ->  | P81: 0 | V81: =IF($R81="","",VLOOKUP($R81,'FO-DRE-01'!$A$7:$U$301,18,FALSE)) ->  | W81: =IF($R81="","",VLOOKUP($R81,'FO-DRE-01'!$A$7:$U$301,16,FALSE)) ->  | X81: =IF($R81="","",VLOOKUP($R81,'FO-DRE-01'!$A$7:$U$301,17,FALSE)) ->  | Y81: =IF($R81="","",VLOOKUP($R81,'FO-DRE-01'!$A$7:$U$301,3,FALSE)) ->  | Z81: =IF($R81="","",VLOOKUP($R81,'FO-DRE-01'!$A$7:$U$301,4,FALSE)) ->  | AA81: =IF($R81="","",VLOOKUP($R81,'FO-DRE-01'!$A$7:$U$301,5,FALSE)) ->  | AB81: =IF($R81="","",VLOOKUP($R81,'FO-DRE-01'!$A$7:$U$301,7,FALSE)) ->  | AC81: =IF($R81="","",VLOOKUP($R81,'FO-DRE-01'!$A$7:$U$301,8,FALSE)) ->  | AD81: =IF($R81="","",VLOOKUP($R81,'FO-DRE-01'!$A$7:$U$301,9,FALSE)) ->  | AE81: =IF($R81="","",VLOOKUP($R81,'FO-DRE-01'!$A$7:$U$301,10,FALSE)) ->  | AF81: =IF($R81="","",VLOOKUP($R81,'FO-DRE-01'!$A$7:$U$301,11,FALSE)) ->  | AG81: =IF($R81="","",VLOOKUP($R81,'FO-DRE-01'!$A$7:$U$301,12,FALSE)) ->  | AH81: =IF($R81="","",VLOOKUP($R81,'FO-DRE-01'!$A$7:$U$301,13,FALSE)) ->  | AI81: =IF($R81="","",VLOOKUP($R81,'FO-DRE-01'!$A$7:$U$301,14,FALSE)) ->  | AJ81: =IF($R81="","",VLOOKUP($R81,'FO-DRE-01'!$A$7:$U$301,15,FALSE)) ->  | AK81: =IF($S81="","",VLOOKUP($S81,'FO-DRE-04'!$A$6:$L$301,2,FALSE)) ->  | AL81: =IF($S81="","",VLOOKUP($S81,'FO-DRE-04'!$A$6:$L$301,3,FALSE)) ->  | AM81: =IF($S81="","",VLOOKUP($S81,'FO-DRE-04'!$A$6:$L$301,4,FALSE)) ->  | AN81: =IF($S81="","",VLOOKUP($S81,'FO-DRE-04'!$A$6:$L$301,6,FALSE)) ->  | AO81: =IF($S81="","",VLOOKUP($S81,'FO-DRE-04'!$A$6:$L$301,11,FALSE)) ->  | AP81: =IF($T81="","",VLOOKUP($T81,'FO-DRE-02'!$A$6:$M$101,2,FALSE)) ->  | AQ81: =IF($T81="","",VLOOKUP($T81,'FO-DRE-02'!$A$6:$M$101,3,FALSE)) ->  | AR81: =IF($T81="","",VLOOKUP($T81,'FO-DRE-02'!$A$6:$M$101,6,FALSE)) ->  | AS81: =IF($T81="","",VLOOKUP($T81,'FO-DRE-02'!$A$6:$M$101,4,FALSE)) ->  | AT81: =IF($T81="","",VLOOKUP($T81,'FO-DRE-02'!$A$6:$M$101,5,FALSE)) ->  | AU81: =IF($T81="","",VLOOKUP($T81,'FO-DRE-02'!$A$6:$M$101,8,FALSE)) ->  | AV81: =IF($T81="","",VLOOKUP($T81,'FO-DRE-02'!$A$6:$M$101,7,FALSE)) ->  | AW81: =IF($T81="","",VLOOKUP($T81,'FO-DRE-02'!$A$6:$M$101,9,FALSE)) ->  | AX81: =IF($T81="","",VLOOKUP($T81,'FO-DRE-02'!$A$6:$M$101,11,FALSE)) ->  | AY81: =IF($T81="","",VLOOKUP($T81,'FO-DRE-02'!$A$6:$M$101,12,FALSE)) ->  | AZ81: =IF($T81="","",VLOOKUP($T81,'FO-DRE-02'!$A$6:$M$101,13,FALSE)) ->  | BB81: 856 | BD81: 72 | BF81: F/D | BG81: F/D
I82: =IF(H82="1a",Hoja1!$B$126,IF(H82="1b",Hoja1!$B$127,IF(H82="2a",Hoja1!$B$128,IF(H82="2b",Hoja1!$B$129,IF(H82="3 ",Hoja1!$B$130,IF(H82="4 ",Hoja1!$B$131,IF(H82="5 ",Hoja1!$B$132,IF(H82="6 ",Hoja1!$B$133,IF(H82="7 ",Hoja1!$B$134,IF(H82="8 ",Hoja1!$B$135," ")))))))))) ->  | J82: =CONCATENATE(#REF!,"-","TX") ->  | K82: =CONCATENATE(#REF!,"-","RX") ->  | P82: 0 | V82: =IF($R82="","",VLOOKUP($R82,'FO-DRE-01'!$A$7:$U$301,18,FALSE)) ->  | W82: =IF($R82="","",VLOOKUP($R82,'FO-DRE-01'!$A$7:$U$301,16,FALSE)) ->  | X82: =IF($R82="","",VLOOKUP($R82,'FO-DRE-01'!$A$7:$U$301,17,FALSE)) ->  | Y82: =IF($R82="","",VLOOKUP($R82,'FO-DRE-01'!$A$7:$U$301,3,FALSE)) ->  | Z82: =IF($R82="","",VLOOKUP($R82,'FO-DRE-01'!$A$7:$U$301,4,FALSE)) ->  | AA82: =IF($R82="","",VLOOKUP($R82,'FO-DRE-01'!$A$7:$U$301,5,FALSE)) ->  | AB82: =IF($R82="","",VLOOKUP($R82,'FO-DRE-01'!$A$7:$U$301,7,FALSE)) ->  | AC82: =IF($R82="","",VLOOKUP($R82,'FO-DRE-01'!$A$7:$U$301,8,FALSE)) ->  | AD82: =IF($R82="","",VLOOKUP($R82,'FO-DRE-01'!$A$7:$U$301,9,FALSE)) ->  | AE82: =IF($R82="","",VLOOKUP($R82,'FO-DRE-01'!$A$7:$U$301,10,FALSE)) ->  | AF82: =IF($R82="","",VLOOKUP($R82,'FO-DRE-01'!$A$7:$U$301,11,FALSE)) ->  | AG82: =IF($R82="","",VLOOKUP($R82,'FO-DRE-01'!$A$7:$U$301,12,FALSE)) ->  | AH82: =IF($R82="","",VLOOKUP($R82,'FO-DRE-01'!$A$7:$U$301,13,FALSE)) ->  | AI82: =IF($R82="","",VLOOKUP($R82,'FO-DRE-01'!$A$7:$U$301,14,FALSE)) ->  | AJ82: =IF($R82="","",VLOOKUP($R82,'FO-DRE-01'!$A$7:$U$301,15,FALSE)) ->  | AK82: =IF($S82="","",VLOOKUP($S82,'FO-DRE-04'!$A$6:$L$301,2,FALSE)) ->  | AL82: =IF($S82="","",VLOOKUP($S82,'FO-DRE-04'!$A$6:$L$301,3,FALSE)) ->  | AM82: =IF($S82="","",VLOOKUP($S82,'FO-DRE-04'!$A$6:$L$301,4,FALSE)) ->  | AN82: =IF($S82="","",VLOOKUP($S82,'FO-DRE-04'!$A$6:$L$301,6,FALSE)) ->  | AO82: =IF($S82="","",VLOOKUP($S82,'FO-DRE-04'!$A$6:$L$301,11,FALSE)) ->  | AP82: =IF($T82="","",VLOOKUP($T82,'FO-DRE-02'!$A$6:$M$101,2,FALSE)) ->  | AQ82: =IF($T82="","",VLOOKUP($T82,'FO-DRE-02'!$A$6:$M$101,3,FALSE)) ->  | AR82: =IF($T82="","",VLOOKUP($T82,'FO-DRE-02'!$A$6:$M$101,6,FALSE)) ->  | AS82: =IF($T82="","",VLOOKUP($T82,'FO-DRE-02'!$A$6:$M$101,4,FALSE)) ->  | AT82: =IF($T82="","",VLOOKUP($T82,'FO-DRE-02'!$A$6:$M$101,5,FALSE)) ->  | AU82: =IF($T82="","",VLOOKUP($T82,'FO-DRE-02'!$A$6:$M$101,8,FALSE)) ->  | AV82: =IF($T82="","",VLOOKUP($T82,'FO-DRE-02'!$A$6:$M$101,7,FALSE)) ->  | AW82: =IF($T82="","",VLOOKUP($T82,'FO-DRE-02'!$A$6:$M$101,9,FALSE)) ->  | AX82: =IF($T82="","",VLOOKUP($T82,'FO-DRE-02'!$A$6:$M$101,11,FALSE)) ->  | AY82: =IF($T82="","",VLOOKUP($T82,'FO-DRE-02'!$A$6:$M$101,12,FALSE)) ->  | AZ82: =IF($T82="","",VLOOKUP($T82,'FO-DRE-02'!$A$6:$M$101,13,FALSE)) ->  | BB82: 856 | BD82: 73 | BF82: F/D | BG82: F/D
I83: =IF(H83="1a",Hoja1!$B$126,IF(H83="1b",Hoja1!$B$127,IF(H83="2a",Hoja1!$B$128,IF(H83="2b",Hoja1!$B$129,IF(H83="3 ",Hoja1!$B$130,IF(H83="4 ",Hoja1!$B$131,IF(H83="5 ",Hoja1!$B$132,IF(H83="6 ",Hoja1!$B$133,IF(H83="7 ",Hoja1!$B$134,IF(H83="8 ",Hoja1!$B$135," ")))))))))) ->  | J83: =CONCATENATE(#REF!,"-","TX") ->  | K83: =CONCATENATE(#REF!,"-","RX") ->  | P83: 0 | V83: =IF($R83="","",VLOOKUP($R83,'FO-DRE-01'!$A$7:$U$301,18,FALSE)) ->  | W83: =IF($R83="","",VLOOKUP($R83,'FO-DRE-01'!$A$7:$U$301,16,FALSE)) ->  | X83: =IF($R83="","",VLOOKUP($R83,'FO-DRE-01'!$A$7:$U$301,17,FALSE)) ->  | Y83: =IF($R83="","",VLOOKUP($R83,'FO-DRE-01'!$A$7:$U$301,3,FALSE)) ->  | Z83: =IF($R83="","",VLOOKUP($R83,'FO-DRE-01'!$A$7:$U$301,4,FALSE)) ->  | AA83: =IF($R83="","",VLOOKUP($R83,'FO-DRE-01'!$A$7:$U$301,5,FALSE)) ->  | AB83: =IF($R83="","",VLOOKUP($R83,'FO-DRE-01'!$A$7:$U$301,7,FALSE)) ->  | AC83: =IF($R83="","",VLOOKUP($R83,'FO-DRE-01'!$A$7:$U$301,8,FALSE)) ->  | AD83: =IF($R83="","",VLOOKUP($R83,'FO-DRE-01'!$A$7:$U$301,9,FALSE)) ->  | AE83: =IF($R83="","",VLOOKUP($R83,'FO-DRE-01'!$A$7:$U$301,10,FALSE)) ->  | AF83: =IF($R83="","",VLOOKUP($R83,'FO-DRE-01'!$A$7:$U$301,11,FALSE)) ->  | AG83: =IF($R83="","",VLOOKUP($R83,'FO-DRE-01'!$A$7:$U$301,12,FALSE)) ->  | AH83: =IF($R83="","",VLOOKUP($R83,'FO-DRE-01'!$A$7:$U$301,13,FALSE)) ->  | AI83: =IF($R83="","",VLOOKUP($R83,'FO-DRE-01'!$A$7:$U$301,14,FALSE)) ->  | AJ83: =IF($R83="","",VLOOKUP($R83,'FO-DRE-01'!$A$7:$U$301,15,FALSE)) ->  | AK83: =IF($S83="","",VLOOKUP($S83,'FO-DRE-04'!$A$6:$L$301,2,FALSE)) ->  | AL83: =IF($S83="","",VLOOKUP($S83,'FO-DRE-04'!$A$6:$L$301,3,FALSE)) ->  | AM83: =IF($S83="","",VLOOKUP($S83,'FO-DRE-04'!$A$6:$L$301,4,FALSE)) ->  | AN83: =IF($S83="","",VLOOKUP($S83,'FO-DRE-04'!$A$6:$L$301,6,FALSE)) ->  | AO83: =IF($S83="","",VLOOKUP($S83,'FO-DRE-04'!$A$6:$L$301,11,FALSE)) ->  | AP83: =IF($T83="","",VLOOKUP($T83,'FO-DRE-02'!$A$6:$M$101,2,FALSE)) ->  | AQ83: =IF($T83="","",VLOOKUP($T83,'FO-DRE-02'!$A$6:$M$101,3,FALSE)) ->  | AR83: =IF($T83="","",VLOOKUP($T83,'FO-DRE-02'!$A$6:$M$101,6,FALSE)) ->  | AS83: =IF($T83="","",VLOOKUP($T83,'FO-DRE-02'!$A$6:$M$101,4,FALSE)) ->  | AT83: =IF($T83="","",VLOOKUP($T83,'FO-DRE-02'!$A$6:$M$101,5,FALSE)) ->  | AU83: =IF($T83="","",VLOOKUP($T83,'FO-DRE-02'!$A$6:$M$101,8,FALSE)) ->  | AV83: =IF($T83="","",VLOOKUP($T83,'FO-DRE-02'!$A$6:$M$101,7,FALSE)) ->  | AW83: =IF($T83="","",VLOOKUP($T83,'FO-DRE-02'!$A$6:$M$101,9,FALSE)) ->  | AX83: =IF($T83="","",VLOOKUP($T83,'FO-DRE-02'!$A$6:$M$101,11,FALSE)) ->  | AY83: =IF($T83="","",VLOOKUP($T83,'FO-DRE-02'!$A$6:$M$101,12,FALSE)) ->  | AZ83: =IF($T83="","",VLOOKUP($T83,'FO-DRE-02'!$A$6:$M$101,13,FALSE)) ->  | BB83: 856 | BD83: 74 | BF83: F/D | BG83: F/D
I84: =IF(H84="1a",Hoja1!$B$126,IF(H84="1b",Hoja1!$B$127,IF(H84="2a",Hoja1!$B$128,IF(H84="2b",Hoja1!$B$129,IF(H84="3 ",Hoja1!$B$130,IF(H84="4 ",Hoja1!$B$131,IF(H84="5 ",Hoja1!$B$132,IF(H84="6 ",Hoja1!$B$133,IF(H84="7 ",Hoja1!$B$134,IF(H84="8 ",Hoja1!$B$135," ")))))))))) ->  | J84: =CONCATENATE(#REF!,"-","TX") ->  | K84: =CONCATENATE(#REF!,"-","RX") ->  | P84: 0 | V84: =IF($R84="","",VLOOKUP($R84,'FO-DRE-01'!$A$7:$U$301,18,FALSE)) ->  | W84: =IF($R84="","",VLOOKUP($R84,'FO-DRE-01'!$A$7:$U$301,16,FALSE)) ->  | X84: =IF($R84="","",VLOOKUP($R84,'FO-DRE-01'!$A$7:$U$301,17,FALSE)) ->  | Y84: =IF($R84="","",VLOOKUP($R84,'FO-DRE-01'!$A$7:$U$301,3,FALSE)) ->  | Z84: =IF($R84="","",VLOOKUP($R84,'FO-DRE-01'!$A$7:$U$301,4,FALSE)) ->  | AA84: =IF($R84="","",VLOOKUP($R84,'FO-DRE-01'!$A$7:$U$301,5,FALSE)) ->  | AB84: =IF($R84="","",VLOOKUP($R84,'FO-DRE-01'!$A$7:$U$301,7,FALSE)) ->  | AC84: =IF($R84="","",VLOOKUP($R84,'FO-DRE-01'!$A$7:$U$301,8,FALSE)) ->  | AD84: =IF($R84="","",VLOOKUP($R84,'FO-DRE-01'!$A$7:$U$301,9,FALSE)) ->  | AE84: =IF($R84="","",VLOOKUP($R84,'FO-DRE-01'!$A$7:$U$301,10,FALSE)) ->  | AF84: =IF($R84="","",VLOOKUP($R84,'FO-DRE-01'!$A$7:$U$301,11,FALSE)) ->  | AG84: =IF($R84="","",VLOOKUP($R84,'FO-DRE-01'!$A$7:$U$301,12,FALSE)) ->  | AH84: =IF($R84="","",VLOOKUP($R84,'FO-DRE-01'!$A$7:$U$301,13,FALSE)) ->  | AI84: =IF($R84="","",VLOOKUP($R84,'FO-DRE-01'!$A$7:$U$301,14,FALSE)) ->  | AJ84: =IF($R84="","",VLOOKUP($R84,'FO-DRE-01'!$A$7:$U$301,15,FALSE)) ->  | AK84: =IF($S84="","",VLOOKUP($S84,'FO-DRE-04'!$A$6:$L$301,2,FALSE)) ->  | AL84: =IF($S84="","",VLOOKUP($S84,'FO-DRE-04'!$A$6:$L$301,3,FALSE)) ->  | AM84: =IF($S84="","",VLOOKUP($S84,'FO-DRE-04'!$A$6:$L$301,4,FALSE)) ->  | AN84: =IF($S84="","",VLOOKUP($S84,'FO-DRE-04'!$A$6:$L$301,6,FALSE)) ->  | AO84: =IF($S84="","",VLOOKUP($S84,'FO-DRE-04'!$A$6:$L$301,11,FALSE)) ->  | AP84: =IF($T84="","",VLOOKUP($T84,'FO-DRE-02'!$A$6:$M$101,2,FALSE)) ->  | AQ84: =IF($T84="","",VLOOKUP($T84,'FO-DRE-02'!$A$6:$M$101,3,FALSE)) ->  | AR84: =IF($T84="","",VLOOKUP($T84,'FO-DRE-02'!$A$6:$M$101,6,FALSE)) ->  | AS84: =IF($T84="","",VLOOKUP($T84,'FO-DRE-02'!$A$6:$M$101,4,FALSE)) ->  | AT84: =IF($T84="","",VLOOKUP($T84,'FO-DRE-02'!$A$6:$M$101,5,FALSE)) ->  | AU84: =IF($T84="","",VLOOKUP($T84,'FO-DRE-02'!$A$6:$M$101,8,FALSE)) ->  | AV84: =IF($T84="","",VLOOKUP($T84,'FO-DRE-02'!$A$6:$M$101,7,FALSE)) ->  | AW84: =IF($T84="","",VLOOKUP($T84,'FO-DRE-02'!$A$6:$M$101,9,FALSE)) ->  | AX84: =IF($T84="","",VLOOKUP($T84,'FO-DRE-02'!$A$6:$M$101,11,FALSE)) ->  | AY84: =IF($T84="","",VLOOKUP($T84,'FO-DRE-02'!$A$6:$M$101,12,FALSE)) ->  | AZ84: =IF($T84="","",VLOOKUP($T84,'FO-DRE-02'!$A$6:$M$101,13,FALSE)) ->  | BB84: 856 | BD84: 75 | BF84: F/D | BG84: F/D
I85: =IF(H85="1a",Hoja1!$B$126,IF(H85="1b",Hoja1!$B$127,IF(H85="2a",Hoja1!$B$128,IF(H85="2b",Hoja1!$B$129,IF(H85="3 ",Hoja1!$B$130,IF(H85="4 ",Hoja1!$B$131,IF(H85="5 ",Hoja1!$B$132,IF(H85="6 ",Hoja1!$B$133,IF(H85="7 ",Hoja1!$B$134,IF(H85="8 ",Hoja1!$B$135," ")))))))))) ->  | J85: =CONCATENATE(#REF!,"-","TX") ->  | K85: =CONCATENATE(#REF!,"-","RX") ->  | P85: 0 | V85: =IF($R85="","",VLOOKUP($R85,'FO-DRE-01'!$A$7:$U$301,18,FALSE)) ->  | W85: =IF($R85="","",VLOOKUP($R85,'FO-DRE-01'!$A$7:$U$301,16,FALSE)) ->  | X85: =IF($R85="","",VLOOKUP($R85,'FO-DRE-01'!$A$7:$U$301,17,FALSE)) ->  | Y85: =IF($R85="","",VLOOKUP($R85,'FO-DRE-01'!$A$7:$U$301,3,FALSE)) ->  | Z85: =IF($R85="","",VLOOKUP($R85,'FO-DRE-01'!$A$7:$U$301,4,FALSE)) ->  | AA85: =IF($R85="","",VLOOKUP($R85,'FO-DRE-01'!$A$7:$U$301,5,FALSE)) ->  | AB85: =IF($R85="","",VLOOKUP($R85,'FO-DRE-01'!$A$7:$U$301,7,FALSE)) ->  | AC85: =IF($R85="","",VLOOKUP($R85,'FO-DRE-01'!$A$7:$U$301,8,FALSE)) ->  | AD85: =IF($R85="","",VLOOKUP($R85,'FO-DRE-01'!$A$7:$U$301,9,FALSE)) ->  | AE85: =IF($R85="","",VLOOKUP($R85,'FO-DRE-01'!$A$7:$U$301,10,FALSE)) ->  | AF85: =IF($R85="","",VLOOKUP($R85,'FO-DRE-01'!$A$7:$U$301,11,FALSE)) ->  | AG85: =IF($R85="","",VLOOKUP($R85,'FO-DRE-01'!$A$7:$U$301,12,FALSE)) ->  | AH85: =IF($R85="","",VLOOKUP($R85,'FO-DRE-01'!$A$7:$U$301,13,FALSE)) ->  | AI85: =IF($R85="","",VLOOKUP($R85,'FO-DRE-01'!$A$7:$U$301,14,FALSE)) ->  | AJ85: =IF($R85="","",VLOOKUP($R85,'FO-DRE-01'!$A$7:$U$301,15,FALSE)) ->  | AK85: =IF($S85="","",VLOOKUP($S85,'FO-DRE-04'!$A$6:$L$301,2,FALSE)) ->  | AL85: =IF($S85="","",VLOOKUP($S85,'FO-DRE-04'!$A$6:$L$301,3,FALSE)) ->  | AM85: =IF($S85="","",VLOOKUP($S85,'FO-DRE-04'!$A$6:$L$301,4,FALSE)) ->  | AN85: =IF($S85="","",VLOOKUP($S85,'FO-DRE-04'!$A$6:$L$301,6,FALSE)) ->  | AO85: =IF($S85="","",VLOOKUP($S85,'FO-DRE-04'!$A$6:$L$301,11,FALSE)) ->  | AP85: =IF($T85="","",VLOOKUP($T85,'FO-DRE-02'!$A$6:$M$101,2,FALSE)) ->  | AQ85: =IF($T85="","",VLOOKUP($T85,'FO-DRE-02'!$A$6:$M$101,3,FALSE)) ->  | AR85: =IF($T85="","",VLOOKUP($T85,'FO-DRE-02'!$A$6:$M$101,6,FALSE)) ->  | AS85: =IF($T85="","",VLOOKUP($T85,'FO-DRE-02'!$A$6:$M$101,4,FALSE)) ->  | AT85: =IF($T85="","",VLOOKUP($T85,'FO-DRE-02'!$A$6:$M$101,5,FALSE)) ->  | AU85: =IF($T85="","",VLOOKUP($T85,'FO-DRE-02'!$A$6:$M$101,8,FALSE)) ->  | AV85: =IF($T85="","",VLOOKUP($T85,'FO-DRE-02'!$A$6:$M$101,7,FALSE)) ->  | AW85: =IF($T85="","",VLOOKUP($T85,'FO-DRE-02'!$A$6:$M$101,9,FALSE)) ->  | AX85: =IF($T85="","",VLOOKUP($T85,'FO-DRE-02'!$A$6:$M$101,11,FALSE)) ->  | AY85: =IF($T85="","",VLOOKUP($T85,'FO-DRE-02'!$A$6:$M$101,12,FALSE)) ->  | AZ85: =IF($T85="","",VLOOKUP($T85,'FO-DRE-02'!$A$6:$M$101,13,FALSE)) ->  | BB85: 856 | BD85: 76 | BF85: F/D | BG85: F/D
I86: =IF(H86="1a",Hoja1!$B$126,IF(H86="1b",Hoja1!$B$127,IF(H86="2a",Hoja1!$B$128,IF(H86="2b",Hoja1!$B$129,IF(H86="3 ",Hoja1!$B$130,IF(H86="4 ",Hoja1!$B$131,IF(H86="5 ",Hoja1!$B$132,IF(H86="6 ",Hoja1!$B$133,IF(H86="7 ",Hoja1!$B$134,IF(H86="8 ",Hoja1!$B$135," ")))))))))) ->  | J86: =CONCATENATE(#REF!,"-","TX") ->  | K86: =CONCATENATE(#REF!,"-","RX") ->  | P86: 0 | V86: =IF($R86="","",VLOOKUP($R86,'FO-DRE-01'!$A$7:$U$301,18,FALSE)) ->  | W86: =IF($R86="","",VLOOKUP($R86,'FO-DRE-01'!$A$7:$U$301,16,FALSE)) ->  | X86: =IF($R86="","",VLOOKUP($R86,'FO-DRE-01'!$A$7:$U$301,17,FALSE)) ->  | Y86: =IF($R86="","",VLOOKUP($R86,'FO-DRE-01'!$A$7:$U$301,3,FALSE)) ->  | Z86: =IF($R86="","",VLOOKUP($R86,'FO-DRE-01'!$A$7:$U$301,4,FALSE)) ->  | AA86: =IF($R86="","",VLOOKUP($R86,'FO-DRE-01'!$A$7:$U$301,5,FALSE)) ->  | AB86: =IF($R86="","",VLOOKUP($R86,'FO-DRE-01'!$A$7:$U$301,7,FALSE)) ->  | AC86: =IF($R86="","",VLOOKUP($R86,'FO-DRE-01'!$A$7:$U$301,8,FALSE)) ->  | AD86: =IF($R86="","",VLOOKUP($R86,'FO-DRE-01'!$A$7:$U$301,9,FALSE)) ->  | AE86: =IF($R86="","",VLOOKUP($R86,'FO-DRE-01'!$A$7:$U$301,10,FALSE)) ->  | AF86: =IF($R86="","",VLOOKUP($R86,'FO-DRE-01'!$A$7:$U$301,11,FALSE)) ->  | AG86: =IF($R86="","",VLOOKUP($R86,'FO-DRE-01'!$A$7:$U$301,12,FALSE)) ->  | AH86: =IF($R86="","",VLOOKUP($R86,'FO-DRE-01'!$A$7:$U$301,13,FALSE)) ->  | AI86: =IF($R86="","",VLOOKUP($R86,'FO-DRE-01'!$A$7:$U$301,14,FALSE)) ->  | AJ86: =IF($R86="","",VLOOKUP($R86,'FO-DRE-01'!$A$7:$U$301,15,FALSE)) ->  | AK86: =IF($S86="","",VLOOKUP($S86,'FO-DRE-04'!$A$6:$L$301,2,FALSE)) ->  | AL86: =IF($S86="","",VLOOKUP($S86,'FO-DRE-04'!$A$6:$L$301,3,FALSE)) ->  | AM86: =IF($S86="","",VLOOKUP($S86,'FO-DRE-04'!$A$6:$L$301,4,FALSE)) ->  | AN86: =IF($S86="","",VLOOKUP($S86,'FO-DRE-04'!$A$6:$L$301,6,FALSE)) ->  | AO86: =IF($S86="","",VLOOKUP($S86,'FO-DRE-04'!$A$6:$L$301,11,FALSE)) ->  | AP86: =IF($T86="","",VLOOKUP($T86,'FO-DRE-02'!$A$6:$M$101,2,FALSE)) ->  | AQ86: =IF($T86="","",VLOOKUP($T86,'FO-DRE-02'!$A$6:$M$101,3,FALSE)) ->  | AR86: =IF($T86="","",VLOOKUP($T86,'FO-DRE-02'!$A$6:$M$101,6,FALSE)) ->  | AS86: =IF($T86="","",VLOOKUP($T86,'FO-DRE-02'!$A$6:$M$101,4,FALSE)) ->  | AT86: =IF($T86="","",VLOOKUP($T86,'FO-DRE-02'!$A$6:$M$101,5,FALSE)) ->  | AU86: =IF($T86="","",VLOOKUP($T86,'FO-DRE-02'!$A$6:$M$101,8,FALSE)) ->  | AV86: =IF($T86="","",VLOOKUP($T86,'FO-DRE-02'!$A$6:$M$101,7,FALSE)) ->  | AW86: =IF($T86="","",VLOOKUP($T86,'FO-DRE-02'!$A$6:$M$101,9,FALSE)) ->  | AX86: =IF($T86="","",VLOOKUP($T86,'FO-DRE-02'!$A$6:$M$101,11,FALSE)) ->  | AY86: =IF($T86="","",VLOOKUP($T86,'FO-DRE-02'!$A$6:$M$101,12,FALSE)) ->  | AZ86: =IF($T86="","",VLOOKUP($T86,'FO-DRE-02'!$A$6:$M$101,13,FALSE)) ->  | BB86: 856 | BD86: 77 | BF86: F/D | BG86: F/D
I87: =IF(H87="1a",Hoja1!$B$126,IF(H87="1b",Hoja1!$B$127,IF(H87="2a",Hoja1!$B$128,IF(H87="2b",Hoja1!$B$129,IF(H87="3 ",Hoja1!$B$130,IF(H87="4 ",Hoja1!$B$131,IF(H87="5 ",Hoja1!$B$132,IF(H87="6 ",Hoja1!$B$133,IF(H87="7 ",Hoja1!$B$134,IF(H87="8 ",Hoja1!$B$135," ")))))))))) ->  | J87: =CONCATENATE(#REF!,"-","TX") ->  | K87: =CONCATENATE(#REF!,"-","RX") ->  | P87: 0 | V87: =IF($R87="","",VLOOKUP($R87,'FO-DRE-01'!$A$7:$U$301,18,FALSE)) ->  | W87: =IF($R87="","",VLOOKUP($R87,'FO-DRE-01'!$A$7:$U$301,16,FALSE)) ->  | X87: =IF($R87="","",VLOOKUP($R87,'FO-DRE-01'!$A$7:$U$301,17,FALSE)) ->  | Y87: =IF($R87="","",VLOOKUP($R87,'FO-DRE-01'!$A$7:$U$301,3,FALSE)) ->  | Z87: =IF($R87="","",VLOOKUP($R87,'FO-DRE-01'!$A$7:$U$301,4,FALSE)) ->  | AA87: =IF($R87="","",VLOOKUP($R87,'FO-DRE-01'!$A$7:$U$301,5,FALSE)) ->  | AB87: =IF($R87="","",VLOOKUP($R87,'FO-DRE-01'!$A$7:$U$301,7,FALSE)) ->  | AC87: =IF($R87="","",VLOOKUP($R87,'FO-DRE-01'!$A$7:$U$301,8,FALSE)) ->  | AD87: =IF($R87="","",VLOOKUP($R87,'FO-DRE-01'!$A$7:$U$301,9,FALSE)) ->  | AE87: =IF($R87="","",VLOOKUP($R87,'FO-DRE-01'!$A$7:$U$301,10,FALSE)) ->  | AF87: =IF($R87="","",VLOOKUP($R87,'FO-DRE-01'!$A$7:$U$301,11,FALSE)) ->  | AG87: =IF($R87="","",VLOOKUP($R87,'FO-DRE-01'!$A$7:$U$301,12,FALSE)) ->  | AH87: =IF($R87="","",VLOOKUP($R87,'FO-DRE-01'!$A$7:$U$301,13,FALSE)) ->  | AI87: =IF($R87="","",VLOOKUP($R87,'FO-DRE-01'!$A$7:$U$301,14,FALSE)) ->  | AJ87: =IF($R87="","",VLOOKUP($R87,'FO-DRE-01'!$A$7:$U$301,15,FALSE)) ->  | AK87: =IF($S87="","",VLOOKUP($S87,'FO-DRE-04'!$A$6:$L$301,2,FALSE)) ->  | AL87: =IF($S87="","",VLOOKUP($S87,'FO-DRE-04'!$A$6:$L$301,3,FALSE)) ->  | AM87: =IF($S87="","",VLOOKUP($S87,'FO-DRE-04'!$A$6:$L$301,4,FALSE)) ->  | AN87: =IF($S87="","",VLOOKUP($S87,'FO-DRE-04'!$A$6:$L$301,6,FALSE)) ->  | AO87: =IF($S87="","",VLOOKUP($S87,'FO-DRE-04'!$A$6:$L$301,11,FALSE)) ->  | AP87: =IF($T87="","",VLOOKUP($T87,'FO-DRE-02'!$A$6:$M$101,2,FALSE)) ->  | AQ87: =IF($T87="","",VLOOKUP($T87,'FO-DRE-02'!$A$6:$M$101,3,FALSE)) ->  | AR87: =IF($T87="","",VLOOKUP($T87,'FO-DRE-02'!$A$6:$M$101,6,FALSE)) ->  | AS87: =IF($T87="","",VLOOKUP($T87,'FO-DRE-02'!$A$6:$M$101,4,FALSE)) ->  | AT87: =IF($T87="","",VLOOKUP($T87,'FO-DRE-02'!$A$6:$M$101,5,FALSE)) ->  | AU87: =IF($T87="","",VLOOKUP($T87,'FO-DRE-02'!$A$6:$M$101,8,FALSE)) ->  | AV87: =IF($T87="","",VLOOKUP($T87,'FO-DRE-02'!$A$6:$M$101,7,FALSE)) ->  | AW87: =IF($T87="","",VLOOKUP($T87,'FO-DRE-02'!$A$6:$M$101,9,FALSE)) ->  | AX87: =IF($T87="","",VLOOKUP($T87,'FO-DRE-02'!$A$6:$M$101,11,FALSE)) ->  | AY87: =IF($T87="","",VLOOKUP($T87,'FO-DRE-02'!$A$6:$M$101,12,FALSE)) ->  | AZ87: =IF($T87="","",VLOOKUP($T87,'FO-DRE-02'!$A$6:$M$101,13,FALSE)) ->  | BB87: 856 | BD87: 78 | BF87: F/D | BG87: F/D
I88: =IF(H88="1a",Hoja1!$B$126,IF(H88="1b",Hoja1!$B$127,IF(H88="2a",Hoja1!$B$128,IF(H88="2b",Hoja1!$B$129,IF(H88="3 ",Hoja1!$B$130,IF(H88="4 ",Hoja1!$B$131,IF(H88="5 ",Hoja1!$B$132,IF(H88="6 ",Hoja1!$B$133,IF(H88="7 ",Hoja1!$B$134,IF(H88="8 ",Hoja1!$B$135," ")))))))))) ->  | J88: =CONCATENATE(#REF!,"-","TX") ->  | K88: =CONCATENATE(#REF!,"-","RX") ->  | P88: 0 | V88: =IF($R88="","",VLOOKUP($R88,'FO-DRE-01'!$A$7:$U$301,18,FALSE)) ->  | W88: =IF($R88="","",VLOOKUP($R88,'FO-DRE-01'!$A$7:$U$301,16,FALSE)) ->  | X88: =IF($R88="","",VLOOKUP($R88,'FO-DRE-01'!$A$7:$U$301,17,FALSE)) ->  | Y88: =IF($R88="","",VLOOKUP($R88,'FO-DRE-01'!$A$7:$U$301,3,FALSE)) ->  | Z88: =IF($R88="","",VLOOKUP($R88,'FO-DRE-01'!$A$7:$U$301,4,FALSE)) ->  | AA88: =IF($R88="","",VLOOKUP($R88,'FO-DRE-01'!$A$7:$U$301,5,FALSE)) ->  | AB88: =IF($R88="","",VLOOKUP($R88,'FO-DRE-01'!$A$7:$U$301,7,FALSE)) ->  | AC88: =IF($R88="","",VLOOKUP($R88,'FO-DRE-01'!$A$7:$U$301,8,FALSE)) ->  | AD88: =IF($R88="","",VLOOKUP($R88,'FO-DRE-01'!$A$7:$U$301,9,FALSE)) ->  | AE88: =IF($R88="","",VLOOKUP($R88,'FO-DRE-01'!$A$7:$U$301,10,FALSE)) ->  | AF88: =IF($R88="","",VLOOKUP($R88,'FO-DRE-01'!$A$7:$U$301,11,FALSE)) ->  | AG88: =IF($R88="","",VLOOKUP($R88,'FO-DRE-01'!$A$7:$U$301,12,FALSE)) ->  | AH88: =IF($R88="","",VLOOKUP($R88,'FO-DRE-01'!$A$7:$U$301,13,FALSE)) ->  | AI88: =IF($R88="","",VLOOKUP($R88,'FO-DRE-01'!$A$7:$U$301,14,FALSE)) ->  | AJ88: =IF($R88="","",VLOOKUP($R88,'FO-DRE-01'!$A$7:$U$301,15,FALSE)) ->  | AK88: =IF($S88="","",VLOOKUP($S88,'FO-DRE-04'!$A$6:$L$301,2,FALSE)) ->  | AL88: =IF($S88="","",VLOOKUP($S88,'FO-DRE-04'!$A$6:$L$301,3,FALSE)) ->  | AM88: =IF($S88="","",VLOOKUP($S88,'FO-DRE-04'!$A$6:$L$301,4,FALSE)) ->  | AN88: =IF($S88="","",VLOOKUP($S88,'FO-DRE-04'!$A$6:$L$301,6,FALSE)) ->  | AO88: =IF($S88="","",VLOOKUP($S88,'FO-DRE-04'!$A$6:$L$301,11,FALSE)) ->  | AP88: =IF($T88="","",VLOOKUP($T88,'FO-DRE-02'!$A$6:$M$101,2,FALSE)) ->  | AQ88: =IF($T88="","",VLOOKUP($T88,'FO-DRE-02'!$A$6:$M$101,3,FALSE)) ->  | AR88: =IF($T88="","",VLOOKUP($T88,'FO-DRE-02'!$A$6:$M$101,6,FALSE)) ->  | AS88: =IF($T88="","",VLOOKUP($T88,'FO-DRE-02'!$A$6:$M$101,4,FALSE)) ->  | AT88: =IF($T88="","",VLOOKUP($T88,'FO-DRE-02'!$A$6:$M$101,5,FALSE)) ->  | AU88: =IF($T88="","",VLOOKUP($T88,'FO-DRE-02'!$A$6:$M$101,8,FALSE)) ->  | AV88: =IF($T88="","",VLOOKUP($T88,'FO-DRE-02'!$A$6:$M$101,7,FALSE)) ->  | AW88: =IF($T88="","",VLOOKUP($T88,'FO-DRE-02'!$A$6:$M$101,9,FALSE)) ->  | AX88: =IF($T88="","",VLOOKUP($T88,'FO-DRE-02'!$A$6:$M$101,11,FALSE)) ->  | AY88: =IF($T88="","",VLOOKUP($T88,'FO-DRE-02'!$A$6:$M$101,12,FALSE)) ->  | AZ88: =IF($T88="","",VLOOKUP($T88,'FO-DRE-02'!$A$6:$M$101,13,FALSE)) ->  | BB88: 856 | BD88: 79 | BF88: F/D | BG88: F/D
I89: =IF(H89="1a",Hoja1!$B$126,IF(H89="1b",Hoja1!$B$127,IF(H89="2a",Hoja1!$B$128,IF(H89="2b",Hoja1!$B$129,IF(H89="3 ",Hoja1!$B$130,IF(H89="4 ",Hoja1!$B$131,IF(H89="5 ",Hoja1!$B$132,IF(H89="6 ",Hoja1!$B$133,IF(H89="7 ",Hoja1!$B$134,IF(H89="8 ",Hoja1!$B$135," ")))))))))) ->  | J89: =CONCATENATE(#REF!,"-","TX") ->  | K89: =CONCATENATE(#REF!,"-","RX") ->  | P89: 0 | V89: =IF($R89="","",VLOOKUP($R89,'FO-DRE-01'!$A$7:$U$301,18,FALSE)) ->  | W89: =IF($R89="","",VLOOKUP($R89,'FO-DRE-01'!$A$7:$U$301,16,FALSE)) ->  | X89: =IF($R89="","",VLOOKUP($R89,'FO-DRE-01'!$A$7:$U$301,17,FALSE)) ->  | Y89: =IF($R89="","",VLOOKUP($R89,'FO-DRE-01'!$A$7:$U$301,3,FALSE)) ->  | Z89: =IF($R89="","",VLOOKUP($R89,'FO-DRE-01'!$A$7:$U$301,4,FALSE)) ->  | AA89: =IF($R89="","",VLOOKUP($R89,'FO-DRE-01'!$A$7:$U$301,5,FALSE)) ->  | AB89: =IF($R89="","",VLOOKUP($R89,'FO-DRE-01'!$A$7:$U$301,7,FALSE)) ->  | AC89: =IF($R89="","",VLOOKUP($R89,'FO-DRE-01'!$A$7:$U$301,8,FALSE)) ->  | AD89: =IF($R89="","",VLOOKUP($R89,'FO-DRE-01'!$A$7:$U$301,9,FALSE)) ->  | AE89: =IF($R89="","",VLOOKUP($R89,'FO-DRE-01'!$A$7:$U$301,10,FALSE)) ->  | AF89: =IF($R89="","",VLOOKUP($R89,'FO-DRE-01'!$A$7:$U$301,11,FALSE)) ->  | AG89: =IF($R89="","",VLOOKUP($R89,'FO-DRE-01'!$A$7:$U$301,12,FALSE)) ->  | AH89: =IF($R89="","",VLOOKUP($R89,'FO-DRE-01'!$A$7:$U$301,13,FALSE)) ->  | AI89: =IF($R89="","",VLOOKUP($R89,'FO-DRE-01'!$A$7:$U$301,14,FALSE)) ->  | AJ89: =IF($R89="","",VLOOKUP($R89,'FO-DRE-01'!$A$7:$U$301,15,FALSE)) ->  | AK89: =IF($S89="","",VLOOKUP($S89,'FO-DRE-04'!$A$6:$L$301,2,FALSE)) ->  | AL89: =IF($S89="","",VLOOKUP($S89,'FO-DRE-04'!$A$6:$L$301,3,FALSE)) ->  | AM89: =IF($S89="","",VLOOKUP($S89,'FO-DRE-04'!$A$6:$L$301,4,FALSE)) ->  | AN89: =IF($S89="","",VLOOKUP($S89,'FO-DRE-04'!$A$6:$L$301,6,FALSE)) ->  | AO89: =IF($S89="","",VLOOKUP($S89,'FO-DRE-04'!$A$6:$L$301,11,FALSE)) ->  | AP89: =IF($T89="","",VLOOKUP($T89,'FO-DRE-02'!$A$6:$M$101,2,FALSE)) ->  | AQ89: =IF($T89="","",VLOOKUP($T89,'FO-DRE-02'!$A$6:$M$101,3,FALSE)) ->  | AR89: =IF($T89="","",VLOOKUP($T89,'FO-DRE-02'!$A$6:$M$101,6,FALSE)) ->  | AS89: =IF($T89="","",VLOOKUP($T89,'FO-DRE-02'!$A$6:$M$101,4,FALSE)) ->  | AT89: =IF($T89="","",VLOOKUP($T89,'FO-DRE-02'!$A$6:$M$101,5,FALSE)) ->  | AU89: =IF($T89="","",VLOOKUP($T89,'FO-DRE-02'!$A$6:$M$101,8,FALSE)) ->  | AV89: =IF($T89="","",VLOOKUP($T89,'FO-DRE-02'!$A$6:$M$101,7,FALSE)) ->  | AW89: =IF($T89="","",VLOOKUP($T89,'FO-DRE-02'!$A$6:$M$101,9,FALSE)) ->  | AX89: =IF($T89="","",VLOOKUP($T89,'FO-DRE-02'!$A$6:$M$101,11,FALSE)) ->  | AY89: =IF($T89="","",VLOOKUP($T89,'FO-DRE-02'!$A$6:$M$101,12,FALSE)) ->  | AZ89: =IF($T89="","",VLOOKUP($T89,'FO-DRE-02'!$A$6:$M$101,13,FALSE)) ->  | BB89: 856 | BD89: 80 | BF89: F/D | BG89: F/D | BO89: =IF(OR(AK89="MOVIL",AK89="PORTATIL"),"",IF(AN89="","",AN89)) ->  | BQ89: =IF(OR(BO89="",BP89=""),"",BP89*BO89) -> 
I90: =IF(H90="1a",Hoja1!$B$126,IF(H90="1b",Hoja1!$B$127,IF(H90="2a",Hoja1!$B$128,IF(H90="2b",Hoja1!$B$129,IF(H90="3 ",Hoja1!$B$130,IF(H90="4 ",Hoja1!$B$131,IF(H90="5 ",Hoja1!$B$132,IF(H90="6 ",Hoja1!$B$133,IF(H90="7 ",Hoja1!$B$134,IF(H90="8 ",Hoja1!$B$135," ")))))))))) ->  | J90: =CONCATENATE(#REF!,"-","TX") ->  | K90: =CONCATENATE(#REF!,"-","RX") ->  | P90: 0 | V90: =IF($R90="","",VLOOKUP($R90,'FO-DRE-01'!$A$7:$U$301,18,FALSE)) ->  | W90: =IF($R90="","",VLOOKUP($R90,'FO-DRE-01'!$A$7:$U$301,16,FALSE)) ->  | X90: =IF($R90="","",VLOOKUP($R90,'FO-DRE-01'!$A$7:$U$301,17,FALSE)) ->  | Y90: =IF($R90="","",VLOOKUP($R90,'FO-DRE-01'!$A$7:$U$301,3,FALSE)) ->  | Z90: =IF($R90="","",VLOOKUP($R90,'FO-DRE-01'!$A$7:$U$301,4,FALSE)) ->  | AA90: =IF($R90="","",VLOOKUP($R90,'FO-DRE-01'!$A$7:$U$301,5,FALSE)) ->  | AB90: =IF($R90="","",VLOOKUP($R90,'FO-DRE-01'!$A$7:$U$301,7,FALSE)) ->  | AC90: =IF($R90="","",VLOOKUP($R90,'FO-DRE-01'!$A$7:$U$301,8,FALSE)) ->  | AD90: =IF($R90="","",VLOOKUP($R90,'FO-DRE-01'!$A$7:$U$301,9,FALSE)) ->  | AE90: =IF($R90="","",VLOOKUP($R90,'FO-DRE-01'!$A$7:$U$301,10,FALSE)) ->  | AF90: =IF($R90="","",VLOOKUP($R90,'FO-DRE-01'!$A$7:$U$301,11,FALSE)) ->  | AG90: =IF($R90="","",VLOOKUP($R90,'FO-DRE-01'!$A$7:$U$301,12,FALSE)) ->  | AH90: =IF($R90="","",VLOOKUP($R90,'FO-DRE-01'!$A$7:$U$301,13,FALSE)) ->  | AI90: =IF($R90="","",VLOOKUP($R90,'FO-DRE-01'!$A$7:$U$301,14,FALSE)) ->  | AJ90: =IF($R90="","",VLOOKUP($R90,'FO-DRE-01'!$A$7:$U$301,15,FALSE)) ->  | AK90: =IF($S90="","",VLOOKUP($S90,'FO-DRE-04'!$A$6:$L$301,2,FALSE)) ->  | AL90: =IF($S90="","",VLOOKUP($S90,'FO-DRE-04'!$A$6:$L$301,3,FALSE)) ->  | AM90: =IF($S90="","",VLOOKUP($S90,'FO-DRE-04'!$A$6:$L$301,4,FALSE)) ->  | AN90: =IF($S90="","",VLOOKUP($S90,'FO-DRE-04'!$A$6:$L$301,6,FALSE)) ->  | AO90: =IF($S90="","",VLOOKUP($S90,'FO-DRE-04'!$A$6:$L$301,11,FALSE)) ->  | AP90: =IF($T90="","",VLOOKUP($T90,'FO-DRE-02'!$A$6:$M$101,2,FALSE)) ->  | AQ90: =IF($T90="","",VLOOKUP($T90,'FO-DRE-02'!$A$6:$M$101,3,FALSE)) ->  | AR90: =IF($T90="","",VLOOKUP($T90,'FO-DRE-02'!$A$6:$M$101,6,FALSE)) ->  | AS90: =IF($T90="","",VLOOKUP($T90,'FO-DRE-02'!$A$6:$M$101,4,FALSE)) ->  | AT90: =IF($T90="","",VLOOKUP($T90,'FO-DRE-02'!$A$6:$M$101,5,FALSE)) ->  | AU90: =IF($T90="","",VLOOKUP($T90,'FO-DRE-02'!$A$6:$M$101,8,FALSE)) ->  | AV90: =IF($T90="","",VLOOKUP($T90,'FO-DRE-02'!$A$6:$M$101,7,FALSE)) ->  | AW90: =IF($T90="","",VLOOKUP($T90,'FO-DRE-02'!$A$6:$M$101,9,FALSE)) ->  | AX90: =IF($T90="","",VLOOKUP($T90,'FO-DRE-02'!$A$6:$M$101,11,FALSE)) ->  | AY90: =IF($T90="","",VLOOKUP($T90,'FO-DRE-02'!$A$6:$M$101,12,FALSE)) ->  | AZ90: =IF($T90="","",VLOOKUP($T90,'FO-DRE-02'!$A$6:$M$101,13,FALSE)) ->  | BB90: 856 | BD90: 81 | BF90: F/D | BG90: F/D
I91: =IF(H91="1a",Hoja1!$B$126,IF(H91="1b",Hoja1!$B$127,IF(H91="2a",Hoja1!$B$128,IF(H91="2b",Hoja1!$B$129,IF(H91="3 ",Hoja1!$B$130,IF(H91="4 ",Hoja1!$B$131,IF(H91="5 ",Hoja1!$B$132,IF(H91="6 ",Hoja1!$B$133,IF(H91="7 ",Hoja1!$B$134,IF(H91="8 ",Hoja1!$B$135," ")))))))))) ->  | J91: =CONCATENATE(#REF!,"-","TX") ->  | K91: =CONCATENATE(#REF!,"-","RX") ->  | P91: 0 | V91: =IF($R91="","",VLOOKUP($R91,'FO-DRE-01'!$A$7:$U$301,18,FALSE)) ->  | W91: =IF($R91="","",VLOOKUP($R91,'FO-DRE-01'!$A$7:$U$301,16,FALSE)) ->  | X91: =IF($R91="","",VLOOKUP($R91,'FO-DRE-01'!$A$7:$U$301,17,FALSE)) ->  | Y91: =IF($R91="","",VLOOKUP($R91,'FO-DRE-01'!$A$7:$U$301,3,FALSE)) ->  | Z91: =IF($R91="","",VLOOKUP($R91,'FO-DRE-01'!$A$7:$U$301,4,FALSE)) ->  | AA91: =IF($R91="","",VLOOKUP($R91,'FO-DRE-01'!$A$7:$U$301,5,FALSE)) ->  | AB91: =IF($R91="","",VLOOKUP($R91,'FO-DRE-01'!$A$7:$U$301,7,FALSE)) ->  | AC91: =IF($R91="","",VLOOKUP($R91,'FO-DRE-01'!$A$7:$U$301,8,FALSE)) ->  | AD91: =IF($R91="","",VLOOKUP($R91,'FO-DRE-01'!$A$7:$U$301,9,FALSE)) ->  | AE91: =IF($R91="","",VLOOKUP($R91,'FO-DRE-01'!$A$7:$U$301,10,FALSE)) ->  | AF91: =IF($R91="","",VLOOKUP($R91,'FO-DRE-01'!$A$7:$U$301,11,FALSE)) ->  | AG91: =IF($R91="","",VLOOKUP($R91,'FO-DRE-01'!$A$7:$U$301,12,FALSE)) ->  | AH91: =IF($R91="","",VLOOKUP($R91,'FO-DRE-01'!$A$7:$U$301,13,FALSE)) ->  | AI91: =IF($R91="","",VLOOKUP($R91,'FO-DRE-01'!$A$7:$U$301,14,FALSE)) ->  | AJ91: =IF($R91="","",VLOOKUP($R91,'FO-DRE-01'!$A$7:$U$301,15,FALSE)) ->  | AK91: =IF($S91="","",VLOOKUP($S91,'FO-DRE-04'!$A$6:$L$301,2,FALSE)) ->  | AL91: =IF($S91="","",VLOOKUP($S91,'FO-DRE-04'!$A$6:$L$301,3,FALSE)) ->  | AM91: =IF($S91="","",VLOOKUP($S91,'FO-DRE-04'!$A$6:$L$301,4,FALSE)) ->  | AN91: =IF($S91="","",VLOOKUP($S91,'FO-DRE-04'!$A$6:$L$301,6,FALSE)) ->  | AO91: =IF($S91="","",VLOOKUP($S91,'FO-DRE-04'!$A$6:$L$301,11,FALSE)) ->  | AP91: =IF($T91="","",VLOOKUP($T91,'FO-DRE-02'!$A$6:$M$101,2,FALSE)) ->  | AQ91: =IF($T91="","",VLOOKUP($T91,'FO-DRE-02'!$A$6:$M$101,3,FALSE)) ->  | AR91: =IF($T91="","",VLOOKUP($T91,'FO-DRE-02'!$A$6:$M$101,6,FALSE)) ->  | AS91: =IF($T91="","",VLOOKUP($T91,'FO-DRE-02'!$A$6:$M$101,4,FALSE)) ->  | AT91: =IF($T91="","",VLOOKUP($T91,'FO-DRE-02'!$A$6:$M$101,5,FALSE)) ->  | AU91: =IF($T91="","",VLOOKUP($T91,'FO-DRE-02'!$A$6:$M$101,8,FALSE)) ->  | AV91: =IF($T91="","",VLOOKUP($T91,'FO-DRE-02'!$A$6:$M$101,7,FALSE)) ->  | AW91: =IF($T91="","",VLOOKUP($T91,'FO-DRE-02'!$A$6:$M$101,9,FALSE)) ->  | AX91: =IF($T91="","",VLOOKUP($T91,'FO-DRE-02'!$A$6:$M$101,11,FALSE)) ->  | AY91: =IF($T91="","",VLOOKUP($T91,'FO-DRE-02'!$A$6:$M$101,12,FALSE)) ->  | AZ91: =IF($T91="","",VLOOKUP($T91,'FO-DRE-02'!$A$6:$M$101,13,FALSE)) ->  | BB91: 856 | BD91: 82 | BF91: F/D | BG91: F/D
I92: =IF(H92="1a",Hoja1!$B$126,IF(H92="1b",Hoja1!$B$127,IF(H92="2a",Hoja1!$B$128,IF(H92="2b",Hoja1!$B$129,IF(H92="3 ",Hoja1!$B$130,IF(H92="4 ",Hoja1!$B$131,IF(H92="5 ",Hoja1!$B$132,IF(H92="6 ",Hoja1!$B$133,IF(H92="7 ",Hoja1!$B$134,IF(H92="8 ",Hoja1!$B$135," ")))))))))) ->  | J92: =CONCATENATE(#REF!,"-","TX") ->  | K92: =CONCATENATE(#REF!,"-","RX") ->  | P92: 0 | V92: =IF($R92="","",VLOOKUP($R92,'FO-DRE-01'!$A$7:$U$301,18,FALSE)) ->  | W92: =IF($R92="","",VLOOKUP($R92,'FO-DRE-01'!$A$7:$U$301,16,FALSE)) ->  | X92: =IF($R92="","",VLOOKUP($R92,'FO-DRE-01'!$A$7:$U$301,17,FALSE)) ->  | Y92: =IF($R92="","",VLOOKUP($R92,'FO-DRE-01'!$A$7:$U$301,3,FALSE)) ->  | Z92: =IF($R92="","",VLOOKUP($R92,'FO-DRE-01'!$A$7:$U$301,4,FALSE)) ->  | AA92: =IF($R92="","",VLOOKUP($R92,'FO-DRE-01'!$A$7:$U$301,5,FALSE)) ->  | AB92: =IF($R92="","",VLOOKUP($R92,'FO-DRE-01'!$A$7:$U$301,7,FALSE)) ->  | AC92: =IF($R92="","",VLOOKUP($R92,'FO-DRE-01'!$A$7:$U$301,8,FALSE)) ->  | AD92: =IF($R92="","",VLOOKUP($R92,'FO-DRE-01'!$A$7:$U$301,9,FALSE)) ->  | AE92: =IF($R92="","",VLOOKUP($R92,'FO-DRE-01'!$A$7:$U$301,10,FALSE)) ->  | AF92: =IF($R92="","",VLOOKUP($R92,'FO-DRE-01'!$A$7:$U$301,11,FALSE)) ->  | AG92: =IF($R92="","",VLOOKUP($R92,'FO-DRE-01'!$A$7:$U$301,12,FALSE)) ->  | AH92: =IF($R92="","",VLOOKUP($R92,'FO-DRE-01'!$A$7:$U$301,13,FALSE)) ->  | AI92: =IF($R92="","",VLOOKUP($R92,'FO-DRE-01'!$A$7:$U$301,14,FALSE)) ->  | AJ92: =IF($R92="","",VLOOKUP($R92,'FO-DRE-01'!$A$7:$U$301,15,FALSE)) ->  | AK92: =IF($S92="","",VLOOKUP($S92,'FO-DRE-04'!$A$6:$L$301,2,FALSE)) ->  | AL92: =IF($S92="","",VLOOKUP($S92,'FO-DRE-04'!$A$6:$L$301,3,FALSE)) ->  | AM92: =IF($S92="","",VLOOKUP($S92,'FO-DRE-04'!$A$6:$L$301,4,FALSE)) ->  | AN92: =IF($S92="","",VLOOKUP($S92,'FO-DRE-04'!$A$6:$L$301,6,FALSE)) ->  | AO92: =IF($S92="","",VLOOKUP($S92,'FO-DRE-04'!$A$6:$L$301,11,FALSE)) ->  | AP92: =IF($T92="","",VLOOKUP($T92,'FO-DRE-02'!$A$6:$M$101,2,FALSE)) ->  | AQ92: =IF($T92="","",VLOOKUP($T92,'FO-DRE-02'!$A$6:$M$101,3,FALSE)) ->  | AR92: =IF($T92="","",VLOOKUP($T92,'FO-DRE-02'!$A$6:$M$101,6,FALSE)) ->  | AS92: =IF($T92="","",VLOOKUP($T92,'FO-DRE-02'!$A$6:$M$101,4,FALSE)) ->  | AT92: =IF($T92="","",VLOOKUP($T92,'FO-DRE-02'!$A$6:$M$101,5,FALSE)) ->  | AU92: =IF($T92="","",VLOOKUP($T92,'FO-DRE-02'!$A$6:$M$101,8,FALSE)) ->  | AV92: =IF($T92="","",VLOOKUP($T92,'FO-DRE-02'!$A$6:$M$101,7,FALSE)) ->  | AW92: =IF($T92="","",VLOOKUP($T92,'FO-DRE-02'!$A$6:$M$101,9,FALSE)) ->  | AX92: =IF($T92="","",VLOOKUP($T92,'FO-DRE-02'!$A$6:$M$101,11,FALSE)) ->  | AY92: =IF($T92="","",VLOOKUP($T92,'FO-DRE-02'!$A$6:$M$101,12,FALSE)) ->  | AZ92: =IF($T92="","",VLOOKUP($T92,'FO-DRE-02'!$A$6:$M$101,13,FALSE)) ->  | BB92: 856 | BD92: 83 | BF92: F/D | BG92: F/D | BO92: =IF(OR(AK92="MOVIL",AK92="PORTATIL"),"",IF(AN92="","",AN92)) ->  | BQ92: =IF(OR(BO92="",BP92=""),"",BP92*BO92) -> 
I93: =IF(H93="1a",Hoja1!$B$126,IF(H93="1b",Hoja1!$B$127,IF(H93="2a",Hoja1!$B$128,IF(H93="2b",Hoja1!$B$129,IF(H93="3 ",Hoja1!$B$130,IF(H93="4 ",Hoja1!$B$131,IF(H93="5 ",Hoja1!$B$132,IF(H93="6 ",Hoja1!$B$133,IF(H93="7 ",Hoja1!$B$134,IF(H93="8 ",Hoja1!$B$135," ")))))))))) ->  | J93: =CONCATENATE(#REF!,"-","TX") ->  | K93: =CONCATENATE(#REF!,"-","RX") ->  | P93: 0 | V93: =IF($R93="","",VLOOKUP($R93,'FO-DRE-01'!$A$7:$U$301,18,FALSE)) ->  | W93: =IF($R93="","",VLOOKUP($R93,'FO-DRE-01'!$A$7:$U$301,16,FALSE)) ->  | X93: =IF($R93="","",VLOOKUP($R93,'FO-DRE-01'!$A$7:$U$301,17,FALSE)) ->  | Y93: =IF($R93="","",VLOOKUP($R93,'FO-DRE-01'!$A$7:$U$301,3,FALSE)) ->  | Z93: =IF($R93="","",VLOOKUP($R93,'FO-DRE-01'!$A$7:$U$301,4,FALSE)) ->  | AA93: =IF($R93="","",VLOOKUP($R93,'FO-DRE-01'!$A$7:$U$301,5,FALSE)) ->  | AB93: =IF($R93="","",VLOOKUP($R93,'FO-DRE-01'!$A$7:$U$301,7,FALSE)) ->  | AC93: =IF($R93="","",VLOOKUP($R93,'FO-DRE-01'!$A$7:$U$301,8,FALSE)) ->  | AD93: =IF($R93="","",VLOOKUP($R93,'FO-DRE-01'!$A$7:$U$301,9,FALSE)) ->  | AE93: =IF($R93="","",VLOOKUP($R93,'FO-DRE-01'!$A$7:$U$301,10,FALSE)) ->  | AF93: =IF($R93="","",VLOOKUP($R93,'FO-DRE-01'!$A$7:$U$301,11,FALSE)) ->  | AG93: =IF($R93="","",VLOOKUP($R93,'FO-DRE-01'!$A$7:$U$301,12,FALSE)) ->  | AH93: =IF($R93="","",VLOOKUP($R93,'FO-DRE-01'!$A$7:$U$301,13,FALSE)) ->  | AI93: =IF($R93="","",VLOOKUP($R93,'FO-DRE-01'!$A$7:$U$301,14,FALSE)) ->  | AJ93: =IF($R93="","",VLOOKUP($R93,'FO-DRE-01'!$A$7:$U$301,15,FALSE)) ->  | AK93: =IF($S93="","",VLOOKUP($S93,'FO-DRE-04'!$A$6:$L$301,2,FALSE)) ->  | AL93: =IF($S93="","",VLOOKUP($S93,'FO-DRE-04'!$A$6:$L$301,3,FALSE)) ->  | AM93: =IF($S93="","",VLOOKUP($S93,'FO-DRE-04'!$A$6:$L$301,4,FALSE)) ->  | AN93: =IF($S93="","",VLOOKUP($S93,'FO-DRE-04'!$A$6:$L$301,6,FALSE)) ->  | AO93: =IF($S93="","",VLOOKUP($S93,'FO-DRE-04'!$A$6:$L$301,11,FALSE)) ->  | AP93: =IF($T93="","",VLOOKUP($T93,'FO-DRE-02'!$A$6:$M$101,2,FALSE)) ->  | AQ93: =IF($T93="","",VLOOKUP($T93,'FO-DRE-02'!$A$6:$M$101,3,FALSE)) ->  | AR93: =IF($T93="","",VLOOKUP($T93,'FO-DRE-02'!$A$6:$M$101,6,FALSE)) ->  | AS93: =IF($T93="","",VLOOKUP($T93,'FO-DRE-02'!$A$6:$M$101,4,FALSE)) ->  | AT93: =IF($T93="","",VLOOKUP($T93,'FO-DRE-02'!$A$6:$M$101,5,FALSE)) ->  | AU93: =IF($T93="","",VLOOKUP($T93,'FO-DRE-02'!$A$6:$M$101,8,FALSE)) ->  | AV93: =IF($T93="","",VLOOKUP($T93,'FO-DRE-02'!$A$6:$M$101,7,FALSE)) ->  | AW93: =IF($T93="","",VLOOKUP($T93,'FO-DRE-02'!$A$6:$M$101,9,FALSE)) ->  | AX93: =IF($T93="","",VLOOKUP($T93,'FO-DRE-02'!$A$6:$M$101,11,FALSE)) ->  | AY93: =IF($T93="","",VLOOKUP($T93,'FO-DRE-02'!$A$6:$M$101,12,FALSE)) ->  | AZ93: =IF($T93="","",VLOOKUP($T93,'FO-DRE-02'!$A$6:$M$101,13,FALSE)) ->  | BB93: 856 | BD93: 84 | BF93: F/D | BG93: F/D
I94: =IF(H94="1a",Hoja1!$B$126,IF(H94="1b",Hoja1!$B$127,IF(H94="2a",Hoja1!$B$128,IF(H94="2b",Hoja1!$B$129,IF(H94="3 ",Hoja1!$B$130,IF(H94="4 ",Hoja1!$B$131,IF(H94="5 ",Hoja1!$B$132,IF(H94="6 ",Hoja1!$B$133,IF(H94="7 ",Hoja1!$B$134,IF(H94="8 ",Hoja1!$B$135," ")))))))))) ->  | J94: =CONCATENATE(#REF!,"-","TX") ->  | K94: =CONCATENATE(#REF!,"-","RX") ->  | P94: 0 | V94: =IF($R94="","",VLOOKUP($R94,'FO-DRE-01'!$A$7:$U$301,18,FALSE)) ->  | W94: =IF($R94="","",VLOOKUP($R94,'FO-DRE-01'!$A$7:$U$301,16,FALSE)) ->  | X94: =IF($R94="","",VLOOKUP($R94,'FO-DRE-01'!$A$7:$U$301,17,FALSE)) ->  | Y94: =IF($R94="","",VLOOKUP($R94,'FO-DRE-01'!$A$7:$U$301,3,FALSE)) ->  | Z94: =IF($R94="","",VLOOKUP($R94,'FO-DRE-01'!$A$7:$U$301,4,FALSE)) ->  | AA94: =IF($R94="","",VLOOKUP($R94,'FO-DRE-01'!$A$7:$U$301,5,FALSE)) ->  | AB94: =IF($R94="","",VLOOKUP($R94,'FO-DRE-01'!$A$7:$U$301,7,FALSE)) ->  | AC94: =IF($R94="","",VLOOKUP($R94,'FO-DRE-01'!$A$7:$U$301,8,FALSE)) ->  | AD94: =IF($R94="","",VLOOKUP($R94,'FO-DRE-01'!$A$7:$U$301,9,FALSE)) ->  | AE94: =IF($R94="","",VLOOKUP($R94,'FO-DRE-01'!$A$7:$U$301,10,FALSE)) ->  | AF94: =IF($R94="","",VLOOKUP($R94,'FO-DRE-01'!$A$7:$U$301,11,FALSE)) ->  | AG94: =IF($R94="","",VLOOKUP($R94,'FO-DRE-01'!$A$7:$U$301,12,FALSE)) ->  | AH94: =IF($R94="","",VLOOKUP($R94,'FO-DRE-01'!$A$7:$U$301,13,FALSE)) ->  | AI94: =IF($R94="","",VLOOKUP($R94,'FO-DRE-01'!$A$7:$U$301,14,FALSE)) ->  | AJ94: =IF($R94="","",VLOOKUP($R94,'FO-DRE-01'!$A$7:$U$301,15,FALSE)) ->  | AK94: =IF($S94="","",VLOOKUP($S94,'FO-DRE-04'!$A$6:$L$301,2,FALSE)) ->  | AL94: =IF($S94="","",VLOOKUP($S94,'FO-DRE-04'!$A$6:$L$301,3,FALSE)) ->  | AM94: =IF($S94="","",VLOOKUP($S94,'FO-DRE-04'!$A$6:$L$301,4,FALSE)) ->  | AN94: =IF($S94="","",VLOOKUP($S94,'FO-DRE-04'!$A$6:$L$301,6,FALSE)) ->  | AO94: =IF($S94="","",VLOOKUP($S94,'FO-DRE-04'!$A$6:$L$301,11,FALSE)) ->  | AP94: =IF($T94="","",VLOOKUP($T94,'FO-DRE-02'!$A$6:$M$101,2,FALSE)) ->  | AQ94: =IF($T94="","",VLOOKUP($T94,'FO-DRE-02'!$A$6:$M$101,3,FALSE)) ->  | AR94: =IF($T94="","",VLOOKUP($T94,'FO-DRE-02'!$A$6:$M$101,6,FALSE)) ->  | AS94: =IF($T94="","",VLOOKUP($T94,'FO-DRE-02'!$A$6:$M$101,4,FALSE)) ->  | AT94: =IF($T94="","",VLOOKUP($T94,'FO-DRE-02'!$A$6:$M$101,5,FALSE)) ->  | AU94: =IF($T94="","",VLOOKUP($T94,'FO-DRE-02'!$A$6:$M$101,8,FALSE)) ->  | AV94: =IF($T94="","",VLOOKUP($T94,'FO-DRE-02'!$A$6:$M$101,7,FALSE)) ->  | AW94: =IF($T94="","",VLOOKUP($T94,'FO-DRE-02'!$A$6:$M$101,9,FALSE)) ->  | AX94: =IF($T94="","",VLOOKUP($T94,'FO-DRE-02'!$A$6:$M$101,11,FALSE)) ->  | AY94: =IF($T94="","",VLOOKUP($T94,'FO-DRE-02'!$A$6:$M$101,12,FALSE)) ->  | AZ94: =IF($T94="","",VLOOKUP($T94,'FO-DRE-02'!$A$6:$M$101,13,FALSE)) ->  | BB94: 856 | BD94: 85 | BF94: F/D | BG94: F/D
I95: =IF(H95="1a",Hoja1!$B$126,IF(H95="1b",Hoja1!$B$127,IF(H95="2a",Hoja1!$B$128,IF(H95="2b",Hoja1!$B$129,IF(H95="3 ",Hoja1!$B$130,IF(H95="4 ",Hoja1!$B$131,IF(H95="5 ",Hoja1!$B$132,IF(H95="6 ",Hoja1!$B$133,IF(H95="7 ",Hoja1!$B$134,IF(H95="8 ",Hoja1!$B$135," ")))))))))) ->  | J95: =CONCATENATE(#REF!,"-","TX") ->  | K95: =CONCATENATE(#REF!,"-","RX") ->  | P95: 0 | V95: =IF($R95="","",VLOOKUP($R95,'FO-DRE-01'!$A$7:$U$301,18,FALSE)) ->  | W95: =IF($R95="","",VLOOKUP($R95,'FO-DRE-01'!$A$7:$U$301,16,FALSE)) ->  | X95: =IF($R95="","",VLOOKUP($R95,'FO-DRE-01'!$A$7:$U$301,17,FALSE)) ->  | Y95: =IF($R95="","",VLOOKUP($R95,'FO-DRE-01'!$A$7:$U$301,3,FALSE)) ->  | Z95: =IF($R95="","",VLOOKUP($R95,'FO-DRE-01'!$A$7:$U$301,4,FALSE)) ->  | AA95: =IF($R95="","",VLOOKUP($R95,'FO-DRE-01'!$A$7:$U$301,5,FALSE)) ->  | AB95: =IF($R95="","",VLOOKUP($R95,'FO-DRE-01'!$A$7:$U$301,7,FALSE)) ->  | AC95: =IF($R95="","",VLOOKUP($R95,'FO-DRE-01'!$A$7:$U$301,8,FALSE)) ->  | AD95: =IF($R95="","",VLOOKUP($R95,'FO-DRE-01'!$A$7:$U$301,9,FALSE)) ->  | AE95: =IF($R95="","",VLOOKUP($R95,'FO-DRE-01'!$A$7:$U$301,10,FALSE)) ->  | AF95: =IF($R95="","",VLOOKUP($R95,'FO-DRE-01'!$A$7:$U$301,11,FALSE)) ->  | AG95: =IF($R95="","",VLOOKUP($R95,'FO-DRE-01'!$A$7:$U$301,12,FALSE)) ->  | AH95: =IF($R95="","",VLOOKUP($R95,'FO-DRE-01'!$A$7:$U$301,13,FALSE)) ->  | AI95: =IF($R95="","",VLOOKUP($R95,'FO-DRE-01'!$A$7:$U$301,14,FALSE)) ->  | AJ95: =IF($R95="","",VLOOKUP($R95,'FO-DRE-01'!$A$7:$U$301,15,FALSE)) ->  | AK95: =IF($S95="","",VLOOKUP($S95,'FO-DRE-04'!$A$6:$L$301,2,FALSE)) ->  | AL95: =IF($S95="","",VLOOKUP($S95,'FO-DRE-04'!$A$6:$L$301,3,FALSE)) ->  | AM95: =IF($S95="","",VLOOKUP($S95,'FO-DRE-04'!$A$6:$L$301,4,FALSE)) ->  | AN95: =IF($S95="","",VLOOKUP($S95,'FO-DRE-04'!$A$6:$L$301,6,FALSE)) ->  | AO95: =IF($S95="","",VLOOKUP($S95,'FO-DRE-04'!$A$6:$L$301,11,FALSE)) ->  | AP95: =IF($T95="","",VLOOKUP($T95,'FO-DRE-02'!$A$6:$M$101,2,FALSE)) ->  | AQ95: =IF($T95="","",VLOOKUP($T95,'FO-DRE-02'!$A$6:$M$101,3,FALSE)) ->  | AR95: =IF($T95="","",VLOOKUP($T95,'FO-DRE-02'!$A$6:$M$101,6,FALSE)) ->  | AS95: =IF($T95="","",VLOOKUP($T95,'FO-DRE-02'!$A$6:$M$101,4,FALSE)) ->  | AT95: =IF($T95="","",VLOOKUP($T95,'FO-DRE-02'!$A$6:$M$101,5,FALSE)) ->  | AU95: =IF($T95="","",VLOOKUP($T95,'FO-DRE-02'!$A$6:$M$101,8,FALSE)) ->  | AV95: =IF($T95="","",VLOOKUP($T95,'FO-DRE-02'!$A$6:$M$101,7,FALSE)) ->  | AW95: =IF($T95="","",VLOOKUP($T95,'FO-DRE-02'!$A$6:$M$101,9,FALSE)) ->  | AX95: =IF($T95="","",VLOOKUP($T95,'FO-DRE-02'!$A$6:$M$101,11,FALSE)) ->  | AY95: =IF($T95="","",VLOOKUP($T95,'FO-DRE-02'!$A$6:$M$101,12,FALSE)) ->  | AZ95: =IF($T95="","",VLOOKUP($T95,'FO-DRE-02'!$A$6:$M$101,13,FALSE)) ->  | BB95: 856 | BD95: 86 | BF95: F/D | BG95: F/D
I96: =IF(H96="1a",Hoja1!$B$126,IF(H96="1b",Hoja1!$B$127,IF(H96="2a",Hoja1!$B$128,IF(H96="2b",Hoja1!$B$129,IF(H96="3 ",Hoja1!$B$130,IF(H96="4 ",Hoja1!$B$131,IF(H96="5 ",Hoja1!$B$132,IF(H96="6 ",Hoja1!$B$133,IF(H96="7 ",Hoja1!$B$134,IF(H96="8 ",Hoja1!$B$135," ")))))))))) ->  | J96: =CONCATENATE(#REF!,"-","TX") ->  | K96: =CONCATENATE(#REF!,"-","RX") ->  | P96: 0 | V96: =IF($R96="","",VLOOKUP($R96,'FO-DRE-01'!$A$7:$U$301,18,FALSE)) ->  | W96: =IF($R96="","",VLOOKUP($R96,'FO-DRE-01'!$A$7:$U$301,16,FALSE)) ->  | X96: =IF($R96="","",VLOOKUP($R96,'FO-DRE-01'!$A$7:$U$301,17,FALSE)) ->  | Y96: =IF($R96="","",VLOOKUP($R96,'FO-DRE-01'!$A$7:$U$301,3,FALSE)) ->  | Z96: =IF($R96="","",VLOOKUP($R96,'FO-DRE-01'!$A$7:$U$301,4,FALSE)) ->  | AA96: =IF($R96="","",VLOOKUP($R96,'FO-DRE-01'!$A$7:$U$301,5,FALSE)) ->  | AB96: =IF($R96="","",VLOOKUP($R96,'FO-DRE-01'!$A$7:$U$301,7,FALSE)) ->  | AC96: =IF($R96="","",VLOOKUP($R96,'FO-DRE-01'!$A$7:$U$301,8,FALSE)) ->  | AD96: =IF($R96="","",VLOOKUP($R96,'FO-DRE-01'!$A$7:$U$301,9,FALSE)) ->  | AE96: =IF($R96="","",VLOOKUP($R96,'FO-DRE-01'!$A$7:$U$301,10,FALSE)) ->  | AF96: =IF($R96="","",VLOOKUP($R96,'FO-DRE-01'!$A$7:$U$301,11,FALSE)) ->  | AG96: =IF($R96="","",VLOOKUP($R96,'FO-DRE-01'!$A$7:$U$301,12,FALSE)) ->  | AH96: =IF($R96="","",VLOOKUP($R96,'FO-DRE-01'!$A$7:$U$301,13,FALSE)) ->  | AI96: =IF($R96="","",VLOOKUP($R96,'FO-DRE-01'!$A$7:$U$301,14,FALSE)) ->  | AJ96: =IF($R96="","",VLOOKUP($R96,'FO-DRE-01'!$A$7:$U$301,15,FALSE)) ->  | AK96: =IF($S96="","",VLOOKUP($S96,'FO-DRE-04'!$A$6:$L$301,2,FALSE)) ->  | AL96: =IF($S96="","",VLOOKUP($S96,'FO-DRE-04'!$A$6:$L$301,3,FALSE)) ->  | AM96: =IF($S96="","",VLOOKUP($S96,'FO-DRE-04'!$A$6:$L$301,4,FALSE)) ->  | AN96: =IF($S96="","",VLOOKUP($S96,'FO-DRE-04'!$A$6:$L$301,6,FALSE)) ->  | AO96: =IF($S96="","",VLOOKUP($S96,'FO-DRE-04'!$A$6:$L$301,11,FALSE)) ->  | AP96: =IF($T96="","",VLOOKUP($T96,'FO-DRE-02'!$A$6:$M$101,2,FALSE)) ->  | AQ96: =IF($T96="","",VLOOKUP($T96,'FO-DRE-02'!$A$6:$M$101,3,FALSE)) ->  | AR96: =IF($T96="","",VLOOKUP($T96,'FO-DRE-02'!$A$6:$M$101,6,FALSE)) ->  | AS96: =IF($T96="","",VLOOKUP($T96,'FO-DRE-02'!$A$6:$M$101,4,FALSE)) ->  | AT96: =IF($T96="","",VLOOKUP($T96,'FO-DRE-02'!$A$6:$M$101,5,FALSE)) ->  | AU96: =IF($T96="","",VLOOKUP($T96,'FO-DRE-02'!$A$6:$M$101,8,FALSE)) ->  | AV96: =IF($T96="","",VLOOKUP($T96,'FO-DRE-02'!$A$6:$M$101,7,FALSE)) ->  | AW96: =IF($T96="","",VLOOKUP($T96,'FO-DRE-02'!$A$6:$M$101,9,FALSE)) ->  | AX96: =IF($T96="","",VLOOKUP($T96,'FO-DRE-02'!$A$6:$M$101,11,FALSE)) ->  | AY96: =IF($T96="","",VLOOKUP($T96,'FO-DRE-02'!$A$6:$M$101,12,FALSE)) ->  | AZ96: =IF($T96="","",VLOOKUP($T96,'FO-DRE-02'!$A$6:$M$101,13,FALSE)) ->  | BB96: 856 | BD96: 87 | BF96: F/D | BG96: F/D
I97: =IF(H97="1a",Hoja1!$B$126,IF(H97="1b",Hoja1!$B$127,IF(H97="2a",Hoja1!$B$128,IF(H97="2b",Hoja1!$B$129,IF(H97="3 ",Hoja1!$B$130,IF(H97="4 ",Hoja1!$B$131,IF(H97="5 ",Hoja1!$B$132,IF(H97="6 ",Hoja1!$B$133,IF(H97="7 ",Hoja1!$B$134,IF(H97="8 ",Hoja1!$B$135," ")))))))))) ->  | J97: =CONCATENATE(#REF!,"-","TX") ->  | K97: =CONCATENATE(#REF!,"-","RX") ->  | P97: 0 | V97: =IF($R97="","",VLOOKUP($R97,'FO-DRE-01'!$A$7:$U$301,18,FALSE)) ->  | W97: =IF($R97="","",VLOOKUP($R97,'FO-DRE-01'!$A$7:$U$301,16,FALSE)) ->  | X97: =IF($R97="","",VLOOKUP($R97,'FO-DRE-01'!$A$7:$U$301,17,FALSE)) ->  | Y97: =IF($R97="","",VLOOKUP($R97,'FO-DRE-01'!$A$7:$U$301,3,FALSE)) ->  | Z97: =IF($R97="","",VLOOKUP($R97,'FO-DRE-01'!$A$7:$U$301,4,FALSE)) ->  | AA97: =IF($R97="","",VLOOKUP($R97,'FO-DRE-01'!$A$7:$U$301,5,FALSE)) ->  | AB97: =IF($R97="","",VLOOKUP($R97,'FO-DRE-01'!$A$7:$U$301,7,FALSE)) ->  | AC97: =IF($R97="","",VLOOKUP($R97,'FO-DRE-01'!$A$7:$U$301,8,FALSE)) ->  | AD97: =IF($R97="","",VLOOKUP($R97,'FO-DRE-01'!$A$7:$U$301,9,FALSE)) ->  | AE97: =IF($R97="","",VLOOKUP($R97,'FO-DRE-01'!$A$7:$U$301,10,FALSE)) ->  | AF97: =IF($R97="","",VLOOKUP($R97,'FO-DRE-01'!$A$7:$U$301,11,FALSE)) ->  | AG97: =IF($R97="","",VLOOKUP($R97,'FO-DRE-01'!$A$7:$U$301,12,FALSE)) ->  | AH97: =IF($R97="","",VLOOKUP($R97,'FO-DRE-01'!$A$7:$U$301,13,FALSE)) ->  | AI97: =IF($R97="","",VLOOKUP($R97,'FO-DRE-01'!$A$7:$U$301,14,FALSE)) ->  | AJ97: =IF($R97="","",VLOOKUP($R97,'FO-DRE-01'!$A$7:$U$301,15,FALSE)) ->  | AK97: =IF($S97="","",VLOOKUP($S97,'FO-DRE-04'!$A$6:$L$301,2,FALSE)) ->  | AL97: =IF($S97="","",VLOOKUP($S97,'FO-DRE-04'!$A$6:$L$301,3,FALSE)) ->  | AM97: =IF($S97="","",VLOOKUP($S97,'FO-DRE-04'!$A$6:$L$301,4,FALSE)) ->  | AN97: =IF($S97="","",VLOOKUP($S97,'FO-DRE-04'!$A$6:$L$301,6,FALSE)) ->  | AO97: =IF($S97="","",VLOOKUP($S97,'FO-DRE-04'!$A$6:$L$301,11,FALSE)) ->  | AP97: =IF($T97="","",VLOOKUP($T97,'FO-DRE-02'!$A$6:$M$101,2,FALSE)) ->  | AQ97: =IF($T97="","",VLOOKUP($T97,'FO-DRE-02'!$A$6:$M$101,3,FALSE)) ->  | AR97: =IF($T97="","",VLOOKUP($T97,'FO-DRE-02'!$A$6:$M$101,6,FALSE)) ->  | AS97: =IF($T97="","",VLOOKUP($T97,'FO-DRE-02'!$A$6:$M$101,4,FALSE)) ->  | AT97: =IF($T97="","",VLOOKUP($T97,'FO-DRE-02'!$A$6:$M$101,5,FALSE)) ->  | AU97: =IF($T97="","",VLOOKUP($T97,'FO-DRE-02'!$A$6:$M$101,8,FALSE)) ->  | AV97: =IF($T97="","",VLOOKUP($T97,'FO-DRE-02'!$A$6:$M$101,7,FALSE)) ->  | AW97: =IF($T97="","",VLOOKUP($T97,'FO-DRE-02'!$A$6:$M$101,9,FALSE)) ->  | AX97: =IF($T97="","",VLOOKUP($T97,'FO-DRE-02'!$A$6:$M$101,11,FALSE)) ->  | AY97: =IF($T97="","",VLOOKUP($T97,'FO-DRE-02'!$A$6:$M$101,12,FALSE)) ->  | AZ97: =IF($T97="","",VLOOKUP($T97,'FO-DRE-02'!$A$6:$M$101,13,FALSE)) ->  | BB97: 856 | BD97: 88 | BF97: F/D | BG97: F/D
I98: =IF(H98="1a",Hoja1!$B$126,IF(H98="1b",Hoja1!$B$127,IF(H98="2a",Hoja1!$B$128,IF(H98="2b",Hoja1!$B$129,IF(H98="3 ",Hoja1!$B$130,IF(H98="4 ",Hoja1!$B$131,IF(H98="5 ",Hoja1!$B$132,IF(H98="6 ",Hoja1!$B$133,IF(H98="7 ",Hoja1!$B$134,IF(H98="8 ",Hoja1!$B$135," ")))))))))) ->  | J98: =CONCATENATE(#REF!,"-","TX") ->  | K98: =CONCATENATE(#REF!,"-","RX") ->  | P98: 0 | V98: =IF($R98="","",VLOOKUP($R98,'FO-DRE-01'!$A$7:$U$301,18,FALSE)) ->  | W98: =IF($R98="","",VLOOKUP($R98,'FO-DRE-01'!$A$7:$U$301,16,FALSE)) ->  | X98: =IF($R98="","",VLOOKUP($R98,'FO-DRE-01'!$A$7:$U$301,17,FALSE)) ->  | Y98: =IF($R98="","",VLOOKUP($R98,'FO-DRE-01'!$A$7:$U$301,3,FALSE)) ->  | Z98: =IF($R98="","",VLOOKUP($R98,'FO-DRE-01'!$A$7:$U$301,4,FALSE)) ->  | AA98: =IF($R98="","",VLOOKUP($R98,'FO-DRE-01'!$A$7:$U$301,5,FALSE)) ->  | AB98: =IF($R98="","",VLOOKUP($R98,'FO-DRE-01'!$A$7:$U$301,7,FALSE)) ->  | AC98: =IF($R98="","",VLOOKUP($R98,'FO-DRE-01'!$A$7:$U$301,8,FALSE)) ->  | AD98: =IF($R98="","",VLOOKUP($R98,'FO-DRE-01'!$A$7:$U$301,9,FALSE)) ->  | AE98: =IF($R98="","",VLOOKUP($R98,'FO-DRE-01'!$A$7:$U$301,10,FALSE)) ->  | AF98: =IF($R98="","",VLOOKUP($R98,'FO-DRE-01'!$A$7:$U$301,11,FALSE)) ->  | AG98: =IF($R98="","",VLOOKUP($R98,'FO-DRE-01'!$A$7:$U$301,12,FALSE)) ->  | AH98: =IF($R98="","",VLOOKUP($R98,'FO-DRE-01'!$A$7:$U$301,13,FALSE)) ->  | AI98: =IF($R98="","",VLOOKUP($R98,'FO-DRE-01'!$A$7:$U$301,14,FALSE)) ->  | AJ98: =IF($R98="","",VLOOKUP($R98,'FO-DRE-01'!$A$7:$U$301,15,FALSE)) ->  | AK98: =IF($S98="","",VLOOKUP($S98,'FO-DRE-04'!$A$6:$L$301,2,FALSE)) ->  | AL98: =IF($S98="","",VLOOKUP($S98,'FO-DRE-04'!$A$6:$L$301,3,FALSE)) ->  | AM98: =IF($S98="","",VLOOKUP($S98,'FO-DRE-04'!$A$6:$L$301,4,FALSE)) ->  | AN98: =IF($S98="","",VLOOKUP($S98,'FO-DRE-04'!$A$6:$L$301,6,FALSE)) ->  | AO98: =IF($S98="","",VLOOKUP($S98,'FO-DRE-04'!$A$6:$L$301,11,FALSE)) ->  | AP98: =IF($T98="","",VLOOKUP($T98,'FO-DRE-02'!$A$6:$M$101,2,FALSE)) ->  | AQ98: =IF($T98="","",VLOOKUP($T98,'FO-DRE-02'!$A$6:$M$101,3,FALSE)) ->  | AR98: =IF($T98="","",VLOOKUP($T98,'FO-DRE-02'!$A$6:$M$101,6,FALSE)) ->  | AS98: =IF($T98="","",VLOOKUP($T98,'FO-DRE-02'!$A$6:$M$101,4,FALSE)) ->  | AT98: =IF($T98="","",VLOOKUP($T98,'FO-DRE-02'!$A$6:$M$101,5,FALSE)) ->  | AU98: =IF($T98="","",VLOOKUP($T98,'FO-DRE-02'!$A$6:$M$101,8,FALSE)) ->  | AV98: =IF($T98="","",VLOOKUP($T98,'FO-DRE-02'!$A$6:$M$101,7,FALSE)) ->  | AW98: =IF($T98="","",VLOOKUP($T98,'FO-DRE-02'!$A$6:$M$101,9,FALSE)) ->  | AX98: =IF($T98="","",VLOOKUP($T98,'FO-DRE-02'!$A$6:$M$101,11,FALSE)) ->  | AY98: =IF($T98="","",VLOOKUP($T98,'FO-DRE-02'!$A$6:$M$101,12,FALSE)) ->  | AZ98: =IF($T98="","",VLOOKUP($T98,'FO-DRE-02'!$A$6:$M$101,13,FALSE)) ->  | BB98: 856 | BD98: 89 | BF98: F/D | BG98: F/D | BO98: =IF(OR(AK98="MOVIL",AK98="PORTATIL"),"",IF(AN98="","",AN98)) ->  | BQ98: =IF(OR(BO98="",BP98=""),"",BP98*BO98) -> 
I99: =IF(H99="1a",Hoja1!$B$126,IF(H99="1b",Hoja1!$B$127,IF(H99="2a",Hoja1!$B$128,IF(H99="2b",Hoja1!$B$129,IF(H99="3 ",Hoja1!$B$130,IF(H99="4 ",Hoja1!$B$131,IF(H99="5 ",Hoja1!$B$132,IF(H99="6 ",Hoja1!$B$133,IF(H99="7 ",Hoja1!$B$134,IF(H99="8 ",Hoja1!$B$135," ")))))))))) ->  | J99: =CONCATENATE(#REF!,"-","TX") ->  | K99: =CONCATENATE(#REF!,"-","RX") ->  | P99: 0 | V99: =IF($R99="","",VLOOKUP($R99,'FO-DRE-01'!$A$7:$U$301,18,FALSE)) ->  | W99: =IF($R99="","",VLOOKUP($R99,'FO-DRE-01'!$A$7:$U$301,16,FALSE)) ->  | X99: =IF($R99="","",VLOOKUP($R99,'FO-DRE-01'!$A$7:$U$301,17,FALSE)) ->  | Y99: =IF($R99="","",VLOOKUP($R99,'FO-DRE-01'!$A$7:$U$301,3,FALSE)) ->  | Z99: =IF($R99="","",VLOOKUP($R99,'FO-DRE-01'!$A$7:$U$301,4,FALSE)) ->  | AA99: =IF($R99="","",VLOOKUP($R99,'FO-DRE-01'!$A$7:$U$301,5,FALSE)) ->  | AB99: =IF($R99="","",VLOOKUP($R99,'FO-DRE-01'!$A$7:$U$301,7,FALSE)) ->  | AC99: =IF($R99="","",VLOOKUP($R99,'FO-DRE-01'!$A$7:$U$301,8,FALSE)) ->  | AD99: =IF($R99="","",VLOOKUP($R99,'FO-DRE-01'!$A$7:$U$301,9,FALSE)) ->  | AE99: =IF($R99="","",VLOOKUP($R99,'FO-DRE-01'!$A$7:$U$301,10,FALSE)) ->  | AF99: =IF($R99="","",VLOOKUP($R99,'FO-DRE-01'!$A$7:$U$301,11,FALSE)) ->  | AG99: =IF($R99="","",VLOOKUP($R99,'FO-DRE-01'!$A$7:$U$301,12,FALSE)) ->  | AH99: =IF($R99="","",VLOOKUP($R99,'FO-DRE-01'!$A$7:$U$301,13,FALSE)) ->  | AI99: =IF($R99="","",VLOOKUP($R99,'FO-DRE-01'!$A$7:$U$301,14,FALSE)) ->  | AJ99: =IF($R99="","",VLOOKUP($R99,'FO-DRE-01'!$A$7:$U$301,15,FALSE)) ->  | AK99: =IF($S99="","",VLOOKUP($S99,'FO-DRE-04'!$A$6:$L$301,2,FALSE)) ->  | AL99: =IF($S99="","",VLOOKUP($S99,'FO-DRE-04'!$A$6:$L$301,3,FALSE)) ->  | AM99: =IF($S99="","",VLOOKUP($S99,'FO-DRE-04'!$A$6:$L$301,4,FALSE)) ->  | AN99: =IF($S99="","",VLOOKUP($S99,'FO-DRE-04'!$A$6:$L$301,6,FALSE)) ->  | AO99: =IF($S99="","",VLOOKUP($S99,'FO-DRE-04'!$A$6:$L$301,11,FALSE)) ->  | AP99: =IF($T99="","",VLOOKUP($T99,'FO-DRE-02'!$A$6:$M$101,2,FALSE)) ->  | AQ99: =IF($T99="","",VLOOKUP($T99,'FO-DRE-02'!$A$6:$M$101,3,FALSE)) ->  | AR99: =IF($T99="","",VLOOKUP($T99,'FO-DRE-02'!$A$6:$M$101,6,FALSE)) ->  | AS99: =IF($T99="","",VLOOKUP($T99,'FO-DRE-02'!$A$6:$M$101,4,FALSE)) ->  | AT99: =IF($T99="","",VLOOKUP($T99,'FO-DRE-02'!$A$6:$M$101,5,FALSE)) ->  | AU99: =IF($T99="","",VLOOKUP($T99,'FO-DRE-02'!$A$6:$M$101,8,FALSE)) ->  | AV99: =IF($T99="","",VLOOKUP($T99,'FO-DRE-02'!$A$6:$M$101,7,FALSE)) ->  | AW99: =IF($T99="","",VLOOKUP($T99,'FO-DRE-02'!$A$6:$M$101,9,FALSE)) ->  | AX99: =IF($T99="","",VLOOKUP($T99,'FO-DRE-02'!$A$6:$M$101,11,FALSE)) ->  | AY99: =IF($T99="","",VLOOKUP($T99,'FO-DRE-02'!$A$6:$M$101,12,FALSE)) ->  | AZ99: =IF($T99="","",VLOOKUP($T99,'FO-DRE-02'!$A$6:$M$101,13,FALSE)) ->  | BB99: 856 | BD99: 90 | BF99: F/D | BG99: F/D
I100: =IF(H100="1a",Hoja1!$B$126,IF(H100="1b",Hoja1!$B$127,IF(H100="2a",Hoja1!$B$128,IF(H100="2b",Hoja1!$B$129,IF(H100="3 ",Hoja1!$B$130,IF(H100="4 ",Hoja1!$B$131,IF(H100="5 ",Hoja1!$B$132,IF(H100="6 ",Hoja1!$B$133,IF(H100="7 ",Hoja1!$B$134,IF(H100="8 ",Hoja1!$B$135," ")))))))))) ->  | J100: =CONCATENATE(#REF!,"-","TX") ->  | K100: =CONCATENATE(#REF!,"-","RX") ->  | P100: 0 | V100: =IF($R100="","",VLOOKUP($R100,'FO-DRE-01'!$A$7:$U$301,18,FALSE)) ->  | W100: =IF($R100="","",VLOOKUP($R100,'FO-DRE-01'!$A$7:$U$301,16,FALSE)) ->  | X100: =IF($R100="","",VLOOKUP($R100,'FO-DRE-01'!$A$7:$U$301,17,FALSE)) ->  | Y100: =IF($R100="","",VLOOKUP($R100,'FO-DRE-01'!$A$7:$U$301,3,FALSE)) ->  | Z100: =IF($R100="","",VLOOKUP($R100,'FO-DRE-01'!$A$7:$U$301,4,FALSE)) ->  | AA100: =IF($R100="","",VLOOKUP($R100,'FO-DRE-01'!$A$7:$U$301,5,FALSE)) ->  | AB100: =IF($R100="","",VLOOKUP($R100,'FO-DRE-01'!$A$7:$U$301,7,FALSE)) ->  | AC100: =IF($R100="","",VLOOKUP($R100,'FO-DRE-01'!$A$7:$U$301,8,FALSE)) ->  | AD100: =IF($R100="","",VLOOKUP($R100,'FO-DRE-01'!$A$7:$U$301,9,FALSE)) ->  | AE100: =IF($R100="","",VLOOKUP($R100,'FO-DRE-01'!$A$7:$U$301,10,FALSE)) ->  | AF100: =IF($R100="","",VLOOKUP($R100,'FO-DRE-01'!$A$7:$U$301,11,FALSE)) ->  | AG100: =IF($R100="","",VLOOKUP($R100,'FO-DRE-01'!$A$7:$U$301,12,FALSE)) ->  | AH100: =IF($R100="","",VLOOKUP($R100,'FO-DRE-01'!$A$7:$U$301,13,FALSE)) ->  | AI100: =IF($R100="","",VLOOKUP($R100,'FO-DRE-01'!$A$7:$U$301,14,FALSE)) ->  | AJ100: =IF($R100="","",VLOOKUP($R100,'FO-DRE-01'!$A$7:$U$301,15,FALSE)) ->  | AK100: =IF($S100="","",VLOOKUP($S100,'FO-DRE-04'!$A$6:$L$301,2,FALSE)) ->  | AL100: =IF($S100="","",VLOOKUP($S100,'FO-DRE-04'!$A$6:$L$301,3,FALSE)) ->  | AM100: =IF($S100="","",VLOOKUP($S100,'FO-DRE-04'!$A$6:$L$301,4,FALSE)) ->  | AN100: =IF($S100="","",VLOOKUP($S100,'FO-DRE-04'!$A$6:$L$301,6,FALSE)) ->  | AO100: =IF($S100="","",VLOOKUP($S100,'FO-DRE-04'!$A$6:$L$301,11,FALSE)) ->  | AP100: =IF($T100="","",VLOOKUP($T100,'FO-DRE-02'!$A$6:$M$101,2,FALSE)) ->  | AQ100: =IF($T100="","",VLOOKUP($T100,'FO-DRE-02'!$A$6:$M$101,3,FALSE)) ->  | AR100: =IF($T100="","",VLOOKUP($T100,'FO-DRE-02'!$A$6:$M$101,6,FALSE)) ->  | AS100: =IF($T100="","",VLOOKUP($T100,'FO-DRE-02'!$A$6:$M$101,4,FALSE)) ->  | AT100: =IF($T100="","",VLOOKUP($T100,'FO-DRE-02'!$A$6:$M$101,5,FALSE)) ->  | AU100: =IF($T100="","",VLOOKUP($T100,'FO-DRE-02'!$A$6:$M$101,8,FALSE)) ->  | AV100: =IF($T100="","",VLOOKUP($T100,'FO-DRE-02'!$A$6:$M$101,7,FALSE)) ->  | AW100: =IF($T100="","",VLOOKUP($T100,'FO-DRE-02'!$A$6:$M$101,9,FALSE)) ->  | AX100: =IF($T100="","",VLOOKUP($T100,'FO-DRE-02'!$A$6:$M$101,11,FALSE)) ->  | AY100: =IF($T100="","",VLOOKUP($T100,'FO-DRE-02'!$A$6:$M$101,12,FALSE)) ->  | AZ100: =IF($T100="","",VLOOKUP($T100,'FO-DRE-02'!$A$6:$M$101,13,FALSE)) ->  | BB100: 856 | BD100: 91 | BF100: F/D | BG100: F/D
I101: =IF(H101="1a",Hoja1!$B$126,IF(H101="1b",Hoja1!$B$127,IF(H101="2a",Hoja1!$B$128,IF(H101="2b",Hoja1!$B$129,IF(H101="3 ",Hoja1!$B$130,IF(H101="4 ",Hoja1!$B$131,IF(H101="5 ",Hoja1!$B$132,IF(H101="6 ",Hoja1!$B$133,IF(H101="7 ",Hoja1!$B$134,IF(H101="8 ",Hoja1!$B$135," ")))))))))) ->  | J101: =CONCATENATE(#REF!,"-","TX") ->  | K101: =CONCATENATE(#REF!,"-","RX") ->  | P101: 0 | V101: =IF($R101="","",VLOOKUP($R101,'FO-DRE-01'!$A$7:$U$301,18,FALSE)) ->  | W101: =IF($R101="","",VLOOKUP($R101,'FO-DRE-01'!$A$7:$U$301,16,FALSE)) ->  | X101: =IF($R101="","",VLOOKUP($R101,'FO-DRE-01'!$A$7:$U$301,17,FALSE)) ->  | Y101: =IF($R101="","",VLOOKUP($R101,'FO-DRE-01'!$A$7:$U$301,3,FALSE)) ->  | Z101: =IF($R101="","",VLOOKUP($R101,'FO-DRE-01'!$A$7:$U$301,4,FALSE)) ->  | AA101: =IF($R101="","",VLOOKUP($R101,'FO-DRE-01'!$A$7:$U$301,5,FALSE)) ->  | AB101: =IF($R101="","",VLOOKUP($R101,'FO-DRE-01'!$A$7:$U$301,7,FALSE)) ->  | AC101: =IF($R101="","",VLOOKUP($R101,'FO-DRE-01'!$A$7:$U$301,8,FALSE)) ->  | AD101: =IF($R101="","",VLOOKUP($R101,'FO-DRE-01'!$A$7:$U$301,9,FALSE)) ->  | AE101: =IF($R101="","",VLOOKUP($R101,'FO-DRE-01'!$A$7:$U$301,10,FALSE)) ->  | AF101: =IF($R101="","",VLOOKUP($R101,'FO-DRE-01'!$A$7:$U$301,11,FALSE)) ->  | AG101: =IF($R101="","",VLOOKUP($R101,'FO-DRE-01'!$A$7:$U$301,12,FALSE)) ->  | AH101: =IF($R101="","",VLOOKUP($R101,'FO-DRE-01'!$A$7:$U$301,13,FALSE)) ->  | AI101: =IF($R101="","",VLOOKUP($R101,'FO-DRE-01'!$A$7:$U$301,14,FALSE)) ->  | AJ101: =IF($R101="","",VLOOKUP($R101,'FO-DRE-01'!$A$7:$U$301,15,FALSE)) ->  | AK101: =IF($S101="","",VLOOKUP($S101,'FO-DRE-04'!$A$6:$L$301,2,FALSE)) ->  | AL101: =IF($S101="","",VLOOKUP($S101,'FO-DRE-04'!$A$6:$L$301,3,FALSE)) ->  | AM101: =IF($S101="","",VLOOKUP($S101,'FO-DRE-04'!$A$6:$L$301,4,FALSE)) ->  | AN101: =IF($S101="","",VLOOKUP($S101,'FO-DRE-04'!$A$6:$L$301,6,FALSE)) ->  | AO101: =IF($S101="","",VLOOKUP($S101,'FO-DRE-04'!$A$6:$L$301,11,FALSE)) ->  | AP101: =IF($T101="","",VLOOKUP($T101,'FO-DRE-02'!$A$6:$M$101,2,FALSE)) ->  | AQ101: =IF($T101="","",VLOOKUP($T101,'FO-DRE-02'!$A$6:$M$101,3,FALSE)) ->  | AR101: =IF($T101="","",VLOOKUP($T101,'FO-DRE-02'!$A$6:$M$101,6,FALSE)) ->  | AS101: =IF($T101="","",VLOOKUP($T101,'FO-DRE-02'!$A$6:$M$101,4,FALSE)) ->  | AT101: =IF($T101="","",VLOOKUP($T101,'FO-DRE-02'!$A$6:$M$101,5,FALSE)) ->  | AU101: =IF($T101="","",VLOOKUP($T101,'FO-DRE-02'!$A$6:$M$101,8,FALSE)) ->  | AV101: =IF($T101="","",VLOOKUP($T101,'FO-DRE-02'!$A$6:$M$101,7,FALSE)) ->  | AW101: =IF($T101="","",VLOOKUP($T101,'FO-DRE-02'!$A$6:$M$101,9,FALSE)) ->  | AX101: =IF($T101="","",VLOOKUP($T101,'FO-DRE-02'!$A$6:$M$101,11,FALSE)) ->  | AY101: =IF($T101="","",VLOOKUP($T101,'FO-DRE-02'!$A$6:$M$101,12,FALSE)) ->  | AZ101: =IF($T101="","",VLOOKUP($T101,'FO-DRE-02'!$A$6:$M$101,13,FALSE)) ->  | BD101: 92 | BF101: F/D | BG101: F/D
I102: =IF(H102="1a",Hoja1!$B$126,IF(H102="1b",Hoja1!$B$127,IF(H102="2a",Hoja1!$B$128,IF(H102="2b",Hoja1!$B$129,IF(H102="3 ",Hoja1!$B$130,IF(H102="4 ",Hoja1!$B$131,IF(H102="5 ",Hoja1!$B$132,IF(H102="6 ",Hoja1!$B$133,IF(H102="7 ",Hoja1!$B$134,IF(H102="8 ",Hoja1!$B$135," ")))))))))) ->  | J102: =CONCATENATE(#REF!,"-","TX") ->  | K102: =CONCATENATE(#REF!,"-","RX") ->  | P102: 0 | V102: =IF($R102="","",VLOOKUP($R102,'FO-DRE-01'!$A$7:$U$301,18,FALSE)) ->  | W102: =IF($R102="","",VLOOKUP($R102,'FO-DRE-01'!$A$7:$U$301,16,FALSE)) ->  | X102: =IF($R102="","",VLOOKUP($R102,'FO-DRE-01'!$A$7:$U$301,17,FALSE)) ->  | Y102: =IF($R102="","",VLOOKUP($R102,'FO-DRE-01'!$A$7:$U$301,3,FALSE)) ->  | Z102: =IF($R102="","",VLOOKUP($R102,'FO-DRE-01'!$A$7:$U$301,4,FALSE)) ->  | AA102: =IF($R102="","",VLOOKUP($R102,'FO-DRE-01'!$A$7:$U$301,5,FALSE)) ->  | AB102: =IF($R102="","",VLOOKUP($R102,'FO-DRE-01'!$A$7:$U$301,7,FALSE)) ->  | AC102: =IF($R102="","",VLOOKUP($R102,'FO-DRE-01'!$A$7:$U$301,8,FALSE)) ->  | AD102: =IF($R102="","",VLOOKUP($R102,'FO-DRE-01'!$A$7:$U$301,9,FALSE)) ->  | AE102: =IF($R102="","",VLOOKUP($R102,'FO-DRE-01'!$A$7:$U$301,10,FALSE)) ->  | AF102: =IF($R102="","",VLOOKUP($R102,'FO-DRE-01'!$A$7:$U$301,11,FALSE)) ->  | AG102: =IF($R102="","",VLOOKUP($R102,'FO-DRE-01'!$A$7:$U$301,12,FALSE)) ->  | AH102: =IF($R102="","",VLOOKUP($R102,'FO-DRE-01'!$A$7:$U$301,13,FALSE)) ->  | AI102: =IF($R102="","",VLOOKUP($R102,'FO-DRE-01'!$A$7:$U$301,14,FALSE)) ->  | AJ102: =IF($R102="","",VLOOKUP($R102,'FO-DRE-01'!$A$7:$U$301,15,FALSE)) ->  | AK102: =IF($S102="","",VLOOKUP($S102,'FO-DRE-04'!$A$6:$L$301,2,FALSE)) ->  | AL102: =IF($S102="","",VLOOKUP($S102,'FO-DRE-04'!$A$6:$L$301,3,FALSE)) ->  | AM102: =IF($S102="","",VLOOKUP($S102,'FO-DRE-04'!$A$6:$L$301,4,FALSE)) ->  | AN102: =IF($S102="","",VLOOKUP($S102,'FO-DRE-04'!$A$6:$L$301,6,FALSE)) ->  | AO102: =IF($S102="","",VLOOKUP($S102,'FO-DRE-04'!$A$6:$L$301,11,FALSE)) ->  | AP102: =IF($T102="","",VLOOKUP($T102,'FO-DRE-02'!$A$6:$M$101,2,FALSE)) ->  | AQ102: =IF($T102="","",VLOOKUP($T102,'FO-DRE-02'!$A$6:$M$101,3,FALSE)) ->  | AR102: =IF($T102="","",VLOOKUP($T102,'FO-DRE-02'!$A$6:$M$101,6,FALSE)) ->  | AS102: =IF($T102="","",VLOOKUP($T102,'FO-DRE-02'!$A$6:$M$101,4,FALSE)) ->  | AT102: =IF($T102="","",VLOOKUP($T102,'FO-DRE-02'!$A$6:$M$101,5,FALSE)) ->  | AU102: =IF($T102="","",VLOOKUP($T102,'FO-DRE-02'!$A$6:$M$101,8,FALSE)) ->  | AV102: =IF($T102="","",VLOOKUP($T102,'FO-DRE-02'!$A$6:$M$101,7,FALSE)) ->  | AW102: =IF($T102="","",VLOOKUP($T102,'FO-DRE-02'!$A$6:$M$101,9,FALSE)) ->  | AX102: =IF($T102="","",VLOOKUP($T102,'FO-DRE-02'!$A$6:$M$101,11,FALSE)) ->  | AY102: =IF($T102="","",VLOOKUP($T102,'FO-DRE-02'!$A$6:$M$101,12,FALSE)) ->  | AZ102: =IF($T102="","",VLOOKUP($T102,'FO-DRE-02'!$A$6:$M$101,13,FALSE)) ->  | BD102: 93 | BF102: F/D | BG102: F/D
I103: =IF(H103="1a",Hoja1!$B$126,IF(H103="1b",Hoja1!$B$127,IF(H103="2a",Hoja1!$B$128,IF(H103="2b",Hoja1!$B$129,IF(H103="3 ",Hoja1!$B$130,IF(H103="4 ",Hoja1!$B$131,IF(H103="5 ",Hoja1!$B$132,IF(H103="6 ",Hoja1!$B$133,IF(H103="7 ",Hoja1!$B$134,IF(H103="8 ",Hoja1!$B$135," ")))))))))) ->  | J103: =CONCATENATE(#REF!,"-","TX") ->  | K103: =CONCATENATE(#REF!,"-","RX") ->  | P103: 0 | V103: =IF($R103="","",VLOOKUP($R103,'FO-DRE-01'!$A$7:$U$301,18,FALSE)) ->  | W103: =IF($R103="","",VLOOKUP($R103,'FO-DRE-01'!$A$7:$U$301,16,FALSE)) ->  | X103: =IF($R103="","",VLOOKUP($R103,'FO-DRE-01'!$A$7:$U$301,17,FALSE)) ->  | Y103: =IF($R103="","",VLOOKUP($R103,'FO-DRE-01'!$A$7:$U$301,3,FALSE)) ->  | Z103: =IF($R103="","",VLOOKUP($R103,'FO-DRE-01'!$A$7:$U$301,4,FALSE)) ->  | AA103: =IF($R103="","",VLOOKUP($R103,'FO-DRE-01'!$A$7:$U$301,5,FALSE)) ->  | AB103: =IF($R103="","",VLOOKUP($R103,'FO-DRE-01'!$A$7:$U$301,7,FALSE)) ->  | AC103: =IF($R103="","",VLOOKUP($R103,'FO-DRE-01'!$A$7:$U$301,8,FALSE)) ->  | AD103: =IF($R103="","",VLOOKUP($R103,'FO-DRE-01'!$A$7:$U$301,9,FALSE)) ->  | AE103: =IF($R103="","",VLOOKUP($R103,'FO-DRE-01'!$A$7:$U$301,10,FALSE)) ->  | AF103: =IF($R103="","",VLOOKUP($R103,'FO-DRE-01'!$A$7:$U$301,11,FALSE)) ->  | AG103: =IF($R103="","",VLOOKUP($R103,'FO-DRE-01'!$A$7:$U$301,12,FALSE)) ->  | AH103: =IF($R103="","",VLOOKUP($R103,'FO-DRE-01'!$A$7:$U$301,13,FALSE)) ->  | AI103: =IF($R103="","",VLOOKUP($R103,'FO-DRE-01'!$A$7:$U$301,14,FALSE)) ->  | AJ103: =IF($R103="","",VLOOKUP($R103,'FO-DRE-01'!$A$7:$U$301,15,FALSE)) ->  | AK103: =IF($S103="","",VLOOKUP($S103,'FO-DRE-04'!$A$6:$L$301,2,FALSE)) ->  | AL103: =IF($S103="","",VLOOKUP($S103,'FO-DRE-04'!$A$6:$L$301,3,FALSE)) ->  | AM103: =IF($S103="","",VLOOKUP($S103,'FO-DRE-04'!$A$6:$L$301,4,FALSE)) ->  | AN103: =IF($S103="","",VLOOKUP($S103,'FO-DRE-04'!$A$6:$L$301,6,FALSE)) ->  | AO103: =IF($S103="","",VLOOKUP($S103,'FO-DRE-04'!$A$6:$L$301,11,FALSE)) ->  | AP103: =IF($T103="","",VLOOKUP($T103,'FO-DRE-02'!$A$6:$M$101,2,FALSE)) ->  | AQ103: =IF($T103="","",VLOOKUP($T103,'FO-DRE-02'!$A$6:$M$101,3,FALSE)) ->  | AR103: =IF($T103="","",VLOOKUP($T103,'FO-DRE-02'!$A$6:$M$101,6,FALSE)) ->  | AS103: =IF($T103="","",VLOOKUP($T103,'FO-DRE-02'!$A$6:$M$101,4,FALSE)) ->  | AT103: =IF($T103="","",VLOOKUP($T103,'FO-DRE-02'!$A$6:$M$101,5,FALSE)) ->  | AU103: =IF($T103="","",VLOOKUP($T103,'FO-DRE-02'!$A$6:$M$101,8,FALSE)) ->  | AV103: =IF($T103="","",VLOOKUP($T103,'FO-DRE-02'!$A$6:$M$101,7,FALSE)) ->  | AW103: =IF($T103="","",VLOOKUP($T103,'FO-DRE-02'!$A$6:$M$101,9,FALSE)) ->  | AX103: =IF($T103="","",VLOOKUP($T103,'FO-DRE-02'!$A$6:$M$101,11,FALSE)) ->  | AY103: =IF($T103="","",VLOOKUP($T103,'FO-DRE-02'!$A$6:$M$101,12,FALSE)) ->  | AZ103: =IF($T103="","",VLOOKUP($T103,'FO-DRE-02'!$A$6:$M$101,13,FALSE)) ->  | BD103: 94 | BF103: F/D | BG103: F/D
I104: =IF(H104="1a",Hoja1!$B$126,IF(H104="1b",Hoja1!$B$127,IF(H104="2a",Hoja1!$B$128,IF(H104="2b",Hoja1!$B$129,IF(H104="3 ",Hoja1!$B$130,IF(H104="4 ",Hoja1!$B$131,IF(H104="5 ",Hoja1!$B$132,IF(H104="6 ",Hoja1!$B$133,IF(H104="7 ",Hoja1!$B$134,IF(H104="8 ",Hoja1!$B$135," ")))))))))) ->  | J104: =CONCATENATE(#REF!,"-","TX") ->  | K104: =CONCATENATE(#REF!,"-","RX") ->  | P104: 0 | V104: =IF($R104="","",VLOOKUP($R104,'FO-DRE-01'!$A$7:$U$301,18,FALSE)) ->  | W104: =IF($R104="","",VLOOKUP($R104,'FO-DRE-01'!$A$7:$U$301,16,FALSE)) ->  | X104: =IF($R104="","",VLOOKUP($R104,'FO-DRE-01'!$A$7:$U$301,17,FALSE)) ->  | Y104: =IF($R104="","",VLOOKUP($R104,'FO-DRE-01'!$A$7:$U$301,3,FALSE)) ->  | Z104: =IF($R104="","",VLOOKUP($R104,'FO-DRE-01'!$A$7:$U$301,4,FALSE)) ->  | AA104: =IF($R104="","",VLOOKUP($R104,'FO-DRE-01'!$A$7:$U$301,5,FALSE)) ->  | AB104: =IF($R104="","",VLOOKUP($R104,'FO-DRE-01'!$A$7:$U$301,7,FALSE)) ->  | AC104: =IF($R104="","",VLOOKUP($R104,'FO-DRE-01'!$A$7:$U$301,8,FALSE)) ->  | AD104: =IF($R104="","",VLOOKUP($R104,'FO-DRE-01'!$A$7:$U$301,9,FALSE)) ->  | AE104: =IF($R104="","",VLOOKUP($R104,'FO-DRE-01'!$A$7:$U$301,10,FALSE)) ->  | AF104: =IF($R104="","",VLOOKUP($R104,'FO-DRE-01'!$A$7:$U$301,11,FALSE)) ->  | AG104: =IF($R104="","",VLOOKUP($R104,'FO-DRE-01'!$A$7:$U$301,12,FALSE)) ->  | AH104: =IF($R104="","",VLOOKUP($R104,'FO-DRE-01'!$A$7:$U$301,13,FALSE)) ->  | AI104: =IF($R104="","",VLOOKUP($R104,'FO-DRE-01'!$A$7:$U$301,14,FALSE)) ->  | AJ104: =IF($R104="","",VLOOKUP($R104,'FO-DRE-01'!$A$7:$U$301,15,FALSE)) ->  | AK104: =IF($S104="","",VLOOKUP($S104,'FO-DRE-04'!$A$6:$L$301,2,FALSE)) ->  | AL104: =IF($S104="","",VLOOKUP($S104,'FO-DRE-04'!$A$6:$L$301,3,FALSE)) ->  | AM104: =IF($S104="","",VLOOKUP($S104,'FO-DRE-04'!$A$6:$L$301,4,FALSE)) ->  | AN104: =IF($S104="","",VLOOKUP($S104,'FO-DRE-04'!$A$6:$L$301,6,FALSE)) ->  | AO104: =IF($S104="","",VLOOKUP($S104,'FO-DRE-04'!$A$6:$L$301,11,FALSE)) ->  | AP104: =IF($T104="","",VLOOKUP($T104,'FO-DRE-02'!$A$6:$M$101,2,FALSE)) ->  | AQ104: =IF($T104="","",VLOOKUP($T104,'FO-DRE-02'!$A$6:$M$101,3,FALSE)) ->  | AR104: =IF($T104="","",VLOOKUP($T104,'FO-DRE-02'!$A$6:$M$101,6,FALSE)) ->  | AS104: =IF($T104="","",VLOOKUP($T104,'FO-DRE-02'!$A$6:$M$101,4,FALSE)) ->  | AT104: =IF($T104="","",VLOOKUP($T104,'FO-DRE-02'!$A$6:$M$101,5,FALSE)) ->  | AU104: =IF($T104="","",VLOOKUP($T104,'FO-DRE-02'!$A$6:$M$101,8,FALSE)) ->  | AV104: =IF($T104="","",VLOOKUP($T104,'FO-DRE-02'!$A$6:$M$101,7,FALSE)) ->  | AW104: =IF($T104="","",VLOOKUP($T104,'FO-DRE-02'!$A$6:$M$101,9,FALSE)) ->  | AX104: =IF($T104="","",VLOOKUP($T104,'FO-DRE-02'!$A$6:$M$101,11,FALSE)) ->  | AY104: =IF($T104="","",VLOOKUP($T104,'FO-DRE-02'!$A$6:$M$101,12,FALSE)) ->  | AZ104: =IF($T104="","",VLOOKUP($T104,'FO-DRE-02'!$A$6:$M$101,13,FALSE)) ->  | BD104: 95 | BF104: F/D | BG104: F/D
I105: =IF(H105="1a",Hoja1!$B$126,IF(H105="1b",Hoja1!$B$127,IF(H105="2a",Hoja1!$B$128,IF(H105="2b",Hoja1!$B$129,IF(H105="3 ",Hoja1!$B$130,IF(H105="4 ",Hoja1!$B$131,IF(H105="5 ",Hoja1!$B$132,IF(H105="6 ",Hoja1!$B$133,IF(H105="7 ",Hoja1!$B$134,IF(H105="8 ",Hoja1!$B$135," ")))))))))) ->  | J105: =CONCATENATE(#REF!,"-","TX") ->  | K105: =CONCATENATE(#REF!,"-","RX") ->  | P105: 0 | V105: =IF($R105="","",VLOOKUP($R105,'FO-DRE-01'!$A$7:$U$301,18,FALSE)) ->  | W105: =IF($R105="","",VLOOKUP($R105,'FO-DRE-01'!$A$7:$U$301,16,FALSE)) ->  | X105: =IF($R105="","",VLOOKUP($R105,'FO-DRE-01'!$A$7:$U$301,17,FALSE)) ->  | Y105: =IF($R105="","",VLOOKUP($R105,'FO-DRE-01'!$A$7:$U$301,3,FALSE)) ->  | Z105: =IF($R105="","",VLOOKUP($R105,'FO-DRE-01'!$A$7:$U$301,4,FALSE)) ->  | AA105: =IF($R105="","",VLOOKUP($R105,'FO-DRE-01'!$A$7:$U$301,5,FALSE)) ->  | AB105: =IF($R105="","",VLOOKUP($R105,'FO-DRE-01'!$A$7:$U$301,7,FALSE)) ->  | AC105: =IF($R105="","",VLOOKUP($R105,'FO-DRE-01'!$A$7:$U$301,8,FALSE)) ->  | AD105: =IF($R105="","",VLOOKUP($R105,'FO-DRE-01'!$A$7:$U$301,9,FALSE)) ->  | AE105: =IF($R105="","",VLOOKUP($R105,'FO-DRE-01'!$A$7:$U$301,10,FALSE)) ->  | AF105: =IF($R105="","",VLOOKUP($R105,'FO-DRE-01'!$A$7:$U$301,11,FALSE)) ->  | AG105: =IF($R105="","",VLOOKUP($R105,'FO-DRE-01'!$A$7:$U$301,12,FALSE)) ->  | AH105: =IF($R105="","",VLOOKUP($R105,'FO-DRE-01'!$A$7:$U$301,13,FALSE)) ->  | AI105: =IF($R105="","",VLOOKUP($R105,'FO-DRE-01'!$A$7:$U$301,14,FALSE)) ->  | AJ105: =IF($R105="","",VLOOKUP($R105,'FO-DRE-01'!$A$7:$U$301,15,FALSE)) ->  | AK105: =IF($S105="","",VLOOKUP($S105,'FO-DRE-04'!$A$6:$L$301,2,FALSE)) ->  | AL105: =IF($S105="","",VLOOKUP($S105,'FO-DRE-04'!$A$6:$L$301,3,FALSE)) ->  | AM105: =IF($S105="","",VLOOKUP($S105,'FO-DRE-04'!$A$6:$L$301,4,FALSE)) ->  | AN105: =IF($S105="","",VLOOKUP($S105,'FO-DRE-04'!$A$6:$L$301,6,FALSE)) ->  | AO105: =IF($S105="","",VLOOKUP($S105,'FO-DRE-04'!$A$6:$L$301,11,FALSE)) ->  | AP105: =IF($T105="","",VLOOKUP($T105,'FO-DRE-02'!$A$6:$M$101,2,FALSE)) ->  | AQ105: =IF($T105="","",VLOOKUP($T105,'FO-DRE-02'!$A$6:$M$101,3,FALSE)) ->  | AR105: =IF($T105="","",VLOOKUP($T105,'FO-DRE-02'!$A$6:$M$101,6,FALSE)) ->  | AS105: =IF($T105="","",VLOOKUP($T105,'FO-DRE-02'!$A$6:$M$101,4,FALSE)) ->  | AT105: =IF($T105="","",VLOOKUP($T105,'FO-DRE-02'!$A$6:$M$101,5,FALSE)) ->  | AU105: =IF($T105="","",VLOOKUP($T105,'FO-DRE-02'!$A$6:$M$101,8,FALSE)) ->  | AV105: =IF($T105="","",VLOOKUP($T105,'FO-DRE-02'!$A$6:$M$101,7,FALSE)) ->  | AW105: =IF($T105="","",VLOOKUP($T105,'FO-DRE-02'!$A$6:$M$101,9,FALSE)) ->  | AX105: =IF($T105="","",VLOOKUP($T105,'FO-DRE-02'!$A$6:$M$101,11,FALSE)) ->  | AY105: =IF($T105="","",VLOOKUP($T105,'FO-DRE-02'!$A$6:$M$101,12,FALSE)) ->  | AZ105: =IF($T105="","",VLOOKUP($T105,'FO-DRE-02'!$A$6:$M$101,13,FALSE)) ->  | BD105: 96 | BF105: F/D | BG105: F/D
I106: =IF(H106="1a",Hoja1!$B$126,IF(H106="1b",Hoja1!$B$127,IF(H106="2a",Hoja1!$B$128,IF(H106="2b",Hoja1!$B$129,IF(H106="3 ",Hoja1!$B$130,IF(H106="4 ",Hoja1!$B$131,IF(H106="5 ",Hoja1!$B$132,IF(H106="6 ",Hoja1!$B$133,IF(H106="7 ",Hoja1!$B$134,IF(H106="8 ",Hoja1!$B$135," ")))))))))) ->  | J106: =CONCATENATE(#REF!,"-","TX") ->  | K106: =CONCATENATE(#REF!,"-","RX") ->  | P106: 0 | V106: =IF($R106="","",VLOOKUP($R106,'FO-DRE-01'!$A$7:$U$301,18,FALSE)) ->  | W106: =IF($R106="","",VLOOKUP($R106,'FO-DRE-01'!$A$7:$U$301,16,FALSE)) ->  | X106: =IF($R106="","",VLOOKUP($R106,'FO-DRE-01'!$A$7:$U$301,17,FALSE)) ->  | Y106: =IF($R106="","",VLOOKUP($R106,'FO-DRE-01'!$A$7:$U$301,3,FALSE)) ->  | Z106: =IF($R106="","",VLOOKUP($R106,'FO-DRE-01'!$A$7:$U$301,4,FALSE)) ->  | AA106: =IF($R106="","",VLOOKUP($R106,'FO-DRE-01'!$A$7:$U$301,5,FALSE)) ->  | AB106: =IF($R106="","",VLOOKUP($R106,'FO-DRE-01'!$A$7:$U$301,7,FALSE)) ->  | AC106: =IF($R106="","",VLOOKUP($R106,'FO-DRE-01'!$A$7:$U$301,8,FALSE)) ->  | AD106: =IF($R106="","",VLOOKUP($R106,'FO-DRE-01'!$A$7:$U$301,9,FALSE)) ->  | AE106: =IF($R106="","",VLOOKUP($R106,'FO-DRE-01'!$A$7:$U$301,10,FALSE)) ->  | AF106: =IF($R106="","",VLOOKUP($R106,'FO-DRE-01'!$A$7:$U$301,11,FALSE)) ->  | AG106: =IF($R106="","",VLOOKUP($R106,'FO-DRE-01'!$A$7:$U$301,12,FALSE)) ->  | AH106: =IF($R106="","",VLOOKUP($R106,'FO-DRE-01'!$A$7:$U$301,13,FALSE)) ->  | AI106: =IF($R106="","",VLOOKUP($R106,'FO-DRE-01'!$A$7:$U$301,14,FALSE)) ->  | AJ106: =IF($R106="","",VLOOKUP($R106,'FO-DRE-01'!$A$7:$U$301,15,FALSE)) ->  | AK106: =IF($S106="","",VLOOKUP($S106,'FO-DRE-04'!$A$6:$L$301,2,FALSE)) ->  | AL106: =IF($S106="","",VLOOKUP($S106,'FO-DRE-04'!$A$6:$L$301,3,FALSE)) ->  | AM106: =IF($S106="","",VLOOKUP($S106,'FO-DRE-04'!$A$6:$L$301,4,FALSE)) ->  | AN106: =IF($S106="","",VLOOKUP($S106,'FO-DRE-04'!$A$6:$L$301,6,FALSE)) ->  | AO106: =IF($S106="","",VLOOKUP($S106,'FO-DRE-04'!$A$6:$L$301,11,FALSE)) ->  | AP106: =IF($T106="","",VLOOKUP($T106,'FO-DRE-02'!$A$6:$M$101,2,FALSE)) ->  | AQ106: =IF($T106="","",VLOOKUP($T106,'FO-DRE-02'!$A$6:$M$101,3,FALSE)) ->  | AR106: =IF($T106="","",VLOOKUP($T106,'FO-DRE-02'!$A$6:$M$101,6,FALSE)) ->  | AS106: =IF($T106="","",VLOOKUP($T106,'FO-DRE-02'!$A$6:$M$101,4,FALSE)) ->  | AT106: =IF($T106="","",VLOOKUP($T106,'FO-DRE-02'!$A$6:$M$101,5,FALSE)) ->  | AU106: =IF($T106="","",VLOOKUP($T106,'FO-DRE-02'!$A$6:$M$101,8,FALSE)) ->  | AV106: =IF($T106="","",VLOOKUP($T106,'FO-DRE-02'!$A$6:$M$101,7,FALSE)) ->  | AW106: =IF($T106="","",VLOOKUP($T106,'FO-DRE-02'!$A$6:$M$101,9,FALSE)) ->  | AX106: =IF($T106="","",VLOOKUP($T106,'FO-DRE-02'!$A$6:$M$101,11,FALSE)) ->  | AY106: =IF($T106="","",VLOOKUP($T106,'FO-DRE-02'!$A$6:$M$101,12,FALSE)) ->  | AZ106: =IF($T106="","",VLOOKUP($T106,'FO-DRE-02'!$A$6:$M$101,13,FALSE)) ->  | BD106: 97 | BF106: F/D | BG106: F/D
I107: =IF(H107="1a",Hoja1!$B$126,IF(H107="1b",Hoja1!$B$127,IF(H107="2a",Hoja1!$B$128,IF(H107="2b",Hoja1!$B$129,IF(H107="3 ",Hoja1!$B$130,IF(H107="4 ",Hoja1!$B$131,IF(H107="5 ",Hoja1!$B$132,IF(H107="6 ",Hoja1!$B$133,IF(H107="7 ",Hoja1!$B$134,IF(H107="8 ",Hoja1!$B$135," ")))))))))) ->  | J107: =CONCATENATE(#REF!,"-","TX") ->  | K107: =CONCATENATE(#REF!,"-","RX") ->  | P107: 0 | V107: =IF($R107="","",VLOOKUP($R107,'FO-DRE-01'!$A$7:$U$301,18,FALSE)) ->  | W107: =IF($R107="","",VLOOKUP($R107,'FO-DRE-01'!$A$7:$U$301,16,FALSE)) ->  | X107: =IF($R107="","",VLOOKUP($R107,'FO-DRE-01'!$A$7:$U$301,17,FALSE)) ->  | Y107: =IF($R107="","",VLOOKUP($R107,'FO-DRE-01'!$A$7:$U$301,3,FALSE)) ->  | Z107: =IF($R107="","",VLOOKUP($R107,'FO-DRE-01'!$A$7:$U$301,4,FALSE)) ->  | AA107: =IF($R107="","",VLOOKUP($R107,'FO-DRE-01'!$A$7:$U$301,5,FALSE)) ->  | AB107: =IF($R107="","",VLOOKUP($R107,'FO-DRE-01'!$A$7:$U$301,7,FALSE)) ->  | AC107: =IF($R107="","",VLOOKUP($R107,'FO-DRE-01'!$A$7:$U$301,8,FALSE)) ->  | AD107: =IF($R107="","",VLOOKUP($R107,'FO-DRE-01'!$A$7:$U$301,9,FALSE)) ->  | AE107: =IF($R107="","",VLOOKUP($R107,'FO-DRE-01'!$A$7:$U$301,10,FALSE)) ->  | AF107: =IF($R107="","",VLOOKUP($R107,'FO-DRE-01'!$A$7:$U$301,11,FALSE)) ->  | AG107: =IF($R107="","",VLOOKUP($R107,'FO-DRE-01'!$A$7:$U$301,12,FALSE)) ->  | AH107: =IF($R107="","",VLOOKUP($R107,'FO-DRE-01'!$A$7:$U$301,13,FALSE)) ->  | AI107: =IF($R107="","",VLOOKUP($R107,'FO-DRE-01'!$A$7:$U$301,14,FALSE)) ->  | AJ107: =IF($R107="","",VLOOKUP($R107,'FO-DRE-01'!$A$7:$U$301,15,FALSE)) ->  | AK107: =IF($S107="","",VLOOKUP($S107,'FO-DRE-04'!$A$6:$L$301,2,FALSE)) ->  | AL107: =IF($S107="","",VLOOKUP($S107,'FO-DRE-04'!$A$6:$L$301,3,FALSE)) ->  | AM107: =IF($S107="","",VLOOKUP($S107,'FO-DRE-04'!$A$6:$L$301,4,FALSE)) ->  | AN107: =IF($S107="","",VLOOKUP($S107,'FO-DRE-04'!$A$6:$L$301,6,FALSE)) ->  | AO107: =IF($S107="","",VLOOKUP($S107,'FO-DRE-04'!$A$6:$L$301,11,FALSE)) ->  | AP107: =IF($T107="","",VLOOKUP($T107,'FO-DRE-02'!$A$6:$M$101,2,FALSE)) ->  | AQ107: =IF($T107="","",VLOOKUP($T107,'FO-DRE-02'!$A$6:$M$101,3,FALSE)) ->  | AR107: =IF($T107="","",VLOOKUP($T107,'FO-DRE-02'!$A$6:$M$101,6,FALSE)) ->  | AS107: =IF($T107="","",VLOOKUP($T107,'FO-DRE-02'!$A$6:$M$101,4,FALSE)) ->  | AT107: =IF($T107="","",VLOOKUP($T107,'FO-DRE-02'!$A$6:$M$101,5,FALSE)) ->  | AU107: =IF($T107="","",VLOOKUP($T107,'FO-DRE-02'!$A$6:$M$101,8,FALSE)) ->  | AV107: =IF($T107="","",VLOOKUP($T107,'FO-DRE-02'!$A$6:$M$101,7,FALSE)) ->  | AW107: =IF($T107="","",VLOOKUP($T107,'FO-DRE-02'!$A$6:$M$101,9,FALSE)) ->  | AX107: =IF($T107="","",VLOOKUP($T107,'FO-DRE-02'!$A$6:$M$101,11,FALSE)) ->  | AY107: =IF($T107="","",VLOOKUP($T107,'FO-DRE-02'!$A$6:$M$101,12,FALSE)) ->  | AZ107: =IF($T107="","",VLOOKUP($T107,'FO-DRE-02'!$A$6:$M$101,13,FALSE)) ->  | BD107: 98 | BF107: F/D | BG107: F/D
I108: =IF(H108="1a",Hoja1!$B$126,IF(H108="1b",Hoja1!$B$127,IF(H108="2a",Hoja1!$B$128,IF(H108="2b",Hoja1!$B$129,IF(H108="3 ",Hoja1!$B$130,IF(H108="4 ",Hoja1!$B$131,IF(H108="5 ",Hoja1!$B$132,IF(H108="6 ",Hoja1!$B$133,IF(H108="7 ",Hoja1!$B$134,IF(H108="8 ",Hoja1!$B$135," ")))))))))) ->  | J108: =CONCATENATE(#REF!,"-","TX") ->  | K108: =CONCATENATE(#REF!,"-","RX") ->  | P108: 0 | V108: =IF($R108="","",VLOOKUP($R108,'FO-DRE-01'!$A$7:$U$301,18,FALSE)) ->  | W108: =IF($R108="","",VLOOKUP($R108,'FO-DRE-01'!$A$7:$U$301,16,FALSE)) ->  | X108: =IF($R108="","",VLOOKUP($R108,'FO-DRE-01'!$A$7:$U$301,17,FALSE)) ->  | Y108: =IF($R108="","",VLOOKUP($R108,'FO-DRE-01'!$A$7:$U$301,3,FALSE)) ->  | Z108: =IF($R108="","",VLOOKUP($R108,'FO-DRE-01'!$A$7:$U$301,4,FALSE)) ->  | AA108: =IF($R108="","",VLOOKUP($R108,'FO-DRE-01'!$A$7:$U$301,5,FALSE)) ->  | AB108: =IF($R108="","",VLOOKUP($R108,'FO-DRE-01'!$A$7:$U$301,7,FALSE)) ->  | AC108: =IF($R108="","",VLOOKUP($R108,'FO-DRE-01'!$A$7:$U$301,8,FALSE)) ->  | AD108: =IF($R108="","",VLOOKUP($R108,'FO-DRE-01'!$A$7:$U$301,9,FALSE)) ->  | AE108: =IF($R108="","",VLOOKUP($R108,'FO-DRE-01'!$A$7:$U$301,10,FALSE)) ->  | AF108: =IF($R108="","",VLOOKUP($R108,'FO-DRE-01'!$A$7:$U$301,11,FALSE)) ->  | AG108: =IF($R108="","",VLOOKUP($R108,'FO-DRE-01'!$A$7:$U$301,12,FALSE)) ->  | AH108: =IF($R108="","",VLOOKUP($R108,'FO-DRE-01'!$A$7:$U$301,13,FALSE)) ->  | AI108: =IF($R108="","",VLOOKUP($R108,'FO-DRE-01'!$A$7:$U$301,14,FALSE)) ->  | AJ108: =IF($R108="","",VLOOKUP($R108,'FO-DRE-01'!$A$7:$U$301,15,FALSE)) ->  | AK108: =IF($S108="","",VLOOKUP($S108,'FO-DRE-04'!$A$6:$L$301,2,FALSE)) ->  | AL108: =IF($S108="","",VLOOKUP($S108,'FO-DRE-04'!$A$6:$L$301,3,FALSE)) ->  | AM108: =IF($S108="","",VLOOKUP($S108,'FO-DRE-04'!$A$6:$L$301,4,FALSE)) ->  | AN108: =IF($S108="","",VLOOKUP($S108,'FO-DRE-04'!$A$6:$L$301,6,FALSE)) ->  | AO108: =IF($S108="","",VLOOKUP($S108,'FO-DRE-04'!$A$6:$L$301,11,FALSE)) ->  | AP108: =IF($T108="","",VLOOKUP($T108,'FO-DRE-02'!$A$6:$M$101,2,FALSE)) ->  | AQ108: =IF($T108="","",VLOOKUP($T108,'FO-DRE-02'!$A$6:$M$101,3,FALSE)) ->  | AR108: =IF($T108="","",VLOOKUP($T108,'FO-DRE-02'!$A$6:$M$101,6,FALSE)) ->  | AS108: =IF($T108="","",VLOOKUP($T108,'FO-DRE-02'!$A$6:$M$101,4,FALSE)) ->  | AT108: =IF($T108="","",VLOOKUP($T108,'FO-DRE-02'!$A$6:$M$101,5,FALSE)) ->  | AU108: =IF($T108="","",VLOOKUP($T108,'FO-DRE-02'!$A$6:$M$101,8,FALSE)) ->  | AV108: =IF($T108="","",VLOOKUP($T108,'FO-DRE-02'!$A$6:$M$101,7,FALSE)) ->  | AW108: =IF($T108="","",VLOOKUP($T108,'FO-DRE-02'!$A$6:$M$101,9,FALSE)) ->  | AX108: =IF($T108="","",VLOOKUP($T108,'FO-DRE-02'!$A$6:$M$101,11,FALSE)) ->  | AY108: =IF($T108="","",VLOOKUP($T108,'FO-DRE-02'!$A$6:$M$101,12,FALSE)) ->  | AZ108: =IF($T108="","",VLOOKUP($T108,'FO-DRE-02'!$A$6:$M$101,13,FALSE)) ->  | BD108: 99 | BF108: F/D | BG108: F/D
I109: =IF(H109="1a",Hoja1!$B$126,IF(H109="1b",Hoja1!$B$127,IF(H109="2a",Hoja1!$B$128,IF(H109="2b",Hoja1!$B$129,IF(H109="3 ",Hoja1!$B$130,IF(H109="4 ",Hoja1!$B$131,IF(H109="5 ",Hoja1!$B$132,IF(H109="6 ",Hoja1!$B$133,IF(H109="7 ",Hoja1!$B$134,IF(H109="8 ",Hoja1!$B$135," ")))))))))) ->  | J109: =CONCATENATE(#REF!,"-","TX") ->  | K109: =CONCATENATE(#REF!,"-","RX") ->  | P109: 0 | V109: =IF($R109="","",VLOOKUP($R109,'FO-DRE-01'!$A$7:$U$301,18,FALSE)) ->  | W109: =IF($R109="","",VLOOKUP($R109,'FO-DRE-01'!$A$7:$U$301,16,FALSE)) ->  | X109: =IF($R109="","",VLOOKUP($R109,'FO-DRE-01'!$A$7:$U$301,17,FALSE)) ->  | Y109: =IF($R109="","",VLOOKUP($R109,'FO-DRE-01'!$A$7:$U$301,3,FALSE)) ->  | Z109: =IF($R109="","",VLOOKUP($R109,'FO-DRE-01'!$A$7:$U$301,4,FALSE)) ->  | AA109: =IF($R109="","",VLOOKUP($R109,'FO-DRE-01'!$A$7:$U$301,5,FALSE)) ->  | AB109: =IF($R109="","",VLOOKUP($R109,'FO-DRE-01'!$A$7:$U$301,7,FALSE)) ->  | AC109: =IF($R109="","",VLOOKUP($R109,'FO-DRE-01'!$A$7:$U$301,8,FALSE)) ->  | AD109: =IF($R109="","",VLOOKUP($R109,'FO-DRE-01'!$A$7:$U$301,9,FALSE)) ->  | AE109: =IF($R109="","",VLOOKUP($R109,'FO-DRE-01'!$A$7:$U$301,10,FALSE)) ->  | AF109: =IF($R109="","",VLOOKUP($R109,'FO-DRE-01'!$A$7:$U$301,11,FALSE)) ->  | AG109: =IF($R109="","",VLOOKUP($R109,'FO-DRE-01'!$A$7:$U$301,12,FALSE)) ->  | AH109: =IF($R109="","",VLOOKUP($R109,'FO-DRE-01'!$A$7:$U$301,13,FALSE)) ->  | AI109: =IF($R109="","",VLOOKUP($R109,'FO-DRE-01'!$A$7:$U$301,14,FALSE)) ->  | AJ109: =IF($R109="","",VLOOKUP($R109,'FO-DRE-01'!$A$7:$U$301,15,FALSE)) ->  | AK109: =IF($S109="","",VLOOKUP($S109,'FO-DRE-04'!$A$6:$L$301,2,FALSE)) ->  | AL109: =IF($S109="","",VLOOKUP($S109,'FO-DRE-04'!$A$6:$L$301,3,FALSE)) ->  | AM109: =IF($S109="","",VLOOKUP($S109,'FO-DRE-04'!$A$6:$L$301,4,FALSE)) ->  | AN109: =IF($S109="","",VLOOKUP($S109,'FO-DRE-04'!$A$6:$L$301,6,FALSE)) ->  | AO109: =IF($S109="","",VLOOKUP($S109,'FO-DRE-04'!$A$6:$L$301,11,FALSE)) ->  | AP109: =IF($T109="","",VLOOKUP($T109,'FO-DRE-02'!$A$6:$M$101,2,FALSE)) ->  | AQ109: =IF($T109="","",VLOOKUP($T109,'FO-DRE-02'!$A$6:$M$101,3,FALSE)) ->  | AR109: =IF($T109="","",VLOOKUP($T109,'FO-DRE-02'!$A$6:$M$101,6,FALSE)) ->  | AS109: =IF($T109="","",VLOOKUP($T109,'FO-DRE-02'!$A$6:$M$101,4,FALSE)) ->  | AT109: =IF($T109="","",VLOOKUP($T109,'FO-DRE-02'!$A$6:$M$101,5,FALSE)) ->  | AU109: =IF($T109="","",VLOOKUP($T109,'FO-DRE-02'!$A$6:$M$101,8,FALSE)) ->  | AV109: =IF($T109="","",VLOOKUP($T109,'FO-DRE-02'!$A$6:$M$101,7,FALSE)) ->  | AW109: =IF($T109="","",VLOOKUP($T109,'FO-DRE-02'!$A$6:$M$101,9,FALSE)) ->  | AX109: =IF($T109="","",VLOOKUP($T109,'FO-DRE-02'!$A$6:$M$101,11,FALSE)) ->  | AY109: =IF($T109="","",VLOOKUP($T109,'FO-DRE-02'!$A$6:$M$101,12,FALSE)) ->  | AZ109: =IF($T109="","",VLOOKUP($T109,'FO-DRE-02'!$A$6:$M$101,13,FALSE)) ->  | BD109: 100 | BF109: F/D | BG109: F/D
I110: =IF(H110="1a",Hoja1!$B$126,IF(H110="1b",Hoja1!$B$127,IF(H110="2a",Hoja1!$B$128,IF(H110="2b",Hoja1!$B$129,IF(H110="3 ",Hoja1!$B$130,IF(H110="4 ",Hoja1!$B$131,IF(H110="5 ",Hoja1!$B$132,IF(H110="6 ",Hoja1!$B$133,IF(H110="7 ",Hoja1!$B$134,IF(H110="8 ",Hoja1!$B$135," ")))))))))) ->  | J110: =CONCATENATE(#REF!,"-","TX") ->  | K110: =CONCATENATE(#REF!,"-","RX") ->  | P110: 0 | V110: =IF($R110="","",VLOOKUP($R110,'FO-DRE-01'!$A$7:$U$301,18,FALSE)) ->  | W110: =IF($R110="","",VLOOKUP($R110,'FO-DRE-01'!$A$7:$U$301,16,FALSE)) ->  | X110: =IF($R110="","",VLOOKUP($R110,'FO-DRE-01'!$A$7:$U$301,17,FALSE)) ->  | Y110: =IF($R110="","",VLOOKUP($R110,'FO-DRE-01'!$A$7:$U$301,3,FALSE)) ->  | Z110: =IF($R110="","",VLOOKUP($R110,'FO-DRE-01'!$A$7:$U$301,4,FALSE)) ->  | AA110: =IF($R110="","",VLOOKUP($R110,'FO-DRE-01'!$A$7:$U$301,5,FALSE)) ->  | AB110: =IF($R110="","",VLOOKUP($R110,'FO-DRE-01'!$A$7:$U$301,7,FALSE)) ->  | AC110: =IF($R110="","",VLOOKUP($R110,'FO-DRE-01'!$A$7:$U$301,8,FALSE)) ->  | AD110: =IF($R110="","",VLOOKUP($R110,'FO-DRE-01'!$A$7:$U$301,9,FALSE)) ->  | AE110: =IF($R110="","",VLOOKUP($R110,'FO-DRE-01'!$A$7:$U$301,10,FALSE)) ->  | AF110: =IF($R110="","",VLOOKUP($R110,'FO-DRE-01'!$A$7:$U$301,11,FALSE)) ->  | AG110: =IF($R110="","",VLOOKUP($R110,'FO-DRE-01'!$A$7:$U$301,12,FALSE)) ->  | AH110: =IF($R110="","",VLOOKUP($R110,'FO-DRE-01'!$A$7:$U$301,13,FALSE)) ->  | AI110: =IF($R110="","",VLOOKUP($R110,'FO-DRE-01'!$A$7:$U$301,14,FALSE)) ->  | AJ110: =IF($R110="","",VLOOKUP($R110,'FO-DRE-01'!$A$7:$U$301,15,FALSE)) ->  | AK110: =IF($S110="","",VLOOKUP($S110,'FO-DRE-04'!$A$6:$L$301,2,FALSE)) ->  | AL110: =IF($S110="","",VLOOKUP($S110,'FO-DRE-04'!$A$6:$L$301,3,FALSE)) ->  | AM110: =IF($S110="","",VLOOKUP($S110,'FO-DRE-04'!$A$6:$L$301,4,FALSE)) ->  | AN110: =IF($S110="","",VLOOKUP($S110,'FO-DRE-04'!$A$6:$L$301,6,FALSE)) ->  | AO110: =IF($S110="","",VLOOKUP($S110,'FO-DRE-04'!$A$6:$L$301,11,FALSE)) ->  | AP110: =IF($T110="","",VLOOKUP($T110,'FO-DRE-02'!$A$6:$M$101,2,FALSE)) ->  | AQ110: =IF($T110="","",VLOOKUP($T110,'FO-DRE-02'!$A$6:$M$101,3,FALSE)) ->  | AR110: =IF($T110="","",VLOOKUP($T110,'FO-DRE-02'!$A$6:$M$101,6,FALSE)) ->  | AS110: =IF($T110="","",VLOOKUP($T110,'FO-DRE-02'!$A$6:$M$101,4,FALSE)) ->  | AT110: =IF($T110="","",VLOOKUP($T110,'FO-DRE-02'!$A$6:$M$101,5,FALSE)) ->  | AU110: =IF($T110="","",VLOOKUP($T110,'FO-DRE-02'!$A$6:$M$101,8,FALSE)) ->  | AV110: =IF($T110="","",VLOOKUP($T110,'FO-DRE-02'!$A$6:$M$101,7,FALSE)) ->  | AW110: =IF($T110="","",VLOOKUP($T110,'FO-DRE-02'!$A$6:$M$101,9,FALSE)) ->  | AX110: =IF($T110="","",VLOOKUP($T110,'FO-DRE-02'!$A$6:$M$101,11,FALSE)) ->  | AY110: =IF($T110="","",VLOOKUP($T110,'FO-DRE-02'!$A$6:$M$101,12,FALSE)) ->  | AZ110: =IF($T110="","",VLOOKUP($T110,'FO-DRE-02'!$A$6:$M$101,13,FALSE)) ->  | BD110: 101 | BF110: F/D | BG110: F/D
